Workbook

Sheet __snloffice (hidden)
A1: 允䅁䑁䅙䅁䍁䅁䅁䅁䉁䅁䅁䅄䅁䑁䅉䅍硁䑁䅍兗䅁䑁䅑䅁䵁䅁䅁杍睁䑁䅅䅎婂䅁䅁睍䅁䅁䅷䅁祁䑁䅁免ㅁ䙁䅫䅁䅁䅁䅁䅄䅁䑁䅉䅍硁䑁䅙兗䅁䍁䄸䅁䵁䅁䅁杍睁䑁䅅睎婂䅁䅁免䅁䅁䅷䅁祁䑁䅁免㑁䙁䅫䅁瑁䅁䅁䅄䅁䑁䅉䅍硁䑁䅫兗䅁䑁䅁䅁䵁䅁䅁杍睁䑁䅉䅍婂䅁䅁杌䅁䅁䅯䅁㡁䑁䄴兎㉁䅁䅁杋䅁䕁䅉䅁䉂䕁䅍䅔杁䙁䅉兡穂䝁䅳䅉䍂䝁䅅督求䝁䅑䅉䑂䝁䅅䅣灂䡁䅑兙獂䍁䅁杕桂䡁䅑兡療䍁䅁䅋汁䍁䅫䅁佁䅁䅁杌䅁䕁䅅杕㙁䍁䅁䅖灂䡁䅑䅢求䍁䅁䅗䩂䙁䅧䅉乂䝁䅕䅚灂䝁䅍兙灂䝁䅑䅁牁䅁䅁䅍䅁䕁䅅䅚煂䡁䅕督あ䝁䅕䅚杁䕁䅍兙睂䝁䅫䅤桂䝁䅷䅉潁䍁䅑䅍睁䑁䅁克䅁䑁䅉䅁慂䅁䅁兑ㅂ䡁䅑䅡杁䕁䅍睢畂䡁䅑杣療䝁䅷䅉䵂䝁䅕杤求䝁䅷䅉卂䝁䅫督牂䍁䅁村桂䡁䅍党歂䍁䅁睑桂䡁䅁兡あ䝁䅅䅢杁䍁䅧䅊睁䑁䅁䅍灁䅁䅁兎䅁䝁䅁䅁䍂䝁䅕杢求䝁䅙兡あ䡁䅍䅉浂䝁䄸杣杁䕁䅧睢穂䡁䅁兡あ䝁䅅䅢杁䍁䅙䅉乂䝁䅕䅚灂䝁䅍兙獂䍁䅁睕求䡁䅉杤灂䝁䅍党穂䍁䅁䅋歁䑁䅁䅍睁䍁䅫䅁摁䅁䅁䅑䅁䕁䅍䅡湂䍁䅁兡畂䍁䅁兖畂䝁䅕兙祂䝁䄴党歂䍁䅁䅕祂䝁䅕兢灂䡁䅕兢穂䍁䅁䅋歁䑁䅁䅍睁䍁䅫䅁婁䅁䅁材䅁䕁䅑兡祂䝁䅕睙あ䍁䅁䅕祂䝁䅕兢灂䡁䅕兢穂䍁䅁睖祂䝁䅫䅤あ䝁䅕杢杁䍁䅧䅊睁䑁䅁䅍灁䅁䅁䅅䅁䙁䅁䅁䙂䝁䄰党祂䝁䅣党畂䝁䅍入杁䙁䅉睢療䝁䄰䅉流䍁䅁睔ㅂ䡁䅑䅉療䝁䅙䅉䉂䡁䅉党桂䍁䅁兒㑂䡁䅁䅉潁䍁䅑䅍睁䑁䅁克䅁䍁䅅䅁慁䅁䅁兒畂䡁䅑兡あ䡁䅫䅉佂䝁䅅兢求䍁䅁䅁䭁䅁䅁杔䅁䕁䅙党求䍁䅁杚療䡁䅉䅉呂䝁䅕杣㉂䝁䅫睙求䍁䅁杔求䡁䅑䅉乂䝁䅕䅚灂䝁䅍兙獂䍁䅁兒㑂䡁䅁䅉潁䍁䅑䅍睁䑁䅁克䅁䉁䅯䅁杂䅁䅁睒求䝁䄴党祂䝁䅅䅢杁䕁䅅䅚瑂䝁䅫杢灂䡁䅍䅤祂䝁䅅䅤灂䡁䅙党杁䕁䅕䅥睂䝁䅕杢穂䝁䅕督杁䕁䅫杢橂䡁䅕杣祂䝁䅕䅚杁䍁䅧䅊睁䑁䅁䅍灁䅁䅁睁䅁䙁䅷䅁䥂䝁䅕兙獂䡁䅑䅡杁䙁䅍䅤桂䡁䅑党杁䙁䅁睚杁䕁䅧党桂䝁䅷䅤潂䍁䅁䅕祂䝁䅕兢灂䡁䅕兢穂䍁䅁兒桂䡁䅉杢求䝁䅑䅉潁䍁䅑䅍睁䑁䅁克䅁䉁䅅䅁䭂䅁䅁䅓療䡁䅍䅣灂䡁䅑兙獂䍁䅁杊杁䕁䄰党歂䝁䅫睙桂䝁䅷䅉䩂䝁䄴睙求䝁䄴䅤灂䡁䅙党穂䍁䅁䅋歁䑁䅁䅍睁䍁䅫䅁橁䅁䅁杏䅁䕁䅧睢穂䡁䅁兡あ䝁䅅䅢杁䙁䅁兙あ䝁䅫党畂䡁䅑䅉䕂䝁䅅入穂䍁䅁䅋歂䝁䅅入穂䍁䅫䅁坁䅁䅁杓䅁䕁䅫杢橂䡁䅉党桂䡁䅍党杁䝁䅫杢杁䕁䅅睚湂䡁䅉党湂䝁䅅䅤求䍁䅁杕求䡁䅍党祂䡁䅙党杁䍁䅧䅊睁䑁䅁䅍灁䅁䅁杊䅁䙁䅑䅁䩂䝁䄴睙祂䝁䅕兙穂䝁䅕䅉灂䝁䄴䅉卂䝁䅕督求䡁䅉杤求䡁䅍䅉浂䝁䄸杣杁䕁䅷兡浂䝁䅕䅉療䝁䄴䅢㕂䍁䅁䅋歁䑁䅁䅍睁䍁䅫䅁湁䅁䅁䅐䅁䕁䅫杢睂䝁䅅䅤灂䝁䅕杢あ䍁䅁兑歂䝁䄰兡穂䡁䅍兡療䝁䄴督杁䍁䅧兙橂䡁䅑兤桂䝁䅷克䅁䉁䅣䅁㙁䅁䅁䅔療䡁䅍督杁䕁䅅䅚煂䍁䅁兒㑂䡁䅁䅉䩂䝁䄴睙ㅂ䡁䅉杣求䝁䅑䅉潁䍁䅑䅍睁䑁䅁克䅁䉁䅕䅁䥁䅁䅁兔卂䙁䅫䅁灁䅁䅁材䅁䕁䄰党歂䝁䅫睙桂䝁䅷䅉䵂䝁䄸督穂䝁䅕督杁䕁䅫杢橂䡁䅕杣祂䝁䅕䅚杁䍁䅧䅊睁䑁䅁䅍灁䅁䅁䅊䅁䕁䄴䅁乂䝁䅕䅚灂䝁䅍兙獂䍁䅁䅔療䡁䅍督求䡁䅍䅉䵂䝁䅕督穂䍁䅁杕求䝁䅫杢穂䡁䅕杣桂䝁䄴睙求䍁䅁䅋歁䑁䅁䅍睁䍁䅫䅁汁䅁䅁䅓䅁䕁䄰党歂䝁䅫睙桂䝁䅷䅉卂䝁䅕兡畂䡁䅍兤祂䝁䅅杢橂䝁䅕䅉卂䝁䅕睙療䡁䅙党祂䡁䅫䅉潁䍁䅑䅍睁䑁䅁克䅁䅁䅑䅁䵂䅁䅁兔求䝁䅑兡橂䝁䅅䅢㙁䍁䅁睔ㅂ䡁䅑督灂䝁䅑党杁䙁䅉党浂䝁䅕杣祂䝁䅅䅢穂䍁䅁兒㑂䡁䅁䅉潁䍁䅑䅍睁䑁䅁克䅁䉁䄸䅁畁䅁䅁兔求䝁䄰杙求䡁䅉䅉乂䝁䄸杢あ䝁䅧督杁䍁䅧兙橂䡁䅑兤桂䝁䅷克䅁䅁䅣䅁杂䅁䅁兔求䝁䄰杙求䡁䅉䅉兂䝁䅧入穂䝁䅫睙灂䝁䅅杢杁䕁䅅兢楂䡁䅕䅢桂䡁䅑睢祂䡁䅫䅉䙂䝁䄴睙療䡁䅕杢あ䝁䅕杣穂䍁䅁䅋桂䝁䅍䅤ㅂ䝁䅅䅢灁䅁䅁䅆䅁䍁䅑䅁佂䝁䅕䅤杁䕁䅫杢橂䝁䄸兢求䍁䅁䅋歁䑁䅁䅍睁䍁䅫䅁䥁䅁䅁䅏䅁䕁䄴党あ䍁䅁䅕祂䝁䅕兢灂䡁䅕兢穂䍁䅁睖祂䝁䅫䅤あ䝁䅕杢杁䍁䅧䅊睁䑁䅁䅍灁䅁䅁䅇䅁䑁䅷䅁佂䝁䅕䅤杁䙁䅕杢歂䝁䅕杣㍂䡁䅉兡あ䝁䅫杢湂䍁䅁睒桂䝁䅫杢穂䍁䅁䅋歁䑁䅁䅍睁䍁䅫䅁潁䅁䅁杍䅁䕁䄴睢畂䍁䅁䅓求䝁䅅䅢あ䝁䅧䅉䑂䝁䅷兙灂䝁䄰督杁䍁䅧䅊睁䑁䅁䅍灁䅁䅁䅉䅁䥁䅙䅁偂䡁䅁䅤灂䝁䄸杢穂䑁䅯睑ㅂ䡁䅉杣㥁䙁䅉党睂䝁䄸杣あ䝁䅕䅚杁䝁䅍兤祂䡁䅉党畂䝁䅍入獁䕁䄰兙湂䑁䄰睕あ䝁䅅杢歂䝁䅅杣歂䍁䅷睑療䝁䄴杤乂䝁䅕䅤潂䝁䄸䅚㥁䙁䅉党橂䝁䄸兢瑂䝁䅕杢歂䝁䅕䅚䅁䅁䅉䅁佂䅁䅁睔あ䝁䅧党祂䍁䅁䅓療䡁䅍䅣灂䡁䅑兙獂䍁䅁杊杁䕁䄰党歂䝁䅫睙桂䝁䅷䅉䙂䡁䅧䅣杁䙁䅣兓杁䍁䅧䅊睁䑁䅁䅍灁䅁䅁杉䅁䙁䅧䅁偂䡁䅑䅡求䡁䅉䅉䥂䝁䄸督睂䝁䅫䅤桂䝁䅷䅉兂䡁䅉睢浂䝁䅕督穂䝁䅫睢畂䝁䅅䅢杁䙁䅍杤橂䡁䅍䅉䙂䡁䅧䅣杁䍁䅧䅊睁䑁䅁䅍灁䅁䅁杈䅁䉁䅯䅁兂䝁䅅杣求䝁䄴䅤杁䕁䄴兙瑂䝁䅕䅉䅁䅁䅕䅁䕂䅁䅁䅕祂䝁䅕督橂䡁䅉兡睂䡁䅑兡療䝁䄴䅉䕂䡁䅉兤湂䡁䅍䅉䙂䡁䅧䅣求䝁䄴督求䍁䅁䅋歁䑁䅁䅍睁䍁䅫䅁䵁䅁䅁䅚䅁䙁䅁杣療䡁䅙兡穂䝁䅫睢畂䍁䅁睢浂䍁䅁䅓求䝁䅅䅢あ䝁䅧䅉䑂䝁䅅杣求䍁䅁睕求䡁䅉杤灂䝁䅍党穂䍁䅁兓畂䝁䅍兤祂䡁䅉党歂䍁䅁䅋歁䑁䅁䅍睁䍁䅫䅁䩁䅁䅁䅘䅁䙁䅁杣療䡁䅙兡穂䝁䅫睢畂䍁䅁睢浂䍁䅁䅓求䝁䅅䅢あ䝁䅧䅉䑂䝁䅅杣求䍁䅁睕求䡁䅉杤灂䝁䅍党穂䍁䅁䅕桂䝁䅫䅚杁䍁䅧䅊睁䑁䅁䅍灁䅁䅁睅䅁䝁䅉䅁卂䝁䅕杤求䝁䄴兤求䑁䅯䅉塂䕁䅫䅉浂䝁䄸杣杁䕁䄸䅤潂䝁䅕杣杁䕁䅧党桂䝁䅷䅤潂䍁䅁睑桂䡁䅉党杁䙁䅉党獂䝁䅅䅤求䝁䅑䅉潁䍁䅑䅍睁䑁䅁克䅁䉁䅳䅁杂䅁䅁杕求䡁䅙党畂䡁䅕党㙁䍁䅁睖䩂䍁䅁杚療䡁䅉䅉偂䡁䅑䅡求䡁䅉䅉佂䝁䄸杢杁䕁䅧党桂䝁䅷䅤潂䍁䅁杕求䝁䅷兙あ䝁䅕䅚杁䍁䅧䅊睁䑁䅁䅍灁䅁䅁䅈䅁䍁䅧䅁卂䝁䅫督牂䍁䅁杕求䡁䅙党畂䡁䅕党杁䍁䅧䅊睁䑁䅁䅍灁䅁䅁兄䅁䑁䅑䅁呂䕁䄴䅔杁䙁䅍䅤桂䡁䅑兤あ䝁䄸杣㕂䍁䅁兒畂䡁䅑兡あ䡁䅫䅉䱂䝁䅕入杁䅁䅁䅌䅁䍁䅉䅁呂䡁䅑兙あ䝁䅕䅉䕂䝁䄸兢灂䝁䅍兡獂䝁䅕䅚杁䅁䅁杂䅁䕁䅉䅁啂䝁䄸䅤桂䝁䅷䅉䥂䝁䅕兙獂䡁䅑䅡杁䕁䅕杢祂䝁䄸䅢獂䝁䄰党畂䡁䅑䅉潁䝁䅅睙あ䡁䅕兙獂䍁䅫䅁偁䅁䅁杋䅁䙁䅑睢あ䝁䅅䅢杁䙁䅉党㉂䝁䅕杢ㅂ䝁䅕䅉潁䍁䅑䅍睁䑁䅁克䅁䅁䅳䅁⭁䅁䅁兖畂䝁䅑党祂䡁䅣杣灂䡁䅑兡畂䝁䅣䅉䕂䝁䅕䅚ㅂ䝁䅍䅤灂䝁䄸杢穂䍁䅁䅋歁䑁䅁䅍睁䍁䅫䅁十䅁䅁允䅁䅁杷允䅁䅁䅙䅁䑁䅁䅍䅁䙁䅁䅁䅁䅁䠸䅆兂䅁䅁䅁䙕㡶䅑䅯允䅁䅁䅯允䅁䅁䅯杁䅁䅁䅅䅁䉁䅁䅁权獁䅁䅁

Sheet Description
A1: Description of NAIC Pivot Table Workbook
A3: The purpose of this workbook is to document the development of the normal curves that are used in the SOA 2022 Underwriting Margin Model. A description of the tabs are listed below.
A4: Workbook Tabs
A6: PVT Summary
A7: This tab is a brief summary of the standard deviations for each of the seven normal curves that are used in the SOA 2022 Model. Also provided on this tab is the formula that was fitted to the standard deviations by size of MCO.
A8: PVT General
A9: This tab contains a pivot table that is used to select and sort health plan-specific underwriting margin ratios (UWRs) from the NAIC dataset. These observations were used to develop the curves for each of the 7 curves used in the model. The pivot table selections can be made for profit/not-for-profit status, expansion (ACA) status, and time period to generate the seven curves. When these curves are generated they are copied as values to the tables on the right of the worksheet, and sorted from low to high. Count totals and checks are provided on top of each column of this value table.
A10: Note that there is also a pivot table parameter called "Composite". A Composite value of "1" indicates that the entry survived all the data edits to eliminate outliers and incomplete entries. This should be set at "1" for all curves. Please refer to the report for a discussion on the outlier edits used in the development of the curves.
A11: Pivot Data
A12: This tab contains the NAIC Medicaid MCO dataset downloaded from SOA's subscription to the S&P Capital IQ Pro service.
A13: Columns A through AD of this tab include all of the NAIC data elements selected for download.
A14: Columns AE through BA document the outlier screening process used to remove outliers and incomplete data.
A15: Columns BB through BG is a summary section that calculates how many entries were removed for each of the outlier screens.
A16: PVT by Size
A17: This tab includes a pivot table that allocates the CY2013 to CY2019 NAIC data to ten deciles using MCO member months to determine the decile. The standard deviation for each decile was adjusted by the same standard deviation adjustment factor used to improve the R-squared for the CY2013 to CY2019 composite curve. A curve was fitted to these deciles based on the relationship between the adjusted standard deviation and the size. This is the formula for the curve: (adjusted standard deviation) = 1.8046 x (member months)-.0286
A18: PVT by Year
A19: This tab contains two pivot tables. The first is used to compile the MCO entries by year. The second is used to compile the CY 2020 data after elimination of outliers. The data is copied as values to the summary table next to the Pivot tables.
A20: UW Ratio Normal Curve
A21: The data from PVT General tab for each of the seven curves is copied to this tab beginning in cell E13. Column M defines a series of UWR bins that is used to group the entry frequencies in columns Q through W for each of the seven curves. The table in the range Y2:AB13 calculates the standard deviation, median, R squared and residuals before and after adjustment. The probability statistics in cell range Y32 to AB134 are calculated using the median and the adjusted standard deviation. The graph at Q1 compares the NAIC data to the normal curve defined by the median and the adjusted standard deviation.
A22: The standard deviation adjustment is determined by a macro that is activated by pressing the button located in cell A3. The macro marches through each of the seven curves by updating the index number in cell Y15 which in turn updates the curve statistics in column B. The macro determines what the adjustment to the standard deviation is necessary to maximize the R squared. All of the results are recorded in the table starting at D2 by copying the column B results as each curve is processed.
A23: Milliman Data List
A24: This is a description of the fields pulled from the NAIC data, as per the Milliman Research Report "Medicaid managed care financial results for 2020"
A25: S&P Export
A26: This is an original extract which was used to develop the Pivot Data, with live links to the S&P Capital IQ Pro online database
A27: S&P Export 2
A28: This is another original extract which was used to develop the Pivot Data, presented in a different format and with no links to the S&P Capital IQ Pro online database
A29: SOA dataset
A30: This is a copy of the dataset produced for the SOA 2017 research study report titled "Medicaid Managed Care Organizations: Considerations in Calculating Margin in Rate Setting". This dataset was also referenced by the MHPA 2019 report and model "Underwriting Gain Development for Managed Medicaid Capitation Rates"
A31: Dataset process backup
A32: This section includes 3 tabs with backup data used to determine For-Profit / Not-For-Profit status and ACA Expansion vs. Non-Expansion state
A33: Backup for Figures
A34: This section includes 1 tab containing backup for Figures 1 & 2 in the report

Sheet PVT Summary
B1: Summary of Adjusted Underwriting Ratio Curves
B2: NAIC Data CY 2013 Through CY 2019
B5: Curve Name | C5: Standard Deviation
B6: Composite 2013 to 2019 Curve | C6: ='UW Ratio Normal Curve'!E8 -> 0.03714488925
B7: Composite 2013 to 2015 Curve | C7: ='UW Ratio Normal Curve'!J8 -> 0.03892009621
B8: Composite 2016 to 2019 Curve | C8: ='UW Ratio Normal Curve'!K8 -> 0.03529050325 | H8: MCO Size Formula
B9: MCO Size Curve | C9: =1.7792*E9^-0.286 -> 0.03046931354 | D9: <---- | E9: 1500000 | F9: (Member Months) | G9: ----> | H9: y = 1.8046x-0.286
B10: For-Profit Curve | C10: ='UW Ratio Normal Curve'!F8 -> 0.03980708969
B11: Not-For-Profit Curve | C11: ='UW Ratio Normal Curve'!G8 -> 0.03364467689
B12: Expansion (ACA) Curve | C12: ='UW Ratio Normal Curve'!H8 -> 0.03616331001
B13: Non-Expansion (non-ACA) Curve | C13: ='UW Ratio Normal Curve'!I8 -> 0.0389433814
B14: User Defined

Sheet PVT General
F1: Selection & Sorting of Underwriting Ratios
F2: NAIC Data CY 2013 Through CY 2019
F5: CHECKS: | I5: =I6+H6 -> 1308 | K5: =K6+J6 -> 1308 | M5: =M6+L6 -> 1308
A6: For Profit=1, Non-Profit=0 | B6: (All) | F6: TOTALS: | G6: =COUNT(G10:G1318) -> 1308 | H6: =COUNT(H10:H1318) -> 811 | I6: 497 | J6: 824 | K6: 484 | L6: 562 | M6: 746
A7: Composite | B7: 1 | C7: * Keep at "1", see Description tab
G8: CY 2013 to CY 2019 | H8: For-Profit | I8: Not-For-Profit | J8: Expansion (ACA) State | K8: Non-Expansion (non-ACA) | L8: CY 2013 to CY 2015 | M8: CY 2016 to CY 2019
A9: UW Ratio | B9: Entity Name | C9: Expansion State (1=YES, 0=NO) 2013-2019 | D9: Year
A10: -0.4479764395 | B10: Kaiser Fndtn Hlth Plan Inc. HI | C10: 1 | D10: 2013 | G10: -0.4479764395 | H10: -0.3334233182 | I10: -0.4479764395 | J10: -0.4479764395 | K10: -0.4278802577 | L10: -0.4479764395 | M10: -0.3334233182
A11: -0.4278802577 | B11: Sendero Health Plans Inc. | C11: 0 | D11: 2014 | G11: -0.4278802577 | H11: -0.3245652605 | I11: -0.4278802577 | J11: -0.3334233182 | K11: -0.2869797316 | L11: -0.4278802577 | M11: -0.3245652605
A12: -0.3334233182 | B12: Harmony Health Plan Inc. | C12: 1 | D12: 2017 | G12: -0.3334233182 | H12: -0.3171634554 | I12: -0.3145155581 | J12: -0.3245652605 | K12: -0.2832914143 | L12: -0.3145155581 | M12: -0.3171634554
A13: -0.3245652605 | B13: HAP Empowered Hlth Plan Inc. | C13: 1 | D13: 2019 | G13: -0.3245652605 | H13: -0.2638643051 | I13: -0.3118170462 | J13: -0.3171634554 | K13: -0.2032579061 | L13: -0.2832914143 | M13: -0.3118170462
A14: -0.3171634554 | B14: Silversummit HealthPlan Inc. | C14: 1 | D14: 2017 | G14: -0.3171634554 | H14: -0.2097345982 | I14: -0.2869797316 | J14: -0.3145155581 | K14: -0.200353719 | L14: -0.2720793483 | M14: -0.2869797316
A15: -0.3145155581 | B15: HCSC Insurance Services Co. | C15: 1 | D15: 2013 | G15: -0.3145155581 | H15: -0.1638529999 | I15: -0.2832914143 | J15: -0.3118170462 | K15: -0.1931003543 | L15: -0.2462862481 | M15: -0.280501067
A16: -0.3118170462 | B16: Kaiser Fndtn Hlth Plan Inc. HI | C16: 1 | D16: 2018 | G16: -0.3118170462 | H16: -0.1630271834 | I16: -0.280501067 | J16: -0.280501067 | K16: -0.1638529999 | L16: -0.2226804175 | M16: -0.280219984
A17: -0.2869797316 | B17: Children's Med Center Hlth | C17: 0 | D17: 2017 | G17: -0.2869797316 | H17: -0.1539285617 | I17: -0.280219984 | J17: -0.280219984 | K17: -0.1630271834 | L17: -0.1931003543 | M17: -0.2638643051
A18: -0.2832914143 | B18: CHRISTUS Health Plan | C18: 0 | D18: 2015 | G18: -0.2832914143 | H18: -0.1519660666 | I18: -0.2720793483 | J18: -0.2720793483 | K18: -0.1618407374 | L18: -0.1792420176 | M18: -0.2132539317
A19: -0.280501067 | B19: HlthCare Svc Corp. a Mutual | C19: 1 | D19: 2017 | G19: -0.280501067 | H19: -0.1480305781 | I19: -0.2462862481 | J19: -0.2638643051 | K19: -0.1589179134 | L19: -0.1695785571 | M19: -0.2097345982
A20: -0.280219984 | B20: Total Health Care Inc. | C20: 1 | D20: 2019 | G20: -0.280219984 | H20: -0.1480147513 | I20: -0.2226804175 | J20: -0.2462862481 | K20: -0.1539285617 | L20: -0.1638529999 | M20: -0.2032579061
A21: -0.2720793483 | B21: Health Alliance Connect Inc. | C21: 1 | D21: 2014 | G21: -0.2720793483 | H21: -0.143139382 | I21: -0.2132539317 | J21: -0.2226804175 | K21: -0.1519660666 | L21: -0.1618407374 | M21: -0.200353719
A22: -0.2638643051 | B22: AMERIGROUP Iowa Inc. | C22: 1 | D22: 2016 | G22: -0.2638643051 | H22: -0.1412808869 | I22: -0.2032579061 | J22: -0.2132539317 | K22: -0.1480305781 | L22: -0.1539285617 | M22: -0.1742088922
A23: -0.2462862481 | B23: Kaiser Fndtn Hlth Plan Inc. HI | C23: 1 | D23: 2014 | G23: -0.2462862481 | H23: -0.1383043608 | I23: -0.200353719 | J23: -0.2097345982 | K23: -0.1480147513 | L23: -0.1519660666 | M23: -0.1738065878
A24: -0.2226804175 | B24: HlthCare Svc Corp. a Mutual | C24: 1 | D24: 2015 | G24: -0.2226804175 | H24: -0.1382322075 | I24: -0.1931003543 | J24: -0.1792420176 | K24: -0.143139382 | L24: -0.1480305781 | M24: -0.1709987038
A25: -0.2132539317 | B25: HlthCare Svc Corp. a Mutual | C25: 1 | D25: 2016 | G25: -0.2132539317 | H25: -0.1278604637 | I25: -0.1792420176 | J25: -0.1742088922 | K25: -0.1383043608 | L25: -0.143139382 | M25: -0.1671932434
A26: -0.2097345982 | B26: AmeriHealth Caritas Iowa Inc. | C26: 1 | D26: 2016 | G26: -0.2097345982 | H26: -0.1240224162 | I26: -0.1742088922 | J26: -0.1738065878 | K26: -0.1382322075 | L26: -0.1383043608 | M26: -0.1630271834
A27: -0.2032579061 | B27: Children's Med Center Hlth | C27: 0 | D27: 2018 | G27: -0.2032579061 | H27: -0.1231275162 | I27: -0.1738065878 | J27: -0.1709987038 | K27: -0.1278604637 | L27: -0.1278604637 | M27: -0.1589179134
A28: -0.200353719 | B28: Sendero Health Plans Inc. | C28: 0 | D28: 2017 | G28: -0.200353719 | H28: -0.1199508268 | I28: -0.1709987038 | J28: -0.1695785571 | K28: -0.1240224162 | L28: -0.1199910307 | M28: -0.15762965
A29: -0.1931003543 | B29: Grp Hlth Coop of South Central | C29: 0 | D29: 2014 | G29: -0.1931003543 | H29: -0.11612093 | I29: -0.1695785571 | J29: -0.1671932434 | K29: -0.1199910307 | L29: -0.1199508268 | M29: -0.1480147513
A30: -0.1792420176 | B30: Kaiser Fndtn Hlth Plan Inc. HI | C30: 1 | D30: 2015 | G30: -0.1792420176 | H30: -0.1135069669 | I30: -0.1671932434 | J30: -0.15762965 | K30: -0.1199508268 | L30: -0.1174500376 | M30: -0.1424972122
A31: -0.1742088922 | B31: Kaiser Fndtn Hlth Plan Inc. HI | C31: 1 | D31: 2017 | G31: -0.1742088922 | H31: -0.1119317686 | I31: -0.1618407374 | J31: -0.1424972122 | K31: -0.1159154195 | L31: -0.1135069669 | M31: -0.1412808869
A32: -0.1738065878 | B32: HCSC Insurance Services Co. | C32: 1 | D32: 2018 | G32: -0.1738065878 | H32: -0.1089890127 | I32: -0.1589179134 | J32: -0.1412808869 | K32: -0.108053494 | L32: -0.1127271229 | M32: -0.1382322075
A33: -0.1709987038 | B33: Kaiser Foundation Health Plan | C33: 1 | D33: 2017 | G33: -0.1709987038 | H33: -0.108053494 | I33: -0.15762965 | J33: -0.1231275162 | K33: -0.1052602916 | L33: -0.1108791826 | M33: -0.1240224162
A34: -0.1695785571 | B34: HlthCare Svc Corp. a Mutual | C34: 1 | D34: 2014 | G34: -0.1695785571 | H34: -0.1052602916 | I34: -0.1424972122 | J34: -0.1222265945 | K34: -0.102313332 | L34: -0.1089890127 | M34: -0.1231275162
A35: -0.1671932434 | B35: Plan de Salud Menonita Inc. | C35: 1 | D35: 2018 | G35: -0.1671932434 | H35: -0.1048104781 | I35: -0.1222265945 | J35: -0.1198287422 | K35: -0.0949471558 | L35: -0.1082961901 | M35: -0.1222265945
A36: -0.1638529999 | B36: UnitedHealthcare of FL Inc. | C36: 0 | D36: 2014 | G36: -0.1638529999 | H36: -0.1042431636 | I36: -0.1199910307 | J36: -0.1174500376 | K36: -0.09456310137 | L36: -0.108053494 | M36: -0.1198287422
A37: -0.1630271834 | B37: Molina Healthcare of MS Inc. | C37: 0 | D37: 2018 | G37: -0.1630271834 | H37: -0.1024568263 | I37: -0.1198287422 | J37: -0.11612093 | K37: -0.09249215653 | L37: -0.1065506684 | M37: -0.11612093
A38: -0.1618407374 | B38: Florida True Health Inc. | C38: 0 | D38: 2015 | G38: -0.1618407374 | H38: -0.09900067362 | I38: -0.1174500376 | J38: -0.1135069669 | K38: -0.09043255707 | L38: -0.1052602916 | M38: -0.1159154195
A39: -0.1589179134 | B39: CHRISTUS Health Plan | C39: 0 | D39: 2017 | G39: -0.1589179134 | H39: -0.09824320766 | I39: -0.1159154195 | J39: -0.1127271229 | K39: -0.09019612508 | L39: -0.1042431636 | M39: -0.1119317686
A40: -0.15762965 | B40: Health Ins Plan of Greater NY | C40: 1 | D40: 2016 | G40: -0.15762965 | H40: -0.09783007823 | I40: -0.1127271229 | J40: -0.1119317686 | K40: -0.0901537501 | L40: -0.102313332 | M40: -0.1062333235
A41: -0.1539285617 | B41: HealthSpring L&H Insurance Co. | C41: 0 | D41: 2014 | G41: -0.1539285617 | H41: -0.0949471558 | I41: -0.1108791826 | J41: -0.1108791826 | K41: -0.08950642344 | L41: -0.1004423131 | M41: -0.1048104781
A42: -0.1519660666 | B42: Sunflower State Hlth Plan Inc. | C42: 0 | D42: 2013 | G42: -0.1519660666 | H42: -0.09456310137 | I42: -0.1082961901 | J42: -0.1089890127 | K42: -0.08860993243 | L42: -0.09783007823 | M42: -0.1024568263
A43: -0.1480305781 | B43: Medica Health Plans of FL Inc. | C43: 0 | D43: 2013 | G43: -0.1480305781 | H43: -0.09449358069 | I43: -0.1065506684 | J43: -0.1082961901 | K43: -0.08840231388 | L43: -0.0949471558 | M43: -0.1015469523
A44: -0.1480147513 | B44: MercyCare HMO Inc. | C44: 0 | D44: 2019 | G44: -0.1480147513 | H44: -0.09424324454 | I44: -0.1062333235 | J44: -0.1065506684 | K44: -0.08833591875 | L44: -0.09456310137 | M44: -0.09900067362
A45: -0.143139382 | B45: Aetna Better Hlth of FL Inc. | C45: 0 | D45: 2014 | G45: -0.143139382 | H45: -0.09416556043 | I45: -0.102313332 | J45: -0.1062333235 | K45: -0.08464855344 | L45: -0.09286358176 | M45: -0.09824320766
A46: -0.1424972122 | B46: AllWays Health Partners Inc | C46: 1 | D46: 2019 | G46: -0.1424972122 | H46: -0.09348440968 | I46: -0.1015469523 | J46: -0.1048104781 | K46: -0.08316875105 | L46: -0.09017650433 | M46: -0.09788000757
A47: -0.1412808869 | B47: Molina Healthcare of IL Inc | C47: 1 | D47: 2017 | G47: -0.1412808869 | H47: -0.09043255707 | I47: -0.1004423131 | J47: -0.1042431636 | K47: -0.08094078691 | L47: -0.0901537501 | M47: -0.09497048887
A48: -0.1383043608 | B48: Home State Health Plan Inc. | C48: 0 | D48: 2014 | G48: -0.1383043608 | H48: -0.09019612508 | I48: -0.09788000757 | J48: -0.1024568263 | K48: -0.08018340462 | L48: -0.08950642344 | M48: -0.09449358069
A49: -0.1382322075 | B49: SHA L.L.C. | C49: 0 | D49: 2018 | G49: -0.1382322075 | H49: -0.0901537501 | I49: -0.09497048887 | J49: -0.1015469523 | K49: -0.07820281873 | L49: -0.08860993243 | M49: -0.09424324454
A50: -0.1278604637 | B50: Molina Healthcare of FL Inc. | C50: 0 | D50: 2015 | G50: -0.1278604637 | H50: -0.08950642344 | I50: -0.09286358176 | J50: -0.1004423131 | K50: -0.0756622416 | L50: -0.08833591875 | M50: -0.09416556043
A51: -0.1240224162 | B51: HealthSpring L&H Insurance Co. | C51: 0 | D51: 2016 | G51: -0.1240224162 | H51: -0.08860993243 | I51: -0.09249215653 | J51: -0.09900067362 | K51: -0.07352260786 | L51: -0.08670754088 | M51: -0.09348440968
A52: -0.1231275162 | B52: Trusted Health Plan MI Inc. | C52: 1 | D52: 2018 | G52: -0.1231275162 | H52: -0.08833591875 | I52: -0.09017650433 | J52: -0.09824320766 | K52: -0.07135888914 | L52: -0.08464855344 | M52: -0.09249215653
A53: -0.1222265945 | B53: Family Health Network Inc. | C53: 1 | D53: 2017 | G53: -0.1222265945 | H53: -0.0869577176 | I53: -0.08840231388 | J53: -0.09788000757 | K53: -0.06998671147 | L53: -0.08316875105 | M53: -0.09043255707
A54: -0.1199910307 | B54: CHRISTUS Health Plan | C54: 0 | D54: 2014 | G54: -0.1199910307 | H54: -0.08464855344 | I54: -0.08799831188 | J54: -0.09783007823 | K54: -0.06986741164 | L54: -0.08310245125 | M54: -0.09019612508
A55: -0.1199508268 | B55: Florida MHS Inc. | C55: 0 | D55: 2014 | G55: -0.1199508268 | H55: -0.08310245125 | I55: -0.08722260625 | J55: -0.09497048887 | K55: -0.06948754112 | L55: -0.08299721332 | M55: -0.08840231388
A56: -0.1198287422 | B56: Kaiser Fndtn Hlth Plan Inc. HI | C56: 1 | D56: 2016 | G56: -0.1198287422 | H56: -0.08237287947 | I56: -0.08670754088 | J56: -0.09449358069 | K56: -0.06823766652 | L56: -0.08237287947 | M56: -0.08799831188
A57: -0.1174500376 | B57: Healthfirst Health Plan of NJ | C57: 1 | D57: 2014 | G57: -0.1174500376 | H57: -0.0812076097 | I57: -0.08316875105 | J57: -0.09424324454 | K57: -0.06623751796 | L57: -0.0821497282 | M57: -0.08722260625
A58: -0.11612093 | B58: Molina Hlthcr of Arizona Inc. | C58: 1 | D58: 2019 | G58: -0.11612093 | H58: -0.08094078691 | I58: -0.08299721332 | J58: -0.09416556043 | K58: -0.06549994784 | L58: -0.08094078691 | M58: -0.0869577176
A59: -0.1159154195 | B59: Florida True Health Inc. | C59: 0 | D59: 2019 | G59: -0.1159154195 | H59: -0.08018340462 | I59: -0.0821497282 | J59: -0.09348440968 | K59: -0.06542908512 | L59: -0.07820281873 | M59: -0.0812076097
A60: -0.1135069669 | B60: WV Family Health Plan Inc. | C60: 1 | D60: 2015 | G60: -0.1135069669 | H60: -0.07820281873 | I60: -0.08083066818 | J60: -0.09286358176 | K60: -0.06390674102 | L60: -0.0777188885 | M60: -0.08083066818
A61: -0.1127271229 | B61: MVP Health Plan Inc. | C61: 1 | D61: 2014 | G61: -0.1127271229 | H61: -0.0777188885 | I61: -0.07813200195 | J61: -0.09017650433 | K61: -0.0622528856 | L61: -0.07643433071 | M61: -0.08018340462
A62: -0.1119317686 | B62: Molina Hlthcr of Virginia LLC | C62: 1 | D62: 2018 | G62: -0.1119317686 | H62: -0.0756622416 | I62: -0.07643433071 | J62: -0.08799831188 | K62: -0.06009088951 | L62: -0.07610498296 | M62: -0.07813200195
A63: -0.1108791826 | B63: Highmark Western & NErn NY Inc | C63: 1 | D63: 2014 | G63: -0.1108791826 | H63: -0.07387957512 | I63: -0.07610498296 | J63: -0.08722260625 | K63: -0.05816768899 | L63: -0.07352260786 | M63: -0.0756622416
A64: -0.1089890127 | B64: UnitedHealthcare | C64: 1 | D64: 2015 | G64: -0.1089890127 | H64: -0.07352260786 | I64: -0.07326149521 | J64: -0.0869577176 | K64: -0.05783582747 | L64: -0.07326149521 | M64: -0.07387957512
A65: -0.1082961901 | B65: Kaiser Foundation Health Plan | C65: 1 | D65: 2014 | G65: -0.1082961901 | H65: -0.07135888914 | I65: -0.07218001673 | J65: -0.08670754088 | K65: -0.05644649326 | L65: -0.07135888914 | M65: -0.07218001673
A66: -0.108053494 | B66: UnitedHealthcare of the MW Inc | C66: 0 | D66: 2013 | G66: -0.108053494 | H66: -0.07013039682 | I66: -0.07118144525 | J66: -0.08310245125 | K66: -0.05583925717 | L66: -0.07013039682 | M66: -0.07118144525
A67: -0.1065506684 | B67: HCSC Insurance Services Co. | C67: 1 | D67: 2015 | G67: -0.1065506684 | H67: -0.07012172233 | I67: -0.07057213139 | J67: -0.08299721332 | K67: -0.05148589215 | L67: -0.06948754112 | M67: -0.07057213139
A68: -0.1062333235 | B68: HCSC Insurance Services Co. | C68: 1 | D68: 2017 | G68: -0.1062333235 | H68: -0.06998671147 | I68: -0.07032335057 | J68: -0.08237287947 | K68: -0.05049941078 | L68: -0.06542908512 | M68: -0.07032335057
A69: -0.1052602916 | B69: Quartz Health Insurance Corp. | C69: 0 | D69: 2014 | G69: -0.1052602916 | H69: -0.06986741164 | I69: -0.06948754112 | J69: -0.0821497282 | K69: -0.05047830658 | L69: -0.06446600337 | M69: -0.07012172233
A70: -0.1048104781 | B70: AmeriHealth Caritas Iowa Inc. | C70: 1 | D70: 2017 | G70: -0.1048104781 | H70: -0.06823766652 | I70: -0.06763820047 | J70: -0.0812076097 | K70: -0.04917358384 | L70: -0.06431357741 | M70: -0.06998671147
A71: -0.1042431636 | B71: Aetna Better Health Inc. (LA) | C71: 1 | D71: 2015 | G71: -0.1042431636 | H71: -0.06682882697 | I71: -0.06699354779 | J71: -0.08083066818 | K71: -0.04910053939 | L71: -0.06390674102 | M71: -0.06986741164
A72: -0.1024568263 | B72: Aetna Better Hlth of IL Inc. | C72: 1 | D72: 2016 | G72: -0.1024568263 | H72: -0.06642924899 | I72: -0.06623751796 | J72: -0.07813200195 | K72: -0.04860179251 | L72: -0.0630057451 | M72: -0.06823766652
A73: -0.102313332 | B73: Scott & White Health Plan | C73: 0 | D73: 2013 | G73: -0.102313332 | H73: -0.06549994784 | I73: -0.06509151497 | J73: -0.0777188885 | K73: -0.04799565951 | L73: -0.06096844518 | M73: -0.06763820047
A74: -0.1015469523 | B74: Kaiser Foundation Health Plan | C74: 1 | D74: 2018 | G74: -0.1015469523 | H74: -0.06542908512 | I74: -0.06446600337 | J74: -0.07643433071 | K74: -0.04774529895 | L74: -0.05915145512 | M74: -0.06699354779
A75: -0.1004423131 | B75: Carilion Clinic Medicare Rsrc | C75: 1 | D75: 2013 | G75: -0.1004423131 | H75: -0.06431357741 | I75: -0.06288049712 | J75: -0.07610498296 | K75: -0.04552009491 | L75: -0.05583925717 | M75: -0.06682882697
A76: -0.09900067362 | B76: Humana Health Plan Inc. | C76: 1 | D76: 2016 | G76: -0.09900067362 | H76: -0.06390674102 | I76: -0.0622528856 | J76: -0.07387957512 | K76: -0.04550799569 | L76: -0.05480182487 | M76: -0.06642924899
A77: -0.09824320766 | B77: Humana Health Plan Inc. | C77: 1 | D77: 2017 | G77: -0.09824320766 | H77: -0.0630057451 | I77: -0.06123481993 | J77: -0.07326149521 | K77: -0.04547484584 | L77: -0.05359120962 | M77: -0.06623751796
A78: -0.09788000757 | B78: Hawaii Medical Service Assn. | C78: 1 | D78: 2019 | G78: -0.09788000757 | H78: -0.06287631923 | I78: -0.06096844518 | J78: -0.07218001673 | K78: -0.04529338545 | L78: -0.05304715197 | M78: -0.06549994784
A79: -0.09783007823 | B79: Humana Health Plan Inc. | C79: 1 | D79: 2014 | G79: -0.09783007823 | H79: -0.06099152746 | I79: -0.05845229647 | J79: -0.07118144525 | K79: -0.04443377673 | L79: -0.05244310922 | M79: -0.06509151497
A80: -0.09497048887 | B80: Medica Health Plans | C80: 1 | D80: 2016 | G80: -0.09497048887 | H80: -0.06009088951 | I80: -0.05783582747 | J80: -0.07057213139 | K80: -0.04441480733 | L80: -0.05148589215 | M80: -0.06288049712
A81: -0.0949471558 | B81: Absolute Total Care Inc. | C81: 0 | D81: 2013 | G81: -0.0949471558 | H81: -0.05915145512 | I81: -0.05480182487 | J81: -0.07032335057 | K81: -0.0441513592 | L81: -0.0486799268 | M81: -0.06287631923
A82: -0.09456310137 | B82: UnitedHealthcare of FL Inc. | C82: 0 | D82: 2013 | G82: -0.09456310137 | H82: -0.05816768899 | I82: -0.05448321866 | J82: -0.07013039682 | K82: -0.04320017525 | L82: -0.04855120616 | M82: -0.0622528856
A83: -0.09449358069 | B83: HMO Minnesota | C83: 1 | D83: 2016 | G83: -0.09449358069 | H83: -0.05644649326 | I83: -0.05359120962 | J83: -0.07012172233 | K83: -0.04283959946 | L83: -0.04830194251 | M83: -0.06123481993
A84: -0.09424324454 | B84: Granite State Health Plan Inc. | C84: 1 | D84: 2017 | G84: -0.09424324454 | H84: -0.05583925717 | I84: -0.05349004234 | J84: -0.06763820047 | K84: -0.04279557529 | L84: -0.04815021803 | M84: -0.06099152746
A85: -0.09416556043 | B85: Meridian Health Plan of IL Inc | C85: 1 | D85: 2018 | G85: -0.09416556043 | H85: -0.05322122847 | I85: -0.05304715197 | J85: -0.06699354779 | K85: -0.04222042865 | L85: -0.04552009491 | M85: -0.06009088951
A86: -0.09348440968 | B86: Nextlevel Hlth Ptnrs Inc | C86: 1 | D86: 2019 | G86: -0.09348440968 | H86: -0.05244310922 | I86: -0.052109789 | J86: -0.06682882697 | K86: -0.04188778479 | L86: -0.04547484584 | M86: -0.05845229647
A87: -0.09286358176 | B87: Tufts Health Public Plans Inc. | C87: 1 | D87: 2013 | G87: -0.09286358176 | H87: -0.05148589215 | I87: -0.05049941078 | J87: -0.06642924899 | K87: -0.0396681282 | L87: -0.04492522917 | M87: -0.05816768899
A88: -0.09249215653 | B88: AmeriHealth Nebraska Inc. | C88: 0 | D88: 2016 | G88: -0.09249215653 | H88: -0.05047830658 | I88: -0.04920328934 | J88: -0.06509151497 | K88: -0.0381760595 | L88: -0.04471559638 | M88: -0.05783582747
A89: -0.09043255707 | B89: Nebraska Total Care Inc. | C89: 0 | D89: 2017 | G89: -0.09043255707 | H89: -0.04917358384 | I89: -0.04910053939 | J89: -0.06446600337 | K89: -0.03793404917 | L89: -0.04443377673 | M89: -0.05644649326
A90: -0.09019612508 | B90: Molina Healthcare of MS Inc. | C90: 0 | D90: 2019 | G90: -0.09019612508 | H90: -0.04860179251 | I90: -0.0486799268 | J90: -0.06431357741 | K90: -0.0376054892 | L90: -0.04441480733 | M90: -0.05448321866
A91: -0.09017650433 | B91: Lovelace Health System Inc. | C91: 1 | D91: 2013 | G91: -0.09017650433 | H91: -0.04855120616 | I91: -0.04737760972 | J91: -0.0630057451 | K91: -0.03684918889 | L91: -0.0441513592 | M91: -0.05349004234
A92: -0.0901537501 | B92: MercyCare HMO Inc. | C92: 0 | D92: 2014 | G92: -0.0901537501 | H92: -0.04830194251 | I92: -0.04583038884 | J92: -0.06288049712 | K92: -0.03655462676 | L92: -0.04399646395 | M92: -0.05322122847
A93: -0.08950642344 | B93: Humana Medical Plan Inc. | C93: 0 | D93: 2014 | G93: -0.08950642344 | H93: -0.04815021803 | I93: -0.04552009491 | J93: -0.06287631923 | K93: -0.03471431031 | L93: -0.04231681557 | M93: -0.052109789
A94: -0.08860993243 | B94: Sunshine State Health Plan Inc | C94: 0 | D94: 2014 | G94: -0.08860993243 | H94: -0.04799565951 | I94: -0.04550799569 | J94: -0.06123481993 | K94: -0.03433882396 | L94: -0.04222042865 | M94: -0.05049941078
A95: -0.08840231388 | B95: Driscoll Children's Hlth Plan | C95: 0 | D95: 2019 | G95: -0.08840231388 | H95: -0.04774529895 | I95: -0.04479517829 | J95: -0.06099152746 | K95: -0.03418496796 | L95: -0.04216106047 | M95: -0.05047830658
A96: -0.08833591875 | B96: SHA L.L.C. | C96: 0 | D96: 2013 | G96: -0.08833591875 | H96: -0.04637809428 | I96: -0.0441513592 | J96: -0.06096844518 | K96: -0.03390940118 | L96: -0.04033304785 | M96: -0.04920328934
A97: -0.08799831188 | B97: Independent Health Assn. | C97: 1 | D97: 2017 | G97: -0.08799831188 | H97: -0.04547484584 | I97: -0.04399646395 | J97: -0.05915145512 | K97: -0.03347943636 | L97: -0.03990010702 | M97: -0.04917358384
A98: -0.08722260625 | B98: Blue Shield of CA Promise Hlth | C98: 1 | D98: 2019 | G98: -0.08722260625 | H98: -0.04531768835 | I98: -0.04239602919 | J98: -0.05845229647 | K98: -0.03336487731 | L98: -0.0396681282 | M98: -0.04910053939
A99: -0.0869577176 | B99: Silversummit HealthPlan Inc. | C99: 1 | D99: 2018 | G99: -0.0869577176 | H99: -0.04529338545 | I99: -0.04239513042 | J99: -0.05480182487 | K99: -0.03213173044 | L99: -0.03962295555 | M99: -0.04860179251
A100: -0.08670754088 | B100: AllWays Health Partners Inc | C100: 1 | D100: 2013 | G100: -0.08670754088 | H100: -0.04527902496 | I100: -0.04231681557 | J100: -0.05448321866 | K100: -0.03196631644 | L100: -0.0381760595 | M100: -0.04799565951
A101: -0.08464855344 | B101: Coventry Health Plan of FL Inc | C101: 0 | D101: 2013 | G101: -0.08464855344 | H101: -0.04492522917 | I101: -0.04216106047 | J101: -0.05359120962 | K101: -0.03177364571 | L101: -0.0376054892 | M101: -0.04774529895
A102: -0.08316875105 | B102: Grp Hlth Coop of South Central | C102: 0 | D102: 2015 | G102: -0.08316875105 | H102: -0.04471559638 | I102: -0.04188778479 | J102: -0.05349004234 | K102: -0.03141991907 | L102: -0.03655462676 | M102: -0.04737760972
A103: -0.08310245125 | B103: Meridian Health Plan of IA Inc | C103: 1 | D103: 2013 | G103: -0.08310245125 | H103: -0.04443377673 | I103: -0.04124128695 | J103: -0.05322122847 | K103: -0.03114878691 | L103: -0.03632855905 | M103: -0.04637809428
A104: -0.08299721332 | B104: Columbia United Providers Inc. | C104: 1 | D104: 2015 | G104: -0.08299721332 | H104: -0.04441480733 | I104: -0.04083161382 | J104: -0.05304715197 | K104: -0.0301936449 | L104: -0.03517397671 | M104: -0.04583038884
A105: -0.08237287947 | B105: Aetna Better Health Inc. (OH) | C105: 1 | D105: 2014 | G105: -0.08237287947 | H105: -0.04435097438 | I105: -0.03990010702 | J105: -0.05244310922 | K105: -0.0294634162 | L105: -0.03483492478 | M105: -0.04550799569
A106: -0.0821497282 | B106: AllWays Health Partners Inc | C106: 1 | D106: 2014 | G106: -0.0821497282 | H106: -0.04416036852 | I106: -0.03969663717 | J106: -0.052109789 | K106: -0.02935637982 | L106: -0.03471431031 | M106: -0.04531768835
A107: -0.0812076097 | B107: Amerigroup District | C107: 1 | D107: 2017 | G107: -0.0812076097 | H107: -0.04320017525 | I107: -0.03962295555 | J107: -0.04920328934 | K107: -0.02895702824 | L107: -0.03425426621 | M107: -0.04529338545
A108: -0.08094078691 | B108: AMERIGROUP Kansas Inc. | C108: 0 | D108: 2014 | G108: -0.08094078691 | H108: -0.04283959946 | I108: -0.0393218248 | J108: -0.0486799268 | K108: -0.02891120525 | L108: -0.03425212177 | M108: -0.04527902496
A109: -0.08083066818 | B109: HlthCare Svc Corp. a Mutual | C109: 1 | D109: 2018 | G109: -0.08083066818 | H109: -0.04279557529 | I109: -0.0381760595 | J109: -0.04855120616 | K109: -0.02873953994 | L109: -0.03418496796 | M109: -0.04479517829
A110: -0.08018340462 | B110: Home State Health Plan Inc. | C110: 0 | D110: 2019 | G110: -0.08018340462 | H110: -0.04222042865 | I110: -0.03793404917 | J110: -0.04830194251 | K110: -0.02839904215 | L110: -0.03336487731 | M110: -0.04435097438
A111: -0.07820281873 | B111: Home State Health Plan Inc. | C111: 0 | D111: 2015 | G111: -0.07820281873 | H111: -0.04033304785 | I111: -0.03665994522 | J111: -0.04815021803 | K111: -0.02784722175 | L111: -0.03279817044 | M111: -0.04416036852
A112: -0.07813200195 | B112: AmeriHealth Caritas District | C112: 1 | D112: 2019 | G112: -0.07813200195 | H112: -0.03988610084 | I112: -0.03553841709 | J112: -0.04737760972 | K112: -0.02777213578 | L112: -0.03177364571 | M112: -0.04320017525
A113: -0.0777188885 | B113: Steward Health Choice Utah Inc | C113: 1 | D113: 2014 | G113: -0.0777188885 | H113: -0.0396681282 | I113: -0.03483492478 | J113: -0.04637809428 | K113: -0.02710573461 | L113: -0.03141991907 | M113: -0.04283959946
A114: -0.07643433071 | B114: HlthCare Svc Corp. a Mutual | C114: 1 | D114: 2013 | G114: -0.07643433071 | H114: -0.03918484424 | I114: -0.03425426621 | J114: -0.04583038884 | K114: -0.02699355877 | L114: -0.03114878691 | M114: -0.04279557529
A115: -0.07610498296 | B115: Excellus Health Plan Inc. | C115: 1 | D115: 2013 | G115: -0.07610498296 | H115: -0.03906882866 | I115: -0.03425212177 | J115: -0.04531768835 | K115: -0.02697910468 | L115: -0.0307466464 | M115: -0.04239602919
A116: -0.0756622416 | B116: Magnolia Health Plan Inc. | C116: 0 | D116: 2019 | G116: -0.0756622416 | H116: -0.0376054892 | I116: -0.03411605543 | J116: -0.04527902496 | K116: -0.02682467496 | L116: -0.02979826319 | M116: -0.04239513042
A117: -0.07387957512 | B117: Molina Healthcare of IL Inc | C117: 1 | D117: 2016 | G117: -0.07387957512 | H117: -0.03684918889 | I117: -0.03390940118 | J117: -0.04492522917 | K117: -0.02602241057 | L117: -0.02933555292 | M117: -0.04188778479
A118: -0.07352260786 | B118: Advicare Corp. | C118: 0 | D118: 2015 | G118: -0.07352260786 | H118: -0.03655462676 | I118: -0.03350642417 | J118: -0.04479517829 | K118: -0.02573395033 | L118: -0.02920868808 | M118: -0.04124128695
A119: -0.07326149521 | B119: Blue Cross Complete of MI LLC | C119: 1 | D119: 2013 | G119: -0.07326149521 | H119: -0.03646119391 | I119: -0.03279817044 | J119: -0.04471559638 | K119: -0.02549163525 | L119: -0.0285723417 | M119: -0.04083161382
A120: -0.07218001673 | B120: Independent Health Assn. | C120: 1 | D120: 2019 | G120: -0.07218001673 | H120: -0.03632855905 | I120: -0.03213173044 | J120: -0.04435097438 | K120: -0.02512326326 | L120: -0.02839904215 | M120: -0.03988610084
A121: -0.07135888914 | B121: Florida MHS Inc. | C121: 0 | D121: 2015 | G121: -0.07135888914 | H121: -0.03517397671 | I121: -0.03141991907 | J121: -0.04416036852 | K121: -0.02479942904 | L121: -0.02839237525 | M121: -0.03969663717
A122: -0.07118144525 | B122: Hennepin Health | C122: 1 | D122: 2019 | G122: -0.07118144525 | H122: -0.03471431031 | I122: -0.03117500974 | J122: -0.04399646395 | K122: -0.02390773709 | L122: -0.02784722175 | M122: -0.0393218248
A123: -0.07057213139 | B123: Plan de Salud Menonita Inc. | C123: 1 | D123: 2019 | G123: -0.07057213139 | H123: -0.03433882396 | I123: -0.03037240771 | J123: -0.04239602919 | K123: -0.02344394903 | L123: -0.02750662018 | M123: -0.03918484424
A124: -0.07032335057 | B124: University Health Care Inc. | C124: 1 | D124: 2018 | G124: -0.07032335057 | H124: -0.03418496796 | I124: -0.03033512482 | J124: -0.04239513042 | K124: -0.02218677941 | L124: -0.02725580041 | M124: -0.03906882866
A125: -0.07013039682 | B125: Granite State Health Plan Inc. | C125: 1 | D125: 2015 | G125: -0.07013039682 | H125: -0.03368234543 | I125: -0.0301936449 | J125: -0.04231681557 | K125: -0.02217121288 | L125: -0.02697910468 | M125: -0.03793404917
A126: -0.07012172233 | B126: Granite State Health Plan Inc. | C126: 1 | D126: 2016 | G126: -0.07012172233 | H126: -0.03347943636 | I126: -0.02979826319 | J126: -0.04216106047 | K126: -0.0208553283 | L126: -0.02678586279 | M126: -0.03684918889
A127: -0.06998671147 | B127: MercyCare HMO Inc. | C127: 0 | D127: 2018 | G127: -0.06998671147 | H127: -0.03336487731 | I127: -0.02933555292 | J127: -0.04124128695 | K127: -0.02052888201 | L127: -0.02612131645 | M127: -0.03665994522
A128: -0.06986741164 | B128: Home State Health Plan Inc. | C128: 0 | D128: 2017 | G128: -0.06986741164 | H128: -0.03311184539 | I128: -0.02920868808 | J128: -0.04083161382 | K128: -0.02040984118 | L128: -0.02582963731 | M128: -0.03646119391
A129: -0.06948754112 | B129: Parkland Cmnty Health Plan Inc | C129: 0 | D129: 2015 | G129: -0.06948754112 | H129: -0.03196631644 | I129: -0.02873953994 | J129: -0.04033304785 | K129: -0.01903440848 | L129: -0.02574917944 | M129: -0.03553841709
A130: -0.06823766652 | B130: HealthSpring L&H Insurance Co. | C130: 0 | D130: 2017 | G130: -0.06823766652 | H130: -0.03177364571 | I130: -0.0285723417 | J130: -0.03990010702 | K130: -0.01894922788 | L130: -0.02440802837 | M130: -0.03433882396
A131: -0.06763820047 | B131: AlohaCare | C131: 1 | D131: 2019 | G131: -0.06763820047 | H131: -0.03114878691 | I131: -0.0283630706 | J131: -0.03988610084 | K131: -0.01874411112 | L131: -0.02439017313 | M131: -0.03411605543
A132: -0.06699354779 | B132: Health Plan of WV Inc. | C132: 1 | D132: 2019 | G132: -0.06699354779 | H132: -0.03079635359 | I132: -0.02784722175 | J132: -0.03969663717 | K132: -0.01817236012 | L132: -0.02382468887 | M132: -0.03390940118
A133: -0.06682882697 | B133: Coordinated Care of WA Inc. | C133: 1 | D133: 2016 | G133: -0.06682882697 | H133: -0.0307466464 | I133: -0.02777213578 | J133: -0.03962295555 | K133: -0.01737058767 | L133: -0.02380227411 | M133: -0.03368234543
A134: -0.06642924899 | B134: HealthPartners Inc. | C134: 1 | D134: 2019 | G134: -0.06642924899 | H134: -0.0307435005 | I134: -0.02774243283 | J134: -0.0393218248 | K134: -0.01584376946 | L134: -0.02372005825 | M134: -0.03350642417
A135: -0.06623751796 | B135: Community Health Choice Inc. | C135: 0 | D135: 2017 | G135: -0.06623751796 | H135: -0.0294634162 | I135: -0.02750662018 | J135: -0.03918484424 | K135: -0.01545677498 | L135: -0.02344394903 | M135: -0.03347943636
A136: -0.06549994784 | B136: Bankers Reserve Life Ins Co. | C136: 0 | D136: 2017 | G136: -0.06549994784 | H136: -0.02935637982 | I136: -0.02678586279 | J136: -0.03906882866 | K136: -0.01512450719 | L136: -0.02337893047 | M136: -0.03311184539
A137: -0.06542908512 | B137: AMERIGROUP Kansas Inc. | C137: 0 | D137: 2013 | G137: -0.06542908512 | H137: -0.02931862487 | I137: -0.02677547366 | J137: -0.03665994522 | K137: -0.01457248005 | L137: -0.02281659699 | M137: -0.03213173044
A138: -0.06509151497 | B138: Fallon Community Hlth Plan Inc | C138: 1 | D138: 2019 | G138: -0.06509151497 | H138: -0.02895702824 | I138: -0.02602241057 | J138: -0.03646119391 | K138: -0.01427308018 | L138: -0.02217121288 | M138: -0.03196631644
A139: -0.06446600337 | B139: Kaiser Foundation Health Plan | C139: 1 | D139: 2015 | G139: -0.06446600337 | H139: -0.02891120525 | I139: -0.02582963731 | J139: -0.03632855905 | K139: -0.01372175713 | L139: -0.02096343462 | M139: -0.03117500974
A140: -0.06431357741 | B140: HealthAmerica Pennsylvania, | C140: 1 | D140: 2014 | G140: -0.06431357741 | H140: -0.02872173527 | I140: -0.02549163525 | J140: -0.03553841709 | K140: -0.01283552447 | L140: -0.02036091021 | M140: -0.03079635359
A141: -0.06390674102 | B141: Preferred Care Partners Inc. | C141: 0 | D141: 2013 | G141: -0.06390674102 | H141: -0.02839904215 | I141: -0.02440802837 | J141: -0.03517397671 | K141: -0.01207099736 | L141: -0.01957665495 | M141: -0.0307435005
A142: -0.0630057451 | B142: Granite Care-Meridian Health | C142: 1 | D142: 2014 | G142: -0.0630057451 | H142: -0.02839237525 | I142: -0.02439017313 | J142: -0.03483492478 | K142: -0.01174924161 | L142: -0.01948072416 | M142: -0.03037240771
A143: -0.06288049712 | B143: Total Health Care Inc. | C143: 1 | D143: 2017 | G143: -0.06288049712 | H143: -0.02740028113 | I143: -0.02423924689 | J143: -0.03425426621 | K143: -0.01164145638 | L143: -0.01894922788 | M143: -0.03033512482
A144: -0.06287631923 | B144: Western Sky Cmnty Care Inc | C144: 1 | D144: 2019 | G144: -0.06287631923 | H144: -0.02728695794 | I144: -0.02398219963 | J144: -0.03425212177 | K144: -0.01158945227 | L144: -0.01829899326 | M144: -0.0301936449
A145: -0.0622528856 | B145: Sendero Health Plans Inc. | C145: 0 | D145: 2018 | G145: -0.0622528856 | H145: -0.02725580041 | I145: -0.02382468887 | J145: -0.03411605543 | K145: -0.01142330816 | L145: -0.01616689555 | M145: -0.0294634162
A146: -0.06123481993 | B146: Health Plan of WV Inc. | C146: 1 | D146: 2018 | G146: -0.06123481993 | H146: -0.02710573461 | I146: -0.02380227411 | J146: -0.03368234543 | K146: -0.01135511096 | L146: -0.01584376946 | M146: -0.02935637982
A147: -0.06099152746 | B147: AMERIGROUP Iowa Inc. | C147: 1 | D147: 2017 | G147: -0.06099152746 | H147: -0.02709498645 | I147: -0.02372005825 | J147: -0.03350642417 | K147: -0.0111469499 | L147: -0.01518493013 | M147: -0.02931862487
A148: -0.06096844518 | B148: AlohaCare | C148: 1 | D148: 2015 | G148: -0.06096844518 | H148: -0.02699355877 | I148: -0.02337893047 | J148: -0.03311184539 | K148: -0.009881092348 | L148: -0.01512450719 | M148: -0.02895702824
A149: -0.06009088951 | B149: Molina Healthcare of FL Inc. | C149: 0 | D149: 2017 | G149: -0.06009088951 | H149: -0.02697910468 | I149: -0.02281659699 | J149: -0.03279817044 | K149: -0.009745190049 | L149: -0.01501373204 | M149: -0.02891120525
A150: -0.05915145512 | B150: Aetna Better Health Inc. (NJ) | C150: 1 | D150: 2015 | G150: -0.05915145512 | H150: -0.02682467496 | I150: -0.02158329763 | J150: -0.03117500974 | K150: -0.009740229063 | L150: -0.0147659829 | M150: -0.02873953994
A151: -0.05845229647 | B151: Cap District Physicians' Hlth | C151: 1 | D151: 2019 | G151: -0.05845229647 | H151: -0.02655380656 | I151: -0.02096343462 | J151: -0.03079635359 | K151: -0.008339264071 | L151: -0.01449151248 | M151: -0.02872173527
A152: -0.05816768899 | B152: Home State Health Plan Inc. | C152: 0 | D152: 2016 | G152: -0.05816768899 | H152: -0.02612131645 | I152: -0.0208553283 | J152: -0.0307466464 | K152: -0.0081509396 | L152: -0.01427308018 | M152: -0.0283630706
A153: -0.05783582747 | B153: Florida True Health Inc. | C153: 0 | D153: 2018 | G153: -0.05783582747 | H153: -0.0258559497 | I153: -0.02079594005 | J153: -0.0307435005 | K153: -0.00813358798 | L153: -0.01292826249 | M153: -0.02777213578
A154: -0.05644649326 | B154: MercyCare HMO Inc. | C154: 0 | D154: 2016 | G154: -0.05644649326 | H154: -0.02574917944 | I154: -0.02053719328 | J154: -0.03037240771 | K154: -0.007677685981 | L154: -0.01291750216 | M154: -0.02774243283
A155: -0.05583925717 | B155: Humana Medical Plan Inc. | C155: 0 | D155: 2015 | G155: -0.05583925717 | H155: -0.02573395033 | I155: -0.02052888201 | J155: -0.03033512482 | K155: -0.007591397151 | L155: -0.01211241974 | M155: -0.02740028113
A156: -0.05480182487 | B156: Health Plan of WV Inc. | C156: 1 | D156: 2015 | G156: -0.05480182487 | H156: -0.02512326326 | I156: -0.02036091021 | J156: -0.02979826319 | K156: -0.007429101277 | L156: -0.01174924161 | M156: -0.02728695794
A157: -0.05448321866 | B157: AllWays Health Partners Inc | C157: 1 | D157: 2016 | G157: -0.05448321866 | H157: -0.0250085905 | I157: -0.01976942146 | J157: -0.02933555292 | K157: -0.007335477022 | L157: -0.01164145638 | M157: -0.02710573461
A158: -0.05359120962 | B158: Blue Cross Complete of MI LLC | C158: 1 | D158: 2014 | G158: -0.05359120962 | H158: -0.02499008457 | I158: -0.01948072416 | J158: -0.02931862487 | K158: -0.00680852814 | L158: -0.01160069408 | M158: -0.02709498645
A159: -0.05349004234 | B159: Paramount Advantage | C159: 1 | D159: 2019 | G159: -0.05349004234 | H159: -0.02479942904 | I159: -0.01903440848 | J159: -0.02920868808 | K159: -0.006759166359 | L159: -0.01145169625 | M159: -0.02699355877
A160: -0.05322122847 | B160: HealthPartners Inc. | C160: 1 | D160: 2017 | G160: -0.05322122847 | H160: -0.02390773709 | I160: -0.01888558045 | J160: -0.02872173527 | K160: -0.006601777044 | L160: -0.01135511096 | M160: -0.02682467496
A161: -0.05304715197 | B161: Highmark Western & NErn NY Inc | C161: 1 | D161: 2013 | G161: -0.05304715197 | H161: -0.02344394903 | I161: -0.01874411112 | J161: -0.0285723417 | K161: -0.00614669136 | L161: -0.0111469499 | M161: -0.02677547366
A162: -0.05244310922 | B162: Aetna Better Hlth of IL Inc. | C162: 1 | D162: 2015 | G162: -0.05244310922 | H162: -0.02231040983 | I162: -0.01817236012 | J162: -0.02839237525 | K162: -0.005553534813 | L162: -0.0109457342 | M162: -0.02655380656
A163: -0.052109789 | B163: Virginia Premier Hlth Plan Inc | C163: 1 | D163: 2018 | G163: -0.052109789 | H163: -0.02218677941 | I163: -0.01787202473 | J163: -0.0283630706 | K163: -0.005552359186 | L163: -0.01074035079 | M163: -0.02602241057
A164: -0.05148589215 | B164: Sunflower State Hlth Plan Inc. | C164: 0 | D164: 2014 | G164: -0.05148589215 | H164: -0.02217121288 | I164: -0.01779829882 | J164: -0.02774243283 | K164: -0.005477312371 | L164: -0.01069238081 | M164: -0.0258559497
A165: -0.05049941078 | B165: Parkland Cmnty Health Plan Inc | C165: 0 | D165: 2019 | G165: -0.05049941078 | H165: -0.02188610177 | I165: -0.01745513425 | J165: -0.02750662018 | K165: -0.005269905638 | L165: -0.01047407286 | M165: -0.02573395033
A166: -0.05047830658 | B166: Florida MHS Inc. | C166: 0 | D166: 2019 | G166: -0.05047830658 | H166: -0.02135288246 | I166: -0.01657731209 | J166: -0.02740028113 | K166: -0.004824866499 | L166: -0.009799385904 | M166: -0.02549163525
A167: -0.04920328934 | B167: Cap District Physicians' Hlth | C167: 1 | D167: 2016 | G167: -0.04920328934 | H167: -0.02040984118 | I167: -0.01553926984 | J167: -0.02728695794 | K167: -0.004461526386 | L167: -0.009745190049 | M167: -0.02512326326
A168: -0.04917358384 | B168: Magnolia Health Plan Inc. | C168: 0 | D168: 2017 | G168: -0.04917358384 | H168: -0.02027762615 | I168: -0.01545677498 | J168: -0.02725580041 | K168: -0.003939936866 | L168: -0.0081509396 | M168: -0.0250085905
A169: -0.04910053939 | B169: Texas Children's Hlth Plan Inc | C169: 0 | D169: 2016 | G169: -0.04910053939 | H169: -0.02004803546 | I169: -0.01516240105 | J169: -0.02709498645 | K169: -0.003880834069 | L169: -0.007750985558 | M169: -0.02499008457
A170: -0.0486799268 | B170: MVP Health Plan Inc. | C170: 1 | D170: 2013 | G170: -0.0486799268 | H170: -0.01971718677 | I170: -0.0147659829 | J170: -0.02678586279 | K170: -0.003748008032 | L170: -0.007684368213 | M170: -0.02479942904
A171: -0.04860179251 | B171: Magnolia Health Plan Inc. | C171: 0 | D171: 2018 | G171: -0.04860179251 | H171: -0.01957665495 | I171: -0.01398760793 | J171: -0.02677547366 | K171: -0.003673388254 | L171: -0.007677685981 | M171: -0.02423924689
A172: -0.04855120616 | B172: Meridian Health Plan of IA Inc | C172: 1 | D172: 2014 | G172: -0.04855120616 | H172: -0.01894922788 | I172: -0.01365029692 | J172: -0.02655380656 | K172: -0.003411836949 | L172: -0.007591397151 | M172: -0.02398219963
A173: -0.04830194251 | B173: Aetna Better Health Inc. (PA) | C173: 1 | D173: 2013 | G173: -0.04830194251 | H173: -0.01890708669 | I173: -0.01299781796 | J173: -0.02612131645 | K173: -0.003290994674 | L173: -0.007292369961 | M173: -0.02390773709
A174: -0.04815021803 | B174: Coordinated Care of WA Inc. | C174: 1 | D174: 2015 | G174: -0.04815021803 | H174: -0.01829899326 | I174: -0.01292826249 | J174: -0.0258559497 | K174: -0.003051144387 | L174: -0.006410913263 | M174: -0.02231040983
A175: -0.04799565951 | B175: Nebraska Total Care Inc. | C175: 0 | D175: 2018 | G175: -0.04799565951 | H175: -0.01819569713 | I175: -0.01252850477 | J175: -0.02582963731 | K175: -0.002643902262 | L175: -0.00621416576 | M175: -0.02218677941
A176: -0.04774529895 | B176: Advicare Corp. | C176: 0 | D176: 2016 | G176: -0.04774529895 | H176: -0.01749334166 | I176: -0.01234445559 | J176: -0.02574917944 | K176: -0.002474745112 | L176: -0.005958356927 | M176: -0.02188610177
A177: -0.04737760972 | B177: Health Alliance Connect Inc. | C177: 1 | D177: 2016 | G177: -0.04737760972 | H177: -0.01748841209 | I177: -0.01211241974 | J177: -0.0250085905 | K177: -0.00211274829 | L177: -0.005600908931 | M177: -0.02158329763
A178: -0.04637809428 | B178: Coordinated Care of WA Inc. | C178: 1 | D178: 2018 | G178: -0.04637809428 | H178: -0.01737058767 | I178: -0.01207099736 | J178: -0.02499008457 | K178: -0.002072847624 | L178: -0.005527469824 | M178: -0.02135288246
A179: -0.04583038884 | B179: University Health Care Inc. | C179: 1 | D179: 2016 | G179: -0.04583038884 | H179: -0.01736936295 | I179: -0.01178226168 | J179: -0.02440802837 | K179: -0.001954860534 | L179: -0.005300921879 | M179: -0.0208553283
A180: -0.04552009491 | B180: AmeriHealth Nebraska Inc. | C180: 0 | D180: 2015 | G180: -0.04552009491 | H180: -0.01671040784 | I180: -0.01142330816 | J180: -0.02439017313 | K180: -0.001862352018 | L180: -0.004426800701 | M180: -0.02079594005
A181: -0.04550799569 | B181: Texas Children's Hlth Plan Inc | C181: 0 | D181: 2018 | G181: -0.04550799569 | H181: -0.01640223629 | I181: -0.01113954352 | J181: -0.02423924689 | K181: -0.001703875609 | L181: -0.003998811159 | M181: -0.02053719328
A182: -0.04547484584 | B182: Magnolia Health Plan Inc. | C182: 0 | D182: 2014 | G182: -0.04547484584 | H182: -0.01616689555 | I182: -0.01094847764 | J182: -0.02398219963 | K182: -0.001687292341 | L182: -0.00387197556 | M182: -0.02052888201
A183: -0.04531768835 | B183: Aetna Better Health of MI Inc. | C183: 1 | D183: 2016 | G183: -0.04531768835 | H183: -0.01594523491 | I183: -0.0109457342 | J183: -0.02382468887 | K183: -0.00168230118 | L183: -0.003838639243 | M183: -0.02040984118
A184: -0.04529338545 | B184: Magnolia Health Plan Inc. | C184: 0 | D184: 2016 | G184: -0.04529338545 | H184: -0.01584376946 | I184: -0.01069238081 | J184: -0.02380227411 | K184: -0.001339523291 | L184: -0.003748008032 | M184: -0.02027762615
A185: -0.04527902496 | B185: Triple-S Salud Inc. | C185: 1 | D185: 2019 | G185: -0.04527902496 | H185: -0.01518493013 | I185: -0.009799385904 | J185: -0.02372005825 | K185: -0.001236483762 | L185: -0.003721249107 | M185: -0.02004803546
A186: -0.04492522917 | B186: WellCare Hlth Plans of NJ Inc. | C186: 1 | D186: 2014 | G186: -0.04492522917 | H186: -0.01512450719 | I186: -0.009740229063 | J186: -0.02337893047 | K186: -0.001116211431 | L186: -0.003673388254 | M186: -0.01976942146
A187: -0.04479517829 | B187: Kaiser Foundation Health Plan | C187: 1 | D187: 2019 | G187: -0.04479517829 | H187: -0.01501373204 | I187: -0.009049134433 | J187: -0.02281659699 | K187: -0.00108052128 | L187: -0.003411836949 | M187: -0.01971718677
A188: -0.04471559638 | B188: DC Chartered Health Plan Inc. | C188: 1 | D188: 2013 | G188: -0.04471559638 | H188: -0.01475573811 | I188: -0.007677685981 | J188: -0.02231040983 | K188: -0.001033161342 | L188: -0.003149761545 | M188: -0.01903440848
A189: -0.04443377673 | B189: SHA L.L.C. | C189: 0 | D189: 2014 | G189: -0.04443377673 | H189: -0.01457248005 | I189: -0.007591397151 | J189: -0.02188610177 | K189: -0.0006694977605 | L189: -0.003112977122 | M189: -0.01890708669
A190: -0.04441480733 | B190: Magnolia Health Plan Inc. | C190: 0 | D190: 2015 | G190: -0.04441480733 | H190: -0.01449151248 | I190: -0.007335477022 | J190: -0.02158329763 | K190: -0.0006340683426 | L190: -0.003051144387 | M190: -0.01888558045
A191: -0.04435097438 | B191: UnitedHealthcare of NY Inc. | C191: 1 | D191: 2019 | G191: -0.04435097438 | H191: -0.01431060544 | I191: -0.007292369961 | J191: -0.02135288246 | K191: -0.0003977789248 | L191: -0.002943317939 | M191: -0.01874411112
A192: -0.04416036852 | B192: Aetna Better Hlth Premier Plan | C192: 1 | D192: 2016 | G192: -0.04416036852 | H192: -0.01427308018 | I192: -0.006910091071 | J192: -0.02096343462 | K192: -0.0002373975939 | L192: -0.002884115804 | M192: -0.01819569713
A193: -0.0441513592 | B193: Seton Health Plan Inc. | C193: 0 | D193: 2014 | G193: -0.0441513592 | H193: -0.01420598578 | I193: -0.006601777044 | J193: -0.02079594005 | K193: 8.161955038e-05 | L193: -0.00201316723 | M193: -0.01817236012
A194: -0.04399646395 | B194: HealthPlus Partners Inc. Trust | C194: 1 | D194: 2015 | G194: -0.04399646395 | H194: -0.01372175713 | I194: -0.006301103513 | J194: -0.02053719328 | K194: 0.0002943835193 | L194: -0.001954860534 | M194: -0.01787202473
A195: -0.04320017525 | B195: UnitedHealthcare Cmnty (TX) | C195: 0 | D195: 2017 | G195: -0.04320017525 | H195: -0.0132977212 | I195: -0.00621416576 | J195: -0.02036091021 | K195: 0.0003002007768 | L195: -0.001875211158 | M195: -0.01779829882
A196: -0.04283959946 | B196: Independent Care Health Plan | C196: 0 | D196: 2017 | G196: -0.04283959946 | H196: -0.01291750216 | I196: -0.005958356927 | J196: -0.02027762615 | K196: 0.0003568072839 | L196: -0.001862352018 | M196: -0.01749334166
A197: -0.04279557529 | B197: SHA L.L.C. | C197: 0 | D197: 2019 | G197: -0.04279557529 | H197: -0.01283552447 | I197: -0.005936748405 | J197: -0.02004803546 | K197: 0.000418023325 | L197: -0.001845726917 | M197: -0.01748841209
A198: -0.04239602919 | B198: Total Health Care Inc. | C198: 1 | D198: 2018 | G198: -0.04239602919 | H198: -0.01244573631 | I198: -0.005600908931 | J198: -0.01976942146 | K198: 0.0006199044317 | L198: -0.001837438557 | M198: -0.01745513425
A199: -0.04239513042 | B199: Health Ins Plan of Greater NY | C199: 1 | D199: 2019 | G199: -0.04239513042 | H199: -0.01230421717 | I199: -0.005577108875 | J199: -0.01971718677 | K199: 0.0007207683833 | L199: -0.00168230118 | M199: -0.01737058767
A200: -0.04231681557 | B200: Health New England Inc. | C200: 1 | D200: 2015 | G200: -0.04231681557 | H200: -0.0120477861 | I200: -0.005552359186 | J200: -0.01957665495 | K200: 0.00106915216 | L200: -0.001410336905 | M200: -0.01736936295
A201: -0.04222042865 | B201: Magnolia Health Plan Inc. | C201: 0 | D201: 2013 | G201: -0.04222042865 | H201: -0.01174924161 | I201: -0.005527469824 | J201: -0.01948072416 | K201: 0.001244638177 | L201: -0.001339523291 | M201: -0.01671040784
A202: -0.04216106047 | B202: Columbia United Providers Inc. | C202: 1 | D202: 2014 | G202: -0.04216106047 | H202: -0.01164145638 | I202: -0.005300921879 | J202: -0.01890708669 | K202: 0.001329501234 | L202: -0.001118796961 | M202: -0.01657731209
... 1116 more rows

Sheet Pivot Data
A1: Year | B1: SNL Statutory Entity Key | C1: Lookup | D1: Parent Name | E1: State Domiciled | F1: Entity Name | G1: Member Months (actual) | H1: Total Revenue ($000) | I1: Loss Adj Exp Incurred ($000) | J1: General Administrative Expenses Incurred ($000) | K1: Increase in Aggregate Reserve ($000) | L1: Net Underwriting Gains ($000) | M1: Medical Losses Less Reinsurance ($000) | N1: Adjusted Capital ($000) | O1: Auth Control Level Risk Based Capital ($000) | P1: RBC Ratio | Q1: RBC Ratio Rounded | R1: MLR | S1: UW Ratio | T1: ALR | U1: Ratio Test | V1: RBC Ratio2 | W1: Revenue PMPM | X1: Incurred Claims PMPM | Y1: Net Underwriting PMPM | Z1: Incurred Admin PMPM | AA1: PMPM Test | AB1: Profit (PF) / Non-Profit (NFP) status | AC1: NAIC Ownership Structure | AD1: NAIC Company Code | AE1: Step 1 Profit=1, Non-Profit=0, Other=9 | AF1: Step 2 Profit=1, Non-Profit=0, Other=9 | AG1: Step 3 Profit=1, Non-Profit=0, Other=9 | AH1: For Profit=1, Non-Profit=0 | AI1: Expansion State (1=YES, 0=NO) 2013-2015 | AJ1: Expansion State (1=YES, 0=NO) 2016-2019 | AK1: Expansion State (1=YES, 0=NO) 2013-2019 | AL1: Member months equal to zero | AM1: Member months less than 50,000? | AN1: Rev PMPM <$100 | AO1: UW ratio > 50%? | AP1: UV ratio < -50% | AQ1: Year not 2020 | AR1: UWRatio not = 0 | AS1: Year 2020 AFTER OTHER OUTLIER SCREENS | AT1: Composite | AU1: small Plan? | AV1: member months (100000) | AW1: Rev PMPM >1000? | AX1: Member Months without zeros | AY1: Member Months Percentile | AZ1: Rev PMPM without zeros | BA1: Rev PMPM Percentile | BB1: 250 | BC1: 1471000 | BD1: =SUM(AU:AU) -> 739 | BE1: Mode calc: | BF1: =MODE(BD2:BE5000) -> 1513
A2: 2013 | B2: C6251 | C2: =Table2[[#This Row],[Year]]&Table2[[#This Row],[SNL Statutory Entity Key ]] -> 2013C6251 | D2: Centene Corporation | E2: SC | F2: Absolute Total Care Inc. | G2: 1083419 | H2: 329403.685 | I2: 10016.502 | J2: 33399.437 | K2: 0 | L2: -31275.943 | M2: 317263.689 | N2: 40955.061 | O2: 11986.3 | P2: =IFERROR((N2)/O2,"-") -> 3.416822622 | Q2: =IFERROR(ROUND(P2,0),"-") -> 3 | R2: =IFERROR((M2+K2)/H2,"-") -> 0.9631455368 | S2: =IFERROR(L2/H2,"-") -> -0.0949471558 | T2: =IFERROR((I2+J2)/H2,"-") -> 0.131801619 | U2: =SUM(R2:T2) -> 1 | V2: =IFERROR(N2/O2,"-") -> 3.416822622 | W2: =IFERROR((H2*1000)/$G2,"-") -> 304.0408974 | X2: =IFERROR((I2*1000+J2*1000)/$G2,"-") -> 40.07308253 | Y2: =IFERROR((L2*1000)/$G2,"-") -> -28.86781845 | Z2: =IFERROR((K2*1000+M2*1000)/$G2,"-") -> 292.8356333 | AA2: =IFERROR((W2-X2-Z2-Y2),"-") -> 1.421085472e-14 | AB2: =_xlfn.IFNA(INDEX('SOA dataset'!$A$4:$BE$674,MATCH('Pivot Data'!F2018,'SOA dataset'!$E$4:$E$674,0),52),"Missing Info") -> FP | AC2: =_xlfn.IFNA(INDEX('NAIC Ownership'!$A$5:$E$212,MATCH('Pivot Data'!B2018,'NAIC Ownership'!$B$5:$B$212,0),5),"Missing Info") -> Stock Company | AD2: =_xlfn.IFNA(INDEX('S&P Export2'!$A$3:$E$290,MATCH('Pivot Data'!B2018,'S&P Export2'!$B$3:$B$290,0),3),"Missing Info") -> 12959 | AE2: =IF(AB2="FP",1,IF(AB2="NFP",0,9)) -> 1 | AF2: =IF(AC2="Stock Company",1,IF(AC2="Limited Liability Corporation",1,IF(AC2="Mutual Company",1,IF(AC2="Missing Info",9,0)))) -> 1 | AG2: =MIN(AE2,AF2) -> 1 | AH2: =IF(AG2=9,INDEX('Cleanup profit status 9'!$F$5:$I$58,MATCH('Pivot Data'!B2018,'Cleanup profit status 9'!$G$5:$G$58,0),4),AG2) -> 1 | AI2: =_xlfn.IFNA(INDEX('Expansion Adoption'!$A$5:$H$56,MATCH('Pivot Data'!E2018,'Expansion Adoption'!$B$5:$B$56,0),6),"ERROR") -> 0 | AJ2: =_xlfn.IFNA(INDEX('Expansion Adoption'!$A$5:$H$56,MATCH('Pivot Data'!E2018,'Expansion Adoption'!$B$5:$B$56,0),7),"ERROR") -> 0 | AK2: =_xlfn.IFNA(INDEX('Expansion Adoption'!$A$5:$H$56,MATCH('Pivot Data'!E2018,'Expansion Adoption'!$B$5:$B$56,0),8),"ERROR") -> 0 | AL2: =IF(G2<=0,0,1) -> 1 | AM2: =IF(G2<50000,0,1) -> 1 | AN2: =IF(W2<100,0,1)*AM2 -> 1 | AO2: =IF(S2>50%,0,1)*AN2 -> 1 | AP2: =IF(S2<-0.5,0,1)*AO2 -> 1 | AQ2: =IF(A2=2020,1,1)*AP2 -> 1 | AR2: =IF(S2=0,0,1)*AQ2 -> 1 | AS2: =IF(A2=2020,1,0)*AP2 -> 0 | AT2: =AR2 -> 1 | AU2: =AT2*IF(G2<$BC$1,1,0) -> 1 | AV2: =ROUND(G2/100000,0) -> 11 | AW2: =IF(W2<1000,0,1) -> 0 | AX2: =IF(AT2=0,"",G2) -> 1083419 | AY2: =IF(AX2="","",VLOOKUP(AX2,$BC$15:$BF$24,3)) -> 0.4 | AZ2: =IF(AT2=0,"",W2) -> 304.0408974 | BA2: =IF(AZ2="","",VLOOKUP(AZ2,$BD$15:$BF$24,3)) -> 0.35 | BE2: =IF(AT2=0,"",S2) -> -0.0949471558
A3: 2013 | B3: C8559 | C3: =Table2[[#This Row],[Year]]&Table2[[#This Row],[SNL Statutory Entity Key ]] -> 2013C8559 | D3: SRMC Ventures, LLC | E3: SC | F3: Advicare Corp. | G3: 0 | H3: 0 | I3: 0 | J3: 0 | K3: 0 | L3: 0 | M3: 0 | N3: 0 | O3: 0 | P3: - | Q3: - | R3: - | S3: - | T3: - | U3: 0 | V3: - | W3: - | X3: - | Y3: - | Z3: - | AA3: - | AB3: =_xlfn.IFNA(INDEX('SOA dataset'!$A$4:$BE$674,MATCH('Pivot Data'!F2019,'SOA dataset'!$E$4:$E$674,0),52),"Missing Info") -> FP | AC3: =_xlfn.IFNA(INDEX('NAIC Ownership'!$A$5:$E$212,MATCH('Pivot Data'!B2019,'NAIC Ownership'!$B$5:$B$212,0),5),"Missing Info") -> Missing Info | AD3: =_xlfn.IFNA(INDEX('S&P Export2'!$A$3:$E$290,MATCH('Pivot Data'!B2019,'S&P Export2'!$B$3:$B$290,0),3),"Missing Info") -> 15146 | AE3: 1 | AF3: 9 | AG3: 1 | AH3: =IF(AG3=9,INDEX('Cleanup profit status 9'!$F$5:$I$58,MATCH('Pivot Data'!B2019,'Cleanup profit status 9'!$G$5:$G$58,0),4),AG3) -> 1 | AI3: =_xlfn.IFNA(INDEX('Expansion Adoption'!$A$5:$H$56,MATCH('Pivot Data'!E2019,'Expansion Adoption'!$B$5:$B$56,0),6),"ERROR") -> 0 | AJ3: =_xlfn.IFNA(INDEX('Expansion Adoption'!$A$5:$H$56,MATCH('Pivot Data'!E2019,'Expansion Adoption'!$B$5:$B$56,0),7),"ERROR") -> 0 | AK3: =_xlfn.IFNA(INDEX('Expansion Adoption'!$A$5:$H$56,MATCH('Pivot Data'!E2019,'Expansion Adoption'!$B$5:$B$56,0),8),"ERROR") -> 0 | AL3: 0 | AM3: 0 | AN3: 0 | AO3: 0 | AP3: 0 | AQ3: 0 | AR3: 0 | AS3: 0 | AT3: 0 | AU3: 0 | AV3: 0 | AW3: 1 | BE3: =IF(AT3=0,"",S3) -> 
A4: 2013 | B4: C8760 | C4: =Table2[[#This Row],[Year]]&Table2[[#This Row],[SNL Statutory Entity Key ]] -> 2013C8760 | D4: Aetna Health Holdings, LLC | E4: LA | F4: Aetna Better Health Inc. (LA) | G4: 0 | H4: 0 | I4: 0 | J4: 0 | K4: 0 | L4: 0 | M4: 0 | N4: 0 | O4: 0 | P4: - | Q4: - | R4: - | S4: - | T4: - | U4: 0 | V4: - | W4: - | X4: - | Y4: - | Z4: - | AA4: - | AB4: =_xlfn.IFNA(INDEX('SOA dataset'!$A$4:$BE$674,MATCH('Pivot Data'!F2020,'SOA dataset'!$E$4:$E$674,0),52),"Missing Info") -> FP | AC4: =_xlfn.IFNA(INDEX('NAIC Ownership'!$A$5:$E$212,MATCH('Pivot Data'!B2020,'NAIC Ownership'!$B$5:$B$212,0),5),"Missing Info") -> Stock Company | AD4: =_xlfn.IFNA(INDEX('S&P Export2'!$A$3:$E$290,MATCH('Pivot Data'!B2020,'S&P Export2'!$B$3:$B$290,0),3),"Missing Info") -> 15616 | AE4: 1 | AF4: 1 | AG4: 1 | AH4: =IF(AG4=9,INDEX('Cleanup profit status 9'!$F$5:$I$58,MATCH('Pivot Data'!B2020,'Cleanup profit status 9'!$G$5:$G$58,0),4),AG4) -> 1 | AI4: =_xlfn.IFNA(INDEX('Expansion Adoption'!$A$5:$H$56,MATCH('Pivot Data'!E2020,'Expansion Adoption'!$B$5:$B$56,0),6),"ERROR") -> 0 | AJ4: =_xlfn.IFNA(INDEX('Expansion Adoption'!$A$5:$H$56,MATCH('Pivot Data'!E2020,'Expansion Adoption'!$B$5:$B$56,0),7),"ERROR") -> 1 | AK4: =_xlfn.IFNA(INDEX('Expansion Adoption'!$A$5:$H$56,MATCH('Pivot Data'!E2020,'Expansion Adoption'!$B$5:$B$56,0),8),"ERROR") -> 1 | AL4: 0 | AM4: 0 | AN4: 0 | AO4: 0 | AP4: 0 | AQ4: 0 | AR4: 0 | AS4: 0 | AT4: 0 | AU4: 0 | AV4: 0 | AW4: 1 | BC4: =MODE(S2:S1000) -> 0 | BE4: =IF(AT4=0,"",S4) -> 
A5: 2013 | B5: C8778 | C5: =Table2[[#This Row],[Year]]&Table2[[#This Row],[SNL Statutory Entity Key ]] -> 2013C8778 | D5: Aetna Health Holdings, LLC | E5: NJ | F5: Aetna Better Health Inc. (NJ) | G5: 0 | H5: 0 | I5: 0 | J5: 0 | K5: 0 | L5: 0 | M5: 0 | N5: 0 | O5: 0 | P5: - | Q5: - | R5: - | S5: - | T5: - | U5: 0 | V5: - | W5: - | X5: - | Y5: - | Z5: - | AA5: - | AB5: =_xlfn.IFNA(INDEX('SOA dataset'!$A$4:$BE$674,MATCH('Pivot Data'!F2021,'SOA dataset'!$E$4:$E$674,0),52),"Missing Info") -> FP | AC5: =_xlfn.IFNA(INDEX('NAIC Ownership'!$A$5:$E$212,MATCH('Pivot Data'!B2021,'NAIC Ownership'!$B$5:$B$212,0),5),"Missing Info") -> Stock Company | AD5: =_xlfn.IFNA(INDEX('S&P Export2'!$A$3:$E$290,MATCH('Pivot Data'!B2021,'S&P Export2'!$B$3:$B$290,0),3),"Missing Info") -> 15611 | AE5: 1 | AF5: 1 | AG5: 1 | AH5: =IF(AG5=9,INDEX('Cleanup profit status 9'!$F$5:$I$58,MATCH('Pivot Data'!B2021,'Cleanup profit status 9'!$G$5:$G$58,0),4),AG5) -> 1 | AI5: =_xlfn.IFNA(INDEX('Expansion Adoption'!$A$5:$H$56,MATCH('Pivot Data'!E2021,'Expansion Adoption'!$B$5:$B$56,0),6),"ERROR") -> 1 | AJ5: =_xlfn.IFNA(INDEX('Expansion Adoption'!$A$5:$H$56,MATCH('Pivot Data'!E2021,'Expansion Adoption'!$B$5:$B$56,0),7),"ERROR") -> 0 | AK5: =_xlfn.IFNA(INDEX('Expansion Adoption'!$A$5:$H$56,MATCH('Pivot Data'!E2021,'Expansion Adoption'!$B$5:$B$56,0),8),"ERROR") -> 1 | AL5: 0 | AM5: 0 | AN5: 0 | AO5: 0 | AP5: 0 | AQ5: 0 | AR5: 0 | AS5: 0 | AT5: 0 | AU5: 0 | AV5: 0 | AW5: 1 | BC5: Categories | BE5: # of Entries | BF5: Reductions
A6: 2013 | B6: C7932 | C6: =Table2[[#This Row],[Year]]&Table2[[#This Row],[SNL Statutory Entity Key ]] -> 2013C7932 | D6: Aetna Health Holdings, LLC | E6: OH | F6: Aetna Better Health Inc. (OH) | G6: 0 | H6: 0 | I6: 0 | J6: 0 | K6: 0 | L6: 0 | M6: 0 | N6: 3010.09 | O6: 2.901 | P6: 1037.604274 | Q6: 1038 | R6: - | S6: - | T6: - | U6: 0 | V6: 1037.604274 | W6: - | X6: - | Y6: - | Z6: - | AA6: - | AB6: =_xlfn.IFNA(INDEX('SOA dataset'!$A$4:$BE$674,MATCH('Pivot Data'!F2022,'SOA dataset'!$E$4:$E$674,0),52),"Missing Info") -> FP | AC6: =_xlfn.IFNA(INDEX('NAIC Ownership'!$A$5:$E$212,MATCH('Pivot Data'!B2022,'NAIC Ownership'!$B$5:$B$212,0),5),"Missing Info") -> Stock Company | AD6: =_xlfn.IFNA(INDEX('S&P Export2'!$A$3:$E$290,MATCH('Pivot Data'!B2022,'S&P Export2'!$B$3:$B$290,0),3),"Missing Info") -> 14229 | AE6: 1 | AF6: 1 | AG6: 1 | AH6: =IF(AG6=9,INDEX('Cleanup profit status 9'!$F$5:$I$58,MATCH('Pivot Data'!B2022,'Cleanup profit status 9'!$G$5:$G$58,0),4),AG6) -> 1 | AI6: =_xlfn.IFNA(INDEX('Expansion Adoption'!$A$5:$H$56,MATCH('Pivot Data'!E2022,'Expansion Adoption'!$B$5:$B$56,0),6),"ERROR") -> 1 | AJ6: =_xlfn.IFNA(INDEX('Expansion Adoption'!$A$5:$H$56,MATCH('Pivot Data'!E2022,'Expansion Adoption'!$B$5:$B$56,0),7),"ERROR") -> 0 | AK6: =_xlfn.IFNA(INDEX('Expansion Adoption'!$A$5:$H$56,MATCH('Pivot Data'!E2022,'Expansion Adoption'!$B$5:$B$56,0),8),"ERROR") -> 1 | AL6: 0 | AM6: 0 | AN6: 0 | AO6: 0 | AP6: 0 | AQ6: 0 | AR6: 0 | AS6: 0 | AT6: 0 | AU6: 0 | AV6: 0 | AW6: 1 | BC6: Non-zero entries | BE6: =SUM(AL2:AL2305) -> 1698
A7: 2013 | B7: C7567 | C7: =Table2[[#This Row],[Year]]&Table2[[#This Row],[SNL Statutory Entity Key ]] -> 2013C7567 | D7: Aetna Health Holdings, LLC | E7: PA | F7: Aetna Better Health Inc. (PA) | G7: 770155 | H7: 305880.721 | I7: 13739.875 | J7: 33660.059 | K7: 0 | L7: -14774.633 | M7: 273255.42 | N7: 31600.054 | O7: 11002.867 | P7: 2.871983638 | Q7: 3 | R7: 0.8933397931 | S7: -0.04830194251 | T7: 0.1549621494 | U7: 1 | V7: 2.871983638 | W7: 397.1677403 | X7: 61.54596672 | Y7: -19.18397336 | Z7: 354.8057469 | AA7: -7.105427358e-15 | AB7: =_xlfn.IFNA(INDEX('SOA dataset'!$A$4:$BE$674,MATCH('Pivot Data'!F2023,'SOA dataset'!$E$4:$E$674,0),52),"Missing Info") -> FP | AC7: =_xlfn.IFNA(INDEX('NAIC Ownership'!$A$5:$E$212,MATCH('Pivot Data'!B2023,'NAIC Ownership'!$B$5:$B$212,0),5),"Missing Info") -> Stock Company | AD7: =_xlfn.IFNA(INDEX('S&P Export2'!$A$3:$E$290,MATCH('Pivot Data'!B2023,'S&P Export2'!$B$3:$B$290,0),3),"Missing Info") -> 13735 | AE7: 1 | AF7: 1 | AG7: 1 | AH7: =IF(AG7=9,INDEX('Cleanup profit status 9'!$F$5:$I$58,MATCH('Pivot Data'!B2023,'Cleanup profit status 9'!$G$5:$G$58,0),4),AG7) -> 1 | AI7: =_xlfn.IFNA(INDEX('Expansion Adoption'!$A$5:$H$56,MATCH('Pivot Data'!E2023,'Expansion Adoption'!$B$5:$B$56,0),6),"ERROR") -> 1 | AJ7: =_xlfn.IFNA(INDEX('Expansion Adoption'!$A$5:$H$56,MATCH('Pivot Data'!E2023,'Expansion Adoption'!$B$5:$B$56,0),7),"ERROR") -> 0 | AK7: =_xlfn.IFNA(INDEX('Expansion Adoption'!$A$5:$H$56,MATCH('Pivot Data'!E2023,'Expansion Adoption'!$B$5:$B$56,0),8),"ERROR") -> 1 | AL7: 1 | AM7: 1 | AN7: 1 | AO7: 1 | AP7: 1 | AQ7: 1 | AR7: 1 | AS7: 0 | AT7: 1 | AU7: 1 | AV7: 8 | AW7: 0 | AX7: 770155 | AY7: 0.2 | AZ7: 397.1677403 | BA7: 0.55 | BC7: Mem. Mos. NOT less than 50,000 | BE7: =SUM(AM2:AM2305) -> 1613 | BF7: =BE7-BE6 -> -85
A8: 2013 | B8: C9017 | C8: =Table2[[#This Row],[Year]]&Table2[[#This Row],[SNL Statutory Entity Key ]] -> 2013C9017 | D8: Aetna Health Holdings, LLC | E8: KS | F8: Aetna Better Health of KS Inc. | G8: 0 | H8: 0 | I8: 0 | J8: 0 | K8: 0 | L8: 0 | M8: 0 | N8: 0 | O8: 0 | P8: - | Q8: - | R8: - | S8: - | T8: - | U8: 0 | V8: - | W8: - | X8: - | Y8: - | Z8: - | AA8: - | AB8: =_xlfn.IFNA(INDEX('SOA dataset'!$A$4:$BE$674,MATCH('Pivot Data'!F2024,'SOA dataset'!$E$4:$E$674,0),52),"Missing Info") -> Missing Info | AC8: =_xlfn.IFNA(INDEX('NAIC Ownership'!$A$5:$E$212,MATCH('Pivot Data'!B2024,'NAIC Ownership'!$B$5:$B$212,0),5),"Missing Info") -> Stock Company | AD8: =_xlfn.IFNA(INDEX('S&P Export2'!$A$3:$E$290,MATCH('Pivot Data'!B2024,'S&P Export2'!$B$3:$B$290,0),3),"Missing Info") -> 16072 | AE8: 9 | AF8: 1 | AG8: 1 | AH8: =IF(AG8=9,INDEX('Cleanup profit status 9'!$F$5:$I$58,MATCH('Pivot Data'!B2024,'Cleanup profit status 9'!$G$5:$G$58,0),4),AG8) -> 1 | AI8: =_xlfn.IFNA(INDEX('Expansion Adoption'!$A$5:$H$56,MATCH('Pivot Data'!E2024,'Expansion Adoption'!$B$5:$B$56,0),6),"ERROR") -> 0 | AJ8: =_xlfn.IFNA(INDEX('Expansion Adoption'!$A$5:$H$56,MATCH('Pivot Data'!E2024,'Expansion Adoption'!$B$5:$B$56,0),7),"ERROR") -> 0 | AK8: =_xlfn.IFNA(INDEX('Expansion Adoption'!$A$5:$H$56,MATCH('Pivot Data'!E2024,'Expansion Adoption'!$B$5:$B$56,0),8),"ERROR") -> 0 | AL8: 0 | AM8: 0 | AN8: 0 | AO8: 0 | AP8: 0 | AQ8: 0 | AR8: 0 | AS8: 0 | AT8: 0 | AU8: 0 | AV8: 0 | AW8: 1 | BC8: Rev. PMPM NOT less than $100 | BE8: =SUM(AN2:AN2305) -> 1518 | BF8: =BE8-BE7 -> -95
A9: 2013 | B9: C3886 | C9: =Table2[[#This Row],[Year]]&Table2[[#This Row],[SNL Statutory Entity Key ]] -> 2013C3886 | D9: Aetna Health Holdings, LLC | E9: MI | F9: Aetna Better Health of MI Inc. | G9: 474238 | H9: 162896.407 | I9: 1731.401 | J9: 13139.57 | K9: 0 | L9: 5577.238 | M9: 142448.198 | N9: 21774.201 | O9: 5087.782 | P9: 4.279704005 | Q9: 4 | R9: 0.8744710864 | S9: 0.03423794363 | T9: 0.09129096997 | U9: 1 | V9: 4.279704005 | W9: 343.4908358 | X9: 31.35761158 | Y9: 11.76041987 | Z9: 300.3728044 | AA9: 4.440892099e-14 | AB9: =_xlfn.IFNA(INDEX('SOA dataset'!$A$4:$BE$674,MATCH('Pivot Data'!F2025,'SOA dataset'!$E$4:$E$674,0),52),"Missing Info") -> FP | AC9: =_xlfn.IFNA(INDEX('NAIC Ownership'!$A$5:$E$212,MATCH('Pivot Data'!B2025,'NAIC Ownership'!$B$5:$B$212,0),5),"Missing Info") -> Stock Company | AD9: =_xlfn.IFNA(INDEX('S&P Export2'!$A$3:$E$290,MATCH('Pivot Data'!B2025,'S&P Export2'!$B$3:$B$290,0),3),"Missing Info") -> 12193 | AE9: 1 | AF9: 1 | AG9: 1 | AH9: =IF(AG9=9,INDEX('Cleanup profit status 9'!$F$5:$I$58,MATCH('Pivot Data'!B2025,'Cleanup profit status 9'!$G$5:$G$58,0),4),AG9) -> 1 | AI9: =_xlfn.IFNA(INDEX('Expansion Adoption'!$A$5:$H$56,MATCH('Pivot Data'!E2025,'Expansion Adoption'!$B$5:$B$56,0),6),"ERROR") -> 1 | AJ9: =_xlfn.IFNA(INDEX('Expansion Adoption'!$A$5:$H$56,MATCH('Pivot Data'!E2025,'Expansion Adoption'!$B$5:$B$56,0),7),"ERROR") -> 0 | AK9: =_xlfn.IFNA(INDEX('Expansion Adoption'!$A$5:$H$56,MATCH('Pivot Data'!E2025,'Expansion Adoption'!$B$5:$B$56,0),8),"ERROR") -> 1 | AL9: 1 | AM9: 1 | AN9: 1 | AO9: 1 | AP9: 1 | AQ9: 1 | AR9: 1 | AS9: 0 | AT9: 1 | AU9: 1 | AV9: 5 | AW9: 0 | AX9: 474238 | AY9: 0.1 | AZ9: 343.4908358 | BA9: 0.45 | BC9: UW Ratio NOT greater than 50% | BE9: =SUM(AO2:AO2305) -> 1515 | BF9: =BE9-BE8 -> -3
A10: 2013 | B10: C3330 | C10: =Table2[[#This Row],[Year]]&Table2[[#This Row],[SNL Statutory Entity Key ]] -> 2013C3330 | D10: Aetna Health Holdings, LLC | E10: MO | F10: Aetna Better Health of MO LLC | G10: 2984692 | H10: 669355.511 | I10: 11956.642 | J10: 46133.875 | K10: 0 | L10: 45136.601 | M10: 566128.393 | N10: 103984.589 | O10: 18909.273 | P10: 5.49913204 | Q10: 5 | R10: 0.845781328 | S10: 0.06743292654 | T10: 0.08678574546 | U10: 1 | V10: 5.49913204 | W10: 224.2628422 | X10: 19.46281794 | Y10: 15.12269976 | Z10: 189.6773245 | AA10: -5.329070518e-15 | AB10: =_xlfn.IFNA(INDEX('SOA dataset'!$A$4:$BE$674,MATCH('Pivot Data'!F2026,'SOA dataset'!$E$4:$E$674,0),52),"Missing Info") -> FP | AC10: =_xlfn.IFNA(INDEX('NAIC Ownership'!$A$5:$E$212,MATCH('Pivot Data'!B2026,'NAIC Ownership'!$B$5:$B$212,0),5),"Missing Info") -> Missing Info | AD10: =_xlfn.IFNA(INDEX('S&P Export2'!$A$3:$E$290,MATCH('Pivot Data'!B2026,'S&P Export2'!$B$3:$B$290,0),3),"Missing Info") -> 95318 | AE10: 1 | AF10: 9 | AG10: 1 | AH10: =IF(AG10=9,INDEX('Cleanup profit status 9'!$F$5:$I$58,MATCH('Pivot Data'!B2026,'Cleanup profit status 9'!$G$5:$G$58,0),4),AG10) -> 1 | AI10: =_xlfn.IFNA(INDEX('Expansion Adoption'!$A$5:$H$56,MATCH('Pivot Data'!E2026,'Expansion Adoption'!$B$5:$B$56,0),6),"ERROR") -> 0 | AJ10: =_xlfn.IFNA(INDEX('Expansion Adoption'!$A$5:$H$56,MATCH('Pivot Data'!E2026,'Expansion Adoption'!$B$5:$B$56,0),7),"ERROR") -> 0 | AK10: =_xlfn.IFNA(INDEX('Expansion Adoption'!$A$5:$H$56,MATCH('Pivot Data'!E2026,'Expansion Adoption'!$B$5:$B$56,0),8),"ERROR") -> 0 | AL10: 1 | AM10: 1 | AN10: 1 | AO10: 1 | AP10: 1 | AQ10: 1 | AR10: 1 | AS10: 0 | AT10: 1 | AU10: 0 | AV10: 30 | AW10: 0 | AX10: 2984692 | AY10: 0.7 | AZ10: 224.2628422 | BA10: 0.15 | BC10: UW Ratio NOT less than -50% | BE10: =SUM(AP2:AP2305) -> 1513 | BF10: =BE10-BE9 -> -2
A11: 2013 | B11: C9094 | C11: =Table2[[#This Row],[Year]]&Table2[[#This Row],[SNL Statutory Entity Key ]] -> 2013C9094 | D11: Aetna Health Holdings, LLC | E11: NV | F11: Aetna Better Health of NV Inc. | G11: 0 | H11: 0 | I11: 0 | J11: 0 | K11: 0 | L11: 0 | M11: 0 | N11: 0 | O11: 0 | P11: - | Q11: - | R11: - | S11: - | T11: - | U11: 0 | V11: - | W11: - | X11: - | Y11: - | Z11: - | AA11: - | AB11: =_xlfn.IFNA(INDEX('SOA dataset'!$A$4:$BE$674,MATCH('Pivot Data'!F2027,'SOA dataset'!$E$4:$E$674,0),52),"Missing Info") -> Missing Info | AC11: =_xlfn.IFNA(INDEX('NAIC Ownership'!$A$5:$E$212,MATCH('Pivot Data'!B2027,'NAIC Ownership'!$B$5:$B$212,0),5),"Missing Info") -> Missing Info | AD11: =_xlfn.IFNA(INDEX('S&P Export2'!$A$3:$E$290,MATCH('Pivot Data'!B2027,'S&P Export2'!$B$3:$B$290,0),3),"Missing Info") -> 16148 | AE11: 9 | AF11: 9 | AG11: 9 | AH11: =IF(AG11=9,INDEX('Cleanup profit status 9'!$F$5:$I$58,MATCH('Pivot Data'!B2027,'Cleanup profit status 9'!$G$5:$G$58,0),4),AG11) -> 1 | AI11: =_xlfn.IFNA(INDEX('Expansion Adoption'!$A$5:$H$56,MATCH('Pivot Data'!E2027,'Expansion Adoption'!$B$5:$B$56,0),6),"ERROR") -> 1 | AJ11: =_xlfn.IFNA(INDEX('Expansion Adoption'!$A$5:$H$56,MATCH('Pivot Data'!E2027,'Expansion Adoption'!$B$5:$B$56,0),7),"ERROR") -> 0 | AK11: =_xlfn.IFNA(INDEX('Expansion Adoption'!$A$5:$H$56,MATCH('Pivot Data'!E2027,'Expansion Adoption'!$B$5:$B$56,0),8),"ERROR") -> 1 | AL11: 0 | AM11: 0 | AN11: 0 | AO11: 0 | AP11: 0 | AQ11: 0 | AR11: 0 | AS11: 0 | AT11: 0 | AU11: 0 | AV11: 0 | AW11: 1 | BC11: Year NOT 2020 | BE11: =SUM(AQ2:AQ2305) -> 1513 | BF11: =BE11-BE10 -> 0
A12: 2013 | B12: C6077 | C12: =Table2[[#This Row],[Year]]&Table2[[#This Row],[SNL Statutory Entity Key ]] -> 2013C6077 | D12: Aetna Health Holdings, LLC | E12: TX | F12: Aetna Better Health of TX Inc. | G12: 0 | H12: 0 | I12: 0 | J12: 0 | K12: 0 | L12: 0 | M12: 0 | N12: 0 | O12: 0 | P12: - | Q12: - | R12: - | S12: - | T12: - | U12: 0 | V12: - | W12: - | X12: - | Y12: - | Z12: - | AA12: - | AB12: =_xlfn.IFNA(INDEX('SOA dataset'!$A$4:$BE$674,MATCH('Pivot Data'!F2028,'SOA dataset'!$E$4:$E$674,0),52),"Missing Info") -> FP | AC12: =_xlfn.IFNA(INDEX('NAIC Ownership'!$A$5:$E$212,MATCH('Pivot Data'!B2028,'NAIC Ownership'!$B$5:$B$212,0),5),"Missing Info") -> Stock Company | AD12: =_xlfn.IFNA(INDEX('S&P Export2'!$A$3:$E$290,MATCH('Pivot Data'!B2028,'S&P Export2'!$B$3:$B$290,0),3),"Missing Info") -> 95040 | AE12: 1 | AF12: 1 | AG12: 1 | AH12: =IF(AG12=9,INDEX('Cleanup profit status 9'!$F$5:$I$58,MATCH('Pivot Data'!B2028,'Cleanup profit status 9'!$G$5:$G$58,0),4),AG12) -> 1 | AI12: =_xlfn.IFNA(INDEX('Expansion Adoption'!$A$5:$H$56,MATCH('Pivot Data'!E2028,'Expansion Adoption'!$B$5:$B$56,0),6),"ERROR") -> 0 | AJ12: =_xlfn.IFNA(INDEX('Expansion Adoption'!$A$5:$H$56,MATCH('Pivot Data'!E2028,'Expansion Adoption'!$B$5:$B$56,0),7),"ERROR") -> 0 | AK12: =_xlfn.IFNA(INDEX('Expansion Adoption'!$A$5:$H$56,MATCH('Pivot Data'!E2028,'Expansion Adoption'!$B$5:$B$56,0),8),"ERROR") -> 0 | AL12: 0 | AM12: 0 | AN12: 0 | AO12: 0 | AP12: 0 | AQ12: 0 | AR12: 0 | AS12: 0 | AT12: 0 | AU12: 0 | AV12: 0 | AW12: 1 | BC12: Test: | BD12: =MIN(AX:AX) -> 51701 | BE12: Min. Mem. Mos. Net of outliers
A13: 2013 | B13: C3697 | C13: =Table2[[#This Row],[Year]]&Table2[[#This Row],[SNL Statutory Entity Key ]] -> 2013C3697 | D13: Florida Health Plan Administrators, LLC | E13: FL | F13: Aetna Better Hlth of FL Inc. | G13: 372835 | H13: 124210.241 | I13: 4379.037 | J13: 11300.739 | K13: 0 | L13: -4540.459 | M13: 113070.924 | N13: 103375.897 | O13: 19314.927 | P13: 5.352124655 | Q13: 5 | R13: 0.9103188521 | S13: -0.03655462676 | T13: 0.1262357747 | U13: 1 | V13: 5.352124655 | W13: 333.1506994 | X13: 42.05553663 | Y13: -12.17819947 | Z13: 303.2733622 | AA13: 3.375077995e-14 | AB13: =_xlfn.IFNA(INDEX('SOA dataset'!$A$4:$BE$674,MATCH('Pivot Data'!F2029,'SOA dataset'!$E$4:$E$674,0),52),"Missing Info") -> Missing Info | AC13: =_xlfn.IFNA(INDEX('NAIC Ownership'!$A$5:$E$212,MATCH('Pivot Data'!B2029,'NAIC Ownership'!$B$5:$B$212,0),5),"Missing Info") -> Stock Company | AD13: =_xlfn.IFNA(INDEX('S&P Export2'!$A$3:$E$290,MATCH('Pivot Data'!B2029,'S&P Export2'!$B$3:$B$290,0),3),"Missing Info") -> 95114 | AE13: 9 | AF13: 1 | AG13: 1 | AH13: =IF(AG13=9,INDEX('Cleanup profit status 9'!$F$5:$I$58,MATCH('Pivot Data'!B2029,'Cleanup profit status 9'!$G$5:$G$58,0),4),AG13) -> 1 | AI13: =_xlfn.IFNA(INDEX('Expansion Adoption'!$A$5:$H$56,MATCH('Pivot Data'!E2029,'Expansion Adoption'!$B$5:$B$56,0),6),"ERROR") -> 0 | AJ13: =_xlfn.IFNA(INDEX('Expansion Adoption'!$A$5:$H$56,MATCH('Pivot Data'!E2029,'Expansion Adoption'!$B$5:$B$56,0),7),"ERROR") -> 0 | AK13: =_xlfn.IFNA(INDEX('Expansion Adoption'!$A$5:$H$56,MATCH('Pivot Data'!E2029,'Expansion Adoption'!$B$5:$B$56,0),8),"ERROR") -> 0 | AL13: 1 | AM13: 1 | AN13: 1 | AO13: 1 | AP13: 1 | AQ13: 1 | AR13: 1 | AS13: 0 | AT13: 1 | AU13: 1 | AV13: 4 | AW13: 0 | AX13: 372835 | AY13: 0.1 | AZ13: 333.1506994 | BA13: 0.45
A14: 2013 | B14: C7757 | C14: =Table2[[#This Row],[Year]]&Table2[[#This Row],[SNL Statutory Entity Key ]] -> 2013C7757 | D14: Aetna Health Holdings, LLC | E14: IL | F14: Aetna Better Hlth of IL Inc. | G14: 239469 | H14: 309416.191 | I14: 9356.039 | J14: 23170.892 | K14: 0 | L14: 2558.129 | M14: 274331.131 | N14: 28643.034 | O14: 10231.963 | P14: 2.799368411 | Q14: 3 | R14: 0.8866088427 | S14: 0.008267599028 | T14: 0.1051235583 | U14: 1 | V14: 2.799368411 | W14: 1292.092885 | X14: 135.8294017 | Y14: 10.68250588 | Z14: 1145.580977 | AA14: 3.055333764e-13 | AB14: =_xlfn.IFNA(INDEX('SOA dataset'!$A$4:$BE$674,MATCH('Pivot Data'!F2030,'SOA dataset'!$E$4:$E$674,0),52),"Missing Info") -> Missing Info | AC14: =_xlfn.IFNA(INDEX('NAIC Ownership'!$A$5:$E$212,MATCH('Pivot Data'!B2030,'NAIC Ownership'!$B$5:$B$212,0),5),"Missing Info") -> Stock Company | AD14: =_xlfn.IFNA(INDEX('S&P Export2'!$A$3:$E$290,MATCH('Pivot Data'!B2030,'S&P Export2'!$B$3:$B$290,0),3),"Missing Info") -> 14053 | AE14: 9 | AF14: 1 | AG14: 1 | AH14: =IF(AG14=9,INDEX('Cleanup profit status 9'!$F$5:$I$58,MATCH('Pivot Data'!B2030,'Cleanup profit status 9'!$G$5:$G$58,0),4),AG14) -> 1 | AI14: =_xlfn.IFNA(INDEX('Expansion Adoption'!$A$5:$H$56,MATCH('Pivot Data'!E2030,'Expansion Adoption'!$B$5:$B$56,0),6),"ERROR") -> 1 | AJ14: =_xlfn.IFNA(INDEX('Expansion Adoption'!$A$5:$H$56,MATCH('Pivot Data'!E2030,'Expansion Adoption'!$B$5:$B$56,0),7),"ERROR") -> 0 | AK14: =_xlfn.IFNA(INDEX('Expansion Adoption'!$A$5:$H$56,MATCH('Pivot Data'!E2030,'Expansion Adoption'!$B$5:$B$56,0),8),"ERROR") -> 1 | AL14: 1 | AM14: 1 | AN14: 1 | AO14: 1 | AP14: 1 | AQ14: 1 | AR14: 1 | AS14: 0 | AT14: 1 | AU14: 1 | AV14: 2 | AW14: 1 | AX14: 239469 | AY14: 0.1 | AZ14: 1292.092885 | BA14: 0.95 | BC14: Mem Months | BD14: Rev PMPM | BE14: percentile | BF14: Cum
A15: 2013 | B15: C8832 | C15: =Table2[[#This Row],[Year]]&Table2[[#This Row],[SNL Statutory Entity Key ]] -> 2013C8832 | D15: Coventry Health and Life Insurance Company | E15: KY | F15: Aetna Better Hlth of KY Ins Co | G15: 0 | H15: 0 | I15: 0 | J15: 0 | K15: 0 | L15: 0 | M15: 0 | N15: 0 | O15: 0 | P15: - | Q15: - | R15: - | S15: - | T15: - | U15: 0 | V15: - | W15: - | X15: - | Y15: - | Z15: - | AA15: - | AB15: =_xlfn.IFNA(INDEX('SOA dataset'!$A$4:$BE$674,MATCH('Pivot Data'!F2031,'SOA dataset'!$E$4:$E$674,0),52),"Missing Info") -> Missing Info | AC15: =_xlfn.IFNA(INDEX('NAIC Ownership'!$A$5:$E$212,MATCH('Pivot Data'!B2031,'NAIC Ownership'!$B$5:$B$212,0),5),"Missing Info") -> Stock Company | AD15: =_xlfn.IFNA(INDEX('S&P Export2'!$A$3:$E$290,MATCH('Pivot Data'!B2031,'S&P Export2'!$B$3:$B$290,0),3),"Missing Info") -> 15761 | AE15: 9 | AF15: 1 | AG15: 1 | AH15: =IF(AG15=9,INDEX('Cleanup profit status 9'!$F$5:$I$58,MATCH('Pivot Data'!B2031,'Cleanup profit status 9'!$G$5:$G$58,0),4),AG15) -> 1 | AI15: =_xlfn.IFNA(INDEX('Expansion Adoption'!$A$5:$H$56,MATCH('Pivot Data'!E2031,'Expansion Adoption'!$B$5:$B$56,0),6),"ERROR") -> 1 | AJ15: =_xlfn.IFNA(INDEX('Expansion Adoption'!$A$5:$H$56,MATCH('Pivot Data'!E2031,'Expansion Adoption'!$B$5:$B$56,0),7),"ERROR") -> 0 | AK15: =_xlfn.IFNA(INDEX('Expansion Adoption'!$A$5:$H$56,MATCH('Pivot Data'!E2031,'Expansion Adoption'!$B$5:$B$56,0),8),"ERROR") -> 1 | AL15: 0 | AM15: 0 | AN15: 0 | AO15: 0 | AP15: 0 | AQ15: 0 | AR15: 0 | AS15: 0 | AT15: 0 | AU15: 0 | AV15: 0 | AW15: 1 | BC15: =PERCENTILE($AX$2:$AX$2305,BE15) -> 51701 | BD15: =PERCENTILE($AZ$2:$AZ$2305,BE15) -> 100.2460018 | BE15: 0 | BF15: =(BE16+BE15)/2 -> 0.05
A16: 2013 | B16: C7754 | C16: =Table2[[#This Row],[Year]]&Table2[[#This Row],[SNL Statutory Entity Key ]] -> 2013C7754 | D16: Aetna Health Holdings, LLC | E16: IL | F16: Aetna Better Hlth Premier Plan | G16: 219295 | H16: 308198.783 | I16: 9859.968 | J16: 20329.364 | K16: 0 | L16: 9327.24 | M16: 268682.211 | N16: 35471.044 | O16: 10852.547 | P16: 3.268453387 | Q16: 3 | R16: 0.8717821932 | S16: 0.03026371457 | T16: 0.09795409218 | U16: 1 | V16: 3.268453387 | W16: 1405.407251 | X16: 137.6653914 | Y16: 42.53284389 | Z16: 1225.209015 | AA16: -2.131628207e-14 | AB16: =_xlfn.IFNA(INDEX('SOA dataset'!$A$4:$BE$674,MATCH('Pivot Data'!F2032,'SOA dataset'!$E$4:$E$674,0),52),"Missing Info") -> Missing Info | AC16: =_xlfn.IFNA(INDEX('NAIC Ownership'!$A$5:$E$212,MATCH('Pivot Data'!B2032,'NAIC Ownership'!$B$5:$B$212,0),5),"Missing Info") -> Missing Info | AD16: =_xlfn.IFNA(INDEX('S&P Export2'!$A$3:$E$290,MATCH('Pivot Data'!B2032,'S&P Export2'!$B$3:$B$290,0),3),"Missing Info") -> 14043 | AE16: 9 | AF16: 9 | AG16: 9 | AH16: =IF(AG16=9,INDEX('Cleanup profit status 9'!$F$5:$I$58,MATCH('Pivot Data'!B2032,'Cleanup profit status 9'!$G$5:$G$58,0),4),AG16) -> 1 | AI16: =_xlfn.IFNA(INDEX('Expansion Adoption'!$A$5:$H$56,MATCH('Pivot Data'!E2032,'Expansion Adoption'!$B$5:$B$56,0),6),"ERROR") -> 1 | AJ16: =_xlfn.IFNA(INDEX('Expansion Adoption'!$A$5:$H$56,MATCH('Pivot Data'!E2032,'Expansion Adoption'!$B$5:$B$56,0),7),"ERROR") -> 0 | AK16: =_xlfn.IFNA(INDEX('Expansion Adoption'!$A$5:$H$56,MATCH('Pivot Data'!E2032,'Expansion Adoption'!$B$5:$B$56,0),8),"ERROR") -> 1 | AL16: 1 | AM16: 1 | AN16: 1 | AO16: 1 | AP16: 1 | AQ16: 1 | AR16: 1 | AS16: 0 | AT16: 1 | AU16: 1 | AV16: 2 | AW16: 1 | AX16: 219295 | AY16: 0 | AZ16: 1405.407251 | BA16: 0.95 | BC16: =PERCENTILE($AX$2:$AX$2305,BE16) -> 234104 | BD16: =PERCENTILE($AZ$2:$AZ$2305,BE16) -> 193.309699 | BE16: =BE15+0.1 -> 0.1 | BF16: =(BE17+BE16)/2 -> 0.15
A17: 2013 | B17: C3173 | C17: =Table2[[#This Row],[Year]]&Table2[[#This Row],[SNL Statutory Entity Key ]] -> 2013C3173 | D17: Aetna Health Holdings, LLC | E17: PA | F17: Aetna Health Inc. (a PA corp.) | G17: 0 | H17: 0 | I17: 0 | J17: 0 | K17: 0 | L17: 0 | M17: 0 | N17: 329348.905 | O17: 81490.074 | P17: 4.041583089 | Q17: 4 | R17: - | S17: - | T17: - | U17: 0 | V17: 4.041583089 | W17: - | X17: - | Y17: - | Z17: - | AA17: - | AB17: =_xlfn.IFNA(INDEX('SOA dataset'!$A$4:$BE$674,MATCH('Pivot Data'!F2033,'SOA dataset'!$E$4:$E$674,0),52),"Missing Info") -> Missing Info | AC17: =_xlfn.IFNA(INDEX('NAIC Ownership'!$A$5:$E$212,MATCH('Pivot Data'!B2033,'NAIC Ownership'!$B$5:$B$212,0),5),"Missing Info") -> Stock Company | AD17: =_xlfn.IFNA(INDEX('S&P Export2'!$A$3:$E$290,MATCH('Pivot Data'!B2033,'S&P Export2'!$B$3:$B$290,0),3),"Missing Info") -> 95109 | AE17: 9 | AF17: 1 | AG17: 1 | AH17: =IF(AG17=9,INDEX('Cleanup profit status 9'!$F$5:$I$58,MATCH('Pivot Data'!B2033,'Cleanup profit status 9'!$G$5:$G$58,0),4),AG17) -> 1 | AI17: =_xlfn.IFNA(INDEX('Expansion Adoption'!$A$5:$H$56,MATCH('Pivot Data'!E2033,'Expansion Adoption'!$B$5:$B$56,0),6),"ERROR") -> 1 | AJ17: =_xlfn.IFNA(INDEX('Expansion Adoption'!$A$5:$H$56,MATCH('Pivot Data'!E2033,'Expansion Adoption'!$B$5:$B$56,0),7),"ERROR") -> 0 | AK17: =_xlfn.IFNA(INDEX('Expansion Adoption'!$A$5:$H$56,MATCH('Pivot Data'!E2033,'Expansion Adoption'!$B$5:$B$56,0),8),"ERROR") -> 1 | AL17: 0 | AM17: 0 | AN17: 0 | AO17: 0 | AP17: 0 | AQ17: 0 | AR17: 0 | AS17: 0 | AT17: 0 | AU17: 0 | AV17: 0 | AW17: 1 | BC17: 486676.8 | BD17: 249.9420592 | BE17: =BE16+0.1 -> 0.2 | BF17: 0.25
A18: 2013 | B18: C3166 | C18: =Table2[[#This Row],[Year]]&Table2[[#This Row],[SNL Statutory Entity Key ]] -> 2013C3166 | D18: Aetna Health Holdings, LLC | E18: TX | F18: Aetna Health Inc. (a TX corp.) | G18: 701832 | H18: 185422.909 | I18: 2840.869 | J18: 16142.327 | K18: 0 | L18: 11517.683 | M18: 154922.03 | N18: 89577.017 | O18: 24356.133 | P18: 3.677801275 | Q18: 4 | R18: 0.8355064152 | S18: 0.06211574968 | T18: 0.1023778351 | U18: 1 | V18: 3.677801275 | W18: 264.198425 | X18: 27.04806278 | Y18: 16.41088323 | Z18: 220.739479 | AA18: -3.552713679e-15 | AB18: =_xlfn.IFNA(INDEX('SOA dataset'!$A$4:$BE$674,MATCH('Pivot Data'!F2034,'SOA dataset'!$E$4:$E$674,0),52),"Missing Info") -> FP | AC18: =_xlfn.IFNA(INDEX('NAIC Ownership'!$A$5:$E$212,MATCH('Pivot Data'!B2034,'NAIC Ownership'!$B$5:$B$212,0),5),"Missing Info") -> Missing Info | AD18: =_xlfn.IFNA(INDEX('S&P Export2'!$A$3:$E$290,MATCH('Pivot Data'!B2034,'S&P Export2'!$B$3:$B$290,0),3),"Missing Info") -> 95490 | AE18: 1 | AF18: 9 | AG18: 1 | AH18: =IF(AG18=9,INDEX('Cleanup profit status 9'!$F$5:$I$58,MATCH('Pivot Data'!B2034,'Cleanup profit status 9'!$G$5:$G$58,0),4),AG18) -> 1 | AI18: =_xlfn.IFNA(INDEX('Expansion Adoption'!$A$5:$H$56,MATCH('Pivot Data'!E2034,'Expansion Adoption'!$B$5:$B$56,0),6),"ERROR") -> 0 | AJ18: =_xlfn.IFNA(INDEX('Expansion Adoption'!$A$5:$H$56,MATCH('Pivot Data'!E2034,'Expansion Adoption'!$B$5:$B$56,0),7),"ERROR") -> 0 | AK18: =_xlfn.IFNA(INDEX('Expansion Adoption'!$A$5:$H$56,MATCH('Pivot Data'!E2034,'Expansion Adoption'!$B$5:$B$56,0),8),"ERROR") -> 0 | AL18: 1 | AM18: 1 | AN18: 1 | AO18: 1 | AP18: 1 | AQ18: 1 | AR18: 1 | AS18: 0 | AT18: 1 | AU18: 1 | AV18: 7 | AW18: 0 | AX18: 701832 | AY18: 0.2 | AZ18: 264.198425 | BA18: 0.25 | BC18: 773815 | BD18: 285.3596624 | BE18: 0.3 | BF18: 0.35
A19: 2013 | B19: C6206 | C19: =Table2[[#This Row],[Year]]&Table2[[#This Row],[SNL Statutory Entity Key ]] -> 2013C6206 | D19: AIDS Healthcare Foundation | E19: FL | F19: Aids Hlthcr Fndtn MCO of FL | G19: 5274 | H19: 17475.595 | I19: 0 | J19: 1845.24 | K19: 0 | L19: 252.574 | M19: 15377.781 | N19: 0 | O19: 0 | P19: - | Q19: - | R19: 0.8799575065 | S19: 0.01445295568 | T19: 0.1055895379 | U19: 1 | V19: - | W19: 3313.537163 | X19: 349.8748578 | Y19: 47.89040576 | Z19: 2915.7719 | AA19: 2.700062396e-13 | AB19: =_xlfn.IFNA(INDEX('SOA dataset'!$A$4:$BE$674,MATCH('Pivot Data'!F2035,'SOA dataset'!$E$4:$E$674,0),52),"Missing Info") -> NFP | AC19: =_xlfn.IFNA(INDEX('NAIC Ownership'!$A$5:$E$212,MATCH('Pivot Data'!B2035,'NAIC Ownership'!$B$5:$B$212,0),5),"Missing Info") -> Other | AD19: =_xlfn.IFNA(INDEX('S&P Export2'!$A$3:$E$290,MATCH('Pivot Data'!B2035,'S&P Export2'!$B$3:$B$290,0),3),"Missing Info") -> 12973 | AE19: 0 | AF19: 0 | AG19: 0 | AH19: =IF(AG19=9,INDEX('Cleanup profit status 9'!$F$5:$I$58,MATCH('Pivot Data'!B2035,'Cleanup profit status 9'!$G$5:$G$58,0),4),AG19) -> 0 | AI19: =_xlfn.IFNA(INDEX('Expansion Adoption'!$A$5:$H$56,MATCH('Pivot Data'!E2035,'Expansion Adoption'!$B$5:$B$56,0),6),"ERROR") -> 0 | AJ19: =_xlfn.IFNA(INDEX('Expansion Adoption'!$A$5:$H$56,MATCH('Pivot Data'!E2035,'Expansion Adoption'!$B$5:$B$56,0),7),"ERROR") -> 0 | AK19: =_xlfn.IFNA(INDEX('Expansion Adoption'!$A$5:$H$56,MATCH('Pivot Data'!E2035,'Expansion Adoption'!$B$5:$B$56,0),8),"ERROR") -> 0 | AL19: 1 | AM19: 0 | AN19: 0 | AO19: 0 | AP19: 0 | AQ19: 0 | AR19: 0 | AS19: 0 | AT19: 0 | AU19: 0 | AV19: 0 | AW19: 1 | BC19: 1082253.6 | BD19: 327.6506549 | BE19: 0.4 | BF19: 0.45
A20: 2013 | B20: C9651 | C20: =Table2[[#This Row],[Year]]&Table2[[#This Row],[SNL Statutory Entity Key ]] -> 2013C9651 | D20: AllCare Health, Inc. | E20: OR | F20: AllCare CCO Inc. | G20: 0 | H20: 0 | I20: 0 | J20: 0 | K20: 0 | L20: 0 | M20: 0 | N20: 0 | O20: 0 | P20: - | Q20: - | R20: - | S20: - | T20: - | U20: 0 | V20: - | W20: - | X20: - | Y20: - | Z20: - | AA20: - | AB20: =_xlfn.IFNA(INDEX('SOA dataset'!$A$4:$BE$674,MATCH('Pivot Data'!F2036,'SOA dataset'!$E$4:$E$674,0),52),"Missing Info") -> Missing Info | AC20: =_xlfn.IFNA(INDEX('NAIC Ownership'!$A$5:$E$212,MATCH('Pivot Data'!B2036,'NAIC Ownership'!$B$5:$B$212,0),5),"Missing Info") -> Missing Info | AD20: =_xlfn.IFNA(INDEX('S&P Export2'!$A$3:$E$290,MATCH('Pivot Data'!B2036,'S&P Export2'!$B$3:$B$290,0),3),"Missing Info") -> 16676 | AE20: 9 | AF20: 9 | AG20: 9 | AH20: =IF(AG20=9,INDEX('Cleanup profit status 9'!$F$5:$I$58,MATCH('Pivot Data'!B2036,'Cleanup profit status 9'!$G$5:$G$58,0),4),AG20) -> 1 | AI20: =_xlfn.IFNA(INDEX('Expansion Adoption'!$A$5:$H$56,MATCH('Pivot Data'!E2036,'Expansion Adoption'!$B$5:$B$56,0),6),"ERROR") -> 1 | AJ20: =_xlfn.IFNA(INDEX('Expansion Adoption'!$A$5:$H$56,MATCH('Pivot Data'!E2036,'Expansion Adoption'!$B$5:$B$56,0),7),"ERROR") -> 0 | AK20: =_xlfn.IFNA(INDEX('Expansion Adoption'!$A$5:$H$56,MATCH('Pivot Data'!E2036,'Expansion Adoption'!$B$5:$B$56,0),8),"ERROR") -> 1 | AL20: 0 | AM20: 0 | AN20: 0 | AO20: 0 | AP20: 0 | AQ20: 0 | AR20: 0 | AS20: 0 | AT20: 0 | AU20: 0 | AV20: 0 | AW20: 1 | BC20: 1505254 | BD20: 364.7346957 | BE20: 0.5 | BF20: 0.55
A21: 2013 | B21: C3545 | C21: =Table2[[#This Row],[Year]]&Table2[[#This Row],[SNL Statutory Entity Key ]] -> 2013C3545 | D21: Allways Health Partners Holding Company, Inc. | E21: MA | F21: AllWays Health Partners Inc | G21: 1936381 | H21: 875691.54 | I21: 23631.525 | J21: 39059.149 | K21: 80746.095 | L21: -75929.06 | M21: 808183.831 | N21: 97162.479 | O21: 52701.755 | P21: 1.843628908 | Q21: 2 | R21: 1.015117636 | S21: -0.08670754088 | T21: 0.07158990482 | U21: 1 | V21: 1.843628908 | W21: 452.2310124 | X21: 32.37517513 | Y21: -39.21183899 | Z21: 459.0676762 | AA21: 4.263256415e-14 | AB21: =_xlfn.IFNA(INDEX('SOA dataset'!$A$4:$BE$674,MATCH('Pivot Data'!F2037,'SOA dataset'!$E$4:$E$674,0),52),"Missing Info") -> Missing Info | AC21: =_xlfn.IFNA(INDEX('NAIC Ownership'!$A$5:$E$212,MATCH('Pivot Data'!B2037,'NAIC Ownership'!$B$5:$B$212,0),5),"Missing Info") -> Other | AD21: =_xlfn.IFNA(INDEX('S&P Export2'!$A$3:$E$290,MATCH('Pivot Data'!B2037,'S&P Export2'!$B$3:$B$290,0),3),"Missing Info") -> 11109 | AE21: 9 | AF21: 0 | AG21: 0 | AH21: =IF(AG21=9,INDEX('Cleanup profit status 9'!$F$5:$I$58,MATCH('Pivot Data'!B2037,'Cleanup profit status 9'!$G$5:$G$58,0),4),AG21) -> 0 | AI21: =_xlfn.IFNA(INDEX('Expansion Adoption'!$A$5:$H$56,MATCH('Pivot Data'!E2037,'Expansion Adoption'!$B$5:$B$56,0),6),"ERROR") -> 1 | AJ21: =_xlfn.IFNA(INDEX('Expansion Adoption'!$A$5:$H$56,MATCH('Pivot Data'!E2037,'Expansion Adoption'!$B$5:$B$56,0),7),"ERROR") -> 0 | AK21: =_xlfn.IFNA(INDEX('Expansion Adoption'!$A$5:$H$56,MATCH('Pivot Data'!E2037,'Expansion Adoption'!$B$5:$B$56,0),8),"ERROR") -> 1 | AL21: 1 | AM21: 1 | AN21: 1 | AO21: 1 | AP21: 1 | AQ21: 1 | AR21: 1 | AS21: 0 | AT21: 1 | AU21: 0 | AV21: 19 | AW21: 0 | AX21: 1936381 | AY21: 0.5 | AZ21: 452.2310124 | BA21: 0.65 | BC21: 2144308.6 | BD21: 409.4303914 | BE21: 0.6 | BF21: 0.65
A22: 2013 | B22: C3527 | C22: =Table2[[#This Row],[Year]]&Table2[[#This Row],[SNL Statutory Entity Key ]] -> 2013C3527 | E22: HI | F22: AlohaCare | G22: 829592 | H22: 207071.195 | I22: 5621.137 | J22: 11380.702 | K22: 0 | L22: -6074.548 | M22: 196143.904 | N22: 76291.81135 | O22: 9274.61 | P22: 8.225878107 | Q22: 8 | R22: 0.9472293044 | S22: -0.02933555292 | T22: 0.08210624853 | U22: 1 | V22: 8.225878107 | W22: 249.6060654 | X22: 20.49421764 | Y22: -7.322331941 | Z22: 236.4341797 | AA22: -3.552713679e-15 | AB22: =_xlfn.IFNA(INDEX('SOA dataset'!$A$4:$BE$674,MATCH('Pivot Data'!F2038,'SOA dataset'!$E$4:$E$674,0),52),"Missing Info") -> NFP | AC22: =_xlfn.IFNA(INDEX('NAIC Ownership'!$A$5:$E$212,MATCH('Pivot Data'!B2038,'NAIC Ownership'!$B$5:$B$212,0),5),"Missing Info") -> Other | AD22: =_xlfn.IFNA(INDEX('S&P Export2'!$A$3:$E$290,MATCH('Pivot Data'!B2038,'S&P Export2'!$B$3:$B$290,0),3),"Missing Info") -> 95853 | AE22: 0 | AF22: 0 | AG22: 0 | AH22: =IF(AG22=9,INDEX('Cleanup profit status 9'!$F$5:$I$58,MATCH('Pivot Data'!B2038,'Cleanup profit status 9'!$G$5:$G$58,0),4),AG22) -> 0 | AI22: =_xlfn.IFNA(INDEX('Expansion Adoption'!$A$5:$H$56,MATCH('Pivot Data'!E2038,'Expansion Adoption'!$B$5:$B$56,0),6),"ERROR") -> 1 | AJ22: =_xlfn.IFNA(INDEX('Expansion Adoption'!$A$5:$H$56,MATCH('Pivot Data'!E2038,'Expansion Adoption'!$B$5:$B$56,0),7),"ERROR") -> 0 | AK22: =_xlfn.IFNA(INDEX('Expansion Adoption'!$A$5:$H$56,MATCH('Pivot Data'!E2038,'Expansion Adoption'!$B$5:$B$56,0),8),"ERROR") -> 1 | AL22: 1 | AM22: 1 | AN22: 1 | AO22: 1 | AP22: 1 | AQ22: 1 | AR22: 1 | AS22: 0 | AT22: 1 | AU22: 1 | AV22: 8 | AW22: 0 | AX22: 829592 | AY22: 0.3 | AZ22: 249.6060654 | BA22: 0.15 | BC22: 2702622.2 | BD22: 456.7092133 | BE22: 0.7 | BF22: 0.75
A23: 2013 | B23: C8552 | C23: =Table2[[#This Row],[Year]]&Table2[[#This Row],[SNL Statutory Entity Key ]] -> 2013C8552 | D23: Senior Whole Health of New York, Inc. | E23: NY | F23: AlphaCare of New York Inc. | G23: 885 | H23: 3295.335 | I23: 0 | J23: 9905.336 | K23: 0 | L23: -9498.755 | M23: 2888.754 | N23: 10027.871 | O23: 1041.05 | P23: 9.632458575 | Q23: 10 | R23: 0.8766192208 | S23: -2.882485392 | T23: 3.005866171 | U23: 1 | V23: 9.632458575 | W23: 3723.542373 | X23: 11192.47006 | Y23: -10733.0565 | Z23: 3264.128814 | AA23: 1.818989404e-12 | AB23: =_xlfn.IFNA(INDEX('SOA dataset'!$A$4:$BE$674,MATCH('Pivot Data'!F2039,'SOA dataset'!$E$4:$E$674,0),52),"Missing Info") -> FP | AC23: =_xlfn.IFNA(INDEX('NAIC Ownership'!$A$5:$E$212,MATCH('Pivot Data'!B2039,'NAIC Ownership'!$B$5:$B$212,0),5),"Missing Info") -> Missing Info | AD23: =_xlfn.IFNA(INDEX('S&P Export2'!$A$3:$E$290,MATCH('Pivot Data'!B2039,'S&P Export2'!$B$3:$B$290,0),3),"Missing Info") -> 15280 | AE23: 1 | AF23: 9 | AG23: 1 | AH23: =IF(AG23=9,INDEX('Cleanup profit status 9'!$F$5:$I$58,MATCH('Pivot Data'!B2039,'Cleanup profit status 9'!$G$5:$G$58,0),4),AG23) -> 1 | AI23: =_xlfn.IFNA(INDEX('Expansion Adoption'!$A$5:$H$56,MATCH('Pivot Data'!E2039,'Expansion Adoption'!$B$5:$B$56,0),6),"ERROR") -> 1 | AJ23: =_xlfn.IFNA(INDEX('Expansion Adoption'!$A$5:$H$56,MATCH('Pivot Data'!E2039,'Expansion Adoption'!$B$5:$B$56,0),7),"ERROR") -> 0 | AK23: =_xlfn.IFNA(INDEX('Expansion Adoption'!$A$5:$H$56,MATCH('Pivot Data'!E2039,'Expansion Adoption'!$B$5:$B$56,0),8),"ERROR") -> 1 | AL23: 1 | AM23: 0 | AN23: 0 | AO23: 0 | AP23: 0 | AQ23: 0 | AR23: 0 | AS23: 0 | AT23: 0 | AU23: 0 | AV23: 0 | AW23: 1 | BC23: 3518163.6 | BD23: 515.928935 | BE23: 0.8 | BF23: 0.85
A24: 2013 | B24: C3149 | C24: =Table2[[#This Row],[Year]]&Table2[[#This Row],[SNL Statutory Entity Key ]] -> 2013C3149 | D24: AmeriChoice Corp. | E24: NJ | F24: AmeriChoice of New Jersey Inc. | G24: 4416450 | H24: 1528625.309 | I24: 79364.863 | J24: 94708.52 | K24: -10784.199 | L24: 38342.691 | M24: 1326993.434 | N24: 204080.389 | O24: 56493.51 | P24: 3.612457236 | Q24: 4 | R24: 0.8610411114 | S24: 0.02508311931 | T24: 0.1138757693 | U24: 1 | V24: 3.612457236 | W24: 346.1208231 | X24: 39.41477499 | Y24: 8.681789899 | Z24: 298.0242582 | AA24: -1.776356839e-15 | AB24: =_xlfn.IFNA(INDEX('SOA dataset'!$A$4:$BE$674,MATCH('Pivot Data'!F2040,'SOA dataset'!$E$4:$E$674,0),52),"Missing Info") -> FP | AC24: =_xlfn.IFNA(INDEX('NAIC Ownership'!$A$5:$E$212,MATCH('Pivot Data'!B2040,'NAIC Ownership'!$B$5:$B$212,0),5),"Missing Info") -> Stock Company | AD24: =_xlfn.IFNA(INDEX('S&P Export2'!$A$3:$E$290,MATCH('Pivot Data'!B2040,'S&P Export2'!$B$3:$B$290,0),3),"Missing Info") -> 95497 | AE24: 1 | AF24: 1 | AG24: 1 | AH24: =IF(AG24=9,INDEX('Cleanup profit status 9'!$F$5:$I$58,MATCH('Pivot Data'!B2040,'Cleanup profit status 9'!$G$5:$G$58,0),4),AG24) -> 1 | AI24: =_xlfn.IFNA(INDEX('Expansion Adoption'!$A$5:$H$56,MATCH('Pivot Data'!E2040,'Expansion Adoption'!$B$5:$B$56,0),6),"ERROR") -> 1 | AJ24: =_xlfn.IFNA(INDEX('Expansion Adoption'!$A$5:$H$56,MATCH('Pivot Data'!E2040,'Expansion Adoption'!$B$5:$B$56,0),7),"ERROR") -> 0 | AK24: =_xlfn.IFNA(INDEX('Expansion Adoption'!$A$5:$H$56,MATCH('Pivot Data'!E2040,'Expansion Adoption'!$B$5:$B$56,0),8),"ERROR") -> 1 | AL24: 1 | AM24: 1 | AN24: 1 | AO24: 1 | AP24: 1 | AQ24: 1 | AR24: 1 | AS24: 0 | AT24: 1 | AU24: 0 | AV24: 44 | AW24: 0 | AX24: 4416450 | AY24: 0.8 | AZ24: 346.1208231 | BA24: 0.45 | BC24: 4982192.2 | BD24: 676.932127 | BE24: 0.9 | BF24: =(1+BE24)/2 -> 0.95
A25: 2013 | B25: C3995 | C25: =Table2[[#This Row],[Year]]&Table2[[#This Row],[SNL Statutory Entity Key ]] -> 2013C3995 | D25: AMERIGROUP Corporation | E25: NM | F25: AMERIGROUP Cmnty Care of NM | G25: 244914 | H25: 449382.75 | I25: 23227.548 | J25: 45796.023 | K25: 0 | L25: 9093.11 | M25: 371266.069 | N25: 69322.27 | O25: 16330.106 | P25: 4.245059401 | Q25: 4 | R25: 0.8261689373 | S25: 0.02023466633 | T25: 0.1535963964 | U25: 1 | V25: 4.245059401 | W25: 1834.859379 | X25: 281.8277885 | Y25: 37.1277673 | Z25: 1515.903823 | AA25: 1.492139745e-13 | AB25: =_xlfn.IFNA(INDEX('SOA dataset'!$A$4:$BE$674,MATCH('Pivot Data'!F2041,'SOA dataset'!$E$4:$E$674,0),52),"Missing Info") -> 0 | AC25: =_xlfn.IFNA(INDEX('NAIC Ownership'!$A$5:$E$212,MATCH('Pivot Data'!B2041,'NAIC Ownership'!$B$5:$B$212,0),5),"Missing Info") -> Missing Info | AD25: =_xlfn.IFNA(INDEX('S&P Export2'!$A$3:$E$290,MATCH('Pivot Data'!B2041,'S&P Export2'!$B$3:$B$290,0),3),"Missing Info") -> 12354 | AE25: 9 | AF25: 9 | AG25: 9 | AH25: =IF(AG25=9,INDEX('Cleanup profit status 9'!$F$5:$I$58,MATCH('Pivot Data'!B2041,'Cleanup profit status 9'!$G$5:$G$58,0),4),AG25) -> 1 | AI25: =_xlfn.IFNA(INDEX('Expansion Adoption'!$A$5:$H$56,MATCH('Pivot Data'!E2041,'Expansion Adoption'!$B$5:$B$56,0),6),"ERROR") -> 1 | AJ25: =_xlfn.IFNA(INDEX('Expansion Adoption'!$A$5:$H$56,MATCH('Pivot Data'!E2041,'Expansion Adoption'!$B$5:$B$56,0),7),"ERROR") -> 0 | AK25: =_xlfn.IFNA(INDEX('Expansion Adoption'!$A$5:$H$56,MATCH('Pivot Data'!E2041,'Expansion Adoption'!$B$5:$B$56,0),8),"ERROR") -> 1 | AL25: 1 | AM25: 1 | AN25: 1 | AO25: 1 | AP25: 1 | AQ25: 1 | AR25: 1 | AS25: 0 | AT25: 1 | AU25: 1 | AV25: 2 | AW25: 1 | AX25: 244914 | AY25: 0.1 | AZ25: 1834.859379 | BA25: 0.95
A26: 2013 | B26: C9081 | C26: =Table2[[#This Row],[Year]]&Table2[[#This Row],[SNL Statutory Entity Key ]] -> 2013C9081 | D26: Anthem Partnership Holding Company, LLC | E26: DC | F26: Amerigroup District | G26: 0 | H26: 0 | I26: 0 | J26: 0 | K26: 0 | L26: 0 | M26: 0 | N26: 0 | O26: 0 | P26: - | Q26: - | R26: - | S26: - | T26: - | U26: 0 | V26: - | W26: - | X26: - | Y26: - | Z26: - | AA26: - | AB26: =_xlfn.IFNA(INDEX('SOA dataset'!$A$4:$BE$674,MATCH('Pivot Data'!F2042,'SOA dataset'!$E$4:$E$674,0),52),"Missing Info") -> Missing Info | AC26: =_xlfn.IFNA(INDEX('NAIC Ownership'!$A$5:$E$212,MATCH('Pivot Data'!B2042,'NAIC Ownership'!$B$5:$B$212,0),5),"Missing Info") -> Stock Company | AD26: =_xlfn.IFNA(INDEX('S&P Export2'!$A$3:$E$290,MATCH('Pivot Data'!B2042,'S&P Export2'!$B$3:$B$290,0),3),"Missing Info") -> 16168 | AE26: 9 | AF26: 1 | AG26: 1 | AH26: =IF(AG26=9,INDEX('Cleanup profit status 9'!$F$5:$I$58,MATCH('Pivot Data'!B2042,'Cleanup profit status 9'!$G$5:$G$58,0),4),AG26) -> 1 | AI26: =_xlfn.IFNA(INDEX('Expansion Adoption'!$A$5:$H$56,MATCH('Pivot Data'!E2042,'Expansion Adoption'!$B$5:$B$56,0),6),"ERROR") -> 1 | AJ26: =_xlfn.IFNA(INDEX('Expansion Adoption'!$A$5:$H$56,MATCH('Pivot Data'!E2042,'Expansion Adoption'!$B$5:$B$56,0),7),"ERROR") -> 0 | AK26: =_xlfn.IFNA(INDEX('Expansion Adoption'!$A$5:$H$56,MATCH('Pivot Data'!E2042,'Expansion Adoption'!$B$5:$B$56,0),8),"ERROR") -> 1 | AL26: 0 | AM26: 0 | AN26: 0 | AO26: 0 | AP26: 0 | AQ26: 0 | AR26: 0 | AS26: 0 | AT26: 0 | AU26: 0 | AV26: 0 | AW26: 1 | BE26: =IF(AT36=0,"",S36) -> 0.05036272888
A27: 2013 | B27: C3398 | C27: =Table2[[#This Row],[Year]]&Table2[[#This Row],[SNL Statutory Entity Key ]] -> 2013C3398 | D27: Simply Healthcare Plans, Inc. | E27: FL | F27: AMERIGROUP Florida Inc. | G27: 2182834 | H27: 436264.8 | I27: 28880.446 | J27: 17951.237 | K27: 0 | L27: 9123.182 | M27: 380309.935 | N27: 73421.154 | O27: 18641.375 | P27: 3.938612576 | Q27: 4 | R27: 0.8717410504 | S27: 0.02091202866 | T27: 0.107346921 | U27: 1 | V27: 3.938612576 | W27: 199.8616477 | X27: 21.4545325 | Y27: 4.179512505 | Z27: 174.2276027 | AA27: 0 | AB27: =_xlfn.IFNA(INDEX('SOA dataset'!$A$4:$BE$674,MATCH('Pivot Data'!F2043,'SOA dataset'!$E$4:$E$674,0),52),"Missing Info") -> FP | AC27: =_xlfn.IFNA(INDEX('NAIC Ownership'!$A$5:$E$212,MATCH('Pivot Data'!B2043,'NAIC Ownership'!$B$5:$B$212,0),5),"Missing Info") -> Missing Info | AD27: =_xlfn.IFNA(INDEX('S&P Export2'!$A$3:$E$290,MATCH('Pivot Data'!B2043,'S&P Export2'!$B$3:$B$290,0),3),"Missing Info") -> 95093 | AE27: 1 | AF27: 9 | AG27: 1 | AH27: =IF(AG27=9,INDEX('Cleanup profit status 9'!$F$5:$I$58,MATCH('Pivot Data'!B2043,'Cleanup profit status 9'!$G$5:$G$58,0),4),AG27) -> 1 | AI27: =_xlfn.IFNA(INDEX('Expansion Adoption'!$A$5:$H$56,MATCH('Pivot Data'!E2043,'Expansion Adoption'!$B$5:$B$56,0),6),"ERROR") -> 0 | AJ27: =_xlfn.IFNA(INDEX('Expansion Adoption'!$A$5:$H$56,MATCH('Pivot Data'!E2043,'Expansion Adoption'!$B$5:$B$56,0),7),"ERROR") -> 0 | AK27: =_xlfn.IFNA(INDEX('Expansion Adoption'!$A$5:$H$56,MATCH('Pivot Data'!E2043,'Expansion Adoption'!$B$5:$B$56,0),8),"ERROR") -> 0 | AL27: 1 | AM27: 1 | AN27: 1 | AO27: 1 | AP27: 1 | AQ27: 1 | AR27: 1 | AS27: 0 | AT27: 1 | AU27: 0 | AV27: 22 | AW27: 0 | AX27: 2182834 | AY27: 0.6 | AZ27: 199.8616477 | BA27: 0.15 | BE27: -0.005958356927
A28: 2013 | B28: C7765 | C28: =Table2[[#This Row],[Year]]&Table2[[#This Row],[SNL Statutory Entity Key ]] -> 2013C7765 | D28: AMERIGROUP Corporation | E28: TX | F28: AMERIGROUP Insurance Co. | G28: 1349705 | H28: 394055.806 | I28: 24869.622 | J28: 16069.416 | K28: 0 | L28: 13684.863 | M28: 339431.905 | N28: 96269.341 | O28: 13989.029 | P28: 6.881774353 | Q28: 7 | R28: 0.8613802914 | S28: 0.03472823593 | T28: 0.1038914727 | U28: 1 | V28: 6.881774353 | W28: 291.9569876 | X28: 30.3318414 | Y28: 10.13915115 | Z28: 251.4859951 | AA28: 1.776356839e-15 | AB28: =_xlfn.IFNA(INDEX('SOA dataset'!$A$4:$BE$674,MATCH('Pivot Data'!F2044,'SOA dataset'!$E$4:$E$674,0),52),"Missing Info") -> FP | AC28: =_xlfn.IFNA(INDEX('NAIC Ownership'!$A$5:$E$212,MATCH('Pivot Data'!B2044,'NAIC Ownership'!$B$5:$B$212,0),5),"Missing Info") -> Stock Company | AD28: =_xlfn.IFNA(INDEX('S&P Export2'!$A$3:$E$290,MATCH('Pivot Data'!B2044,'S&P Export2'!$B$3:$B$290,0),3),"Missing Info") -> 14078 | AE28: 1 | AF28: 1 | AG28: 1 | AH28: =IF(AG28=9,INDEX('Cleanup profit status 9'!$F$5:$I$58,MATCH('Pivot Data'!B2044,'Cleanup profit status 9'!$G$5:$G$58,0),4),AG28) -> 1 | AI28: =_xlfn.IFNA(INDEX('Expansion Adoption'!$A$5:$H$56,MATCH('Pivot Data'!E2044,'Expansion Adoption'!$B$5:$B$56,0),6),"ERROR") -> 0 | AJ28: =_xlfn.IFNA(INDEX('Expansion Adoption'!$A$5:$H$56,MATCH('Pivot Data'!E2044,'Expansion Adoption'!$B$5:$B$56,0),7),"ERROR") -> 0 | AK28: =_xlfn.IFNA(INDEX('Expansion Adoption'!$A$5:$H$56,MATCH('Pivot Data'!E2044,'Expansion Adoption'!$B$5:$B$56,0),8),"ERROR") -> 0 | AL28: 1 | AM28: 1 | AN28: 1 | AO28: 1 | AP28: 1 | AQ28: 1 | AR28: 1 | AS28: 0 | AT28: 1 | AU28: 1 | AV28: 13 | AW28: 0 | AX28: 1349705 | AY28: 0.4 | AZ28: 291.9569876 | BA28: 0.35
A29: 2013 | B29: C8842 | C29: =Table2[[#This Row],[Year]]&Table2[[#This Row],[SNL Statutory Entity Key ]] -> 2013C8842 | D29: AMERIGROUP Corporation | E29: IA | F29: AMERIGROUP Iowa Inc. | G29: 0 | H29: 0 | I29: 0 | J29: 0 | K29: 0 | L29: 0 | M29: 0 | N29: 0 | O29: 0 | P29: - | Q29: - | R29: - | S29: - | T29: - | U29: 0 | V29: - | W29: - | X29: - | Y29: - | Z29: - | AA29: - | AB29: =_xlfn.IFNA(INDEX('SOA dataset'!$A$4:$BE$674,MATCH('Pivot Data'!F2045,'SOA dataset'!$E$4:$E$674,0),52),"Missing Info") -> Missing Info | AC29: =_xlfn.IFNA(INDEX('NAIC Ownership'!$A$5:$E$212,MATCH('Pivot Data'!B2045,'NAIC Ownership'!$B$5:$B$212,0),5),"Missing Info") -> Stock Company | AD29: =_xlfn.IFNA(INDEX('S&P Export2'!$A$3:$E$290,MATCH('Pivot Data'!B2045,'S&P Export2'!$B$3:$B$290,0),3),"Missing Info") -> 15807 | AE29: 9 | AF29: 1 | AG29: 1 | AH29: =IF(AG29=9,INDEX('Cleanup profit status 9'!$F$5:$I$58,MATCH('Pivot Data'!B2045,'Cleanup profit status 9'!$G$5:$G$58,0),4),AG29) -> 1 | AI29: =_xlfn.IFNA(INDEX('Expansion Adoption'!$A$5:$H$56,MATCH('Pivot Data'!E2045,'Expansion Adoption'!$B$5:$B$56,0),6),"ERROR") -> 1 | AJ29: =_xlfn.IFNA(INDEX('Expansion Adoption'!$A$5:$H$56,MATCH('Pivot Data'!E2045,'Expansion Adoption'!$B$5:$B$56,0),7),"ERROR") -> 0 | AK29: =_xlfn.IFNA(INDEX('Expansion Adoption'!$A$5:$H$56,MATCH('Pivot Data'!E2045,'Expansion Adoption'!$B$5:$B$56,0),8),"ERROR") -> 1 | AL29: 0 | AM29: 0 | AN29: 0 | AO29: 0 | AP29: 0 | AQ29: 0 | AR29: 0 | AS29: 0 | AT29: 0 | AU29: 0 | AV29: 0 | AW29: 1 | BE29: 0.0301822575
A30: 2013 | B30: C7960 | C30: =Table2[[#This Row],[Year]]&Table2[[#This Row],[SNL Statutory Entity Key ]] -> 2013C7960 | D30: Anthem Partnership Holding Company, LLC | E30: KS | F30: AMERIGROUP Kansas Inc. | G30: 1259629 | H30: 694805.986 | I30: 40786.839 | J30: 25682.47 | K30: 2973.993 | L30: -45460.52 | M30: 670823.204 | N30: 83708.87 | O30: 31178.706 | P30: 2.684808985 | Q30: 3 | R30: 0.9697630858 | S30: -0.06542908512 | T30: 0.09566599934 | U30: 1 | V30: 2.684808985 | W30: 551.5957365 | X30: 52.76895737 | Y30: -36.0904044 | Z30: 534.9171836 | AA30: -7.105427358e-14 | AB30: =_xlfn.IFNA(INDEX('SOA dataset'!$A$4:$BE$674,MATCH('Pivot Data'!F2046,'SOA dataset'!$E$4:$E$674,0),52),"Missing Info") -> FP | AC30: =_xlfn.IFNA(INDEX('NAIC Ownership'!$A$5:$E$212,MATCH('Pivot Data'!B2046,'NAIC Ownership'!$B$5:$B$212,0),5),"Missing Info") -> Missing Info | AD30: =_xlfn.IFNA(INDEX('S&P Export2'!$A$3:$E$290,MATCH('Pivot Data'!B2046,'S&P Export2'!$B$3:$B$290,0),3),"Missing Info") -> 14276 | AE30: 1 | AF30: 9 | AG30: 1 | AH30: =IF(AG30=9,INDEX('Cleanup profit status 9'!$F$5:$I$58,MATCH('Pivot Data'!B2046,'Cleanup profit status 9'!$G$5:$G$58,0),4),AG30) -> 1 | AI30: =_xlfn.IFNA(INDEX('Expansion Adoption'!$A$5:$H$56,MATCH('Pivot Data'!E2046,'Expansion Adoption'!$B$5:$B$56,0),6),"ERROR") -> 0 | AJ30: =_xlfn.IFNA(INDEX('Expansion Adoption'!$A$5:$H$56,MATCH('Pivot Data'!E2046,'Expansion Adoption'!$B$5:$B$56,0),7),"ERROR") -> 0 | AK30: =_xlfn.IFNA(INDEX('Expansion Adoption'!$A$5:$H$56,MATCH('Pivot Data'!E2046,'Expansion Adoption'!$B$5:$B$56,0),8),"ERROR") -> 0 | AL30: 1 | AM30: 1 | AN30: 1 | AO30: 1 | AP30: 1 | AQ30: 1 | AR30: 1 | AS30: 0 | AT30: 1 | AU30: 1 | AV30: 13 | AW30: 0 | AX30: 1259629 | AY30: 0.4 | AZ30: 551.5957365 | BA30: 0.85
A31: 2013 | B31: C3588 | C31: =Table2[[#This Row],[Year]]&Table2[[#This Row],[SNL Statutory Entity Key ]] -> 2013C3588 | D31: AMERIGROUP Corporation | E31: MD | F31: AMERIGROUP Maryland Inc. | G31: 2440859 | H31: 705710.227 | I31: 39691.332 | J31: 38993.438 | K31: 0 | L31: 40153.572 | M31: 586871.885 | N31: 88775.628 | O31: 25296.36 | P31: 3.509423016 | Q31: 4 | R31: 0.8316046198 | S31: 0.05689810132 | T31: 0.1114972789 | U31: 1 | V31: 3.509423016 | W31: 289.1237171 | X31: 32.23650772 | Y31: 16.45059055 | Z31: 240.4366188 | AA31: 6.394884622e-14 | AB31: =_xlfn.IFNA(INDEX('SOA dataset'!$A$4:$BE$674,MATCH('Pivot Data'!F2047,'SOA dataset'!$E$4:$E$674,0),52),"Missing Info") -> FP | AC31: =_xlfn.IFNA(INDEX('NAIC Ownership'!$A$5:$E$212,MATCH('Pivot Data'!B2047,'NAIC Ownership'!$B$5:$B$212,0),5),"Missing Info") -> Stock Company | AD31: =_xlfn.IFNA(INDEX('S&P Export2'!$A$3:$E$290,MATCH('Pivot Data'!B2047,'S&P Export2'!$B$3:$B$290,0),3),"Missing Info") -> 95832 | AE31: 1 | AF31: 1 | AG31: 1 | AH31: =IF(AG31=9,INDEX('Cleanup profit status 9'!$F$5:$I$58,MATCH('Pivot Data'!B2047,'Cleanup profit status 9'!$G$5:$G$58,0),4),AG31) -> 1 | AI31: =_xlfn.IFNA(INDEX('Expansion Adoption'!$A$5:$H$56,MATCH('Pivot Data'!E2047,'Expansion Adoption'!$B$5:$B$56,0),6),"ERROR") -> 1 | AJ31: =_xlfn.IFNA(INDEX('Expansion Adoption'!$A$5:$H$56,MATCH('Pivot Data'!E2047,'Expansion Adoption'!$B$5:$B$56,0),7),"ERROR") -> 0 | AK31: =_xlfn.IFNA(INDEX('Expansion Adoption'!$A$5:$H$56,MATCH('Pivot Data'!E2047,'Expansion Adoption'!$B$5:$B$56,0),8),"ERROR") -> 1 | AL31: 1 | AM31: 1 | AN31: 1 | AO31: 1 | AP31: 1 | AQ31: 1 | AR31: 1 | AS31: 0 | AT31: 1 | AU31: 0 | AV31: 24 | AW31: 0 | AX31: 2440859 | AY31: 0.6 | AZ31: 289.1237171 | BA31: 0.35 | BE31: 0.01133313361
A32: 2013 | B32: C3208 | C32: =Table2[[#This Row],[Year]]&Table2[[#This Row],[SNL Statutory Entity Key ]] -> 2013C3208 | D32: AMERIGROUP Corporation | E32: NJ | F32: AMERIGROUP New Jersey Inc. | G32: 1646334 | H32: 557293.907 | I32: 30975.151 | J32: 43189.173 | K32: 0 | L32: 26857.374 | M32: 456272.209 | N32: 110263.702 | O32: 20848.366 | P32: 5.288841437 | Q32: 5 | R32: 0.8187281491 | S32: 0.04819247737 | T32: 0.1330793735 | U32: 1 | V32: 5.288841437 | W32: 338.5059818 | X32: 45.04816398 | Y32: 16.31344187 | Z32: 277.1443759 | AA32: -3.552713679e-14 | AB32: =_xlfn.IFNA(INDEX('SOA dataset'!$A$4:$BE$674,MATCH('Pivot Data'!F2048,'SOA dataset'!$E$4:$E$674,0),52),"Missing Info") -> FP | AC32: =_xlfn.IFNA(INDEX('NAIC Ownership'!$A$5:$E$212,MATCH('Pivot Data'!B2048,'NAIC Ownership'!$B$5:$B$212,0),5),"Missing Info") -> Stock Company | AD32: =_xlfn.IFNA(INDEX('S&P Export2'!$A$3:$E$290,MATCH('Pivot Data'!B2048,'S&P Export2'!$B$3:$B$290,0),3),"Missing Info") -> 95373 | AE32: 1 | AF32: 1 | AG32: 1 | AH32: =IF(AG32=9,INDEX('Cleanup profit status 9'!$F$5:$I$58,MATCH('Pivot Data'!B2048,'Cleanup profit status 9'!$G$5:$G$58,0),4),AG32) -> 1 | AI32: =_xlfn.IFNA(INDEX('Expansion Adoption'!$A$5:$H$56,MATCH('Pivot Data'!E2048,'Expansion Adoption'!$B$5:$B$56,0),6),"ERROR") -> 1 | AJ32: =_xlfn.IFNA(INDEX('Expansion Adoption'!$A$5:$H$56,MATCH('Pivot Data'!E2048,'Expansion Adoption'!$B$5:$B$56,0),7),"ERROR") -> 0 | AK32: =_xlfn.IFNA(INDEX('Expansion Adoption'!$A$5:$H$56,MATCH('Pivot Data'!E2048,'Expansion Adoption'!$B$5:$B$56,0),8),"ERROR") -> 1 | AL32: 1 | AM32: 1 | AN32: 1 | AO32: 1 | AP32: 1 | AQ32: 1 | AR32: 1 | AS32: 0 | AT32: 1 | AU32: 0 | AV32: 16 | AW32: 0 | AX32: 1646334 | AY32: 0.5 | AZ32: 338.5059818 | BA32: 0.45 | BE32: 0.03977863733
A33: 2013 | B33: C3997 | C33: =Table2[[#This Row],[Year]]&Table2[[#This Row],[SNL Statutory Entity Key ]] -> 2013C3997 | D33: AMERIGROUP Corporation | E33: OH | F33: AMERIGROUP Ohio Inc. | G33: 315416 | H33: 80042.339 | I33: 6432.405 | J33: 10043.75 | K33: 0 | L33: 11897.502 | M33: 51668.682 | N33: 33839.805 | O33: 2440.28 | P33: 13.86718123 | Q33: 14 | R33: 0.6455168933 | S33: 0.1486401091 | T33: 0.2058429977 | U33: 1 | V33: 13.86718123 | W33: 253.7675292 | X33: 52.23626893 | Y33: 37.72003323 | Z33: 163.8112271 | AA33: 3.552713679e-14 | AB33: =_xlfn.IFNA(INDEX('SOA dataset'!$A$4:$BE$674,MATCH('Pivot Data'!F2049,'SOA dataset'!$E$4:$E$674,0),52),"Missing Info") -> 0 | AC33: =_xlfn.IFNA(INDEX('NAIC Ownership'!$A$5:$E$212,MATCH('Pivot Data'!B2049,'NAIC Ownership'!$B$5:$B$212,0),5),"Missing Info") -> Missing Info | AD33: =_xlfn.IFNA(INDEX('S&P Export2'!$A$3:$E$290,MATCH('Pivot Data'!B2049,'S&P Export2'!$B$3:$B$290,0),3),"Missing Info") -> 10767 | AE33: 9 | AF33: 9 | AG33: 9 | AH33: =IF(AG33=9,INDEX('Cleanup profit status 9'!$F$5:$I$58,MATCH('Pivot Data'!B2049,'Cleanup profit status 9'!$G$5:$G$58,0),4),AG33) -> 1 | AI33: =_xlfn.IFNA(INDEX('Expansion Adoption'!$A$5:$H$56,MATCH('Pivot Data'!E2049,'Expansion Adoption'!$B$5:$B$56,0),6),"ERROR") -> 1 | AJ33: =_xlfn.IFNA(INDEX('Expansion Adoption'!$A$5:$H$56,MATCH('Pivot Data'!E2049,'Expansion Adoption'!$B$5:$B$56,0),7),"ERROR") -> 0 | AK33: =_xlfn.IFNA(INDEX('Expansion Adoption'!$A$5:$H$56,MATCH('Pivot Data'!E2049,'Expansion Adoption'!$B$5:$B$56,0),8),"ERROR") -> 1 | AL33: 1 | AM33: 1 | AN33: 1 | AO33: 1 | AP33: 1 | AQ33: 1 | AR33: 1 | AS33: 0 | AT33: 1 | AU33: 1 | AV33: 3 | AW33: 0 | AX33: 315416 | AY33: 0.1 | AZ33: 253.7675292 | BA33: 0.25
A34: 2013 | B34: C6417 | C34: =Table2[[#This Row],[Year]]&Table2[[#This Row],[SNL Statutory Entity Key ]] -> 2013C6417 | D34: AMERIGROUP Corporation | E34: TN | F34: AMERIGROUP Tennessee Inc. | G34: 2383779 | H34: 865968.872 | I34: 47053.697 | J34: 74028.093 | K34: 0 | L34: 33867.208 | M34: 711019.874 | N34: 108075.136 | O34: 29633.751 | P34: 3.647028552 | Q34: 4 | R34: 0.8210686284 | S34: 0.03910903624 | T34: 0.1398223353 | U34: 1 | V34: 3.647028552 | W34: 363.2756527 | X34: 50.79405012 | Y34: 14.20736067 | Z34: 298.2742419 | AA34: -7.815970093e-14 | AB34: =_xlfn.IFNA(INDEX('SOA dataset'!$A$4:$BE$674,MATCH('Pivot Data'!F2050,'SOA dataset'!$E$4:$E$674,0),52),"Missing Info") -> FP | AC34: =_xlfn.IFNA(INDEX('NAIC Ownership'!$A$5:$E$212,MATCH('Pivot Data'!B2050,'NAIC Ownership'!$B$5:$B$212,0),5),"Missing Info") -> Stock Company | AD34: =_xlfn.IFNA(INDEX('S&P Export2'!$A$3:$E$290,MATCH('Pivot Data'!B2050,'S&P Export2'!$B$3:$B$290,0),3),"Missing Info") -> 12941 | AE34: 1 | AF34: 1 | AG34: 1 | AH34: =IF(AG34=9,INDEX('Cleanup profit status 9'!$F$5:$I$58,MATCH('Pivot Data'!B2050,'Cleanup profit status 9'!$G$5:$G$58,0),4),AG34) -> 1 | AI34: =_xlfn.IFNA(INDEX('Expansion Adoption'!$A$5:$H$56,MATCH('Pivot Data'!E2050,'Expansion Adoption'!$B$5:$B$56,0),6),"ERROR") -> 0 | AJ34: =_xlfn.IFNA(INDEX('Expansion Adoption'!$A$5:$H$56,MATCH('Pivot Data'!E2050,'Expansion Adoption'!$B$5:$B$56,0),7),"ERROR") -> 0 | AK34: =_xlfn.IFNA(INDEX('Expansion Adoption'!$A$5:$H$56,MATCH('Pivot Data'!E2050,'Expansion Adoption'!$B$5:$B$56,0),8),"ERROR") -> 0 | AL34: 1 | AM34: 1 | AN34: 1 | AO34: 1 | AP34: 1 | AQ34: 1 | AR34: 1 | AS34: 0 | AT34: 1 | AU34: 0 | AV34: 24 | AW34: 0 | AX34: 2383779 | AY34: 0.6 | AZ34: 363.2756527 | BA34: 0.45 | BE34: 0.004492831304
A35: 2013 | B35: C3414 | C35: =Table2[[#This Row],[Year]]&Table2[[#This Row],[SNL Statutory Entity Key ]] -> 2013C3414 | D35: AMERIGROUP Corporation | E35: TX | F35: AMERIGROUP Texas Inc. | G35: 6429903 | H35: 2189562.526 | I35: 152545.016 | J35: 148210.01 | K35: 0 | L35: 82843.273 | M35: 1805964.227 | N35: 348260.028 | O35: 87169.869 | P35: 3.995188154 | Q35: 4 | R35: 0.8248059626 | S35: 0.03783553656 | T35: 0.1373585008 | U35: 1 | V35: 3.995188154 | W35: 340.5280804 | X35: 46.77442661 | Y35: 12.88406264 | Z35: 280.8695912 | AA35: 2.131628207e-14 | AB35: =_xlfn.IFNA(INDEX('SOA dataset'!$A$4:$BE$674,MATCH('Pivot Data'!F2051,'SOA dataset'!$E$4:$E$674,0),52),"Missing Info") -> FP | AC35: =_xlfn.IFNA(INDEX('NAIC Ownership'!$A$5:$E$212,MATCH('Pivot Data'!B2051,'NAIC Ownership'!$B$5:$B$212,0),5),"Missing Info") -> Stock Company | AD35: =_xlfn.IFNA(INDEX('S&P Export2'!$A$3:$E$290,MATCH('Pivot Data'!B2051,'S&P Export2'!$B$3:$B$290,0),3),"Missing Info") -> 95314 | AE35: 1 | AF35: 1 | AG35: 1 | AH35: =IF(AG35=9,INDEX('Cleanup profit status 9'!$F$5:$I$58,MATCH('Pivot Data'!B2051,'Cleanup profit status 9'!$G$5:$G$58,0),4),AG35) -> 1 | AI35: =_xlfn.IFNA(INDEX('Expansion Adoption'!$A$5:$H$56,MATCH('Pivot Data'!E2051,'Expansion Adoption'!$B$5:$B$56,0),6),"ERROR") -> 0 | AJ35: =_xlfn.IFNA(INDEX('Expansion Adoption'!$A$5:$H$56,MATCH('Pivot Data'!E2051,'Expansion Adoption'!$B$5:$B$56,0),7),"ERROR") -> 0 | AK35: =_xlfn.IFNA(INDEX('Expansion Adoption'!$A$5:$H$56,MATCH('Pivot Data'!E2051,'Expansion Adoption'!$B$5:$B$56,0),8),"ERROR") -> 0 | AL35: 1 | AM35: 1 | AN35: 1 | AO35: 1 | AP35: 1 | AQ35: 1 | AR35: 1 | AS35: 0 | AT35: 1 | AU35: 0 | AV35: 64 | AW35: 0 | AX35: 6429903 | AY35: 0.9 | AZ35: 340.5280804 | BA35: 0.45
A36: 2013 | B36: C7764 | C36: =Table2[[#This Row],[Year]]&Table2[[#This Row],[SNL Statutory Entity Key ]] -> 2013C7764 | D36: AMERIGROUP Corporation | E36: WA | F36: AMERIGROUP Washington Inc. | G36: 345240 | H36: 133148.484 | I36: 7783.607 | J36: 9298.345 | K36: 0 | L36: 6705.721 | M36: 109360.811 | N36: 35710.722 | O36: 5185.868 | P36: 6.886161005 | Q36: 7 | R36: 0.8213447702 | S36: 0.05036272888 | T36: 0.1282925009 | U36: 1 | V36: 6.886161005 | W36: 385.6693431 | X36: 49.47848453 | Y36: 19.42336056 | Z36: 316.767498 | AA36: 4.618527782e-14 | AB36: =_xlfn.IFNA(INDEX('SOA dataset'!$A$4:$BE$674,MATCH('Pivot Data'!F2052,'SOA dataset'!$E$4:$E$674,0),52),"Missing Info") -> FP | AC36: =_xlfn.IFNA(INDEX('NAIC Ownership'!$A$5:$E$212,MATCH('Pivot Data'!B2052,'NAIC Ownership'!$B$5:$B$212,0),5),"Missing Info") -> Stock Company | AD36: =_xlfn.IFNA(INDEX('S&P Export2'!$A$3:$E$290,MATCH('Pivot Data'!B2052,'S&P Export2'!$B$3:$B$290,0),3),"Missing Info") -> 14073 | AE36: 1 | AF36: 1 | AG36: 1 | AH36: =IF(AG36=9,INDEX('Cleanup profit status 9'!$F$5:$I$58,MATCH('Pivot Data'!B2052,'Cleanup profit status 9'!$G$5:$G$58,0),4),AG36) -> 1 | AI36: =_xlfn.IFNA(INDEX('Expansion Adoption'!$A$5:$H$56,MATCH('Pivot Data'!E2052,'Expansion Adoption'!$B$5:$B$56,0),6),"ERROR") -> 1 | AJ36: =_xlfn.IFNA(INDEX('Expansion Adoption'!$A$5:$H$56,MATCH('Pivot Data'!E2052,'Expansion Adoption'!$B$5:$B$56,0),7),"ERROR") -> 0 | AK36: =_xlfn.IFNA(INDEX('Expansion Adoption'!$A$5:$H$56,MATCH('Pivot Data'!E2052,'Expansion Adoption'!$B$5:$B$56,0),8),"ERROR") -> 1 | AL36: 1 | AM36: 1 | AN36: 1 | AO36: 1 | AP36: 1 | AQ36: 1 | AR36: 1 | AS36: 0 | AT36: 1 | AU36: 1 | AV36: 3 | AW36: 0 | AX36: 345240 | AY36: 0.1 | AZ36: 385.6693431 | BA36: 0.55
A37: 2013 | B37: C8098 | C37: =Table2[[#This Row],[Year]]&Table2[[#This Row],[SNL Statutory Entity Key ]] -> 2013C8098 | D37: AMHP Holdings Corp. | E37: DC | F37: AmeriHealth Caritas District | G37: 817684 | H37: 255497.282 | I37: 7285.125 | J37: 31432.366 | K37: 0 | L37: -1522.344 | M37: 218302.135 | N37: 24808.644 | O37: 9556.464 | P37: 2.59600664 | Q37: 3 | R37: 0.8544205766 | S37: -0.005958356927 | T37: 0.1515377804 | U37: 1 | V37: 2.59600664 | W37: 312.4645731 | X37: 47.35018785 | Y37: -1.861775454 | Z37: 266.9761607 | AA37: -1.554312234e-14 | AB37: =_xlfn.IFNA(INDEX('SOA dataset'!$A$4:$BE$674,MATCH('Pivot Data'!F2053,'SOA dataset'!$E$4:$E$674,0),52),"Missing Info") -> NFP | AC37: =_xlfn.IFNA(INDEX('NAIC Ownership'!$A$5:$E$212,MATCH('Pivot Data'!B2053,'NAIC Ownership'!$B$5:$B$212,0),5),"Missing Info") -> Stock Company | AD37: =_xlfn.IFNA(INDEX('S&P Export2'!$A$3:$E$290,MATCH('Pivot Data'!B2053,'S&P Export2'!$B$3:$B$290,0),3),"Missing Info") -> 15088 | AE37: 0 | AF37: 1 | AG37: 0 | AH37: =IF(AG37=9,INDEX('Cleanup profit status 9'!$F$5:$I$58,MATCH('Pivot Data'!B2053,'Cleanup profit status 9'!$G$5:$G$58,0),4),AG37) -> 0 | AI37: =_xlfn.IFNA(INDEX('Expansion Adoption'!$A$5:$H$56,MATCH('Pivot Data'!E2053,'Expansion Adoption'!$B$5:$B$56,0),6),"ERROR") -> 1 | AJ37: =_xlfn.IFNA(INDEX('Expansion Adoption'!$A$5:$H$56,MATCH('Pivot Data'!E2053,'Expansion Adoption'!$B$5:$B$56,0),7),"ERROR") -> 0 | AK37: =_xlfn.IFNA(INDEX('Expansion Adoption'!$A$5:$H$56,MATCH('Pivot Data'!E2053,'Expansion Adoption'!$B$5:$B$56,0),8),"ERROR") -> 1 | AL37: 1 | AM37: 1 | AN37: 1 | AO37: 1 | AP37: 1 | AQ37: 1 | AR37: 1 | AS37: 0 | AT37: 1 | AU37: 1 | AV37: 8 | AW37: 0 | AX37: 817684 | AY37: 0.3 | AZ37: 312.4645731 | BA37: 0.35
A38: 2013 | B38: C8838 | C38: =Table2[[#This Row],[Year]]&Table2[[#This Row],[SNL Statutory Entity Key ]] -> 2013C8838 | D38: AmeriHealth Caritas Health Plan | E38: IA | F38: AmeriHealth Caritas Iowa Inc. | G38: 0 | H38: 0 | I38: 0 | J38: 0 | K38: 0 | L38: 0 | M38: 0 | N38: 0 | O38: 0 | P38: - | Q38: - | R38: - | S38: - | T38: - | U38: 0 | V38: - | W38: - | X38: - | Y38: - | Z38: - | AA38: - | AB38: =_xlfn.IFNA(INDEX('SOA dataset'!$A$4:$BE$674,MATCH('Pivot Data'!F2054,'SOA dataset'!$E$4:$E$674,0),52),"Missing Info") -> Missing Info | AC38: =_xlfn.IFNA(INDEX('NAIC Ownership'!$A$5:$E$212,MATCH('Pivot Data'!B2054,'NAIC Ownership'!$B$5:$B$212,0),5),"Missing Info") -> Missing Info | AD38: =_xlfn.IFNA(INDEX('S&P Export2'!$A$3:$E$290,MATCH('Pivot Data'!B2054,'S&P Export2'!$B$3:$B$290,0),3),"Missing Info") -> 15800 | AE38: 9 | AF38: 9 | AG38: 9 | AH38: =IF(AG38=9,INDEX('Cleanup profit status 9'!$F$5:$I$58,MATCH('Pivot Data'!B2054,'Cleanup profit status 9'!$G$5:$G$58,0),4),AG38) -> 1 | AI38: =_xlfn.IFNA(INDEX('Expansion Adoption'!$A$5:$H$56,MATCH('Pivot Data'!E2054,'Expansion Adoption'!$B$5:$B$56,0),6),"ERROR") -> 1 | AJ38: =_xlfn.IFNA(INDEX('Expansion Adoption'!$A$5:$H$56,MATCH('Pivot Data'!E2054,'Expansion Adoption'!$B$5:$B$56,0),7),"ERROR") -> 0 | AK38: =_xlfn.IFNA(INDEX('Expansion Adoption'!$A$5:$H$56,MATCH('Pivot Data'!E2054,'Expansion Adoption'!$B$5:$B$56,0),8),"ERROR") -> 1 | AL38: 0 | AM38: 0 | AN38: 0 | AO38: 0 | AP38: 0 | AQ38: 0 | AR38: 0 | AS38: 0 | AT38: 0 | AU38: 0 | AV38: 0 | AW38: 1 | BE38: -0.01584376946
A39: 2013 | B39: C7771 | C39: =Table2[[#This Row],[Year]]&Table2[[#This Row],[SNL Statutory Entity Key ]] -> 2013C7771 | D39: AMHP Holdings Corp. | E39: LA | F39: AmeriHealth Caritas LA Inc. | G39: 1779027 | H39: 490641.53 | I39: 17985.114 | J39: 36953.986 | K39: 0 | L39: 14808.669 | M39: 420893.761 | N39: 40252.496 | O39: 16640.779 | P39: 2.418906951 | Q39: 2 | R39: 0.8578437317 | S39: 0.0301822575 | T39: 0.1119740108 | U39: 1 | V39: 2.418906951 | W39: 275.792065 | X39: 30.88154368 | Y39: 8.324027123 | Z39: 236.5864942 | AA39: -1.776356839e-14 | AB39: =_xlfn.IFNA(INDEX('SOA dataset'!$A$4:$BE$674,MATCH('Pivot Data'!F2055,'SOA dataset'!$E$4:$E$674,0),52),"Missing Info") -> NFP | AC39: =_xlfn.IFNA(INDEX('NAIC Ownership'!$A$5:$E$212,MATCH('Pivot Data'!B2055,'NAIC Ownership'!$B$5:$B$212,0),5),"Missing Info") -> Stock Company | AD39: =_xlfn.IFNA(INDEX('S&P Export2'!$A$3:$E$290,MATCH('Pivot Data'!B2055,'S&P Export2'!$B$3:$B$290,0),3),"Missing Info") -> 14143 | AE39: 0 | AF39: 1 | AG39: 0 | AH39: =IF(AG39=9,INDEX('Cleanup profit status 9'!$F$5:$I$58,MATCH('Pivot Data'!B2055,'Cleanup profit status 9'!$G$5:$G$58,0),4),AG39) -> 0 | AI39: =_xlfn.IFNA(INDEX('Expansion Adoption'!$A$5:$H$56,MATCH('Pivot Data'!E2055,'Expansion Adoption'!$B$5:$B$56,0),6),"ERROR") -> 0 | AJ39: =_xlfn.IFNA(INDEX('Expansion Adoption'!$A$5:$H$56,MATCH('Pivot Data'!E2055,'Expansion Adoption'!$B$5:$B$56,0),7),"ERROR") -> 1 | AK39: =_xlfn.IFNA(INDEX('Expansion Adoption'!$A$5:$H$56,MATCH('Pivot Data'!E2055,'Expansion Adoption'!$B$5:$B$56,0),8),"ERROR") -> 1 | AL39: 1 | AM39: 1 | AN39: 1 | AO39: 1 | AP39: 1 | AQ39: 1 | AR39: 1 | AS39: 0 | AT39: 1 | AU39: 0 | AV39: 18 | AW39: 0 | AX39: 1779027 | AY39: 0.5 | AZ39: 275.792065 | BA39: 0.25 | BE39: 0.02344783547
A40: 2013 | B40: C9304 | C40: =Table2[[#This Row],[Year]]&Table2[[#This Row],[SNL Statutory Entity Key ]] -> 2013C9304 | D40: AMHP Holdings Corp. | E40: NH | F40: AmeriHealth Caritas NH Inc | G40: 0 | H40: 0 | I40: 0 | J40: 0 | K40: 0 | L40: 0 | M40: 0 | N40: 0 | O40: 0 | P40: - | Q40: - | R40: - | S40: - | T40: - | U40: 0 | V40: - | W40: - | X40: - | Y40: - | Z40: - | AA40: - | AB40: =_xlfn.IFNA(INDEX('SOA dataset'!$A$4:$BE$674,MATCH('Pivot Data'!F2056,'SOA dataset'!$E$4:$E$674,0),52),"Missing Info") -> Missing Info | AC40: =_xlfn.IFNA(INDEX('NAIC Ownership'!$A$5:$E$212,MATCH('Pivot Data'!B2056,'NAIC Ownership'!$B$5:$B$212,0),5),"Missing Info") -> Stock Company | AD40: =_xlfn.IFNA(INDEX('S&P Export2'!$A$3:$E$290,MATCH('Pivot Data'!B2056,'S&P Export2'!$B$3:$B$290,0),3),"Missing Info") -> 16496 | AE40: 9 | AF40: 1 | AG40: 1 | AH40: =IF(AG40=9,INDEX('Cleanup profit status 9'!$F$5:$I$58,MATCH('Pivot Data'!B2056,'Cleanup profit status 9'!$G$5:$G$58,0),4),AG40) -> 1 | AI40: =_xlfn.IFNA(INDEX('Expansion Adoption'!$A$5:$H$56,MATCH('Pivot Data'!E2056,'Expansion Adoption'!$B$5:$B$56,0),6),"ERROR") -> 1 | AJ40: =_xlfn.IFNA(INDEX('Expansion Adoption'!$A$5:$H$56,MATCH('Pivot Data'!E2056,'Expansion Adoption'!$B$5:$B$56,0),7),"ERROR") -> 0 | AK40: =_xlfn.IFNA(INDEX('Expansion Adoption'!$A$5:$H$56,MATCH('Pivot Data'!E2056,'Expansion Adoption'!$B$5:$B$56,0),8),"ERROR") -> 1 | AL40: 0 | AM40: 0 | AN40: 0 | AO40: 0 | AP40: 0 | AQ40: 0 | AR40: 0 | AS40: 0 | AT40: 0 | AU40: 0 | AV40: 0 | AW40: 1
A41: 2013 | B41: C7924 | C41: =Table2[[#This Row],[Year]]&Table2[[#This Row],[SNL Statutory Entity Key ]] -> 2013C7924 | D41: AmeriHealth Caritas Health Plan | E41: NE | F41: AmeriHealth Nebraska Inc. | G41: 262940 | H41: 57042.917 | I41: 2159.327 | J41: 6203.438 | K41: 0 | L41: 646.475 | M41: 48033.677 | N41: 7232.369 | O41: 2382.28 | P41: 3.035902161 | Q41: 3 | R41: 0.8420620741 | S41: 0.01133313361 | T41: 0.1466047923 | U41: 1 | V41: 3.035902161 | W41: 216.9427132 | X41: 31.80484141 | Y41: 2.458640755 | Z41: 182.679231 | AA41: 1.110223025e-14 | AB41: =_xlfn.IFNA(INDEX('SOA dataset'!$A$4:$BE$674,MATCH('Pivot Data'!F2057,'SOA dataset'!$E$4:$E$674,0),52),"Missing Info") -> NFP | AC41: =_xlfn.IFNA(INDEX('NAIC Ownership'!$A$5:$E$212,MATCH('Pivot Data'!B2057,'NAIC Ownership'!$B$5:$B$212,0),5),"Missing Info") -> Missing Info | AD41: =_xlfn.IFNA(INDEX('S&P Export2'!$A$3:$E$290,MATCH('Pivot Data'!B2057,'S&P Export2'!$B$3:$B$290,0),3),"Missing Info") -> 14261 | AE41: 0 | AF41: 9 | AG41: 0 | AH41: =IF(AG41=9,INDEX('Cleanup profit status 9'!$F$5:$I$58,MATCH('Pivot Data'!B2057,'Cleanup profit status 9'!$G$5:$G$58,0),4),AG41) -> 0 | AI41: =_xlfn.IFNA(INDEX('Expansion Adoption'!$A$5:$H$56,MATCH('Pivot Data'!E2057,'Expansion Adoption'!$B$5:$B$56,0),6),"ERROR") -> 0 | AJ41: =_xlfn.IFNA(INDEX('Expansion Adoption'!$A$5:$H$56,MATCH('Pivot Data'!E2057,'Expansion Adoption'!$B$5:$B$56,0),7),"ERROR") -> 0 | AK41: =_xlfn.IFNA(INDEX('Expansion Adoption'!$A$5:$H$56,MATCH('Pivot Data'!E2057,'Expansion Adoption'!$B$5:$B$56,0),8),"ERROR") -> 0 | AL41: 1 | AM41: 1 | AN41: 1 | AO41: 1 | AP41: 1 | AQ41: 1 | AR41: 1 | AS41: 0 | AT41: 1 | AU41: 1 | AV41: 3 | AW41: 0 | AX41: 262940 | AY41: 0.1 | AZ41: 216.9427132 | BA41: 0.15 | BE41: -0.07326149521
A42: 2013 | B42: C4006 | C42: =Table2[[#This Row],[Year]]&Table2[[#This Row],[SNL Statutory Entity Key ]] -> 2013C4006 | D42: AMERIGROUP Corporation | E42: GA | F42: AMGP Georgia Managed Care Co. | G42: 2880438 | H42: 701195.362 | I42: 58313.502 | J42: 58716.027 | K42: 0 | L42: 27892.596 | M42: 556273.237 | N42: 109212.806 | O42: 24640.478 | P42: 4.432251923 | Q42: 4 | R42: 0.7933213298 | S42: 0.03977863733 | T42: 0.1669000329 | U42: 1 | V42: 4.432251923 | W42: 243.4335896 | X42: 40.62907412 | Y42: 9.683456474 | Z42: 193.121059 | AA42: 7.105427358e-15 | AB42: =_xlfn.IFNA(INDEX('SOA dataset'!$A$4:$BE$674,MATCH('Pivot Data'!F2058,'SOA dataset'!$E$4:$E$674,0),52),"Missing Info") -> FP | AC42: =_xlfn.IFNA(INDEX('NAIC Ownership'!$A$5:$E$212,MATCH('Pivot Data'!B2058,'NAIC Ownership'!$B$5:$B$212,0),5),"Missing Info") -> Stock Company | AD42: =_xlfn.IFNA(INDEX('S&P Export2'!$A$3:$E$290,MATCH('Pivot Data'!B2058,'S&P Export2'!$B$3:$B$290,0),3),"Missing Info") -> 12229 | AE42: 1 | AF42: 1 | AG42: 1 | AH42: =IF(AG42=9,INDEX('Cleanup profit status 9'!$F$5:$I$58,MATCH('Pivot Data'!B2058,'Cleanup profit status 9'!$G$5:$G$58,0),4),AG42) -> 1 | AI42: =_xlfn.IFNA(INDEX('Expansion Adoption'!$A$5:$H$56,MATCH('Pivot Data'!E2058,'Expansion Adoption'!$B$5:$B$56,0),6),"ERROR") -> 0 | AJ42: =_xlfn.IFNA(INDEX('Expansion Adoption'!$A$5:$H$56,MATCH('Pivot Data'!E2058,'Expansion Adoption'!$B$5:$B$56,0),7),"ERROR") -> 0 | AK42: =_xlfn.IFNA(INDEX('Expansion Adoption'!$A$5:$H$56,MATCH('Pivot Data'!E2058,'Expansion Adoption'!$B$5:$B$56,0),8),"ERROR") -> 0 | AL42: 1 | AM42: 1 | AN42: 1 | AO42: 1 | AP42: 1 | AQ42: 1 | AR42: 1 | AS42: 0 | AT42: 1 | AU42: 0 | AV42: 29 | AW42: 0 | AX42: 2880438 | AY42: 0.7 | AZ42: 243.4335896 | BA42: 0.15
A43: 2013 | B43: C3286 | C43: =Table2[[#This Row],[Year]]&Table2[[#This Row],[SNL Statutory Entity Key ]] -> 2013C3286 | D43: ATH Holding Company, LLC | E43: KY | F43: Anthem Health Plans of KY Inc. | G43: 0 | H43: 0 | I43: 0 | J43: 0 | K43: 0 | L43: 0 | M43: 0 | N43: 371944.837 | O43: 64569.64 | P43: 5.76036721 | Q43: 6 | R43: - | S43: - | T43: - | U43: 0 | V43: 5.76036721 | W43: - | X43: - | Y43: - | Z43: - | AA43: - | AB43: =_xlfn.IFNA(INDEX('SOA dataset'!$A$4:$BE$674,MATCH('Pivot Data'!F2059,'SOA dataset'!$E$4:$E$674,0),52),"Missing Info") -> FP | AC43: =_xlfn.IFNA(INDEX('NAIC Ownership'!$A$5:$E$212,MATCH('Pivot Data'!B2059,'NAIC Ownership'!$B$5:$B$212,0),5),"Missing Info") -> Missing Info | AD43: =_xlfn.IFNA(INDEX('S&P Export2'!$A$3:$E$290,MATCH('Pivot Data'!B2059,'S&P Export2'!$B$3:$B$290,0),3),"Missing Info") -> 95120 | AE43: 1 | AF43: 9 | AG43: 1 | AH43: =IF(AG43=9,INDEX('Cleanup profit status 9'!$F$5:$I$58,MATCH('Pivot Data'!B2059,'Cleanup profit status 9'!$G$5:$G$58,0),4),AG43) -> 1 | AI43: =_xlfn.IFNA(INDEX('Expansion Adoption'!$A$5:$H$56,MATCH('Pivot Data'!E2059,'Expansion Adoption'!$B$5:$B$56,0),6),"ERROR") -> 1 | AJ43: =_xlfn.IFNA(INDEX('Expansion Adoption'!$A$5:$H$56,MATCH('Pivot Data'!E2059,'Expansion Adoption'!$B$5:$B$56,0),7),"ERROR") -> 0 | AK43: =_xlfn.IFNA(INDEX('Expansion Adoption'!$A$5:$H$56,MATCH('Pivot Data'!E2059,'Expansion Adoption'!$B$5:$B$56,0),8),"ERROR") -> 1 | AL43: 0 | AM43: 0 | AN43: 0 | AO43: 0 | AP43: 0 | AQ43: 0 | AR43: 0 | AS43: 0 | AT43: 0 | AU43: 0 | AV43: 0 | AW43: 1
A44: 2013 | B44: C197 | C44: =Table2[[#This Row],[Year]]&Table2[[#This Row],[SNL Statutory Entity Key ]] -> 2013C197 | D44: Anthem, Inc. | E44: IN | F44: Anthem Insurance Companies Inc | G44: 2893117 | H44: 424483.109 | I44: 22279.127 | J44: 37723.669 | K44: 0 | L44: 1907.131 | M44: 362573.182 | N44: 1004778.573 | O44: 172019.198 | P44: 5.841083929 | Q44: 6 | R44: 0.8541522014 | S44: 0.004492831304 | T44: 0.1413549673 | U44: 1 | V44: 5.841083929 | W44: 146.7217223 | X44: 20.73984426 | Y44: 0.6591959468 | Z44: 125.3226821 | AA44: -1.776356839e-15 | AB44: =_xlfn.IFNA(INDEX('SOA dataset'!$A$4:$BE$674,MATCH('Pivot Data'!F2060,'SOA dataset'!$E$4:$E$674,0),52),"Missing Info") -> FP | AC44: =_xlfn.IFNA(INDEX('NAIC Ownership'!$A$5:$E$212,MATCH('Pivot Data'!B2060,'NAIC Ownership'!$B$5:$B$212,0),5),"Missing Info") -> Stock Company | AD44: =_xlfn.IFNA(INDEX('S&P Export2'!$A$3:$E$290,MATCH('Pivot Data'!B2060,'S&P Export2'!$B$3:$B$290,0),3),"Missing Info") -> 28207 | AE44: 1 | AF44: 1 | AG44: 1 | AH44: =IF(AG44=9,INDEX('Cleanup profit status 9'!$F$5:$I$58,MATCH('Pivot Data'!B2060,'Cleanup profit status 9'!$G$5:$G$58,0),4),AG44) -> 1 | AI44: =_xlfn.IFNA(INDEX('Expansion Adoption'!$A$5:$H$56,MATCH('Pivot Data'!E2060,'Expansion Adoption'!$B$5:$B$56,0),6),"ERROR") -> 1 | AJ44: =_xlfn.IFNA(INDEX('Expansion Adoption'!$A$5:$H$56,MATCH('Pivot Data'!E2060,'Expansion Adoption'!$B$5:$B$56,0),7),"ERROR") -> 0 | AK44: =_xlfn.IFNA(INDEX('Expansion Adoption'!$A$5:$H$56,MATCH('Pivot Data'!E2060,'Expansion Adoption'!$B$5:$B$56,0),8),"ERROR") -> 1 | AL44: 1 | AM44: 1 | AN44: 1 | AO44: 1 | AP44: 1 | AQ44: 1 | AR44: 1 | AS44: 0 | AT44: 1 | AU44: 0 | AV44: 29 | AW44: 0 | AX44: 2893117 | AY44: 0.7 | AZ44: 146.7217223 | BA44: 0.05
A45: 2013 | B45: C8685 | C45: =Table2[[#This Row],[Year]]&Table2[[#This Row],[SNL Statutory Entity Key ]] -> 2013C8685 | D45: ATH Holding Company, LLC | E45: KY | F45: Anthem KY Mngd Care Plan Inc. | G45: 0 | H45: 0 | I45: 0 | J45: 0 | K45: 0 | L45: 0 | M45: 0 | N45: 0 | O45: 0 | P45: - | Q45: - | R45: - | S45: - | T45: - | U45: 0 | V45: - | W45: - | X45: - | Y45: - | Z45: - | AA45: - | AB45: =_xlfn.IFNA(INDEX('SOA dataset'!$A$4:$BE$674,MATCH('Pivot Data'!F2061,'SOA dataset'!$E$4:$E$674,0),52),"Missing Info") -> FP | AC45: =_xlfn.IFNA(INDEX('NAIC Ownership'!$A$5:$E$212,MATCH('Pivot Data'!B2061,'NAIC Ownership'!$B$5:$B$212,0),5),"Missing Info") -> Stock Company | AD45: =_xlfn.IFNA(INDEX('S&P Export2'!$A$3:$E$290,MATCH('Pivot Data'!B2061,'S&P Export2'!$B$3:$B$290,0),3),"Missing Info") -> 15543 | AE45: 1 | AF45: 1 | AG45: 1 | AH45: =IF(AG45=9,INDEX('Cleanup profit status 9'!$F$5:$I$58,MATCH('Pivot Data'!B2061,'Cleanup profit status 9'!$G$5:$G$58,0),4),AG45) -> 1 | AI45: =_xlfn.IFNA(INDEX('Expansion Adoption'!$A$5:$H$56,MATCH('Pivot Data'!E2061,'Expansion Adoption'!$B$5:$B$56,0),6),"ERROR") -> 1 | AJ45: =_xlfn.IFNA(INDEX('Expansion Adoption'!$A$5:$H$56,MATCH('Pivot Data'!E2061,'Expansion Adoption'!$B$5:$B$56,0),7),"ERROR") -> 0 | AK45: =_xlfn.IFNA(INDEX('Expansion Adoption'!$A$5:$H$56,MATCH('Pivot Data'!E2061,'Expansion Adoption'!$B$5:$B$56,0),8),"ERROR") -> 1 | AL45: 0 | AM45: 0 | AN45: 0 | AO45: 0 | AP45: 0 | AQ45: 0 | AR45: 0 | AS45: 0 | AT45: 0 | AU45: 0 | AV45: 0 | AW45: 1 | BE45: 0.003031619009
A46: 2013 | B46: C9154 | C46: =Table2[[#This Row],[Year]]&Table2[[#This Row],[SNL Statutory Entity Key ]] -> 2013C9154 | D46: Arkansas Provider Coalition, LLC | E46: AR | F46: APC Passe LLC | G46: 0 | H46: 0 | I46: 0 | J46: 0 | K46: 0 | L46: 0 | M46: 0 | N46: 0 | O46: 0 | P46: - | Q46: - | R46: - | S46: - | T46: - | U46: 0 | V46: - | W46: - | X46: - | Y46: - | Z46: - | AA46: - | AB46: =_xlfn.IFNA(INDEX('SOA dataset'!$A$4:$BE$674,MATCH('Pivot Data'!F2062,'SOA dataset'!$E$4:$E$674,0),52),"Missing Info") -> Missing Info | AC46: =_xlfn.IFNA(INDEX('NAIC Ownership'!$A$5:$E$212,MATCH('Pivot Data'!B2062,'NAIC Ownership'!$B$5:$B$212,0),5),"Missing Info") -> Limited Liability Corporation | AD46: =_xlfn.IFNA(INDEX('S&P Export2'!$A$3:$E$290,MATCH('Pivot Data'!B2062,'S&P Export2'!$B$3:$B$290,0),3),"Missing Info") -> 16298 | AE46: 9 | AF46: 1 | AG46: 1 | AH46: =IF(AG46=9,INDEX('Cleanup profit status 9'!$F$5:$I$58,MATCH('Pivot Data'!B2062,'Cleanup profit status 9'!$G$5:$G$58,0),4),AG46) -> 1 | AI46: =_xlfn.IFNA(INDEX('Expansion Adoption'!$A$5:$H$56,MATCH('Pivot Data'!E2062,'Expansion Adoption'!$B$5:$B$56,0),6),"ERROR") -> 1 | AJ46: =_xlfn.IFNA(INDEX('Expansion Adoption'!$A$5:$H$56,MATCH('Pivot Data'!E2062,'Expansion Adoption'!$B$5:$B$56,0),7),"ERROR") -> 0 | AK46: =_xlfn.IFNA(INDEX('Expansion Adoption'!$A$5:$H$56,MATCH('Pivot Data'!E2062,'Expansion Adoption'!$B$5:$B$56,0),8),"ERROR") -> 1 | AL46: 0 | AM46: 0 | AN46: 0 | AO46: 0 | AP46: 0 | AQ46: 0 | AR46: 0 | AS46: 0 | AT46: 0 | AU46: 0 | AV46: 0 | AW46: 1 | BE46: 0.02557033724
A47: 2013 | B47: C9165 | C47: =Table2[[#This Row],[Year]]&Table2[[#This Row],[SNL Statutory Entity Key ]] -> 2013C9165 | D47: Arkansas Total Care Holding Company, LLC | E47: AR | F47: Arkansas Total Care Inc. | G47: 0 | H47: 0 | I47: 0 | J47: 0 | K47: 0 | L47: 0 | M47: 0 | N47: 0 | O47: 0 | P47: - | Q47: - | R47: - | S47: - | T47: - | U47: 0 | V47: - | W47: - | X47: - | Y47: - | Z47: - | AA47: - | AB47: =_xlfn.IFNA(INDEX('SOA dataset'!$A$4:$BE$674,MATCH('Pivot Data'!F2063,'SOA dataset'!$E$4:$E$674,0),52),"Missing Info") -> Missing Info | AC47: =_xlfn.IFNA(INDEX('NAIC Ownership'!$A$5:$E$212,MATCH('Pivot Data'!B2063,'NAIC Ownership'!$B$5:$B$212,0),5),"Missing Info") -> Stock Company | AD47: =_xlfn.IFNA(INDEX('S&P Export2'!$A$3:$E$290,MATCH('Pivot Data'!B2063,'S&P Export2'!$B$3:$B$290,0),3),"Missing Info") -> 16256 | AE47: 9 | AF47: 1 | AG47: 1 | AH47: =IF(AG47=9,INDEX('Cleanup profit status 9'!$F$5:$I$58,MATCH('Pivot Data'!B2063,'Cleanup profit status 9'!$G$5:$G$58,0),4),AG47) -> 1 | AI47: =_xlfn.IFNA(INDEX('Expansion Adoption'!$A$5:$H$56,MATCH('Pivot Data'!E2063,'Expansion Adoption'!$B$5:$B$56,0),6),"ERROR") -> 1 | AJ47: =_xlfn.IFNA(INDEX('Expansion Adoption'!$A$5:$H$56,MATCH('Pivot Data'!E2063,'Expansion Adoption'!$B$5:$B$56,0),7),"ERROR") -> 0 | AK47: =_xlfn.IFNA(INDEX('Expansion Adoption'!$A$5:$H$56,MATCH('Pivot Data'!E2063,'Expansion Adoption'!$B$5:$B$56,0),8),"ERROR") -> 1 | AL47: 0 | AM47: 0 | AN47: 0 | AO47: 0 | AP47: 0 | AQ47: 0 | AR47: 0 | AS47: 0 | AT47: 0 | AU47: 0 | AV47: 0 | AW47: 1 | BE47: -0.02582963731
A48: 2013 | B48: C2185 | C48: =Table2[[#This Row],[Year]]&Table2[[#This Row],[SNL Statutory Entity Key ]] -> 2013C2185 | D48: Centene Corporation | E48: WI | F48: Bankers Reserve Life Ins Co. | G48: 5070747 | H48: 1845793.52 | I48: 46242.93 | J48: 159223.983 | K48: -28455.347 | L48: -29244.327 | M48: 1698026.281 | N48: 238096.924 | O48: 77834.912 | P48: 3.058999077 | Q48: 3 | R48: 0.9045274652 | S48: -0.01584376946 | T48: 0.1113163042 | U48: 1 | V48: 3.058999077 | W48: 364.0082063 | X48: 40.52004823 | Y48: -5.767262102 | Z48: 329.2554202 | AA48: -4.707345624e-14 | AB48: =_xlfn.IFNA(INDEX('SOA dataset'!$A$4:$BE$674,MATCH('Pivot Data'!F2064,'SOA dataset'!$E$4:$E$674,0),52),"Missing Info") -> FP | AC48: =_xlfn.IFNA(INDEX('NAIC Ownership'!$A$5:$E$212,MATCH('Pivot Data'!B2064,'NAIC Ownership'!$B$5:$B$212,0),5),"Missing Info") -> Stock Company | AD48: =_xlfn.IFNA(INDEX('S&P Export2'!$A$3:$E$290,MATCH('Pivot Data'!B2064,'S&P Export2'!$B$3:$B$290,0),3),"Missing Info") -> 71013 | AE48: 1 | AF48: 1 | AG48: 1 | AH48: =IF(AG48=9,INDEX('Cleanup profit status 9'!$F$5:$I$58,MATCH('Pivot Data'!B2064,'Cleanup profit status 9'!$G$5:$G$58,0),4),AG48) -> 1 | AI48: =_xlfn.IFNA(INDEX('Expansion Adoption'!$A$5:$H$56,MATCH('Pivot Data'!E2064,'Expansion Adoption'!$B$5:$B$56,0),6),"ERROR") -> 0 | AJ48: =_xlfn.IFNA(INDEX('Expansion Adoption'!$A$5:$H$56,MATCH('Pivot Data'!E2064,'Expansion Adoption'!$B$5:$B$56,0),7),"ERROR") -> 0 | AK48: =_xlfn.IFNA(INDEX('Expansion Adoption'!$A$5:$H$56,MATCH('Pivot Data'!E2064,'Expansion Adoption'!$B$5:$B$56,0),8),"ERROR") -> 0 | AL48: 1 | AM48: 1 | AN48: 1 | AO48: 1 | AP48: 1 | AQ48: 1 | AR48: 1 | AS48: 0 | AT48: 1 | AU48: 0 | AV48: 51 | AW48: 0 | AX48: 5070747 | AY48: 0.9 | AZ48: 364.0082063 | BA48: 0.45
A49: 2013 | B49: C4621 | C49: =Table2[[#This Row],[Year]]&Table2[[#This Row],[SNL Statutory Entity Key ]] -> 2013C4621 | D49: Beacon Health Options, Inc. | E49: PA | F49: Beacon Hlth Options of PA Inc. | G49: 872638 | H49: 97844.17 | I49: 412.887 | J49: 6719.972 | K49: 0 | L49: 2294.234 | M49: 88417.077 | N49: 14344.54 | O49: 3967.394 | P49: 3.615607626 | Q49: 4 | R49: 0.9036519703 | S49: 0.02344783547 | T49: 0.07290019426 | U49: 1 | V49: 3.615607626 | W49: 112.1245809 | X49: 8.173903726 | Y49: 2.629078725 | Z49: 101.3215984 | AA49: -6.217248938e-15 | AB49: =_xlfn.IFNA(INDEX('SOA dataset'!$A$4:$BE$674,MATCH('Pivot Data'!F2065,'SOA dataset'!$E$4:$E$674,0),52),"Missing Info") -> Missing Info | AC49: =_xlfn.IFNA(INDEX('NAIC Ownership'!$A$5:$E$212,MATCH('Pivot Data'!B2065,'NAIC Ownership'!$B$5:$B$212,0),5),"Missing Info") -> Stock Company | AD49: =_xlfn.IFNA(INDEX('S&P Export2'!$A$3:$E$290,MATCH('Pivot Data'!B2065,'S&P Export2'!$B$3:$B$290,0),3),"Missing Info") -> 47025 | AE49: 9 | AF49: 1 | AG49: 1 | AH49: =IF(AG49=9,INDEX('Cleanup profit status 9'!$F$5:$I$58,MATCH('Pivot Data'!B2065,'Cleanup profit status 9'!$G$5:$G$58,0),4),AG49) -> 1 | AI49: =_xlfn.IFNA(INDEX('Expansion Adoption'!$A$5:$H$56,MATCH('Pivot Data'!E2065,'Expansion Adoption'!$B$5:$B$56,0),6),"ERROR") -> 1 | AJ49: =_xlfn.IFNA(INDEX('Expansion Adoption'!$A$5:$H$56,MATCH('Pivot Data'!E2065,'Expansion Adoption'!$B$5:$B$56,0),7),"ERROR") -> 0 | AK49: =_xlfn.IFNA(INDEX('Expansion Adoption'!$A$5:$H$56,MATCH('Pivot Data'!E2065,'Expansion Adoption'!$B$5:$B$56,0),8),"ERROR") -> 1 | AL49: 1 | AM49: 1 | AN49: 1 | AO49: 1 | AP49: 1 | AQ49: 1 | AR49: 1 | AS49: 0 | AT49: 1 | AU49: 1 | AV49: 9 | AW49: 0 | AX49: 872638 | AY49: 0.3 | AZ49: 112.1245809 | BA49: 0.05
A50: 2013 | B50: C8774 | C50: =Table2[[#This Row],[Year]]&Table2[[#This Row],[SNL Statutory Entity Key ]] -> 2013C8774 | D50: Simply Healthcare Plans, Inc. | E50: FL | F50: Better Health Inc. | G50: 0 | H50: 0 | I50: 0 | J50: 0 | K50: 0 | L50: 0 | M50: 0 | N50: 0 | O50: 0 | P50: - | Q50: - | R50: - | S50: - | T50: - | U50: 0 | V50: - | W50: - | X50: - | Y50: - | Z50: - | AA50: - | AB50: =_xlfn.IFNA(INDEX('SOA dataset'!$A$4:$BE$674,MATCH('Pivot Data'!F2066,'SOA dataset'!$E$4:$E$674,0),52),"Missing Info") -> FP | AC50: =_xlfn.IFNA(INDEX('NAIC Ownership'!$A$5:$E$212,MATCH('Pivot Data'!B2066,'NAIC Ownership'!$B$5:$B$212,0),5),"Missing Info") -> Missing Info | AD50: =_xlfn.IFNA(INDEX('S&P Export2'!$A$3:$E$290,MATCH('Pivot Data'!B2066,'S&P Export2'!$B$3:$B$290,0),3),"Missing Info") -> 15480 | AE50: 1 | AF50: 9 | AG50: 1 | AH50: =IF(AG50=9,INDEX('Cleanup profit status 9'!$F$5:$I$58,MATCH('Pivot Data'!B2066,'Cleanup profit status 9'!$G$5:$G$58,0),4),AG50) -> 1 | AI50: =_xlfn.IFNA(INDEX('Expansion Adoption'!$A$5:$H$56,MATCH('Pivot Data'!E2066,'Expansion Adoption'!$B$5:$B$56,0),6),"ERROR") -> 0 | AJ50: =_xlfn.IFNA(INDEX('Expansion Adoption'!$A$5:$H$56,MATCH('Pivot Data'!E2066,'Expansion Adoption'!$B$5:$B$56,0),7),"ERROR") -> 0 | AK50: =_xlfn.IFNA(INDEX('Expansion Adoption'!$A$5:$H$56,MATCH('Pivot Data'!E2066,'Expansion Adoption'!$B$5:$B$56,0),8),"ERROR") -> 0 | AL50: 0 | AM50: 0 | AN50: 0 | AO50: 0 | AP50: 0 | AQ50: 0 | AR50: 0 | AS50: 0 | AT50: 0 | AU50: 0 | AV50: 0 | AW50: 1 | BE50: 0.02660138292
A51: 2013 | B51: C3872 | C51: =Table2[[#This Row],[Year]]&Table2[[#This Row],[SNL Statutory Entity Key ]] -> 2013C3872 | E51: MI | F51: Blue Cross Complete of MI LLC | G51: 427860 | H51: 123207.095 | I51: 4603.116 | J51: 6833.694 | K51: 2971.845 | L51: -9026.336 | M51: 117824.776 | N51: 12809.284 | O51: 3407.314 | P51: 3.759349447 | Q51: 4 | R51: 0.980435591 | S51: -0.07326149521 | T51: 0.09282590422 | U51: 1 | V51: 3.759349447 | W51: 287.9612373 | X51: 26.73026224 | Y51: -21.09647081 | Z51: 282.3274459 | AA51: 2.486899575e-14 | AB51: =_xlfn.IFNA(INDEX('SOA dataset'!$A$4:$BE$674,MATCH('Pivot Data'!F2067,'SOA dataset'!$E$4:$E$674,0),52),"Missing Info") -> Missing Info | AC51: =_xlfn.IFNA(INDEX('NAIC Ownership'!$A$5:$E$212,MATCH('Pivot Data'!B2067,'NAIC Ownership'!$B$5:$B$212,0),5),"Missing Info") -> Other | AD51: =_xlfn.IFNA(INDEX('S&P Export2'!$A$3:$E$290,MATCH('Pivot Data'!B2067,'S&P Export2'!$B$3:$B$290,0),3),"Missing Info") -> 11557 | AE51: 9 | AF51: 0 | AG51: 0 | AH51: =IF(AG51=9,INDEX('Cleanup profit status 9'!$F$5:$I$58,MATCH('Pivot Data'!B2067,'Cleanup profit status 9'!$G$5:$G$58,0),4),AG51) -> 0 | AI51: =_xlfn.IFNA(INDEX('Expansion Adoption'!$A$5:$H$56,MATCH('Pivot Data'!E2067,'Expansion Adoption'!$B$5:$B$56,0),6),"ERROR") -> 1 | AJ51: =_xlfn.IFNA(INDEX('Expansion Adoption'!$A$5:$H$56,MATCH('Pivot Data'!E2067,'Expansion Adoption'!$B$5:$B$56,0),7),"ERROR") -> 0 | AK51: =_xlfn.IFNA(INDEX('Expansion Adoption'!$A$5:$H$56,MATCH('Pivot Data'!E2067,'Expansion Adoption'!$B$5:$B$56,0),8),"ERROR") -> 1 | AL51: 1 | AM51: 1 | AN51: 1 | AO51: 1 | AP51: 1 | AQ51: 1 | AR51: 1 | AS51: 0 | AT51: 1 | AU51: 1 | AV51: 4 | AW51: 0 | AX51: 427860 | AY51: 0.1 | AZ51: 287.9612373 | BA51: 0.35 | BE51: -0.1004423131
A52: 2013 | B52: C8096 | C52: =Table2[[#This Row],[Year]]&Table2[[#This Row],[SNL Statutory Entity Key ]] -> 2013C8096 | D52: Blue Cross of Idaho Health Service, Inc. | E52: ID | F52: Blue Cross of ID Care Plus Inc | G52: 0 | H52: 0 | I52: 0 | J52: 0 | K52: 0 | L52: 0 | M52: 0 | N52: 2235.601 | O52: 3.14 | P52: 711.9748408 | Q52: 712 | R52: - | S52: - | T52: - | U52: 0 | V52: 711.9748408 | W52: - | X52: - | Y52: - | Z52: - | AA52: - | AB52: =_xlfn.IFNA(INDEX('SOA dataset'!$A$4:$BE$674,MATCH('Pivot Data'!F2068,'SOA dataset'!$E$4:$E$674,0),52),"Missing Info") -> Missing Info | AC52: =_xlfn.IFNA(INDEX('NAIC Ownership'!$A$5:$E$212,MATCH('Pivot Data'!B2068,'NAIC Ownership'!$B$5:$B$212,0),5),"Missing Info") -> Other | AD52: =_xlfn.IFNA(INDEX('S&P Export2'!$A$3:$E$290,MATCH('Pivot Data'!B2068,'S&P Export2'!$B$3:$B$290,0),3),"Missing Info") -> 15022 | AE52: 9 | AF52: 0 | AG52: 0 | AH52: =IF(AG52=9,INDEX('Cleanup profit status 9'!$F$5:$I$58,MATCH('Pivot Data'!B2068,'Cleanup profit status 9'!$G$5:$G$58,0),4),AG52) -> 0 | AI52: =_xlfn.IFNA(INDEX('Expansion Adoption'!$A$5:$H$56,MATCH('Pivot Data'!E2068,'Expansion Adoption'!$B$5:$B$56,0),6),"ERROR") -> 0 | AJ52: =_xlfn.IFNA(INDEX('Expansion Adoption'!$A$5:$H$56,MATCH('Pivot Data'!E2068,'Expansion Adoption'!$B$5:$B$56,0),7),"ERROR") -> 0 | AK52: =_xlfn.IFNA(INDEX('Expansion Adoption'!$A$5:$H$56,MATCH('Pivot Data'!E2068,'Expansion Adoption'!$B$5:$B$56,0),8),"ERROR") -> 0 | AL52: 0 | AM52: 0 | AN52: 0 | AO52: 0 | AP52: 0 | AQ52: 0 | AR52: 0 | AS52: 0 | AT52: 0 | AU52: 0 | AV52: 0 | AW52: 1
A53: 2013 | B53: CA4238626 | C53: =Table2[[#This Row],[Year]]&Table2[[#This Row],[SNL Statutory Entity Key ]] -> 2013CA4238626 | D53: FullSpan Holding Company, Inc. | E53: CA | F53: Blue Shield of CA Promise Hlth | G53: 0 | H53: 0 | I53: 0 | J53: 0 | K53: 0 | L53: 0 | M53: 0 | N53: 0 | O53: 0 | P53: - | Q53: - | R53: - | S53: - | T53: - | U53: 0 | V53: - | W53: - | X53: - | Y53: - | Z53: - | AA53: - | AB53: =_xlfn.IFNA(INDEX('SOA dataset'!$A$4:$BE$674,MATCH('Pivot Data'!F2069,'SOA dataset'!$E$4:$E$674,0),52),"Missing Info") -> Missing Info | AC53: =_xlfn.IFNA(INDEX('NAIC Ownership'!$A$5:$E$212,MATCH('Pivot Data'!B2069,'NAIC Ownership'!$B$5:$B$212,0),5),"Missing Info") -> Other | AD53: =_xlfn.IFNA(INDEX('S&P Export2'!$A$3:$E$290,MATCH('Pivot Data'!B2069,'S&P Export2'!$B$3:$B$290,0),3),"Missing Info") -> 15143 | AE53: 9 | AF53: 0 | AG53: 0 | AH53: =IF(AG53=9,INDEX('Cleanup profit status 9'!$F$5:$I$58,MATCH('Pivot Data'!B2069,'Cleanup profit status 9'!$G$5:$G$58,0),4),AG53) -> 0 | AI53: =_xlfn.IFNA(INDEX('Expansion Adoption'!$A$5:$H$56,MATCH('Pivot Data'!E2069,'Expansion Adoption'!$B$5:$B$56,0),6),"ERROR") -> 1 | AJ53: =_xlfn.IFNA(INDEX('Expansion Adoption'!$A$5:$H$56,MATCH('Pivot Data'!E2069,'Expansion Adoption'!$B$5:$B$56,0),7),"ERROR") -> 0 | AK53: =_xlfn.IFNA(INDEX('Expansion Adoption'!$A$5:$H$56,MATCH('Pivot Data'!E2069,'Expansion Adoption'!$B$5:$B$56,0),8),"ERROR") -> 1 | AL53: 0 | AM53: 0 | AN53: 0 | AO53: 0 | AP53: 0 | AQ53: 0 | AR53: 0 | AS53: 0 | AT53: 0 | AU53: 0 | AV53: 0 | AW53: 1 | BE53: -0.0109457342
A54: 2013 | B54: C3140 | C54: =Table2[[#This Row],[Year]]&Table2[[#This Row],[SNL Statutory Entity Key ]] -> 2013C3140 | D54: Blue Cross and Blue Shield of South Carolina | E54: SC | F54: BlueChoice HealthPlan of SC | G54: 733343 | H54: 66939.351 | I54: 3578.906 | J54: 2501.521 | K54: 0 | L54: 2961.567 | M54: 57897.357 | N54: 209450.932 | O54: 18372.14 | P54: 11.40046462 | Q54: 11 | R54: 0.8649225924 | S54: 0.04424254128 | T54: 0.09083486633 | U54: 1 | V54: 11.40046462 | W54: 91.27972995 | X54: 8.291382068 | Y54: 4.03844722 | Z54: 78.94990066 | AA54: -1.598721155e-14 | AB54: =_xlfn.IFNA(INDEX('SOA dataset'!$A$4:$BE$674,MATCH('Pivot Data'!F2070,'SOA dataset'!$E$4:$E$674,0),52),"Missing Info") -> Missing Info | AC54: =_xlfn.IFNA(INDEX('NAIC Ownership'!$A$5:$E$212,MATCH('Pivot Data'!B2070,'NAIC Ownership'!$B$5:$B$212,0),5),"Missing Info") -> Stock Company | AD54: =_xlfn.IFNA(INDEX('S&P Export2'!$A$3:$E$290,MATCH('Pivot Data'!B2070,'S&P Export2'!$B$3:$B$290,0),3),"Missing Info") -> 95741 | AE54: 9 | AF54: 1 | AG54: 1 | AH54: =IF(AG54=9,INDEX('Cleanup profit status 9'!$F$5:$I$58,MATCH('Pivot Data'!B2070,'Cleanup profit status 9'!$G$5:$G$58,0),4),AG54) -> 1 | AI54: =_xlfn.IFNA(INDEX('Expansion Adoption'!$A$5:$H$56,MATCH('Pivot Data'!E2070,'Expansion Adoption'!$B$5:$B$56,0),6),"ERROR") -> 0 | AJ54: =_xlfn.IFNA(INDEX('Expansion Adoption'!$A$5:$H$56,MATCH('Pivot Data'!E2070,'Expansion Adoption'!$B$5:$B$56,0),7),"ERROR") -> 0 | AK54: =_xlfn.IFNA(INDEX('Expansion Adoption'!$A$5:$H$56,MATCH('Pivot Data'!E2070,'Expansion Adoption'!$B$5:$B$56,0),8),"ERROR") -> 0 | AL54: 1 | AM54: 1 | AN54: 0 | AO54: 0 | AP54: 0 | AQ54: 0 | AR54: 0 | AS54: 0 | AT54: 0 | AU54: 0 | AV54: 7 | AW54: 0
A55: 2013 | B55: C7327 | C55: =Table2[[#This Row],[Year]]&Table2[[#This Row],[SNL Statutory Entity Key ]] -> 2013C7327 | D55: BMC Health System, Inc. | E55: MA | F55: Boston Med Center Health Plan | G55: 2357641 | H55: 1042591.101 | I55: 33841.949 | J55: 32283.283 | K55: 0 | L55: 3160.739 | M55: 973305.13 | N55: 215377.326 | O55: 49490.111 | P55: 4.351926509 | Q55: 4 | R55: 0.9335444443 | S55: 0.003031619009 | T55: 0.06342393671 | U55: 1 | V55: 4.351926509 | W55: 442.2179208 | X55: 28.04720142 | Y55: 1.340636255 | Z55: 412.8300831 | AA55: -8.215650382e-15 | AB55: =_xlfn.IFNA(INDEX('SOA dataset'!$A$4:$BE$674,MATCH('Pivot Data'!F2071,'SOA dataset'!$E$4:$E$674,0),52),"Missing Info") -> NFP | AC55: =_xlfn.IFNA(INDEX('NAIC Ownership'!$A$5:$E$212,MATCH('Pivot Data'!B2071,'NAIC Ownership'!$B$5:$B$212,0),5),"Missing Info") -> Other | AD55: =_xlfn.IFNA(INDEX('S&P Export2'!$A$3:$E$290,MATCH('Pivot Data'!B2071,'S&P Export2'!$B$3:$B$290,0),3),"Missing Info") -> 13203 | AE55: 0 | AF55: 0 | AG55: 0 | AH55: =IF(AG55=9,INDEX('Cleanup profit status 9'!$F$5:$I$58,MATCH('Pivot Data'!B2071,'Cleanup profit status 9'!$G$5:$G$58,0),4),AG55) -> 0 | AI55: =_xlfn.IFNA(INDEX('Expansion Adoption'!$A$5:$H$56,MATCH('Pivot Data'!E2071,'Expansion Adoption'!$B$5:$B$56,0),6),"ERROR") -> 1 | AJ55: =_xlfn.IFNA(INDEX('Expansion Adoption'!$A$5:$H$56,MATCH('Pivot Data'!E2071,'Expansion Adoption'!$B$5:$B$56,0),7),"ERROR") -> 0 | AK55: =_xlfn.IFNA(INDEX('Expansion Adoption'!$A$5:$H$56,MATCH('Pivot Data'!E2071,'Expansion Adoption'!$B$5:$B$56,0),8),"ERROR") -> 1 | AL55: 1 | AM55: 1 | AN55: 1 | AO55: 1 | AP55: 1 | AQ55: 1 | AR55: 1 | AS55: 0 | AT55: 1 | AU55: 0 | AV55: 24 | AW55: 0 | AX55: 2357641 | AY55: 0.6 | AZ55: 442.2179208 | BA55: 0.65
A56: 2013 | B56: C4048 | C56: =Table2[[#This Row],[Year]]&Table2[[#This Row],[SNL Statutory Entity Key ]] -> 2013C4048 | D56: Centene Corporation | E56: OH | F56: Buckeye Cmnty Hlth Plan Inc | G56: 1950988 | H56: 779896.206 | I56: 23357.049 | J56: 130166.347 | K56: 0 | L56: 19942.209 | M56: 606430.601 | N56: 105714.489 | O56: 23186.894 | P56: 4.559234583 | Q56: 5 | R56: 0.7775786013 | S56: 0.02557033724 | T56: 0.1968510615 | U56: 1 | V56: 4.559234583 | W56: 399.7442352 | X56: 78.69007703 | Y56: 10.2215949 | Z56: 310.8325633 | AA56: -3.552713679e-14 | AB56: =_xlfn.IFNA(INDEX('SOA dataset'!$A$4:$BE$674,MATCH('Pivot Data'!F2072,'SOA dataset'!$E$4:$E$674,0),52),"Missing Info") -> Missing Info | AC56: =_xlfn.IFNA(INDEX('NAIC Ownership'!$A$5:$E$212,MATCH('Pivot Data'!B2072,'NAIC Ownership'!$B$5:$B$212,0),5),"Missing Info") -> Stock Company | AD56: =_xlfn.IFNA(INDEX('S&P Export2'!$A$3:$E$290,MATCH('Pivot Data'!B2072,'S&P Export2'!$B$3:$B$290,0),3),"Missing Info") -> 11834 | AE56: 9 | AF56: 1 | AG56: 1 | AH56: =IF(AG56=9,INDEX('Cleanup profit status 9'!$F$5:$I$58,MATCH('Pivot Data'!B2072,'Cleanup profit status 9'!$G$5:$G$58,0),4),AG56) -> 1 | AI56: =_xlfn.IFNA(INDEX('Expansion Adoption'!$A$5:$H$56,MATCH('Pivot Data'!E2072,'Expansion Adoption'!$B$5:$B$56,0),6),"ERROR") -> 1 | AJ56: =_xlfn.IFNA(INDEX('Expansion Adoption'!$A$5:$H$56,MATCH('Pivot Data'!E2072,'Expansion Adoption'!$B$5:$B$56,0),7),"ERROR") -> 0 | AK56: =_xlfn.IFNA(INDEX('Expansion Adoption'!$A$5:$H$56,MATCH('Pivot Data'!E2072,'Expansion Adoption'!$B$5:$B$56,0),8),"ERROR") -> 1 | AL56: 1 | AM56: 1 | AN56: 1 | AO56: 1 | AP56: 1 | AQ56: 1 | AR56: 1 | AS56: 0 | AT56: 1 | AU56: 0 | AV56: 20 | AW56: 0 | AX56: 1950988 | AY56: 0.5 | AZ56: 399.7442352 | BA56: 0.55
A57: 2013 | B57: C3308 | C57: =Table2[[#This Row],[Year]]&Table2[[#This Row],[SNL Statutory Entity Key ]] -> 2013C3308 | E57: NY | F57: Cap District Physicians' Hlth | G57: 859667 | H57: 337615 | I57: 20773.067 | J57: 8517.653 | K57: 8000 | L57: -8720.473 | M57: 309044.753 | N57: 300487.895 | O57: 52319.694 | P57: 5.743303755 | Q57: 6 | R57: 0.9390718807 | S57: -0.02582963731 | T57: 0.08675775662 | U57: 1 | V57: 5.743303755 | W57: 392.7276492 | X57: 34.07216981 | Y57: -10.14401274 | Z57: 368.7994921 | AA57: 2.309263891e-14 | AB57: =_xlfn.IFNA(INDEX('SOA dataset'!$A$4:$BE$674,MATCH('Pivot Data'!F2073,'SOA dataset'!$E$4:$E$674,0),52),"Missing Info") -> NFP | AC57: =_xlfn.IFNA(INDEX('NAIC Ownership'!$A$5:$E$212,MATCH('Pivot Data'!B2073,'NAIC Ownership'!$B$5:$B$212,0),5),"Missing Info") -> Other | AD57: =_xlfn.IFNA(INDEX('S&P Export2'!$A$3:$E$290,MATCH('Pivot Data'!B2073,'S&P Export2'!$B$3:$B$290,0),3),"Missing Info") -> 95491 | AE57: 0 | AF57: 0 | AG57: 0 | AH57: =IF(AG57=9,INDEX('Cleanup profit status 9'!$F$5:$I$58,MATCH('Pivot Data'!B2073,'Cleanup profit status 9'!$G$5:$G$58,0),4),AG57) -> 0 | AI57: =_xlfn.IFNA(INDEX('Expansion Adoption'!$A$5:$H$56,MATCH('Pivot Data'!E2073,'Expansion Adoption'!$B$5:$B$56,0),6),"ERROR") -> 1 | AJ57: =_xlfn.IFNA(INDEX('Expansion Adoption'!$A$5:$H$56,MATCH('Pivot Data'!E2073,'Expansion Adoption'!$B$5:$B$56,0),7),"ERROR") -> 0 | AK57: =_xlfn.IFNA(INDEX('Expansion Adoption'!$A$5:$H$56,MATCH('Pivot Data'!E2073,'Expansion Adoption'!$B$5:$B$56,0),8),"ERROR") -> 1 | AL57: 1 | AM57: 1 | AN57: 1 | AO57: 1 | AP57: 1 | AQ57: 1 | AR57: 1 | AS57: 0 | AT57: 1 | AU57: 1 | AV57: 9 | AW57: 0 | AX57: 859667 | AY57: 0.3 | AZ57: 392.7276492 | BA57: 0.55 | BE57: -0.007591397151
A58: 2013 | B58: C8788 | C58: =Table2[[#This Row],[Year]]&Table2[[#This Row],[SNL Statutory Entity Key ]] -> 2013C8788 | D58: CareSource | E58: GA | F58: CareSource Georgia Co. | G58: 0 | H58: 0 | I58: 0 | J58: 0 | K58: 0 | L58: 0 | M58: 0 | N58: 0 | O58: 0 | P58: - | Q58: - | R58: - | S58: - | T58: - | U58: 0 | V58: - | W58: - | X58: - | Y58: - | Z58: - | AA58: - | AB58: =_xlfn.IFNA(INDEX('SOA dataset'!$A$4:$BE$674,MATCH('Pivot Data'!F2074,'SOA dataset'!$E$4:$E$674,0),52),"Missing Info") -> Missing Info | AC58: =_xlfn.IFNA(INDEX('NAIC Ownership'!$A$5:$E$212,MATCH('Pivot Data'!B2074,'NAIC Ownership'!$B$5:$B$212,0),5),"Missing Info") -> Other | AD58: =_xlfn.IFNA(INDEX('S&P Export2'!$A$3:$E$290,MATCH('Pivot Data'!B2074,'S&P Export2'!$B$3:$B$290,0),3),"Missing Info") -> 15710 | AE58: 9 | AF58: 0 | AG58: 0 | AH58: =IF(AG58=9,INDEX('Cleanup profit status 9'!$F$5:$I$58,MATCH('Pivot Data'!B2074,'Cleanup profit status 9'!$G$5:$G$58,0),4),AG58) -> 0 | AI58: =_xlfn.IFNA(INDEX('Expansion Adoption'!$A$5:$H$56,MATCH('Pivot Data'!E2074,'Expansion Adoption'!$B$5:$B$56,0),6),"ERROR") -> 0 | AJ58: =_xlfn.IFNA(INDEX('Expansion Adoption'!$A$5:$H$56,MATCH('Pivot Data'!E2074,'Expansion Adoption'!$B$5:$B$56,0),7),"ERROR") -> 0 | AK58: =_xlfn.IFNA(INDEX('Expansion Adoption'!$A$5:$H$56,MATCH('Pivot Data'!E2074,'Expansion Adoption'!$B$5:$B$56,0),8),"ERROR") -> 0 | AL58: 0 | AM58: 0 | AN58: 0 | AO58: 0 | AP58: 0 | AQ58: 0 | AR58: 0 | AS58: 0 | AT58: 0 | AU58: 0 | AV58: 0 | AW58: 1
A59: 2013 | B59: C4057 | C59: =Table2[[#This Row],[Year]]&Table2[[#This Row],[SNL Statutory Entity Key ]] -> 2013C4057 | D59: CareSource | E59: IN | F59: CareSource Indiana Inc. | G59: 0 | H59: 0 | I59: 0 | J59: 46.129 | K59: 0 | L59: -42.904 | M59: -3.225 | N59: 1562.162 | O59: 7.355 | P59: 212.3945615 | Q59: 212 | R59: - | S59: - | T59: - | U59: 0 | V59: 212.3945615 | W59: - | X59: - | Y59: - | Z59: - | AA59: - | AB59: =_xlfn.IFNA(INDEX('SOA dataset'!$A$4:$BE$674,MATCH('Pivot Data'!F2075,'SOA dataset'!$E$4:$E$674,0),52),"Missing Info") -> Missing Info | AC59: =_xlfn.IFNA(INDEX('NAIC Ownership'!$A$5:$E$212,MATCH('Pivot Data'!B2075,'NAIC Ownership'!$B$5:$B$212,0),5),"Missing Info") -> Other | AD59: =_xlfn.IFNA(INDEX('S&P Export2'!$A$3:$E$290,MATCH('Pivot Data'!B2075,'S&P Export2'!$B$3:$B$290,0),3),"Missing Info") -> 10142 | AE59: 9 | AF59: 0 | AG59: 0 | AH59: =IF(AG59=9,INDEX('Cleanup profit status 9'!$F$5:$I$58,MATCH('Pivot Data'!B2075,'Cleanup profit status 9'!$G$5:$G$58,0),4),AG59) -> 0 | AI59: =_xlfn.IFNA(INDEX('Expansion Adoption'!$A$5:$H$56,MATCH('Pivot Data'!E2075,'Expansion Adoption'!$B$5:$B$56,0),6),"ERROR") -> 1 | AJ59: =_xlfn.IFNA(INDEX('Expansion Adoption'!$A$5:$H$56,MATCH('Pivot Data'!E2075,'Expansion Adoption'!$B$5:$B$56,0),7),"ERROR") -> 0 | AK59: =_xlfn.IFNA(INDEX('Expansion Adoption'!$A$5:$H$56,MATCH('Pivot Data'!E2075,'Expansion Adoption'!$B$5:$B$56,0),8),"ERROR") -> 1 | AL59: 0 | AM59: 0 | AN59: 0 | AO59: 0 | AP59: 0 | AQ59: 0 | AR59: 0 | AS59: 0 | AT59: 0 | AU59: 0 | AV59: 0 | AW59: 1 | BE59: 0.07613377556
A60: 2013 | B60: C3649 | C60: =Table2[[#This Row],[Year]]&Table2[[#This Row],[SNL Statutory Entity Key ]] -> 2013C3649 | D60: CareSource | E60: OH | F60: CareSource Ohio Inc. | G60: 11145429 | H60: 4133460.029 | I60: 77436.736 | J60: 478288.429 | K60: 0 | L60: 109955.753 | M60: 3467779.111 | N60: 604859.056 | O60: 122161.829 | P60: 4.951293386 | Q60: 5 | R60: 0.8389531014 | S60: 0.02660138292 | T60: 0.1344455156 | U60: 1 | V60: 4.951293386 | W60: 370.8659424 | X60: 49.86126285 | Y60: 9.865546943 | Z60: 311.1391326 | AA60: 3.730349363e-14 | AB60: =_xlfn.IFNA(INDEX('SOA dataset'!$A$4:$BE$674,MATCH('Pivot Data'!F2076,'SOA dataset'!$E$4:$E$674,0),52),"Missing Info") -> Missing Info | AC60: =_xlfn.IFNA(INDEX('NAIC Ownership'!$A$5:$E$212,MATCH('Pivot Data'!B2076,'NAIC Ownership'!$B$5:$B$212,0),5),"Missing Info") -> Other | AD60: =_xlfn.IFNA(INDEX('S&P Export2'!$A$3:$E$290,MATCH('Pivot Data'!B2076,'S&P Export2'!$B$3:$B$290,0),3),"Missing Info") -> 95201 | AE60: 9 | AF60: 0 | AG60: 0 | AH60: =IF(AG60=9,INDEX('Cleanup profit status 9'!$F$5:$I$58,MATCH('Pivot Data'!B2076,'Cleanup profit status 9'!$G$5:$G$58,0),4),AG60) -> 0 | AI60: =_xlfn.IFNA(INDEX('Expansion Adoption'!$A$5:$H$56,MATCH('Pivot Data'!E2076,'Expansion Adoption'!$B$5:$B$56,0),6),"ERROR") -> 1 | AJ60: =_xlfn.IFNA(INDEX('Expansion Adoption'!$A$5:$H$56,MATCH('Pivot Data'!E2076,'Expansion Adoption'!$B$5:$B$56,0),7),"ERROR") -> 0 | AK60: =_xlfn.IFNA(INDEX('Expansion Adoption'!$A$5:$H$56,MATCH('Pivot Data'!E2076,'Expansion Adoption'!$B$5:$B$56,0),8),"ERROR") -> 1 | AL60: 1 | AM60: 1 | AN60: 1 | AO60: 1 | AP60: 1 | AQ60: 1 | AR60: 1 | AS60: 0 | AT60: 1 | AU60: 0 | AV60: 111 | AW60: 0 | AX60: 11145429 | AY60: 0.9 | AZ60: 370.8659424 | BA60: 0.55 | BE60: 0.02436406814
A61: 2013 | B61: C7459 | C61: =Table2[[#This Row],[Year]]&Table2[[#This Row],[SNL Statutory Entity Key ]] -> 2013C7459 | E61: VA | F61: Carilion Clinic Medicare Rsrc | G61: 134725 | H61: 51105.653 | I61: 1467.453 | J61: 5035.252 | K61: 205 | L61: -5133.17 | M61: 49531.118 | N61: 12726.185 | O61: 4231.397 | P61: 3.007561096 | Q61: 3 | R61: 0.9732018883 | S61: -0.1004423131 | T61: 0.1272404249 | U61: 1 | V61: 3.007561096 | W61: 379.3331082 | X61: 48.26650585 | Y61: -38.10109482 | Z61: 369.1676972 | AA61: 0 | AB61: =_xlfn.IFNA(INDEX('SOA dataset'!$A$4:$BE$674,MATCH('Pivot Data'!F2077,'SOA dataset'!$E$4:$E$674,0),52),"Missing Info") -> 0 | AC61: =_xlfn.IFNA(INDEX('NAIC Ownership'!$A$5:$E$212,MATCH('Pivot Data'!B2077,'NAIC Ownership'!$B$5:$B$212,0),5),"Missing Info") -> Missing Info | AD61: =_xlfn.IFNA(INDEX('S&P Export2'!$A$3:$E$290,MATCH('Pivot Data'!B2077,'S&P Export2'!$B$3:$B$290,0),3),"Missing Info") -> 13628 | AE61: 9 | AF61: 9 | AG61: 9 | AH61: =IF(AG61=9,INDEX('Cleanup profit status 9'!$F$5:$I$58,MATCH('Pivot Data'!B2077,'Cleanup profit status 9'!$G$5:$G$58,0),4),AG61) -> 0 | AI61: =_xlfn.IFNA(INDEX('Expansion Adoption'!$A$5:$H$56,MATCH('Pivot Data'!E2077,'Expansion Adoption'!$B$5:$B$56,0),6),"ERROR") -> 0 | AJ61: =_xlfn.IFNA(INDEX('Expansion Adoption'!$A$5:$H$56,MATCH('Pivot Data'!E2077,'Expansion Adoption'!$B$5:$B$56,0),7),"ERROR") -> 1 | AK61: =_xlfn.IFNA(INDEX('Expansion Adoption'!$A$5:$H$56,MATCH('Pivot Data'!E2077,'Expansion Adoption'!$B$5:$B$56,0),8),"ERROR") -> 1 | AL61: 1 | AM61: 1 | AN61: 1 | AO61: 1 | AP61: 1 | AQ61: 1 | AR61: 1 | AS61: 0 | AT61: 1 | AU61: 1 | AV61: 1 | AW61: 0 | AX61: 134725 | AY61: 0 | AZ61: 379.3331082 | BA61: 0.55
A62: 2013 | B62: C9647 | C62: =Table2[[#This Row],[Year]]&Table2[[#This Row],[SNL Statutory Entity Key ]] -> 2013C9647 | D62: Cascade Comprehensive Care, Inc. | E62: OR | F62: Cascade Health Alliance LLC | G62: 0 | H62: 0 | I62: 0 | J62: 0 | K62: 0 | L62: 0 | M62: 0 | N62: 0 | O62: 0 | P62: - | Q62: - | R62: - | S62: - | T62: - | U62: 0 | V62: - | W62: - | X62: - | Y62: - | Z62: - | AA62: - | AB62: =_xlfn.IFNA(INDEX('SOA dataset'!$A$4:$BE$674,MATCH('Pivot Data'!F2078,'SOA dataset'!$E$4:$E$674,0),52),"Missing Info") -> Missing Info | AC62: =_xlfn.IFNA(INDEX('NAIC Ownership'!$A$5:$E$212,MATCH('Pivot Data'!B2078,'NAIC Ownership'!$B$5:$B$212,0),5),"Missing Info") -> Missing Info | AD62: =_xlfn.IFNA(INDEX('S&P Export2'!$A$3:$E$290,MATCH('Pivot Data'!B2078,'S&P Export2'!$B$3:$B$290,0),3),"Missing Info") -> 16654 | AE62: 9 | AF62: 9 | AG62: 9 | AH62: =IF(AG62=9,INDEX('Cleanup profit status 9'!$F$5:$I$58,MATCH('Pivot Data'!B2078,'Cleanup profit status 9'!$G$5:$G$58,0),4),AG62) -> 1 | AI62: =_xlfn.IFNA(INDEX('Expansion Adoption'!$A$5:$H$56,MATCH('Pivot Data'!E2078,'Expansion Adoption'!$B$5:$B$56,0),6),"ERROR") -> 1 | AJ62: =_xlfn.IFNA(INDEX('Expansion Adoption'!$A$5:$H$56,MATCH('Pivot Data'!E2078,'Expansion Adoption'!$B$5:$B$56,0),7),"ERROR") -> 0 | AK62: =_xlfn.IFNA(INDEX('Expansion Adoption'!$A$5:$H$56,MATCH('Pivot Data'!E2078,'Expansion Adoption'!$B$5:$B$56,0),8),"ERROR") -> 1 | AL62: 0 | AM62: 0 | AN62: 0 | AO62: 0 | AP62: 0 | AQ62: 0 | AR62: 0 | AS62: 0 | AT62: 0 | AU62: 0 | AV62: 0 | AW62: 1 | BE62: 0.007104399185
A63: 2013 | B63: C7470 | C63: =Table2[[#This Row],[Year]]&Table2[[#This Row],[SNL Statutory Entity Key ]] -> 2013C7470 | D63: Community Behavioral HealthCare Network of Pennsylvania, Inc. | E63: PA | F63: CBHNP Services Inc. | G63: 476419 | H63: 48164.791 | I63: 956.077 | J63: 3475.829 | K63: 0 | L63: -527.199 | M63: 44260.085 | N63: 10842.455 | O63: 757.694 | P63: 14.30980713 | Q63: 14 | R63: 0.9189302825 | S63: -0.0109457342 | T63: 0.09201547246 | U63: 1.000000021 | V63: 14.30980713 | W63: 101.0975444 | X63: 9.302538312 | Y63: -1.106586849 | Z63: 92.90159502 | AA63: -2.098992693e-06 | AB63: =_xlfn.IFNA(INDEX('SOA dataset'!$A$4:$BE$674,MATCH('Pivot Data'!F2079,'SOA dataset'!$E$4:$E$674,0),52),"Missing Info") -> Missing Info | AC63: =_xlfn.IFNA(INDEX('NAIC Ownership'!$A$5:$E$212,MATCH('Pivot Data'!B2079,'NAIC Ownership'!$B$5:$B$212,0),5),"Missing Info") -> Missing Info | AD63: =_xlfn.IFNA(INDEX('S&P Export2'!$A$3:$E$290,MATCH('Pivot Data'!B2079,'S&P Export2'!$B$3:$B$290,0),3),"Missing Info") -> 13630 | AE63: 9 | AF63: 9 | AG63: 9 | AH63: =IF(AG63=9,INDEX('Cleanup profit status 9'!$F$5:$I$58,MATCH('Pivot Data'!B2079,'Cleanup profit status 9'!$G$5:$G$58,0),4),AG63) -> 0 | AI63: =_xlfn.IFNA(INDEX('Expansion Adoption'!$A$5:$H$56,MATCH('Pivot Data'!E2079,'Expansion Adoption'!$B$5:$B$56,0),6),"ERROR") -> 1 | AJ63: =_xlfn.IFNA(INDEX('Expansion Adoption'!$A$5:$H$56,MATCH('Pivot Data'!E2079,'Expansion Adoption'!$B$5:$B$56,0),7),"ERROR") -> 0 | AK63: =_xlfn.IFNA(INDEX('Expansion Adoption'!$A$5:$H$56,MATCH('Pivot Data'!E2079,'Expansion Adoption'!$B$5:$B$56,0),8),"ERROR") -> 1 | AL63: 1 | AM63: 1 | AN63: 1 | AO63: 1 | AP63: 1 | AQ63: 1 | AR63: 1 | AS63: 0 | AT63: 1 | AU63: 1 | AV63: 5 | AW63: 0 | AX63: 476419 | AY63: 0.1 | AZ63: 101.0975444 | BA63: 0.05
A64: 2013 | B64: C9225 | C64: =Table2[[#This Row],[Year]]&Table2[[#This Row],[SNL Statutory Entity Key ]] -> 2013C9225 | E64: CO | F64: CCHA LLC | G64: 0 | H64: 0 | I64: 0 | J64: 0 | K64: 0 | L64: 0 | M64: 0 | N64: 0 | O64: 0 | P64: - | Q64: - | R64: - | S64: - | T64: - | U64: 0 | V64: - | W64: - | X64: - | Y64: - | Z64: - | AA64: - | AB64: =_xlfn.IFNA(INDEX('SOA dataset'!$A$4:$BE$674,MATCH('Pivot Data'!F2080,'SOA dataset'!$E$4:$E$674,0),52),"Missing Info") -> Missing Info | AC64: =_xlfn.IFNA(INDEX('NAIC Ownership'!$A$5:$E$212,MATCH('Pivot Data'!B2080,'NAIC Ownership'!$B$5:$B$212,0),5),"Missing Info") -> Limited Liability Corporation | AD64: =_xlfn.IFNA(INDEX('S&P Export2'!$A$3:$E$290,MATCH('Pivot Data'!B2080,'S&P Export2'!$B$3:$B$290,0),3),"Missing Info") -> 16345 | AE64: 9 | AF64: 1 | AG64: 1 | AH64: =IF(AG64=9,INDEX('Cleanup profit status 9'!$F$5:$I$58,MATCH('Pivot Data'!B2080,'Cleanup profit status 9'!$G$5:$G$58,0),4),AG64) -> 1 | AI64: =_xlfn.IFNA(INDEX('Expansion Adoption'!$A$5:$H$56,MATCH('Pivot Data'!E2080,'Expansion Adoption'!$B$5:$B$56,0),6),"ERROR") -> 1 | AJ64: =_xlfn.IFNA(INDEX('Expansion Adoption'!$A$5:$H$56,MATCH('Pivot Data'!E2080,'Expansion Adoption'!$B$5:$B$56,0),7),"ERROR") -> 0 | AK64: =_xlfn.IFNA(INDEX('Expansion Adoption'!$A$5:$H$56,MATCH('Pivot Data'!E2080,'Expansion Adoption'!$B$5:$B$56,0),8),"ERROR") -> 1 | AL64: 0 | AM64: 0 | AN64: 0 | AO64: 0 | AP64: 0 | AQ64: 0 | AR64: 0 | AS64: 0 | AT64: 0 | AU64: 0 | AV64: 0 | AW64: 1 | BE64: 0.06396284332
A65: 2013 | B65: C7473 | C65: =Table2[[#This Row],[Year]]&Table2[[#This Row],[SNL Statutory Entity Key ]] -> 2013C7473 | D65: CeltiCare Health Plan Holdings, LLC | E65: MA | F65: CeltiCare Hlth Plan of MA Inc. | G65: 0 | H65: 0 | I65: 0 | J65: 0 | K65: 0 | L65: 0 | M65: 0 | N65: 11639.771 | O65: 2538.234 | P65: 4.585775386 | Q65: 5 | R65: - | S65: - | T65: - | U65: 0 | V65: 4.585775386 | W65: - | X65: - | Y65: - | Z65: - | AA65: - | AB65: =_xlfn.IFNA(INDEX('SOA dataset'!$A$4:$BE$674,MATCH('Pivot Data'!F2081,'SOA dataset'!$E$4:$E$674,0),52),"Missing Info") -> FP | AC65: =_xlfn.IFNA(INDEX('NAIC Ownership'!$A$5:$E$212,MATCH('Pivot Data'!B2081,'NAIC Ownership'!$B$5:$B$212,0),5),"Missing Info") -> Missing Info | AD65: =_xlfn.IFNA(INDEX('S&P Export2'!$A$3:$E$290,MATCH('Pivot Data'!B2081,'S&P Export2'!$B$3:$B$290,0),3),"Missing Info") -> 13632 | AE65: 1 | AF65: 9 | AG65: 1 | AH65: =IF(AG65=9,INDEX('Cleanup profit status 9'!$F$5:$I$58,MATCH('Pivot Data'!B2081,'Cleanup profit status 9'!$G$5:$G$58,0),4),AG65) -> 1 | AI65: =_xlfn.IFNA(INDEX('Expansion Adoption'!$A$5:$H$56,MATCH('Pivot Data'!E2081,'Expansion Adoption'!$B$5:$B$56,0),6),"ERROR") -> 1 | AJ65: =_xlfn.IFNA(INDEX('Expansion Adoption'!$A$5:$H$56,MATCH('Pivot Data'!E2081,'Expansion Adoption'!$B$5:$B$56,0),7),"ERROR") -> 0 | AK65: =_xlfn.IFNA(INDEX('Expansion Adoption'!$A$5:$H$56,MATCH('Pivot Data'!E2081,'Expansion Adoption'!$B$5:$B$56,0),8),"ERROR") -> 1 | AL65: 0 | AM65: 0 | AN65: 0 | AO65: 0 | AP65: 0 | AQ65: 0 | AR65: 0 | AS65: 0 | AT65: 0 | AU65: 0 | AV65: 0 | AW65: 1
A66: 2013 | B66: C8511 | C66: =Table2[[#This Row],[Year]]&Table2[[#This Row],[SNL Statutory Entity Key ]] -> 2013C8511 | D66: Cenpatico Behavioral Health of Arizona, LLC | E66: AZ | F66: Cenpatico of Arizona Inc. | G66: 0 | H66: 0 | I66: 0 | J66: 0 | K66: 0 | L66: 0 | M66: 0 | N66: 1525.048 | O66: 1.5 | P66: =IFERROR((N66)/O66,"-") -> 1016.698667 | Q66: =IFERROR(ROUND(P66,0),"-") -> 1017 | R66: =IFERROR((M66+K66)/H66,"-") -> - | S66: =IFERROR(L66/H66,"-") -> - | T66: =IFERROR((I66+J66)/H66,"-") -> - | U66: =SUM(R66:T66) -> 0 | V66: =IFERROR(N66/O66,"-") -> 1016.698667 | W66: =IFERROR((H66*1000)/$G66,"-") -> - | X66: =IFERROR((I66*1000+J66*1000)/$G66,"-") -> - | Y66: =IFERROR((L66*1000)/$G66,"-") -> - | Z66: =IFERROR((K66*1000+M66*1000)/$G66,"-") -> - | AA66: =IFERROR((W66-X66-Z66-Y66),"-") -> - | AB66: =_xlfn.IFNA(INDEX('SOA dataset'!$A$4:$BE$674,MATCH('Pivot Data'!F2082,'SOA dataset'!$E$4:$E$674,0),52),"Missing Info") -> Missing Info | AC66: =_xlfn.IFNA(INDEX('NAIC Ownership'!$A$5:$E$212,MATCH('Pivot Data'!B2082,'NAIC Ownership'!$B$5:$B$212,0),5),"Missing Info") -> Missing Info | AD66: =_xlfn.IFNA(INDEX('S&P Export2'!$A$3:$E$290,MATCH('Pivot Data'!B2082,'S&P Export2'!$B$3:$B$290,0),3),"Missing Info") -> 14704 | AE66: =IF(AB66="FP",1,IF(AB66="NFP",0,9)) -> 9 | AF66: =IF(AC66="Stock Company",1,IF(AC66="Limited Liability Corporation",1,IF(AC66="Mutual Company",1,IF(AC66="Missing Info",9,0)))) -> 9 | AG66: =MIN(AE66,AF66) -> 9 | AH66: =IF(AG66=9,INDEX('Cleanup profit status 9'!$F$5:$I$58,MATCH('Pivot Data'!B2082,'Cleanup profit status 9'!$G$5:$G$58,0),4),AG66) -> 1 | AI66: =_xlfn.IFNA(INDEX('Expansion Adoption'!$A$5:$H$56,MATCH('Pivot Data'!E2082,'Expansion Adoption'!$B$5:$B$56,0),6),"ERROR") -> 1 | AJ66: =_xlfn.IFNA(INDEX('Expansion Adoption'!$A$5:$H$56,MATCH('Pivot Data'!E2082,'Expansion Adoption'!$B$5:$B$56,0),7),"ERROR") -> 0 | AK66: =_xlfn.IFNA(INDEX('Expansion Adoption'!$A$5:$H$56,MATCH('Pivot Data'!E2082,'Expansion Adoption'!$B$5:$B$56,0),8),"ERROR") -> 1 | AL66: =IF(G66<=0,0,1) -> 0 | AM66: =IF(G66<50000,0,1) -> 0 | AN66: =IF(W66<100,0,1)*AM66 -> 0 | AO66: =IF(S66>50%,0,1)*AN66 -> 0 | AP66: =IF(S66<-0.5,0,1)*AO66 -> 0 | AQ66: =IF(A66=2020,1,1)*AP66 -> 0 | AR66: =IF(S66=0,0,1)*AQ66 -> 0 | AS66: =IF(A66=2020,1,0)*AP66 -> 0 | AT66: =AR66 -> 0 | AU66: =AT66*IF(G66<$BC$1,1,0) -> 0 | AV66: =ROUND(G66/100000,0) -> 0 | AW66: =IF(W66<1000,0,1) -> 1 | AX66: =IF(AT66=0,"",G66) ->  | AY66: =IF(AX66="","",VLOOKUP(AX66,$BC$15:$BF$24,3)) ->  | AZ66: =IF(AT66=0,"",W66) ->  | BA66: =IF(AZ66="","",VLOOKUP(AZ66,$BD$15:$BF$24,3)) -> 
A67: 2013 | B67: C7568 | C67: =Table2[[#This Row],[Year]]&Table2[[#This Row],[SNL Statutory Entity Key ]] -> 2013C7568 | D67: Children's Hospital and Health System, Inc. | E67: WI | F67: Children's Cmnty Hlth Plan Inc | G67: 1449449 | H67: 274918.827 | I67: 12667.052 | J67: 3383.038 | K67: 0 | L67: -2087.018 | M67: 260955.755 | N67: 20015.4033 | O67: 7457.289 | P67: 2.684005313 | Q67: 3 | R67: 0.9492102009 | S67: -0.007591397151 | T67: 0.05838119628 | U67: 1 | V67: 2.684005313 | W67: 189.6712661 | X67: 11.07323542 | Y67: -1.439869909 | Z67: 180.0379006 | AA67: 8.881784197e-15 | AB67: =_xlfn.IFNA(INDEX('SOA dataset'!$A$4:$BE$674,MATCH('Pivot Data'!F2083,'SOA dataset'!$E$4:$E$674,0),52),"Missing Info") -> NFP | AC67: =_xlfn.IFNA(INDEX('NAIC Ownership'!$A$5:$E$212,MATCH('Pivot Data'!B2083,'NAIC Ownership'!$B$5:$B$212,0),5),"Missing Info") -> Other | AD67: =_xlfn.IFNA(INDEX('S&P Export2'!$A$3:$E$290,MATCH('Pivot Data'!B2083,'S&P Export2'!$B$3:$B$290,0),3),"Missing Info") -> 13739 | AE67: 0 | AF67: 0 | AG67: 0 | AH67: =IF(AG67=9,INDEX('Cleanup profit status 9'!$F$5:$I$58,MATCH('Pivot Data'!B2083,'Cleanup profit status 9'!$G$5:$G$58,0),4),AG67) -> 0 | AI67: =_xlfn.IFNA(INDEX('Expansion Adoption'!$A$5:$H$56,MATCH('Pivot Data'!E2083,'Expansion Adoption'!$B$5:$B$56,0),6),"ERROR") -> 0 | AJ67: =_xlfn.IFNA(INDEX('Expansion Adoption'!$A$5:$H$56,MATCH('Pivot Data'!E2083,'Expansion Adoption'!$B$5:$B$56,0),7),"ERROR") -> 0 | AK67: =_xlfn.IFNA(INDEX('Expansion Adoption'!$A$5:$H$56,MATCH('Pivot Data'!E2083,'Expansion Adoption'!$B$5:$B$56,0),8),"ERROR") -> 0 | AL67: 1 | AM67: 1 | AN67: 1 | AO67: 1 | AP67: 1 | AQ67: 1 | AR67: 1 | AS67: 0 | AT67: 1 | AU67: 1 | AV67: 14 | AW67: 0 | AX67: 1449449 | AY67: 0.4 | AZ67: 189.6712661 | BA67: 0.05 | BE67: -0.02096343462
A68: 2013 | B68: C8618 | C68: =Table2[[#This Row],[Year]]&Table2[[#This Row],[SNL Statutory Entity Key ]] -> 2013C8618 | D68: Children's Health System of Texas | E68: TX | F68: Children's Med Center Hlth | G68: 0 | H68: 0 | I68: 0 | J68: 0 | K68: 0 | L68: 0 | M68: 0 | N68: 0 | O68: 0 | P68: - | Q68: - | R68: - | S68: - | T68: - | U68: 0 | V68: - | W68: - | X68: - | Y68: - | Z68: - | AA68: - | AB68: =_xlfn.IFNA(INDEX('SOA dataset'!$A$4:$BE$674,MATCH('Pivot Data'!F2084,'SOA dataset'!$E$4:$E$674,0),52),"Missing Info") -> Missing Info | AC68: =_xlfn.IFNA(INDEX('NAIC Ownership'!$A$5:$E$212,MATCH('Pivot Data'!B2084,'NAIC Ownership'!$B$5:$B$212,0),5),"Missing Info") -> Other | AD68: =_xlfn.IFNA(INDEX('S&P Export2'!$A$3:$E$290,MATCH('Pivot Data'!B2084,'S&P Export2'!$B$3:$B$290,0),3),"Missing Info") -> 15485 | AE68: 9 | AF68: 0 | AG68: 0 | AH68: =IF(AG68=9,INDEX('Cleanup profit status 9'!$F$5:$I$58,MATCH('Pivot Data'!B2084,'Cleanup profit status 9'!$G$5:$G$58,0),4),AG68) -> 0 | AI68: =_xlfn.IFNA(INDEX('Expansion Adoption'!$A$5:$H$56,MATCH('Pivot Data'!E2084,'Expansion Adoption'!$B$5:$B$56,0),6),"ERROR") -> 0 | AJ68: =_xlfn.IFNA(INDEX('Expansion Adoption'!$A$5:$H$56,MATCH('Pivot Data'!E2084,'Expansion Adoption'!$B$5:$B$56,0),7),"ERROR") -> 0 | AK68: =_xlfn.IFNA(INDEX('Expansion Adoption'!$A$5:$H$56,MATCH('Pivot Data'!E2084,'Expansion Adoption'!$B$5:$B$56,0),8),"ERROR") -> 0 | AL68: 0 | AM68: 0 | AN68: 0 | AO68: 0 | AP68: 0 | AQ68: 0 | AR68: 0 | AS68: 0 | AT68: 0 | AU68: 0 | AV68: 0 | AW68: 1 | BE68: 0.02731353259
A69: 2013 | B69: C7846 | C69: =Table2[[#This Row],[Year]]&Table2[[#This Row],[SNL Statutory Entity Key ]] -> 2013C7846 | D69: CHRISTUS Networks, LLC | E69: TX | F69: CHRISTUS Health Plan | G69: 121268 | H69: 29726.386 | I69: 375.17 | J69: 4614.509 | K69: 0 | L69: 2263.182 | M69: 22473.525 | N69: 15406.76 | O69: 1554.618 | P69: 9.910318805 | Q69: 10 | R69: 0.7560126885 | S69: 0.07613377556 | T69: 0.1678535359 | U69: 1 | V69: 9.910318805 | W69: 245.1296797 | X69: 41.1458835 | Y69: 18.66264802 | Z69: 185.3211482 | AA69: 2.131628207e-14 | AB69: =_xlfn.IFNA(INDEX('SOA dataset'!$A$4:$BE$674,MATCH('Pivot Data'!F2085,'SOA dataset'!$E$4:$E$674,0),52),"Missing Info") -> NFP | AC69: =_xlfn.IFNA(INDEX('NAIC Ownership'!$A$5:$E$212,MATCH('Pivot Data'!B2085,'NAIC Ownership'!$B$5:$B$212,0),5),"Missing Info") -> Missing Info | AD69: =_xlfn.IFNA(INDEX('S&P Export2'!$A$3:$E$290,MATCH('Pivot Data'!B2085,'S&P Export2'!$B$3:$B$290,0),3),"Missing Info") -> 14154 | AE69: 0 | AF69: 9 | AG69: 0 | AH69: =IF(AG69=9,INDEX('Cleanup profit status 9'!$F$5:$I$58,MATCH('Pivot Data'!B2085,'Cleanup profit status 9'!$G$5:$G$58,0),4),AG69) -> 0 | AI69: =_xlfn.IFNA(INDEX('Expansion Adoption'!$A$5:$H$56,MATCH('Pivot Data'!E2085,'Expansion Adoption'!$B$5:$B$56,0),6),"ERROR") -> 0 | AJ69: =_xlfn.IFNA(INDEX('Expansion Adoption'!$A$5:$H$56,MATCH('Pivot Data'!E2085,'Expansion Adoption'!$B$5:$B$56,0),7),"ERROR") -> 0 | AK69: =_xlfn.IFNA(INDEX('Expansion Adoption'!$A$5:$H$56,MATCH('Pivot Data'!E2085,'Expansion Adoption'!$B$5:$B$56,0),8),"ERROR") -> 0 | AL69: 1 | AM69: 1 | AN69: 1 | AO69: 1 | AP69: 1 | AQ69: 1 | AR69: 1 | AS69: 0 | AT69: 1 | AU69: 1 | AV69: 1 | AW69: 0 | AX69: 121268 | AY69: 0 | AZ69: 245.1296797 | BA69: 0.15 | BE69: -0.007677685981
A70: 2013 | B70: C4094 | C70: =Table2[[#This Row],[Year]]&Table2[[#This Row],[SNL Statutory Entity Key ]] -> 2013C4094 | D70: University of Pittsburgh Medical Center | E70: PA | F70: Cmnty Care Behavioral Hlth Org | G70: 6466150 | H70: 730697.513 | I70: 26020.571 | J70: 29350.916 | K70: 0 | L70: 17802.764 | M70: 657523.263 | N70: 155419.6843 | O70: 25673.967 | P70: 6.053590562 | Q70: 6 | R70: 0.8998569877 | S70: 0.02436406814 | T70: 0.07577894548 | U70: 1.000000001 | V70: 6.053590562 | W70: 113.0034894 | X70: 8.563285262 | Y70: 2.753224716 | Z70: 101.6869796 | AA70: -1.546515418e-07 | AB70: =_xlfn.IFNA(INDEX('SOA dataset'!$A$4:$BE$674,MATCH('Pivot Data'!F2086,'SOA dataset'!$E$4:$E$674,0),52),"Missing Info") -> Missing Info | AC70: =_xlfn.IFNA(INDEX('NAIC Ownership'!$A$5:$E$212,MATCH('Pivot Data'!B2086,'NAIC Ownership'!$B$5:$B$212,0),5),"Missing Info") -> Other | AD70: =_xlfn.IFNA(INDEX('S&P Export2'!$A$3:$E$290,MATCH('Pivot Data'!B2086,'S&P Export2'!$B$3:$B$290,0),3),"Missing Info") -> 47024 | AE70: 9 | AF70: 0 | AG70: 0 | AH70: =IF(AG70=9,INDEX('Cleanup profit status 9'!$F$5:$I$58,MATCH('Pivot Data'!B2086,'Cleanup profit status 9'!$G$5:$G$58,0),4),AG70) -> 0 | AI70: =_xlfn.IFNA(INDEX('Expansion Adoption'!$A$5:$H$56,MATCH('Pivot Data'!E2086,'Expansion Adoption'!$B$5:$B$56,0),6),"ERROR") -> 1 | AJ70: =_xlfn.IFNA(INDEX('Expansion Adoption'!$A$5:$H$56,MATCH('Pivot Data'!E2086,'Expansion Adoption'!$B$5:$B$56,0),7),"ERROR") -> 0 | AK70: =_xlfn.IFNA(INDEX('Expansion Adoption'!$A$5:$H$56,MATCH('Pivot Data'!E2086,'Expansion Adoption'!$B$5:$B$56,0),8),"ERROR") -> 1 | AL70: 1 | AM70: 1 | AN70: 1 | AO70: 1 | AP70: 1 | AQ70: 1 | AR70: 1 | AS70: 0 | AT70: 1 | AU70: 0 | AV70: 65 | AW70: 0 | AX70: 6466150 | AY70: 0.9 | AZ70: 113.0034894 | BA70: 0.05
A71: 2013 | B71: C4095 | C71: =Table2[[#This Row],[Year]]&Table2[[#This Row],[SNL Statutory Entity Key ]] -> 2013C4095 | D71: Community Care, Inc. | E71: WI | F71: Cmnty Care Hlth Plan Inc (WI) | G71: 16899 | H71: 56722.717 | I71: 582.089 | J71: 3861.189 | K71: 0 | L71: 12070.592 | M71: 40208.847 | N71: 16131.81763 | O71: 2979.836 | P71: 5.413659554 | Q71: 5 | R71: 0.7088667315 | S71: 0.2127999616 | T71: 0.07833330692 | U71: 1 | V71: 5.413659554 | W71: 3356.572401 | X71: 262.9314161 | Y71: 714.278478 | Z71: 2379.362507 | AA71: 4.547473509e-13 | AB71: =_xlfn.IFNA(INDEX('SOA dataset'!$A$4:$BE$674,MATCH('Pivot Data'!F2087,'SOA dataset'!$E$4:$E$674,0),52),"Missing Info") -> NFP | AC71: =_xlfn.IFNA(INDEX('NAIC Ownership'!$A$5:$E$212,MATCH('Pivot Data'!B2087,'NAIC Ownership'!$B$5:$B$212,0),5),"Missing Info") -> Other | AD71: =_xlfn.IFNA(INDEX('S&P Export2'!$A$3:$E$290,MATCH('Pivot Data'!B2087,'S&P Export2'!$B$3:$B$290,0),3),"Missing Info") -> 10756 | AE71: 0 | AF71: 0 | AG71: 0 | AH71: =IF(AG71=9,INDEX('Cleanup profit status 9'!$F$5:$I$58,MATCH('Pivot Data'!B2087,'Cleanup profit status 9'!$G$5:$G$58,0),4),AG71) -> 0 | AI71: =_xlfn.IFNA(INDEX('Expansion Adoption'!$A$5:$H$56,MATCH('Pivot Data'!E2087,'Expansion Adoption'!$B$5:$B$56,0),6),"ERROR") -> 0 | AJ71: =_xlfn.IFNA(INDEX('Expansion Adoption'!$A$5:$H$56,MATCH('Pivot Data'!E2087,'Expansion Adoption'!$B$5:$B$56,0),7),"ERROR") -> 0 | AK71: =_xlfn.IFNA(INDEX('Expansion Adoption'!$A$5:$H$56,MATCH('Pivot Data'!E2087,'Expansion Adoption'!$B$5:$B$56,0),8),"ERROR") -> 0 | AL71: 1 | AM71: 0 | AN71: 0 | AO71: 0 | AP71: 0 | AQ71: 0 | AR71: 0 | AS71: 0 | AT71: 0 | AU71: 0 | AV71: 0 | AW71: 1 | BE71: 0.03073169027
A72: 2013 | B72: C7763 | C72: =Table2[[#This Row],[Year]]&Table2[[#This Row],[SNL Statutory Entity Key ]] -> 2013C7763 | D72: Anthem Partnership Holding Company, LLC | E72: LA | F72: Cmnty Care Hlth Plan of LA Inc | G72: 1396026 | H72: 388118.816 | I72: 25138.863 | J72: 23792.323 | K72: 0 | L72: 2757.351 | M72: 336430.279 | N72: 47394.667 | O72: 14287.603 | P72: 3.317188125 | Q72: 3 | R72: 0.8668229035 | S72: 0.007104399185 | T72: 0.1260726973 | U72: 1 | V72: 3.317188125 | W72: 278.0168965 | X72: 35.05034004 | Y72: 1.975143013 | Z72: 240.9914135 | AA72: 4.396483178e-14 | AB72: =_xlfn.IFNA(INDEX('SOA dataset'!$A$4:$BE$674,MATCH('Pivot Data'!F2088,'SOA dataset'!$E$4:$E$674,0),52),"Missing Info") -> Missing Info | AC72: =_xlfn.IFNA(INDEX('NAIC Ownership'!$A$5:$E$212,MATCH('Pivot Data'!B2088,'NAIC Ownership'!$B$5:$B$212,0),5),"Missing Info") -> Stock Company | AD72: =_xlfn.IFNA(INDEX('S&P Export2'!$A$3:$E$290,MATCH('Pivot Data'!B2088,'S&P Export2'!$B$3:$B$290,0),3),"Missing Info") -> 14064 | AE72: 9 | AF72: 1 | AG72: 1 | AH72: =IF(AG72=9,INDEX('Cleanup profit status 9'!$F$5:$I$58,MATCH('Pivot Data'!B2088,'Cleanup profit status 9'!$G$5:$G$58,0),4),AG72) -> 1 | AI72: =_xlfn.IFNA(INDEX('Expansion Adoption'!$A$5:$H$56,MATCH('Pivot Data'!E2088,'Expansion Adoption'!$B$5:$B$56,0),6),"ERROR") -> 0 | AJ72: =_xlfn.IFNA(INDEX('Expansion Adoption'!$A$5:$H$56,MATCH('Pivot Data'!E2088,'Expansion Adoption'!$B$5:$B$56,0),7),"ERROR") -> 1 | AK72: =_xlfn.IFNA(INDEX('Expansion Adoption'!$A$5:$H$56,MATCH('Pivot Data'!E2088,'Expansion Adoption'!$B$5:$B$56,0),8),"ERROR") -> 1 | AL72: 1 | AM72: 1 | AN72: 1 | AO72: 1 | AP72: 1 | AQ72: 1 | AR72: 1 | AS72: 0 | AT72: 1 | AU72: 1 | AV72: 14 | AW72: 0 | AX72: 1396026 | AY72: 0.4 | AZ72: 278.0168965 | BA72: 0.25 | BE72: -0.003748008032
A73: 2013 | B73: C8960 | C73: =Table2[[#This Row],[Year]]&Table2[[#This Row],[SNL Statutory Entity Key ]] -> 2013C8960 | D73: Anthem Partnership Holding Company, LLC | E73: NE | F73: Cmnty Care Hlth Plan of NE Inc | G73: 0 | H73: 0 | I73: 0 | J73: 0 | K73: 0 | L73: 0 | M73: 0 | N73: 0 | O73: 0 | P73: - | Q73: - | R73: - | S73: - | T73: - | U73: 0 | V73: - | W73: - | X73: - | Y73: - | Z73: - | AA73: - | AB73: =_xlfn.IFNA(INDEX('SOA dataset'!$A$4:$BE$674,MATCH('Pivot Data'!F2089,'SOA dataset'!$E$4:$E$674,0),52),"Missing Info") -> Missing Info | AC73: =_xlfn.IFNA(INDEX('NAIC Ownership'!$A$5:$E$212,MATCH('Pivot Data'!B2089,'NAIC Ownership'!$B$5:$B$212,0),5),"Missing Info") -> Stock Company | AD73: =_xlfn.IFNA(INDEX('S&P Export2'!$A$3:$E$290,MATCH('Pivot Data'!B2089,'S&P Export2'!$B$3:$B$290,0),3),"Missing Info") -> 15951 | AE73: 9 | AF73: 1 | AG73: 1 | AH73: =IF(AG73=9,INDEX('Cleanup profit status 9'!$F$5:$I$58,MATCH('Pivot Data'!B2089,'Cleanup profit status 9'!$G$5:$G$58,0),4),AG73) -> 1 | AI73: =_xlfn.IFNA(INDEX('Expansion Adoption'!$A$5:$H$56,MATCH('Pivot Data'!E2089,'Expansion Adoption'!$B$5:$B$56,0),6),"ERROR") -> 0 | AJ73: =_xlfn.IFNA(INDEX('Expansion Adoption'!$A$5:$H$56,MATCH('Pivot Data'!E2089,'Expansion Adoption'!$B$5:$B$56,0),7),"ERROR") -> 0 | AK73: =_xlfn.IFNA(INDEX('Expansion Adoption'!$A$5:$H$56,MATCH('Pivot Data'!E2089,'Expansion Adoption'!$B$5:$B$56,0),8),"ERROR") -> 0 | AL73: 0 | AM73: 0 | AN73: 0 | AO73: 0 | AP73: 0 | AQ73: 0 | AR73: 0 | AS73: 0 | AT73: 0 | AU73: 0 | AV73: 0 | AW73: 1 | BE73: 0.02238011415
A74: 2013 | B74: C3996 | C74: =Table2[[#This Row],[Year]]&Table2[[#This Row],[SNL Statutory Entity Key ]] -> 2013C3996 | D74: AMERIGROUP Corporation | E74: NV | F74: Cmnty Care Hlth Plan of NV Inc | G74: 984388 | H74: 178691.728 | I74: 14915.54 | J74: 15935.853 | K74: 0 | L74: 11429.631 | M74: 136410.704 | N74: 28026.64 | O74: 5682.342 | P74: 4.932233927 | Q74: 5 | R74: 0.7633856672 | S74: 0.06396284332 | T74: 0.1726514895 | U74: 1 | V74: 4.932233927 | W74: 181.5257073 | X74: 31.34068375 | Y74: 11.61090038 | Z74: 138.5741232 | AA74: 7.105427358e-15 | AB74: =_xlfn.IFNA(INDEX('SOA dataset'!$A$4:$BE$674,MATCH('Pivot Data'!F2090,'SOA dataset'!$E$4:$E$674,0),52),"Missing Info") -> Missing Info | AC74: =_xlfn.IFNA(INDEX('NAIC Ownership'!$A$5:$E$212,MATCH('Pivot Data'!B2090,'NAIC Ownership'!$B$5:$B$212,0),5),"Missing Info") -> Stock Company | AD74: =_xlfn.IFNA(INDEX('S&P Export2'!$A$3:$E$290,MATCH('Pivot Data'!B2090,'S&P Export2'!$B$3:$B$290,0),3),"Missing Info") -> 12586 | AE74: 9 | AF74: 1 | AG74: 1 | AH74: =IF(AG74=9,INDEX('Cleanup profit status 9'!$F$5:$I$58,MATCH('Pivot Data'!B2090,'Cleanup profit status 9'!$G$5:$G$58,0),4),AG74) -> 1 | AI74: =_xlfn.IFNA(INDEX('Expansion Adoption'!$A$5:$H$56,MATCH('Pivot Data'!E2090,'Expansion Adoption'!$B$5:$B$56,0),6),"ERROR") -> 1 | AJ74: =_xlfn.IFNA(INDEX('Expansion Adoption'!$A$5:$H$56,MATCH('Pivot Data'!E2090,'Expansion Adoption'!$B$5:$B$56,0),7),"ERROR") -> 0 | AK74: =_xlfn.IFNA(INDEX('Expansion Adoption'!$A$5:$H$56,MATCH('Pivot Data'!E2090,'Expansion Adoption'!$B$5:$B$56,0),8),"ERROR") -> 1 | AL74: 1 | AM74: 1 | AN74: 1 | AO74: 1 | AP74: 1 | AQ74: 1 | AR74: 1 | AS74: 0 | AT74: 1 | AU74: 1 | AV74: 10 | AW74: 0 | AX74: 984388 | AY74: 0.3 | AZ74: 181.5257073 | BA74: 0.05 | BE74: 0.01390805128
A75: 2013 | B75: C3552 | C75: =Table2[[#This Row],[Year]]&Table2[[#This Row],[SNL Statutory Entity Key ]] -> 2013C3552 | E75: CO | F75: Colorado Access | G75: 1421899 | H75: 53720.874 | I75: 1463.53 | J75: 8075.169 | K75: 0 | L75: -2434.946 | M75: 46617.121 | N75: 0 | O75: 0 | P75: - | Q75: - | R75: 0.8677654984 | S75: -0.04532588208 | T75: 0.1775603837 | U75: 1 | V75: - | W75: 37.78107587 | X75: 6.708422328 | Y75: -1.71246059 | Z75: 32.78511413 | AA75: -4.218847494e-15 | AB75: =_xlfn.IFNA(INDEX('SOA dataset'!$A$4:$BE$674,MATCH('Pivot Data'!F2091,'SOA dataset'!$E$4:$E$674,0),52),"Missing Info") -> 0 | AC75: =_xlfn.IFNA(INDEX('NAIC Ownership'!$A$5:$E$212,MATCH('Pivot Data'!B2091,'NAIC Ownership'!$B$5:$B$212,0),5),"Missing Info") -> Other | AD75: =_xlfn.IFNA(INDEX('S&P Export2'!$A$3:$E$290,MATCH('Pivot Data'!B2091,'S&P Export2'!$B$3:$B$290,0),3),"Missing Info") -> 95733 | AE75: 9 | AF75: 0 | AG75: 0 | AH75: =IF(AG75=9,INDEX('Cleanup profit status 9'!$F$5:$I$58,MATCH('Pivot Data'!B2091,'Cleanup profit status 9'!$G$5:$G$58,0),4),AG75) -> 0 | AI75: =_xlfn.IFNA(INDEX('Expansion Adoption'!$A$5:$H$56,MATCH('Pivot Data'!E2091,'Expansion Adoption'!$B$5:$B$56,0),6),"ERROR") -> 1 | AJ75: =_xlfn.IFNA(INDEX('Expansion Adoption'!$A$5:$H$56,MATCH('Pivot Data'!E2091,'Expansion Adoption'!$B$5:$B$56,0),7),"ERROR") -> 0 | AK75: =_xlfn.IFNA(INDEX('Expansion Adoption'!$A$5:$H$56,MATCH('Pivot Data'!E2091,'Expansion Adoption'!$B$5:$B$56,0),8),"ERROR") -> 1 | AL75: 1 | AM75: 1 | AN75: 0 | AO75: 0 | AP75: 0 | AQ75: 0 | AR75: 0 | AS75: 0 | AT75: 0 | AU75: 0 | AV75: 14 | AW75: 0
A76: 2013 | B76: C9653 | C76: =Table2[[#This Row],[Year]]&Table2[[#This Row],[SNL Statutory Entity Key ]] -> 2013C9653 | D76: CareOregon, Inc. | E76: OR | F76: Columbia Pacific CCO LLC | G76: 0 | H76: 0 | I76: 0 | J76: 0 | K76: 0 | L76: 0 | M76: 0 | N76: 0 | O76: 0 | P76: - | Q76: - | R76: - | S76: - | T76: - | U76: 0 | V76: - | W76: - | X76: - | Y76: - | Z76: - | AA76: - | AB76: =_xlfn.IFNA(INDEX('SOA dataset'!$A$4:$BE$674,MATCH('Pivot Data'!F2092,'SOA dataset'!$E$4:$E$674,0),52),"Missing Info") -> Missing Info | AC76: =_xlfn.IFNA(INDEX('NAIC Ownership'!$A$5:$E$212,MATCH('Pivot Data'!B2092,'NAIC Ownership'!$B$5:$B$212,0),5),"Missing Info") -> Missing Info | AD76: =_xlfn.IFNA(INDEX('S&P Export2'!$A$3:$E$290,MATCH('Pivot Data'!B2092,'S&P Export2'!$B$3:$B$290,0),3),"Missing Info") -> 16668 | AE76: 9 | AF76: 9 | AG76: 9 | AH76: =IF(AG76=9,INDEX('Cleanup profit status 9'!$F$5:$I$58,MATCH('Pivot Data'!B2092,'Cleanup profit status 9'!$G$5:$G$58,0),4),AG76) -> 0 | AI76: =_xlfn.IFNA(INDEX('Expansion Adoption'!$A$5:$H$56,MATCH('Pivot Data'!E2092,'Expansion Adoption'!$B$5:$B$56,0),6),"ERROR") -> 1 | AJ76: =_xlfn.IFNA(INDEX('Expansion Adoption'!$A$5:$H$56,MATCH('Pivot Data'!E2092,'Expansion Adoption'!$B$5:$B$56,0),7),"ERROR") -> 0 | AK76: =_xlfn.IFNA(INDEX('Expansion Adoption'!$A$5:$H$56,MATCH('Pivot Data'!E2092,'Expansion Adoption'!$B$5:$B$56,0),8),"ERROR") -> 1 | AL76: 0 | AM76: 0 | AN76: 0 | AO76: 0 | AP76: 0 | AQ76: 0 | AR76: 0 | AS76: 0 | AT76: 0 | AU76: 0 | AV76: 0 | AW76: 1 | BE76: 0.1099976382
A77: 2013 | B77: C3768 | C77: =Table2[[#This Row],[Year]]&Table2[[#This Row],[SNL Statutory Entity Key ]] -> 2013C3768 | E77: WA | F77: Columbia United Providers Inc. | G77: 476791 | H77: 90184.22 | I77: 1634.076 | J77: 6075.283 | K77: 0 | L77: -1890.571 | M77: 84365.432 | N77: 23834.003 | O77: 3952.33 | P77: 6.030367657 | Q77: 6 | R77: 0.9354788676 | S77: -0.02096343462 | T77: 0.08548456703 | U77: 1 | V77: 6.030367657 | W77: 189.148327 | X77: 16.16926284 | Y77: -3.965198588 | Z77: 176.9442628 | AA77: -1.909583602e-14 | AB77: =_xlfn.IFNA(INDEX('SOA dataset'!$A$4:$BE$674,MATCH('Pivot Data'!F2093,'SOA dataset'!$E$4:$E$674,0),52),"Missing Info") -> NFP | AC77: =_xlfn.IFNA(INDEX('NAIC Ownership'!$A$5:$E$212,MATCH('Pivot Data'!B2093,'NAIC Ownership'!$B$5:$B$212,0),5),"Missing Info") -> Missing Info | AD77: =_xlfn.IFNA(INDEX('S&P Export2'!$A$3:$E$290,MATCH('Pivot Data'!B2093,'S&P Export2'!$B$3:$B$290,0),3),"Missing Info") -> 47047 | AE77: 0 | AF77: 9 | AG77: 0 | AH77: =IF(AG77=9,INDEX('Cleanup profit status 9'!$F$5:$I$58,MATCH('Pivot Data'!B2093,'Cleanup profit status 9'!$G$5:$G$58,0),4),AG77) -> 0 | AI77: =_xlfn.IFNA(INDEX('Expansion Adoption'!$A$5:$H$56,MATCH('Pivot Data'!E2093,'Expansion Adoption'!$B$5:$B$56,0),6),"ERROR") -> 1 | AJ77: =_xlfn.IFNA(INDEX('Expansion Adoption'!$A$5:$H$56,MATCH('Pivot Data'!E2093,'Expansion Adoption'!$B$5:$B$56,0),7),"ERROR") -> 0 | AK77: =_xlfn.IFNA(INDEX('Expansion Adoption'!$A$5:$H$56,MATCH('Pivot Data'!E2093,'Expansion Adoption'!$B$5:$B$56,0),8),"ERROR") -> 1 | AL77: 1 | AM77: 1 | AN77: 1 | AO77: 1 | AP77: 1 | AQ77: 1 | AR77: 1 | AS77: 0 | AT77: 1 | AU77: 1 | AV77: 5 | AW77: 0 | AX77: 476791 | AY77: 0.1 | AZ77: 189.148327 | BA77: 0.05 | BE77: 0.07703087946
A78: 2013 | B78: C3412 | C78: =Table2[[#This Row],[Year]]&Table2[[#This Row],[SNL Statutory Entity Key ]] -> 2013C3412 | D78: Bexar County Hospital District | E78: TX | F78: Community First Hlth Plans Inc | G78: 999792 | H78: 202706.405 | I78: 6096.475 | J78: 11569.702 | K78: 0 | L78: 5536.628 | M78: 179503.6 | N78: 43796.343 | O78: 9564.872 | P78: 4.578873925 | Q78: 5 | R78: 0.8855349193 | S78: 0.02731353259 | T78: 0.08715154807 | U78: 1 | V78: 4.578873925 | W78: 202.7485767 | X78: 17.66985233 | Y78: 5.537779858 | Z78: 179.5409445 | AA78: 5.329070518e-15 | AB78: =_xlfn.IFNA(INDEX('SOA dataset'!$A$4:$BE$674,MATCH('Pivot Data'!F2094,'SOA dataset'!$E$4:$E$674,0),52),"Missing Info") -> NFP | AC78: =_xlfn.IFNA(INDEX('NAIC Ownership'!$A$5:$E$212,MATCH('Pivot Data'!B2094,'NAIC Ownership'!$B$5:$B$212,0),5),"Missing Info") -> Other | AD78: =_xlfn.IFNA(INDEX('S&P Export2'!$A$3:$E$290,MATCH('Pivot Data'!B2094,'S&P Export2'!$B$3:$B$290,0),3),"Missing Info") -> 95248 | AE78: 0 | AF78: 0 | AG78: 0 | AH78: =IF(AG78=9,INDEX('Cleanup profit status 9'!$F$5:$I$58,MATCH('Pivot Data'!B2094,'Cleanup profit status 9'!$G$5:$G$58,0),4),AG78) -> 0 | AI78: =_xlfn.IFNA(INDEX('Expansion Adoption'!$A$5:$H$56,MATCH('Pivot Data'!E2094,'Expansion Adoption'!$B$5:$B$56,0),6),"ERROR") -> 0 | AJ78: =_xlfn.IFNA(INDEX('Expansion Adoption'!$A$5:$H$56,MATCH('Pivot Data'!E2094,'Expansion Adoption'!$B$5:$B$56,0),7),"ERROR") -> 0 | AK78: =_xlfn.IFNA(INDEX('Expansion Adoption'!$A$5:$H$56,MATCH('Pivot Data'!E2094,'Expansion Adoption'!$B$5:$B$56,0),8),"ERROR") -> 0 | AL78: 1 | AM78: 1 | AN78: 1 | AO78: 1 | AP78: 1 | AQ78: 1 | AR78: 1 | AS78: 0 | AT78: 1 | AU78: 1 | AV78: 10 | AW78: 0 | AX78: 999792 | AY78: 0.3 | AZ78: 202.7485767 | BA78: 0.15 | BE78: 0.09564298891
A79: 2013 | B79: C3416 | C79: =Table2[[#This Row],[Year]]&Table2[[#This Row],[SNL Statutory Entity Key ]] -> 2013C3416 | D79: Harris Health System | E79: TX | F79: Community Health Choice Inc. | G79: 2332326 | H79: 576791.889 | I79: 4932.725 | J79: 44650.639 | K79: 0 | L79: -4428.427 | M79: 531636.952 | N79: 87299.179 | O79: 23591.69 | P79: 3.700420741 | Q79: 4 | R79: 0.9217136408 | S79: -0.007677685981 | T79: 0.08596404517 | U79: 1 | V79: 3.700420741 | W79: 247.3032882 | X79: 21.25919104 | Y79: -1.898716989 | Z79: 227.9428142 | AA79: -2.464695115e-14 | AB79: =_xlfn.IFNA(INDEX('SOA dataset'!$A$4:$BE$674,MATCH('Pivot Data'!F2095,'SOA dataset'!$E$4:$E$674,0),52),"Missing Info") -> NFP | AC79: =_xlfn.IFNA(INDEX('NAIC Ownership'!$A$5:$E$212,MATCH('Pivot Data'!B2095,'NAIC Ownership'!$B$5:$B$212,0),5),"Missing Info") -> Missing Info | AD79: =_xlfn.IFNA(INDEX('S&P Export2'!$A$3:$E$290,MATCH('Pivot Data'!B2095,'S&P Export2'!$B$3:$B$290,0),3),"Missing Info") -> 95615 | AE79: 0 | AF79: 9 | AG79: 0 | AH79: =IF(AG79=9,INDEX('Cleanup profit status 9'!$F$5:$I$58,MATCH('Pivot Data'!B2095,'Cleanup profit status 9'!$G$5:$G$58,0),4),AG79) -> 0 | AI79: =_xlfn.IFNA(INDEX('Expansion Adoption'!$A$5:$H$56,MATCH('Pivot Data'!E2095,'Expansion Adoption'!$B$5:$B$56,0),6),"ERROR") -> 0 | AJ79: =_xlfn.IFNA(INDEX('Expansion Adoption'!$A$5:$H$56,MATCH('Pivot Data'!E2095,'Expansion Adoption'!$B$5:$B$56,0),7),"ERROR") -> 0 | AK79: =_xlfn.IFNA(INDEX('Expansion Adoption'!$A$5:$H$56,MATCH('Pivot Data'!E2095,'Expansion Adoption'!$B$5:$B$56,0),8),"ERROR") -> 0 | AL79: 1 | AM79: 1 | AN79: 1 | AO79: 1 | AP79: 1 | AQ79: 1 | AR79: 1 | AS79: 0 | AT79: 1 | AU79: 0 | AV79: 23 | AW79: 0 | AX79: 2332326 | AY79: 0.6 | AZ79: 247.3032882 | BA79: 0.15 | BE79: -0.08464855344
A80: 2013 | B80: C9108 | C80: =Table2[[#This Row],[Year]]&Table2[[#This Row],[SNL Statutory Entity Key ]] -> 2013C9108 | D80: Harris Health System | E80: TX | F80: Community Health Choice TX Inc | G80: 0 | H80: 0 | I80: 0 | J80: 0 | K80: 0 | L80: 0 | M80: 0 | N80: 0 | O80: 0 | P80: - | Q80: - | R80: - | S80: - | T80: - | U80: 0 | V80: - | W80: - | X80: - | Y80: - | Z80: - | AA80: - | AB80: =_xlfn.IFNA(INDEX('SOA dataset'!$A$4:$BE$674,MATCH('Pivot Data'!F2096,'SOA dataset'!$E$4:$E$674,0),52),"Missing Info") -> Missing Info | AC80: =_xlfn.IFNA(INDEX('NAIC Ownership'!$A$5:$E$212,MATCH('Pivot Data'!B2096,'NAIC Ownership'!$B$5:$B$212,0),5),"Missing Info") -> Other | AD80: =_xlfn.IFNA(INDEX('S&P Export2'!$A$3:$E$290,MATCH('Pivot Data'!B2096,'S&P Export2'!$B$3:$B$290,0),3),"Missing Info") -> 16133 | AE80: 9 | AF80: 0 | AG80: 0 | AH80: =IF(AG80=9,INDEX('Cleanup profit status 9'!$F$5:$I$58,MATCH('Pivot Data'!B2096,'Cleanup profit status 9'!$G$5:$G$58,0),4),AG80) -> 0 | AI80: =_xlfn.IFNA(INDEX('Expansion Adoption'!$A$5:$H$56,MATCH('Pivot Data'!E2096,'Expansion Adoption'!$B$5:$B$56,0),6),"ERROR") -> 0 | AJ80: =_xlfn.IFNA(INDEX('Expansion Adoption'!$A$5:$H$56,MATCH('Pivot Data'!E2096,'Expansion Adoption'!$B$5:$B$56,0),7),"ERROR") -> 0 | AK80: =_xlfn.IFNA(INDEX('Expansion Adoption'!$A$5:$H$56,MATCH('Pivot Data'!E2096,'Expansion Adoption'!$B$5:$B$56,0),8),"ERROR") -> 0 | AL80: 0 | AM80: 0 | AN80: 0 | AO80: 0 | AP80: 0 | AQ80: 0 | AR80: 0 | AS80: 0 | AT80: 0 | AU80: 0 | AV80: 0 | AW80: 1 | BE80: 0.1005539581
A81: 2013 | B81: C3797 | C81: =Table2[[#This Row],[Year]]&Table2[[#This Row],[SNL Statutory Entity Key ]] -> 2013C3797 | D81: Community Health Network of Washington | E81: WA | F81: Community Health Plan of WA | G81: 3004890 | H81: 639573.477 | I81: 11852.717 | J81: 63701.239 | K81: 0 | L81: 19655.174 | M81: 544364.347 | N81: 137798.7379 | O81: 28955.771 | P81: 4.758938655 | Q81: 5 | R81: 0.8511365255 | S81: 0.03073169027 | T81: 0.1181317843 | U81: 1 | V81: 4.758938655 | W81: 212.8442229 | X81: 25.14366782 | Y81: 6.541062734 | Z81: 181.1594924 | AA81: -4.263256415e-14 | AB81: =_xlfn.IFNA(INDEX('SOA dataset'!$A$4:$BE$674,MATCH('Pivot Data'!F2097,'SOA dataset'!$E$4:$E$674,0),52),"Missing Info") -> NFP | AC81: =_xlfn.IFNA(INDEX('NAIC Ownership'!$A$5:$E$212,MATCH('Pivot Data'!B2097,'NAIC Ownership'!$B$5:$B$212,0),5),"Missing Info") -> Other | AD81: =_xlfn.IFNA(INDEX('S&P Export2'!$A$3:$E$290,MATCH('Pivot Data'!B2097,'S&P Export2'!$B$3:$B$290,0),3),"Missing Info") -> 47049 | AE81: 0 | AF81: 0 | AG81: 0 | AH81: =IF(AG81=9,INDEX('Cleanup profit status 9'!$F$5:$I$58,MATCH('Pivot Data'!B2097,'Cleanup profit status 9'!$G$5:$G$58,0),4),AG81) -> 0 | AI81: =_xlfn.IFNA(INDEX('Expansion Adoption'!$A$5:$H$56,MATCH('Pivot Data'!E2097,'Expansion Adoption'!$B$5:$B$56,0),6),"ERROR") -> 1 | AJ81: =_xlfn.IFNA(INDEX('Expansion Adoption'!$A$5:$H$56,MATCH('Pivot Data'!E2097,'Expansion Adoption'!$B$5:$B$56,0),7),"ERROR") -> 0 | AK81: =_xlfn.IFNA(INDEX('Expansion Adoption'!$A$5:$H$56,MATCH('Pivot Data'!E2097,'Expansion Adoption'!$B$5:$B$56,0),8),"ERROR") -> 1 | AL81: 1 | AM81: 1 | AN81: 1 | AO81: 1 | AP81: 1 | AQ81: 1 | AR81: 1 | AS81: 0 | AT81: 1 | AU81: 0 | AV81: 30 | AW81: 0 | AX81: 3004890 | AY81: 0.7 | AZ81: 212.8442229 | BA81: 0.15 | BE81: 0.05589887824
A82: 2013 | B82: C3270 | C82: =Table2[[#This Row],[Year]]&Table2[[#This Row],[SNL Statutory Entity Key ]] -> 2013C3270 | D82: Blue Cross Blue Shield of Wisconsin | E82: WI | F82: Compcare Health Svcs Ins Corp. | G82: 823014 | H82: 149155.23 | I82: 5003.58 | J82: 10875.276 | K82: -1382.175 | L82: -559.035 | M82: 135217.584 | N82: 103942.072 | O82: 19880.434 | P82: 5.228360306 | Q82: 5 | R82: 0.8972894145 | S82: -0.003748008032 | T82: 0.1064585935 | U82: 1 | V82: 5.228360306 | W82: 181.2304894 | X82: 19.293543 | Y82: -0.6792533298 | Z82: 162.6161997 | AA82: 1.709743458e-14 | AB82: =_xlfn.IFNA(INDEX('SOA dataset'!$A$4:$BE$674,MATCH('Pivot Data'!F2098,'SOA dataset'!$E$4:$E$674,0),52),"Missing Info") -> FP | AC82: =_xlfn.IFNA(INDEX('NAIC Ownership'!$A$5:$E$212,MATCH('Pivot Data'!B2098,'NAIC Ownership'!$B$5:$B$212,0),5),"Missing Info") -> Stock Company | AD82: =_xlfn.IFNA(INDEX('S&P Export2'!$A$3:$E$290,MATCH('Pivot Data'!B2098,'S&P Export2'!$B$3:$B$290,0),3),"Missing Info") -> 95693 | AE82: 1 | AF82: 1 | AG82: 1 | AH82: =IF(AG82=9,INDEX('Cleanup profit status 9'!$F$5:$I$58,MATCH('Pivot Data'!B2098,'Cleanup profit status 9'!$G$5:$G$58,0),4),AG82) -> 1 | AI82: =_xlfn.IFNA(INDEX('Expansion Adoption'!$A$5:$H$56,MATCH('Pivot Data'!E2098,'Expansion Adoption'!$B$5:$B$56,0),6),"ERROR") -> 0 | AJ82: =_xlfn.IFNA(INDEX('Expansion Adoption'!$A$5:$H$56,MATCH('Pivot Data'!E2098,'Expansion Adoption'!$B$5:$B$56,0),7),"ERROR") -> 0 | AK82: =_xlfn.IFNA(INDEX('Expansion Adoption'!$A$5:$H$56,MATCH('Pivot Data'!E2098,'Expansion Adoption'!$B$5:$B$56,0),8),"ERROR") -> 0 | AL82: 1 | AM82: 1 | AN82: 1 | AO82: 1 | AP82: 1 | AQ82: 1 | AR82: 1 | AS82: 0 | AT82: 1 | AU82: 1 | AV82: 8 | AW82: 0 | AX82: 823014 | AY82: 0.3 | AZ82: 181.2304894 | BA82: 0.05
A83: 2013 | B83: C3783 | C83: =Table2[[#This Row],[Year]]&Table2[[#This Row],[SNL Statutory Entity Key ]] -> 2013C3783 | D83: Cook Children's Health Care System | E83: TX | F83: Cook Children's Health Plan | G83: 894735 | H83: 203845.475 | I83: 6948.288 | J83: 11688.998 | K83: 0 | L83: 4562.085 | M83: 180646.104 | N83: 36141.844 | O83: 10984.031 | P83: 3.290398944 | Q83: 3 | R83: 0.8861913859 | S83: 0.02238011415 | T83: 0.09142849995 | U83: 1 | V83: 3.290398944 | W83: 227.8277646 | X83: 20.82995077 | Y83: 5.09881138 | Z83: 201.8990025 | AA83: -2.753353101e-14 | AB83: =_xlfn.IFNA(INDEX('SOA dataset'!$A$4:$BE$674,MATCH('Pivot Data'!F2099,'SOA dataset'!$E$4:$E$674,0),52),"Missing Info") -> NFP | AC83: =_xlfn.IFNA(INDEX('NAIC Ownership'!$A$5:$E$212,MATCH('Pivot Data'!B2099,'NAIC Ownership'!$B$5:$B$212,0),5),"Missing Info") -> Other | AD83: =_xlfn.IFNA(INDEX('S&P Export2'!$A$3:$E$290,MATCH('Pivot Data'!B2099,'S&P Export2'!$B$3:$B$290,0),3),"Missing Info") -> 95822 | AE83: 0 | AF83: 0 | AG83: 0 | AH83: =IF(AG83=9,INDEX('Cleanup profit status 9'!$F$5:$I$58,MATCH('Pivot Data'!B2099,'Cleanup profit status 9'!$G$5:$G$58,0),4),AG83) -> 0 | AI83: =_xlfn.IFNA(INDEX('Expansion Adoption'!$A$5:$H$56,MATCH('Pivot Data'!E2099,'Expansion Adoption'!$B$5:$B$56,0),6),"ERROR") -> 0 | AJ83: =_xlfn.IFNA(INDEX('Expansion Adoption'!$A$5:$H$56,MATCH('Pivot Data'!E2099,'Expansion Adoption'!$B$5:$B$56,0),7),"ERROR") -> 0 | AK83: =_xlfn.IFNA(INDEX('Expansion Adoption'!$A$5:$H$56,MATCH('Pivot Data'!E2099,'Expansion Adoption'!$B$5:$B$56,0),8),"ERROR") -> 0 | AL83: 1 | AM83: 1 | AN83: 1 | AO83: 1 | AP83: 1 | AQ83: 1 | AR83: 1 | AS83: 0 | AT83: 1 | AU83: 1 | AV83: 9 | AW83: 0 | AX83: 894735 | AY83: 0.3 | AZ83: 227.8277646 | BA83: 0.15 | BE83: -0.04471559638
A84: 2013 | B84: C3778 | C84: =Table2[[#This Row],[Year]]&Table2[[#This Row],[SNL Statutory Entity Key ]] -> 2013C3778 | D84: Centene Corporation | E84: IN | F84: Coordinated Care Corp. | G84: 3178373 | H84: 566705.992 | I84: 17606.794 | J84: 56038.279 | K84: 3462.346 | L84: 7881.776 | M84: 481716.797 | N84: 57097.421 | O84: 17980.873 | P84: 3.175453216 | Q84: 3 | R84: 0.8561390736 | S84: 0.01390805128 | T84: 0.1299528751 | U84: 1 | V84: 3.175453216 | W84: 178.3006563 | X84: 23.17068292 | Y84: 2.479814672 | Z84: 152.6501587 | AA84: -1.021405183e-14 | AB84: =_xlfn.IFNA(INDEX('SOA dataset'!$A$4:$BE$674,MATCH('Pivot Data'!F2100,'SOA dataset'!$E$4:$E$674,0),52),"Missing Info") -> FP | AC84: =_xlfn.IFNA(INDEX('NAIC Ownership'!$A$5:$E$212,MATCH('Pivot Data'!B2100,'NAIC Ownership'!$B$5:$B$212,0),5),"Missing Info") -> Stock Company | AD84: =_xlfn.IFNA(INDEX('S&P Export2'!$A$3:$E$290,MATCH('Pivot Data'!B2100,'S&P Export2'!$B$3:$B$290,0),3),"Missing Info") -> 95831 | AE84: 1 | AF84: 1 | AG84: 1 | AH84: =IF(AG84=9,INDEX('Cleanup profit status 9'!$F$5:$I$58,MATCH('Pivot Data'!B2100,'Cleanup profit status 9'!$G$5:$G$58,0),4),AG84) -> 1 | AI84: =_xlfn.IFNA(INDEX('Expansion Adoption'!$A$5:$H$56,MATCH('Pivot Data'!E2100,'Expansion Adoption'!$B$5:$B$56,0),6),"ERROR") -> 1 | AJ84: =_xlfn.IFNA(INDEX('Expansion Adoption'!$A$5:$H$56,MATCH('Pivot Data'!E2100,'Expansion Adoption'!$B$5:$B$56,0),7),"ERROR") -> 0 | AK84: =_xlfn.IFNA(INDEX('Expansion Adoption'!$A$5:$H$56,MATCH('Pivot Data'!E2100,'Expansion Adoption'!$B$5:$B$56,0),8),"ERROR") -> 1 | AL84: 1 | AM84: 1 | AN84: 1 | AO84: 1 | AP84: 1 | AQ84: 1 | AR84: 1 | AS84: 0 | AT84: 1 | AU84: 0 | AV84: 32 | AW84: 0 | AX84: 3178373 | AY84: 0.7 | AZ84: 178.3006563 | BA84: 0.05 | BE84: 0.04029101483
A85: 2013 | B85: C8513 | C85: =Table2[[#This Row],[Year]]&Table2[[#This Row],[SNL Statutory Entity Key ]] -> 2013C8513 | D85: Healthy Washington Holdings, Inc. | E85: WA | F85: Coordinated Care of WA Inc. | G85: 0 | H85: 0 | I85: 0 | J85: 0 | K85: 0 | L85: 0 | M85: 0 | N85: 3000 | O85: 19.5 | P85: 153.8461538 | Q85: 154 | R85: - | S85: - | T85: - | U85: 0 | V85: 153.8461538 | W85: - | X85: - | Y85: - | Z85: - | AA85: - | AB85: =_xlfn.IFNA(INDEX('SOA dataset'!$A$4:$BE$674,MATCH('Pivot Data'!F2101,'SOA dataset'!$E$4:$E$674,0),52),"Missing Info") -> FP | AC85: =_xlfn.IFNA(INDEX('NAIC Ownership'!$A$5:$E$212,MATCH('Pivot Data'!B2101,'NAIC Ownership'!$B$5:$B$212,0),5),"Missing Info") -> Stock Company | AD85: =_xlfn.IFNA(INDEX('S&P Export2'!$A$3:$E$290,MATCH('Pivot Data'!B2101,'S&P Export2'!$B$3:$B$290,0),3),"Missing Info") -> 15352 | AE85: 1 | AF85: 1 | AG85: 1 | AH85: =IF(AG85=9,INDEX('Cleanup profit status 9'!$F$5:$I$58,MATCH('Pivot Data'!B2101,'Cleanup profit status 9'!$G$5:$G$58,0),4),AG85) -> 1 | AI85: =_xlfn.IFNA(INDEX('Expansion Adoption'!$A$5:$H$56,MATCH('Pivot Data'!E2101,'Expansion Adoption'!$B$5:$B$56,0),6),"ERROR") -> 1 | AJ85: =_xlfn.IFNA(INDEX('Expansion Adoption'!$A$5:$H$56,MATCH('Pivot Data'!E2101,'Expansion Adoption'!$B$5:$B$56,0),7),"ERROR") -> 0 | AK85: =_xlfn.IFNA(INDEX('Expansion Adoption'!$A$5:$H$56,MATCH('Pivot Data'!E2101,'Expansion Adoption'!$B$5:$B$56,0),8),"ERROR") -> 1 | AL85: 0 | AM85: 0 | AN85: 0 | AO85: 0 | AP85: 0 | AQ85: 0 | AR85: 0 | AS85: 0 | AT85: 0 | AU85: 0 | AV85: 0 | AW85: 1
A86: 2013 | B86: C2297 | C86: =Table2[[#This Row],[Year]]&Table2[[#This Row],[SNL Statutory Entity Key ]] -> 2013C2297 | D86: Aetna Health Holdings, LLC | E86: MO | F86: Coventry Health & Life Ins Co. | G86: 2904645 | H86: 1086802.026 | I86: 25801.923 | J86: 36925.922 | K86: 0 | L86: 119545.656 | M86: 904528.525 | N86: 585881.97 | O86: 116794.992 | P86: 5.01632784 | Q86: 5 | R86: 0.8322845407 | S86: 0.1099976382 | T86: 0.05771782118 | U86: 1 | V86: 5.01632784 | W86: 374.1600182 | X86: 21.59570102 | Y86: 41.15671829 | Z86: 311.4075989 | AA86: -1.421085472e-14 | AB86: =_xlfn.IFNA(INDEX('SOA dataset'!$A$4:$BE$674,MATCH('Pivot Data'!F2102,'SOA dataset'!$E$4:$E$674,0),52),"Missing Info") -> FP | AC86: =_xlfn.IFNA(INDEX('NAIC Ownership'!$A$5:$E$212,MATCH('Pivot Data'!B2102,'NAIC Ownership'!$B$5:$B$212,0),5),"Missing Info") -> Missing Info | AD86: =_xlfn.IFNA(INDEX('S&P Export2'!$A$3:$E$290,MATCH('Pivot Data'!B2102,'S&P Export2'!$B$3:$B$290,0),3),"Missing Info") -> 81973 | AE86: 1 | AF86: 9 | AG86: 1 | AH86: =IF(AG86=9,INDEX('Cleanup profit status 9'!$F$5:$I$58,MATCH('Pivot Data'!B2102,'Cleanup profit status 9'!$G$5:$G$58,0),4),AG86) -> 1 | AI86: =_xlfn.IFNA(INDEX('Expansion Adoption'!$A$5:$H$56,MATCH('Pivot Data'!E2102,'Expansion Adoption'!$B$5:$B$56,0),6),"ERROR") -> 0 | AJ86: =_xlfn.IFNA(INDEX('Expansion Adoption'!$A$5:$H$56,MATCH('Pivot Data'!E2102,'Expansion Adoption'!$B$5:$B$56,0),7),"ERROR") -> 0 | AK86: =_xlfn.IFNA(INDEX('Expansion Adoption'!$A$5:$H$56,MATCH('Pivot Data'!E2102,'Expansion Adoption'!$B$5:$B$56,0),8),"ERROR") -> 0 | AL86: 1 | AM86: 1 | AN86: 1 | AO86: 1 | AP86: 1 | AQ86: 1 | AR86: 1 | AS86: 0 | AT86: 1 | AU86: 0 | AV86: 29 | AW86: 0 | AX86: 2904645 | AY86: 0.7 | AZ86: 374.1600182 | BA86: 0.55
A87: 2013 | B87: C3334 | C87: =Table2[[#This Row],[Year]]&Table2[[#This Row],[SNL Statutory Entity Key ]] -> 2013C3334 | D87: Aetna Health Holdings, LLC | E87: NE | F87: Coventry Health Care of NE Inc | G87: 1191178 | H87: 248133.88 | I87: 4558.051 | J87: 12213.235 | K87: 0 | L87: 19113.971 | M87: 212248.623 | N87: 49589.494 | O87: 11962.462 | P87: 4.145425415 | Q87: 4 | R87: 0.8553794548 | S87: 0.07703087946 | T87: 0.06758966571 | U87: 1 | V87: 4.145425415 | W87: 208.3096565 | X87: 14.07958005 | Y87: 16.04627604 | Z87: 178.1838004 | AA87: -1.776356839e-14 | AB87: =_xlfn.IFNA(INDEX('SOA dataset'!$A$4:$BE$674,MATCH('Pivot Data'!F2103,'SOA dataset'!$E$4:$E$674,0),52),"Missing Info") -> FP | AC87: =_xlfn.IFNA(INDEX('NAIC Ownership'!$A$5:$E$212,MATCH('Pivot Data'!B2103,'NAIC Ownership'!$B$5:$B$212,0),5),"Missing Info") -> Missing Info | AD87: =_xlfn.IFNA(INDEX('S&P Export2'!$A$3:$E$290,MATCH('Pivot Data'!B2103,'S&P Export2'!$B$3:$B$290,0),3),"Missing Info") -> 95925 | AE87: 1 | AF87: 9 | AG87: 1 | AH87: =IF(AG87=9,INDEX('Cleanup profit status 9'!$F$5:$I$58,MATCH('Pivot Data'!B2103,'Cleanup profit status 9'!$G$5:$G$58,0),4),AG87) -> 1 | AI87: =_xlfn.IFNA(INDEX('Expansion Adoption'!$A$5:$H$56,MATCH('Pivot Data'!E2103,'Expansion Adoption'!$B$5:$B$56,0),6),"ERROR") -> 0 | AJ87: =_xlfn.IFNA(INDEX('Expansion Adoption'!$A$5:$H$56,MATCH('Pivot Data'!E2103,'Expansion Adoption'!$B$5:$B$56,0),7),"ERROR") -> 0 | AK87: =_xlfn.IFNA(INDEX('Expansion Adoption'!$A$5:$H$56,MATCH('Pivot Data'!E2103,'Expansion Adoption'!$B$5:$B$56,0),8),"ERROR") -> 0 | AL87: 1 | AM87: 1 | AN87: 1 | AO87: 1 | AP87: 1 | AQ87: 1 | AR87: 1 | AS87: 0 | AT87: 1 | AU87: 1 | AV87: 12 | AW87: 0 | AX87: 1191178 | AY87: 0.4 | AZ87: 208.3096565 | BA87: 0.15 | BE87: 0.009703995462
A88: 2013 | B88: C3313 | C88: =Table2[[#This Row],[Year]]&Table2[[#This Row],[SNL Statutory Entity Key ]] -> 2013C3313 | D88: Aetna Health Holdings, LLC | E88: WV | F88: Coventry Health Care of WV Inc | G88: 774730 | H88: 178665.6 | I88: 6656.584 | J88: 12609.076 | K88: 0 | L88: 17088.112 | M88: 142311.828 | N88: 44398.815 | O88: 7601.618 | P88: 5.840705887 | Q88: 6 | R88: 0.7965261808 | S88: 0.09564298891 | T88: 0.1078308303 | U88: 1 | V88: 5.840705887 | W88: 230.6166019 | X88: 24.86757967 | Y88: 22.0568611 | Z88: 183.6921611 | AA88: 0 | AB88: =_xlfn.IFNA(INDEX('SOA dataset'!$A$4:$BE$674,MATCH('Pivot Data'!F2104,'SOA dataset'!$E$4:$E$674,0),52),"Missing Info") -> FP | AC88: =_xlfn.IFNA(INDEX('NAIC Ownership'!$A$5:$E$212,MATCH('Pivot Data'!B2104,'NAIC Ownership'!$B$5:$B$212,0),5),"Missing Info") -> Stock Company | AD88: =_xlfn.IFNA(INDEX('S&P Export2'!$A$3:$E$290,MATCH('Pivot Data'!B2104,'S&P Export2'!$B$3:$B$290,0),3),"Missing Info") -> 95408 | AE88: 1 | AF88: 1 | AG88: 1 | AH88: =IF(AG88=9,INDEX('Cleanup profit status 9'!$F$5:$I$58,MATCH('Pivot Data'!B2104,'Cleanup profit status 9'!$G$5:$G$58,0),4),AG88) -> 1 | AI88: =_xlfn.IFNA(INDEX('Expansion Adoption'!$A$5:$H$56,MATCH('Pivot Data'!E2104,'Expansion Adoption'!$B$5:$B$56,0),6),"ERROR") -> 1 | AJ88: =_xlfn.IFNA(INDEX('Expansion Adoption'!$A$5:$H$56,MATCH('Pivot Data'!E2104,'Expansion Adoption'!$B$5:$B$56,0),7),"ERROR") -> 0 | AK88: =_xlfn.IFNA(INDEX('Expansion Adoption'!$A$5:$H$56,MATCH('Pivot Data'!E2104,'Expansion Adoption'!$B$5:$B$56,0),8),"ERROR") -> 1 | AL88: 1 | AM88: 1 | AN88: 1 | AO88: 1 | AP88: 1 | AQ88: 1 | AR88: 1 | AS88: 0 | AT88: 1 | AU88: 1 | AV88: 8 | AW88: 0 | AX88: 774730 | AY88: 0.3 | AZ88: 230.6166019 | BA88: 0.15
A89: 2013 | B89: C4736 | C89: =Table2[[#This Row],[Year]]&Table2[[#This Row],[SNL Statutory Entity Key ]] -> 2013C4736 | D89: Florida Health Plan Administrators, LLC | E89: FL | F89: Coventry Health Plan of FL Inc | G89: 292225 | H89: 65413.132 | I89: 2313.506 | J89: 9084.839 | K89: 0 | L89: -5537.127 | M89: 59551.914 | N89: 51277.881 | O89: 9322.998 | P89: 5.500149308 | Q89: 6 | R89: 0.9103969215 | S89: -0.08464855344 | T89: 0.1742516319 | U89: 1 | V89: 5.500149308 | W89: 223.845092 | X89: 39.00537257 | Y89: -18.94816323 | Z89: 203.7878826 | AA89: -2.131628207e-14 | AB89: =_xlfn.IFNA(INDEX('SOA dataset'!$A$4:$BE$674,MATCH('Pivot Data'!F2105,'SOA dataset'!$E$4:$E$674,0),52),"Missing Info") -> 0 | AC89: =_xlfn.IFNA(INDEX('NAIC Ownership'!$A$5:$E$212,MATCH('Pivot Data'!B2105,'NAIC Ownership'!$B$5:$B$212,0),5),"Missing Info") -> Missing Info | AD89: =_xlfn.IFNA(INDEX('S&P Export2'!$A$3:$E$290,MATCH('Pivot Data'!B2105,'S&P Export2'!$B$3:$B$290,0),3),"Missing Info") -> 95266 | AE89: 9 | AF89: 9 | AG89: 9 | AH89: =IF(AG89=9,INDEX('Cleanup profit status 9'!$F$5:$I$58,MATCH('Pivot Data'!B2105,'Cleanup profit status 9'!$G$5:$G$58,0),4),AG89) -> 1 | AI89: =_xlfn.IFNA(INDEX('Expansion Adoption'!$A$5:$H$56,MATCH('Pivot Data'!E2105,'Expansion Adoption'!$B$5:$B$56,0),6),"ERROR") -> 0 | AJ89: =_xlfn.IFNA(INDEX('Expansion Adoption'!$A$5:$H$56,MATCH('Pivot Data'!E2105,'Expansion Adoption'!$B$5:$B$56,0),7),"ERROR") -> 0 | AK89: =_xlfn.IFNA(INDEX('Expansion Adoption'!$A$5:$H$56,MATCH('Pivot Data'!E2105,'Expansion Adoption'!$B$5:$B$56,0),8),"ERROR") -> 0 | AL89: 1 | AM89: 1 | AN89: 1 | AO89: 1 | AP89: 1 | AQ89: 1 | AR89: 1 | AS89: 0 | AT89: 1 | AU89: 1 | AV89: 3 | AW89: 0 | AX89: 292225 | AY89: 0.1 | AZ89: 223.845092 | BA89: 0.15 | BE89: 0.02323720625
A90: 2013 | B90: C3565 | C90: =Table2[[#This Row],[Year]]&Table2[[#This Row],[SNL Statutory Entity Key ]] -> 2013C3565 | D90: Aetna Health Inc. (a Pennsylvania corporation) | E90: DE | F90: Coventry HlthCare DE Inc | G90: 125916 | H90: 43055.242 | I90: 2158.02 | J90: 2865.465 | K90: 0 | L90: 4329.375 | M90: 33702.382 | N90: 37901.138 | O90: 6079.184 | P90: 6.234576548 | Q90: 6 | R90: 0.7827707019 | S90: 0.1005539581 | T90: 0.11667534 | U90: 1 | V90: 6.234576548 | W90: 341.9362273 | X90: 39.89552559 | Y90: 34.38304108 | Z90: 267.6576607 | AA90: 0 | AB90: =_xlfn.IFNA(INDEX('SOA dataset'!$A$4:$BE$674,MATCH('Pivot Data'!F2106,'SOA dataset'!$E$4:$E$674,0),52),"Missing Info") -> Missing Info | AC90: =_xlfn.IFNA(INDEX('NAIC Ownership'!$A$5:$E$212,MATCH('Pivot Data'!B2106,'NAIC Ownership'!$B$5:$B$212,0),5),"Missing Info") -> Missing Info | AD90: =_xlfn.IFNA(INDEX('S&P Export2'!$A$3:$E$290,MATCH('Pivot Data'!B2106,'S&P Export2'!$B$3:$B$290,0),3),"Missing Info") -> 96460 | AE90: 9 | AF90: 9 | AG90: 9 | AH90: =IF(AG90=9,INDEX('Cleanup profit status 9'!$F$5:$I$58,MATCH('Pivot Data'!B2106,'Cleanup profit status 9'!$G$5:$G$58,0),4),AG90) -> 1 | AI90: =_xlfn.IFNA(INDEX('Expansion Adoption'!$A$5:$H$56,MATCH('Pivot Data'!E2106,'Expansion Adoption'!$B$5:$B$56,0),6),"ERROR") -> 1 | AJ90: =_xlfn.IFNA(INDEX('Expansion Adoption'!$A$5:$H$56,MATCH('Pivot Data'!E2106,'Expansion Adoption'!$B$5:$B$56,0),7),"ERROR") -> 0 | AK90: =_xlfn.IFNA(INDEX('Expansion Adoption'!$A$5:$H$56,MATCH('Pivot Data'!E2106,'Expansion Adoption'!$B$5:$B$56,0),8),"ERROR") -> 1 | AL90: 1 | AM90: 1 | AN90: 1 | AO90: 1 | AP90: 1 | AQ90: 1 | AR90: 1 | AS90: 0 | AT90: 1 | AU90: 1 | AV90: 1 | AW90: 0 | AX90: 125916 | AY90: 0 | AZ90: 341.9362273 | BA90: 0.45 | BE90: =IF(AT100=0,"",S100) -> 0.07562129066
A91: 2013 | B91: C3335 | C91: =Table2[[#This Row],[Year]]&Table2[[#This Row],[SNL Statutory Entity Key ]] -> 2013C3335 | D91: Aetna Health Holdings, LLC | E91: VA | F91: Coventry HlthCare of VA Inc. | G91: 451526 | H91: 146373.635 | I91: 4934.595 | J91: 6349.266 | K91: 0 | L91: 8182.122 | M91: 126907.652 | N91: 35876.165 | O91: 10676.955 | P91: 3.3601495 | Q91: 3 | R91: 0.8670116855 | S91: 0.05589887824 | T91: 0.07708943622 | U91: 1 | V91: 3.3601495 | W91: 324.1754295 | X91: 24.9905011 | Y91: 18.12104286 | Z91: 281.0638856 | AA91: 3.552713679e-15 | AB91: =_xlfn.IFNA(INDEX('SOA dataset'!$A$4:$BE$674,MATCH('Pivot Data'!F2107,'SOA dataset'!$E$4:$E$674,0),52),"Missing Info") -> FP | AC91: =_xlfn.IFNA(INDEX('NAIC Ownership'!$A$5:$E$212,MATCH('Pivot Data'!B2107,'NAIC Ownership'!$B$5:$B$212,0),5),"Missing Info") -> Stock Company | AD91: =_xlfn.IFNA(INDEX('S&P Export2'!$A$3:$E$290,MATCH('Pivot Data'!B2107,'S&P Export2'!$B$3:$B$290,0),3),"Missing Info") -> 96555 | AE91: 1 | AF91: 1 | AG91: 1 | AH91: =IF(AG91=9,INDEX('Cleanup profit status 9'!$F$5:$I$58,MATCH('Pivot Data'!B2107,'Cleanup profit status 9'!$G$5:$G$58,0),4),AG91) -> 1 | AI91: =_xlfn.IFNA(INDEX('Expansion Adoption'!$A$5:$H$56,MATCH('Pivot Data'!E2107,'Expansion Adoption'!$B$5:$B$56,0),6),"ERROR") -> 0 | AJ91: =_xlfn.IFNA(INDEX('Expansion Adoption'!$A$5:$H$56,MATCH('Pivot Data'!E2107,'Expansion Adoption'!$B$5:$B$56,0),7),"ERROR") -> 1 | AK91: =_xlfn.IFNA(INDEX('Expansion Adoption'!$A$5:$H$56,MATCH('Pivot Data'!E2107,'Expansion Adoption'!$B$5:$B$56,0),8),"ERROR") -> 1 | AL91: 1 | AM91: 1 | AN91: 1 | AO91: 1 | AP91: 1 | AQ91: 1 | AR91: 1 | AS91: 0 | AT91: 1 | AU91: 1 | AV91: 5 | AW91: 0 | AX91: 451526 | AY91: 0.1 | AZ91: 324.1754295 | BA91: 0.35
A92: 2013 | B92: C8853 | C92: =Table2[[#This Row],[Year]]&Table2[[#This Row],[SNL Statutory Entity Key ]] -> 2013C8853 | D92: Crystal Run Health Transformation Holdings, LLC | E92: NY | F92: Crystal Run Health Plan LLC | G92: 0 | H92: 0 | I92: 0 | J92: 0 | K92: 0 | L92: 0 | M92: 0 | N92: 0 | O92: 0 | P92: - | Q92: - | R92: - | S92: - | T92: - | U92: 0 | V92: - | W92: - | X92: - | Y92: - | Z92: - | AA92: - | AB92: =_xlfn.IFNA(INDEX('SOA dataset'!$A$4:$BE$674,MATCH('Pivot Data'!F2108,'SOA dataset'!$E$4:$E$674,0),52),"Missing Info") -> Missing Info | AC92: =_xlfn.IFNA(INDEX('NAIC Ownership'!$A$5:$E$212,MATCH('Pivot Data'!B2108,'NAIC Ownership'!$B$5:$B$212,0),5),"Missing Info") -> Limited Liability Corporation | AD92: =_xlfn.IFNA(INDEX('S&P Export2'!$A$3:$E$290,MATCH('Pivot Data'!B2108,'S&P Export2'!$B$3:$B$290,0),3),"Missing Info") -> 15797 | AE92: 9 | AF92: 1 | AG92: 1 | AH92: =IF(AG92=9,INDEX('Cleanup profit status 9'!$F$5:$I$58,MATCH('Pivot Data'!B2108,'Cleanup profit status 9'!$G$5:$G$58,0),4),AG92) -> 1 | AI92: =_xlfn.IFNA(INDEX('Expansion Adoption'!$A$5:$H$56,MATCH('Pivot Data'!E2108,'Expansion Adoption'!$B$5:$B$56,0),6),"ERROR") -> 1 | AJ92: =_xlfn.IFNA(INDEX('Expansion Adoption'!$A$5:$H$56,MATCH('Pivot Data'!E2108,'Expansion Adoption'!$B$5:$B$56,0),7),"ERROR") -> 0 | AK92: =_xlfn.IFNA(INDEX('Expansion Adoption'!$A$5:$H$56,MATCH('Pivot Data'!E2108,'Expansion Adoption'!$B$5:$B$56,0),8),"ERROR") -> 1 | AL92: 0 | AM92: 0 | AN92: 0 | AO92: 0 | AP92: 0 | AQ92: 0 | AR92: 0 | AS92: 0 | AT92: 0 | AU92: 0 | AV92: 0 | AW92: 1 | BE92: -0.07610498296
A93: 2013 | B93: C3650 | C93: =Table2[[#This Row],[Year]]&Table2[[#This Row],[SNL Statutory Entity Key ]] -> 2013C3650 | D93: DC Healthcare Systems, Inc. | E93: DC | F93: DC Chartered Health Plan Inc. | G93: 389475 | H93: 112692.291 | I93: 2840.234 | J93: 16770.641 | K93: -4716.979 | L93: -5039.103 | M93: 102837.498 | N93: -11148.4541 | O93: 4827.749 | P93: -2.309244764 | Q93: -2 | R93: 0.8706941542 | S93: -0.04471559638 | T93: 0.1740214422 | U93: 1 | V93: -2.309244764 | W93: 289.344094 | X93: 50.35207651 | Y93: -12.93819372 | Z93: 251.9302112 | AA93: 1.776356839e-14 | AB93: =_xlfn.IFNA(INDEX('SOA dataset'!$A$4:$BE$674,MATCH('Pivot Data'!F2109,'SOA dataset'!$E$4:$E$674,0),52),"Missing Info") -> 0 | AC93: =_xlfn.IFNA(INDEX('NAIC Ownership'!$A$5:$E$212,MATCH('Pivot Data'!B2109,'NAIC Ownership'!$B$5:$B$212,0),5),"Missing Info") -> Missing Info | AD93: =_xlfn.IFNA(INDEX('S&P Export2'!$A$3:$E$290,MATCH('Pivot Data'!B2109,'S&P Export2'!$B$3:$B$290,0),3),"Missing Info") -> 95748 | AE93: 9 | AF93: 9 | AG93: 9 | AH93: =IF(AG93=9,INDEX('Cleanup profit status 9'!$F$5:$I$58,MATCH('Pivot Data'!B2109,'Cleanup profit status 9'!$G$5:$G$58,0),4),AG93) -> 1 | AI93: =_xlfn.IFNA(INDEX('Expansion Adoption'!$A$5:$H$56,MATCH('Pivot Data'!E2109,'Expansion Adoption'!$B$5:$B$56,0),6),"ERROR") -> 1 | AJ93: =_xlfn.IFNA(INDEX('Expansion Adoption'!$A$5:$H$56,MATCH('Pivot Data'!E2109,'Expansion Adoption'!$B$5:$B$56,0),7),"ERROR") -> 0 | AK93: =_xlfn.IFNA(INDEX('Expansion Adoption'!$A$5:$H$56,MATCH('Pivot Data'!E2109,'Expansion Adoption'!$B$5:$B$56,0),8),"ERROR") -> 1 | AL93: 1 | AM93: 1 | AN93: 1 | AO93: 1 | AP93: 1 | AQ93: 1 | AR93: 1 | AS93: 0 | AT93: 1 | AU93: 1 | AV93: 4 | AW93: 0 | AX93: 389475 | AY93: 0.1 | AZ93: 289.344094 | BA93: 0.35 | BE93: -0.02440802837
A94: 2013 | B94: C3372 | C94: =Table2[[#This Row],[Year]]&Table2[[#This Row],[SNL Statutory Entity Key ]] -> 2013C3372 | D94: Dean Health Insurance, Inc. | E94: WI | F94: Dean Health Plan Inc. | G94: 499358 | H94: 84929.829 | I94: 1245.381 | J94: 6723.501 | K94: 0 | L94: 3421.909 | M94: 73539.038 | N94: 86642.9454 | O94: 20796.268 | P94: 4.166273747 | Q94: 4 | R94: 0.8658799725 | S94: 0.04029101483 | T94: 0.09382901265 | U94: 1 | V94: 4.166273747 | W94: 170.0780382 | X94: 15.9582544 | Y94: 6.85261676 | Z94: 147.267167 | AA94: 1.776356839e-14 | AB94: =_xlfn.IFNA(INDEX('SOA dataset'!$A$4:$BE$674,MATCH('Pivot Data'!F2110,'SOA dataset'!$E$4:$E$674,0),52),"Missing Info") -> Missing Info | AC94: =_xlfn.IFNA(INDEX('NAIC Ownership'!$A$5:$E$212,MATCH('Pivot Data'!B2110,'NAIC Ownership'!$B$5:$B$212,0),5),"Missing Info") -> Stock Company | AD94: =_xlfn.IFNA(INDEX('S&P Export2'!$A$3:$E$290,MATCH('Pivot Data'!B2110,'S&P Export2'!$B$3:$B$290,0),3),"Missing Info") -> 96156 | AE94: 9 | AF94: 1 | AG94: 1 | AH94: =IF(AG94=9,INDEX('Cleanup profit status 9'!$F$5:$I$58,MATCH('Pivot Data'!B2110,'Cleanup profit status 9'!$G$5:$G$58,0),4),AG94) -> 1 | AI94: =_xlfn.IFNA(INDEX('Expansion Adoption'!$A$5:$H$56,MATCH('Pivot Data'!E2110,'Expansion Adoption'!$B$5:$B$56,0),6),"ERROR") -> 0 | AJ94: =_xlfn.IFNA(INDEX('Expansion Adoption'!$A$5:$H$56,MATCH('Pivot Data'!E2110,'Expansion Adoption'!$B$5:$B$56,0),7),"ERROR") -> 0 | AK94: =_xlfn.IFNA(INDEX('Expansion Adoption'!$A$5:$H$56,MATCH('Pivot Data'!E2110,'Expansion Adoption'!$B$5:$B$56,0),8),"ERROR") -> 0 | AL94: 1 | AM94: 1 | AN94: 1 | AO94: 1 | AP94: 1 | AQ94: 1 | AR94: 1 | AS94: 0 | AT94: 1 | AU94: 1 | AV94: 5 | AW94: 0 | AX94: 499358 | AY94: 0.2 | AZ94: 170.0780382 | BA94: 0.05
A95: 2013 | B95: C3717 | C95: =Table2[[#This Row],[Year]]&Table2[[#This Row],[SNL Statutory Entity Key ]] -> 2013C3717 | D95: Renaissance Health Service Corporation | E95: AR | F95: Delta Dental Plan of AR Inc. | G95: 0 | H95: 0 | I95: 0 | J95: 0 | K95: 0 | L95: 0 | M95: 0 | N95: 59013.65 | O95: 6388.131 | P95: 9.238015 | Q95: 9 | R95: - | S95: - | T95: - | U95: 0 | V95: 9.238015 | W95: - | X95: - | Y95: - | Z95: - | AA95: - | AB95: =_xlfn.IFNA(INDEX('SOA dataset'!$A$4:$BE$674,MATCH('Pivot Data'!F2111,'SOA dataset'!$E$4:$E$674,0),52),"Missing Info") -> Missing Info | AC95: =_xlfn.IFNA(INDEX('NAIC Ownership'!$A$5:$E$212,MATCH('Pivot Data'!B2111,'NAIC Ownership'!$B$5:$B$212,0),5),"Missing Info") -> Other | AD95: =_xlfn.IFNA(INDEX('S&P Export2'!$A$3:$E$290,MATCH('Pivot Data'!B2111,'S&P Export2'!$B$3:$B$290,0),3),"Missing Info") -> 47155 | AE95: 9 | AF95: 0 | AG95: 0 | AH95: =IF(AG95=9,INDEX('Cleanup profit status 9'!$F$5:$I$58,MATCH('Pivot Data'!B2111,'Cleanup profit status 9'!$G$5:$G$58,0),4),AG95) -> 0 | AI95: =_xlfn.IFNA(INDEX('Expansion Adoption'!$A$5:$H$56,MATCH('Pivot Data'!E2111,'Expansion Adoption'!$B$5:$B$56,0),6),"ERROR") -> 1 | AJ95: =_xlfn.IFNA(INDEX('Expansion Adoption'!$A$5:$H$56,MATCH('Pivot Data'!E2111,'Expansion Adoption'!$B$5:$B$56,0),7),"ERROR") -> 0 | AK95: =_xlfn.IFNA(INDEX('Expansion Adoption'!$A$5:$H$56,MATCH('Pivot Data'!E2111,'Expansion Adoption'!$B$5:$B$56,0),8),"ERROR") -> 1 | AL95: 0 | AM95: 0 | AN95: 0 | AO95: 0 | AP95: 0 | AQ95: 0 | AR95: 0 | AS95: 0 | AT95: 0 | AU95: 0 | AV95: 0 | AW95: 1
A96: 2013 | B96: C3651 | C96: =Table2[[#This Row],[Year]]&Table2[[#This Row],[SNL Statutory Entity Key ]] -> 2013C3651 | D96: Denver Health and Hospital Authority | E96: CO | F96: Denver Health Medical Plan Inc | G96: 0 | H96: 0 | I96: 0 | J96: 0 | K96: 0 | L96: 0 | M96: 0 | N96: 34872.498 | O96: 3730.006 | P96: 9.349180135 | Q96: 9 | R96: - | S96: - | T96: - | U96: 0 | V96: 9.349180135 | W96: - | X96: - | Y96: - | Z96: - | AA96: - | AB96: =_xlfn.IFNA(INDEX('SOA dataset'!$A$4:$BE$674,MATCH('Pivot Data'!F2112,'SOA dataset'!$E$4:$E$674,0),52),"Missing Info") -> Missing Info | AC96: =_xlfn.IFNA(INDEX('NAIC Ownership'!$A$5:$E$212,MATCH('Pivot Data'!B2112,'NAIC Ownership'!$B$5:$B$212,0),5),"Missing Info") -> Missing Info | AD96: =_xlfn.IFNA(INDEX('S&P Export2'!$A$3:$E$290,MATCH('Pivot Data'!B2112,'S&P Export2'!$B$3:$B$290,0),3),"Missing Info") -> 95750 | AE96: 9 | AF96: 9 | AG96: 9 | AH96: =IF(AG96=9,INDEX('Cleanup profit status 9'!$F$5:$I$58,MATCH('Pivot Data'!B2112,'Cleanup profit status 9'!$G$5:$G$58,0),4),AG96) -> 0 | AI96: =_xlfn.IFNA(INDEX('Expansion Adoption'!$A$5:$H$56,MATCH('Pivot Data'!E2112,'Expansion Adoption'!$B$5:$B$56,0),6),"ERROR") -> 1 | AJ96: =_xlfn.IFNA(INDEX('Expansion Adoption'!$A$5:$H$56,MATCH('Pivot Data'!E2112,'Expansion Adoption'!$B$5:$B$56,0),7),"ERROR") -> 0 | AK96: =_xlfn.IFNA(INDEX('Expansion Adoption'!$A$5:$H$56,MATCH('Pivot Data'!E2112,'Expansion Adoption'!$B$5:$B$56,0),8),"ERROR") -> 1 | AL96: 0 | AM96: 0 | AN96: 0 | AO96: 0 | AP96: 0 | AQ96: 0 | AR96: 0 | AS96: 0 | AT96: 0 | AU96: 0 | AV96: 0 | AW96: 1
A97: 2013 | B97: C3656 | C97: =Table2[[#This Row],[Year]]&Table2[[#This Row],[SNL Statutory Entity Key ]] -> 2013C3656 | D97: Driscoll Children's Hospital, Inc. | E97: TX | F97: Driscoll Children's Hlth Plan | G97: 1163161 | H97: 295518.172 | I97: 16933.083 | J97: 15320.739 | K97: 0 | L97: 2867.707 | M97: 260396.643 | N97: 30311.50791 | O97: 11032.9 | P97: 2.747374481 | Q97: 3 | R97: 0.8811527265 | S97: 0.009703995462 | T97: 0.109143278 | U97: 1 | V97: 2.747374481 | W97: 254.0647185 | X97: 27.7294562 | Y97: 2.465442875 | Z97: 223.8698194 | AA97: -1.199040867e-14 | AB97: =_xlfn.IFNA(INDEX('SOA dataset'!$A$4:$BE$674,MATCH('Pivot Data'!F2113,'SOA dataset'!$E$4:$E$674,0),52),"Missing Info") -> NFP | AC97: =_xlfn.IFNA(INDEX('NAIC Ownership'!$A$5:$E$212,MATCH('Pivot Data'!B2113,'NAIC Ownership'!$B$5:$B$212,0),5),"Missing Info") -> Other | AD97: =_xlfn.IFNA(INDEX('S&P Export2'!$A$3:$E$290,MATCH('Pivot Data'!B2113,'S&P Export2'!$B$3:$B$290,0),3),"Missing Info") -> 95809 | AE97: 0 | AF97: 0 | AG97: 0 | AH97: =IF(AG97=9,INDEX('Cleanup profit status 9'!$F$5:$I$58,MATCH('Pivot Data'!B2113,'Cleanup profit status 9'!$G$5:$G$58,0),4),AG97) -> 0 | AI97: =_xlfn.IFNA(INDEX('Expansion Adoption'!$A$5:$H$56,MATCH('Pivot Data'!E2113,'Expansion Adoption'!$B$5:$B$56,0),6),"ERROR") -> 0 | AJ97: =_xlfn.IFNA(INDEX('Expansion Adoption'!$A$5:$H$56,MATCH('Pivot Data'!E2113,'Expansion Adoption'!$B$5:$B$56,0),7),"ERROR") -> 0 | AK97: =_xlfn.IFNA(INDEX('Expansion Adoption'!$A$5:$H$56,MATCH('Pivot Data'!E2113,'Expansion Adoption'!$B$5:$B$56,0),8),"ERROR") -> 0 | AL97: 1 | AM97: 1 | AN97: 1 | AO97: 1 | AP97: 1 | AQ97: 1 | AR97: 1 | AS97: 0 | AT97: 1 | AU97: 1 | AV97: 12 | AW97: 0 | AX97: 1163161 | AY97: 0.4 | AZ97: 254.0647185 | BA97: 0.25
A98: 2013 | B98: C9592 | C98: =Table2[[#This Row],[Year]]&Table2[[#This Row],[SNL Statutory Entity Key ]] -> 2013C9592 | E98: OR | F98: Eastern OR Coordinated Care | G98: 0 | H98: 0 | I98: 0 | J98: 0 | K98: 0 | L98: 0 | M98: 0 | N98: 0 | O98: 0 | P98: - | Q98: - | R98: - | S98: - | T98: - | U98: 0 | V98: - | W98: - | X98: - | Y98: - | Z98: - | AA98: - | AB98: =_xlfn.IFNA(INDEX('SOA dataset'!$A$4:$BE$674,MATCH('Pivot Data'!F2114,'SOA dataset'!$E$4:$E$674,0),52),"Missing Info") -> Missing Info | AC98: =_xlfn.IFNA(INDEX('NAIC Ownership'!$A$5:$E$212,MATCH('Pivot Data'!B2114,'NAIC Ownership'!$B$5:$B$212,0),5),"Missing Info") -> Missing Info | AD98: =_xlfn.IFNA(INDEX('S&P Export2'!$A$3:$E$290,MATCH('Pivot Data'!B2114,'S&P Export2'!$B$3:$B$290,0),3),"Missing Info") -> 16722 | AE98: 9 | AF98: 9 | AG98: 9 | AH98: =IF(AG98=9,INDEX('Cleanup profit status 9'!$F$5:$I$58,MATCH('Pivot Data'!B2114,'Cleanup profit status 9'!$G$5:$G$58,0),4),AG98) -> 1 | AI98: =_xlfn.IFNA(INDEX('Expansion Adoption'!$A$5:$H$56,MATCH('Pivot Data'!E2114,'Expansion Adoption'!$B$5:$B$56,0),6),"ERROR") -> 1 | AJ98: =_xlfn.IFNA(INDEX('Expansion Adoption'!$A$5:$H$56,MATCH('Pivot Data'!E2114,'Expansion Adoption'!$B$5:$B$56,0),7),"ERROR") -> 0 | AK98: =_xlfn.IFNA(INDEX('Expansion Adoption'!$A$5:$H$56,MATCH('Pivot Data'!E2114,'Expansion Adoption'!$B$5:$B$56,0),8),"ERROR") -> 1 | AL98: 0 | AM98: 0 | AN98: 0 | AO98: 0 | AP98: 0 | AQ98: 0 | AR98: 0 | AS98: 0 | AT98: 0 | AU98: 0 | AV98: 0 | AW98: 1
A99: 2013 | B99: C3657 | C99: =Table2[[#This Row],[Year]]&Table2[[#This Row],[SNL Statutory Entity Key ]] -> 2013C3657 | D99: El Paso County Hospital District | E99: TX | F99: El Paso First Health Plans Inc | G99: 578579 | H99: 107047.421 | I99: 5740.039 | J99: 7779.364 | K99: 0 | L99: 2487.483 | M99: 91040.535 | N99: 27996.667 | O99: 4607.762 | P99: 6.075979402 | Q99: 6 | R99: 0.8504692047 | S99: 0.02323720625 | T99: 0.1262935891 | U99: 1 | V99: 6.075979402 | W99: 185.0178126 | X99: 23.3665636 | Y99: 4.299297071 | Z99: 157.3519519 | AA99: 4.440892099e-15 | AB99: =_xlfn.IFNA(INDEX('SOA dataset'!$A$4:$BE$674,MATCH('Pivot Data'!F2115,'SOA dataset'!$E$4:$E$674,0),52),"Missing Info") -> NFP | AC99: =_xlfn.IFNA(INDEX('NAIC Ownership'!$A$5:$E$212,MATCH('Pivot Data'!B2115,'NAIC Ownership'!$B$5:$B$212,0),5),"Missing Info") -> Other | AD99: =_xlfn.IFNA(INDEX('S&P Export2'!$A$3:$E$290,MATCH('Pivot Data'!B2115,'S&P Export2'!$B$3:$B$290,0),3),"Missing Info") -> 52635 | AE99: 0 | AF99: 0 | AG99: 0 | AH99: =IF(AG99=9,INDEX('Cleanup profit status 9'!$F$5:$I$58,MATCH('Pivot Data'!B2115,'Cleanup profit status 9'!$G$5:$G$58,0),4),AG99) -> 0 | AI99: =_xlfn.IFNA(INDEX('Expansion Adoption'!$A$5:$H$56,MATCH('Pivot Data'!E2115,'Expansion Adoption'!$B$5:$B$56,0),6),"ERROR") -> 0 | AJ99: =_xlfn.IFNA(INDEX('Expansion Adoption'!$A$5:$H$56,MATCH('Pivot Data'!E2115,'Expansion Adoption'!$B$5:$B$56,0),7),"ERROR") -> 0 | AK99: =_xlfn.IFNA(INDEX('Expansion Adoption'!$A$5:$H$56,MATCH('Pivot Data'!E2115,'Expansion Adoption'!$B$5:$B$56,0),8),"ERROR") -> 0 | AL99: 1 | AM99: 1 | AN99: 1 | AO99: 1 | AP99: 1 | AQ99: 1 | AR99: 1 | AS99: 0 | AT99: 1 | AU99: 1 | AV99: 6 | AW99: 0 | AX99: 578579 | AY99: 0.2 | AZ99: 185.0178126 | BA99: 0.05 | BE99: 0.07440922481
A100: 2013 | B100: C3659 | C100: =Table2[[#This Row],[Year]]&Table2[[#This Row],[SNL Statutory Entity Key ]] -> 2013C3659 | E100: NY | F100: Elderplan Inc. | G100: 118783 | H100: 461098.914 | I100: 29484.668 | J100: 43064.899 | K100: 0 | L100: 34868.895 | M100: 353680.452 | N100: 103044.111 | O100: 23197.887 | P100: 4.441961072 | Q100: 4 | R100: 0.7670381371 | S100: 0.07562129066 | T100: 0.1573405723 | U100: 1 | V100: 4.441961072 | W100: 3881.859475 | X100: 610.7739912 | Y100: 293.5512237 | Z100: 2977.53426 | AA100: -2.842170943e-13 | AB100: =_xlfn.IFNA(INDEX('SOA dataset'!$A$4:$BE$674,MATCH('Pivot Data'!F2116,'SOA dataset'!$E$4:$E$674,0),52),"Missing Info") -> NFP | AC100: =_xlfn.IFNA(INDEX('NAIC Ownership'!$A$5:$E$212,MATCH('Pivot Data'!B2116,'NAIC Ownership'!$B$5:$B$212,0),5),"Missing Info") -> Other | AD100: =_xlfn.IFNA(INDEX('S&P Export2'!$A$3:$E$290,MATCH('Pivot Data'!B2116,'S&P Export2'!$B$3:$B$290,0),3),"Missing Info") -> 95662 | AE100: 0 | AF100: 0 | AG100: 0 | AH100: =IF(AG100=9,INDEX('Cleanup profit status 9'!$F$5:$I$58,MATCH('Pivot Data'!B2116,'Cleanup profit status 9'!$G$5:$G$58,0),4),AG100) -> 0 | AI100: =_xlfn.IFNA(INDEX('Expansion Adoption'!$A$5:$H$56,MATCH('Pivot Data'!E2116,'Expansion Adoption'!$B$5:$B$56,0),6),"ERROR") -> 1 | AJ100: =_xlfn.IFNA(INDEX('Expansion Adoption'!$A$5:$H$56,MATCH('Pivot Data'!E2116,'Expansion Adoption'!$B$5:$B$56,0),7),"ERROR") -> 0 | AK100: =_xlfn.IFNA(INDEX('Expansion Adoption'!$A$5:$H$56,MATCH('Pivot Data'!E2116,'Expansion Adoption'!$B$5:$B$56,0),8),"ERROR") -> 1 | AL100: 1 | AM100: 1 | AN100: 1 | AO100: 1 | AP100: 1 | AQ100: 1 | AR100: 1 | AS100: 0 | AT100: 1 | AU100: 1 | AV100: 1 | AW100: 1 | AX100: 118783 | AY100: 0 | AZ100: 3881.859475 | BA100: 0.95
A101: 2013 | B101: C9164 | C101: =Table2[[#This Row],[Year]]&Table2[[#This Row],[SNL Statutory Entity Key ]] -> 2013C9164 | E101: AR | F101: Empower Hlthcr Solutions LLC | G101: 0 | H101: 0 | I101: 0 | J101: 0 | K101: 0 | L101: 0 | M101: 0 | N101: 0 | O101: 0 | P101: - | Q101: - | R101: - | S101: - | T101: - | U101: 0 | V101: - | W101: - | X101: - | Y101: - | Z101: - | AA101: - | AB101: =_xlfn.IFNA(INDEX('SOA dataset'!$A$4:$BE$674,MATCH('Pivot Data'!F2117,'SOA dataset'!$E$4:$E$674,0),52),"Missing Info") -> Missing Info | AC101: =_xlfn.IFNA(INDEX('NAIC Ownership'!$A$5:$E$212,MATCH('Pivot Data'!B2117,'NAIC Ownership'!$B$5:$B$212,0),5),"Missing Info") -> Limited Liability Corporation | AD101: =_xlfn.IFNA(INDEX('S&P Export2'!$A$3:$E$290,MATCH('Pivot Data'!B2117,'S&P Export2'!$B$3:$B$290,0),3),"Missing Info") -> 16244 | AE101: 9 | AF101: 1 | AG101: 1 | AH101: =IF(AG101=9,INDEX('Cleanup profit status 9'!$F$5:$I$58,MATCH('Pivot Data'!B2117,'Cleanup profit status 9'!$G$5:$G$58,0),4),AG101) -> 1 | AI101: =_xlfn.IFNA(INDEX('Expansion Adoption'!$A$5:$H$56,MATCH('Pivot Data'!E2117,'Expansion Adoption'!$B$5:$B$56,0),6),"ERROR") -> 1 | AJ101: =_xlfn.IFNA(INDEX('Expansion Adoption'!$A$5:$H$56,MATCH('Pivot Data'!E2117,'Expansion Adoption'!$B$5:$B$56,0),7),"ERROR") -> 0 | AK101: =_xlfn.IFNA(INDEX('Expansion Adoption'!$A$5:$H$56,MATCH('Pivot Data'!E2117,'Expansion Adoption'!$B$5:$B$56,0),8),"ERROR") -> 1 | AL101: 0 | AM101: 0 | AN101: 0 | AO101: 0 | AP101: 0 | AQ101: 0 | AR101: 0 | AS101: 0 | AT101: 0 | AU101: 0 | AV101: 0 | AW101: 1 | BE101: -0.0005151615382
A102: 2013 | B102: C3093 | C102: =Table2[[#This Row],[Year]]&Table2[[#This Row],[SNL Statutory Entity Key ]] -> 2013C3093 | D102: Lifetime Healthcare, Inc. | E102: NY | F102: Excellus Health Plan Inc. | G102: 2513592 | H102: 913840.018 | I102: 24503.002 | J102: 50584.126 | K102: -32900 | L102: -69547.779 | M102: 941200.669 | N102: 1358950.39 | O102: 240241.044 | P102: 5.656612073 | Q102: 6 | R102: 0.9939383821 | S102: -0.07610498296 | T102: 0.08216660085 | U102: 1 | V102: 5.656612073 | W102: 363.5594074 | X102: 29.87244071 | Y102: -27.66868251 | Z102: 361.3556492 | AA102: 3.552713679e-14 | AB102: =_xlfn.IFNA(INDEX('SOA dataset'!$A$4:$BE$674,MATCH('Pivot Data'!F2118,'SOA dataset'!$E$4:$E$674,0),52),"Missing Info") -> NFP | AC102: =_xlfn.IFNA(INDEX('NAIC Ownership'!$A$5:$E$212,MATCH('Pivot Data'!B2118,'NAIC Ownership'!$B$5:$B$212,0),5),"Missing Info") -> Other | AD102: =_xlfn.IFNA(INDEX('S&P Export2'!$A$3:$E$290,MATCH('Pivot Data'!B2118,'S&P Export2'!$B$3:$B$290,0),3),"Missing Info") -> 55107 | AE102: 0 | AF102: 0 | AG102: 0 | AH102: =IF(AG102=9,INDEX('Cleanup profit status 9'!$F$5:$I$58,MATCH('Pivot Data'!B2118,'Cleanup profit status 9'!$G$5:$G$58,0),4),AG102) -> 0 | AI102: =_xlfn.IFNA(INDEX('Expansion Adoption'!$A$5:$H$56,MATCH('Pivot Data'!E2118,'Expansion Adoption'!$B$5:$B$56,0),6),"ERROR") -> 1 | AJ102: =_xlfn.IFNA(INDEX('Expansion Adoption'!$A$5:$H$56,MATCH('Pivot Data'!E2118,'Expansion Adoption'!$B$5:$B$56,0),7),"ERROR") -> 0 | AK102: =_xlfn.IFNA(INDEX('Expansion Adoption'!$A$5:$H$56,MATCH('Pivot Data'!E2118,'Expansion Adoption'!$B$5:$B$56,0),8),"ERROR") -> 1 | AL102: 1 | AM102: 1 | AN102: 1 | AO102: 1 | AP102: 1 | AQ102: 1 | AR102: 1 | AS102: 0 | AT102: 1 | AU102: 0 | AV102: 25 | AW102: 0 | AX102: 2513592 | AY102: 0.6 | AZ102: 363.5594074 | BA102: 0.45 | BE102: -0.02380227411
A103: 2013 | B103: C3344 | C103: =Table2[[#This Row],[Year]]&Table2[[#This Row],[SNL Statutory Entity Key ]] -> 2013C3344 | E103: MA | F103: Fallon Community Hlth Plan Inc | G103: 168635 | H103: 72186.863 | I103: 924.01 | J103: 6726.697 | K103: -800 | L103: -1761.939 | M103: 67098.095 | N103: 166986.911 | O103: 40467.663 | P103: 4.126428329 | Q103: 4 | R103: 0.9184232732 | S103: -0.02440802837 | T103: 0.1059847551 | U103: 1 | V103: 4.126428329 | W103: 428.0657218 | X103: 45.36844072 | Y103: -10.44824028 | Z103: 393.1455214 | AA103: 3.552713679e-14 | AB103: =_xlfn.IFNA(INDEX('SOA dataset'!$A$4:$BE$674,MATCH('Pivot Data'!F2119,'SOA dataset'!$E$4:$E$674,0),52),"Missing Info") -> NFP | AC103: =_xlfn.IFNA(INDEX('NAIC Ownership'!$A$5:$E$212,MATCH('Pivot Data'!B2119,'NAIC Ownership'!$B$5:$B$212,0),5),"Missing Info") -> Other | AD103: =_xlfn.IFNA(INDEX('S&P Export2'!$A$3:$E$290,MATCH('Pivot Data'!B2119,'S&P Export2'!$B$3:$B$290,0),3),"Missing Info") -> 95541 | AE103: 0 | AF103: 0 | AG103: 0 | AH103: =IF(AG103=9,INDEX('Cleanup profit status 9'!$F$5:$I$58,MATCH('Pivot Data'!B2119,'Cleanup profit status 9'!$G$5:$G$58,0),4),AG103) -> 0 | AI103: =_xlfn.IFNA(INDEX('Expansion Adoption'!$A$5:$H$56,MATCH('Pivot Data'!E2119,'Expansion Adoption'!$B$5:$B$56,0),6),"ERROR") -> 1 | AJ103: =_xlfn.IFNA(INDEX('Expansion Adoption'!$A$5:$H$56,MATCH('Pivot Data'!E2119,'Expansion Adoption'!$B$5:$B$56,0),7),"ERROR") -> 0 | AK103: =_xlfn.IFNA(INDEX('Expansion Adoption'!$A$5:$H$56,MATCH('Pivot Data'!E2119,'Expansion Adoption'!$B$5:$B$56,0),8),"ERROR") -> 1 | AL103: 1 | AM103: 1 | AN103: 1 | AO103: 1 | AP103: 1 | AQ103: 1 | AR103: 1 | AS103: 0 | AT103: 1 | AU103: 1 | AV103: 2 | AW103: 0 | AX103: 168635 | AY103: 0 | AZ103: 428.0657218 | BA103: 0.65
A104: 2013 | B104: C8818 | C104: =Table2[[#This Row],[Year]]&Table2[[#This Row],[SNL Statutory Entity Key ]] -> 2013C8818 | E104: IL | F104: Family Health Network Inc. | G104: 0 | H104: 0 | I104: 0 | J104: 0 | K104: 0 | L104: 0 | M104: 0 | N104: 0 | O104: 0 | P104: - | Q104: - | R104: - | S104: - | T104: - | U104: 0 | V104: - | W104: - | X104: - | Y104: - | Z104: - | AA104: - | AB104: =_xlfn.IFNA(INDEX('SOA dataset'!$A$4:$BE$674,MATCH('Pivot Data'!F2120,'SOA dataset'!$E$4:$E$674,0),52),"Missing Info") -> Missing Info | AC104: =_xlfn.IFNA(INDEX('NAIC Ownership'!$A$5:$E$212,MATCH('Pivot Data'!B2120,'NAIC Ownership'!$B$5:$B$212,0),5),"Missing Info") -> Missing Info | AD104: =_xlfn.IFNA(INDEX('S&P Export2'!$A$3:$E$290,MATCH('Pivot Data'!B2120,'S&P Export2'!$B$3:$B$290,0),3),"Missing Info") -> 15774 | AE104: 9 | AF104: 9 | AG104: 9 | AH104: =IF(AG104=9,INDEX('Cleanup profit status 9'!$F$5:$I$58,MATCH('Pivot Data'!B2120,'Cleanup profit status 9'!$G$5:$G$58,0),4),AG104) -> 0 | AI104: =_xlfn.IFNA(INDEX('Expansion Adoption'!$A$5:$H$56,MATCH('Pivot Data'!E2120,'Expansion Adoption'!$B$5:$B$56,0),6),"ERROR") -> 1 | AJ104: =_xlfn.IFNA(INDEX('Expansion Adoption'!$A$5:$H$56,MATCH('Pivot Data'!E2120,'Expansion Adoption'!$B$5:$B$56,0),7),"ERROR") -> 0 | AK104: =_xlfn.IFNA(INDEX('Expansion Adoption'!$A$5:$H$56,MATCH('Pivot Data'!E2120,'Expansion Adoption'!$B$5:$B$56,0),8),"ERROR") -> 1 | AL104: 0 | AM104: 0 | AN104: 0 | AO104: 0 | AP104: 0 | AQ104: 0 | AR104: 0 | AS104: 0 | AT104: 0 | AU104: 0 | AV104: 0 | AW104: 1
A105: 2013 | B105: C3553 | C105: =Table2[[#This Row],[Year]]&Table2[[#This Row],[SNL Statutory Entity Key ]] -> 2013C3553 | E105: PR | F105: First Medical Health Plan Inc. | G105: 0 | H105: 0 | I105: 0 | J105: 0 | K105: 0 | L105: 0 | M105: 0 | N105: 33032.137 | O105: 21929.701 | P105: 1.506273934 | Q105: 2 | R105: - | S105: - | T105: - | U105: 0 | V105: 1.506273934 | W105: - | X105: - | Y105: - | Z105: - | AA105: - | AB105: =_xlfn.IFNA(INDEX('SOA dataset'!$A$4:$BE$674,MATCH('Pivot Data'!F2121,'SOA dataset'!$E$4:$E$674,0),52),"Missing Info") -> Missing Info | AC105: =_xlfn.IFNA(INDEX('NAIC Ownership'!$A$5:$E$212,MATCH('Pivot Data'!B2121,'NAIC Ownership'!$B$5:$B$212,0),5),"Missing Info") -> Stock Company | AD105: =_xlfn.IFNA(INDEX('S&P Export2'!$A$3:$E$290,MATCH('Pivot Data'!B2121,'S&P Export2'!$B$3:$B$290,0),3),"Missing Info") -> 95722 | AE105: 9 | AF105: 1 | AG105: 1 | AH105: =IF(AG105=9,INDEX('Cleanup profit status 9'!$F$5:$I$58,MATCH('Pivot Data'!B2121,'Cleanup profit status 9'!$G$5:$G$58,0),4),AG105) -> 1 | AI105: =_xlfn.IFNA(INDEX('Expansion Adoption'!$A$5:$H$56,MATCH('Pivot Data'!E2121,'Expansion Adoption'!$B$5:$B$56,0),6),"ERROR") -> 1 | AJ105: =_xlfn.IFNA(INDEX('Expansion Adoption'!$A$5:$H$56,MATCH('Pivot Data'!E2121,'Expansion Adoption'!$B$5:$B$56,0),7),"ERROR") -> 0 | AK105: =_xlfn.IFNA(INDEX('Expansion Adoption'!$A$5:$H$56,MATCH('Pivot Data'!E2121,'Expansion Adoption'!$B$5:$B$56,0),8),"ERROR") -> 1 | AL105: 0 | AM105: 0 | AN105: 0 | AO105: 0 | AP105: 0 | AQ105: 0 | AR105: 0 | AS105: 0 | AT105: 0 | AU105: 0 | AV105: 0 | AW105: 1 | BE105: 0.116734554
A106: 2013 | B106: C7755 | C106: =Table2[[#This Row],[Year]]&Table2[[#This Row],[SNL Statutory Entity Key ]] -> 2013C7755 | D106: Florida HealthCare Holdings, LLC | E106: FL | F106: Florida Healthcare Plus Inc. | G106: 1416 | H106: 1052.194 | I106: 0 | J106: 281.864 | K106: 185.804 | L106: 506.79 | M106: 77.736 | N106: 0 | O106: 0 | P106: - | Q106: - | R106: 0.2504671192 | S106: 0.4816507222 | T106: 0.2678821586 | U106: 1 | V106: - | W106: 743.0748588 | X106: 199.0564972 | Y106: 357.9025424 | Z106: 186.1158192 | AA106: 0 | AB106: =_xlfn.IFNA(INDEX('SOA dataset'!$A$4:$BE$674,MATCH('Pivot Data'!F2122,'SOA dataset'!$E$4:$E$674,0),52),"Missing Info") -> 0 | AC106: =_xlfn.IFNA(INDEX('NAIC Ownership'!$A$5:$E$212,MATCH('Pivot Data'!B2122,'NAIC Ownership'!$B$5:$B$212,0),5),"Missing Info") -> Missing Info | AD106: =_xlfn.IFNA(INDEX('S&P Export2'!$A$3:$E$290,MATCH('Pivot Data'!B2122,'S&P Export2'!$B$3:$B$290,0),3),"Missing Info") -> 14050 | AE106: 9 | AF106: 9 | AG106: 9 | AH106: =IF(AG106=9,INDEX('Cleanup profit status 9'!$F$5:$I$58,MATCH('Pivot Data'!B2122,'Cleanup profit status 9'!$G$5:$G$58,0),4),AG106) -> 1 | AI106: =_xlfn.IFNA(INDEX('Expansion Adoption'!$A$5:$H$56,MATCH('Pivot Data'!E2122,'Expansion Adoption'!$B$5:$B$56,0),6),"ERROR") -> 0 | AJ106: =_xlfn.IFNA(INDEX('Expansion Adoption'!$A$5:$H$56,MATCH('Pivot Data'!E2122,'Expansion Adoption'!$B$5:$B$56,0),7),"ERROR") -> 0 | AK106: =_xlfn.IFNA(INDEX('Expansion Adoption'!$A$5:$H$56,MATCH('Pivot Data'!E2122,'Expansion Adoption'!$B$5:$B$56,0),8),"ERROR") -> 0 | AL106: 1 | AM106: 0 | AN106: 0 | AO106: 0 | AP106: 0 | AQ106: 0 | AR106: 0 | AS106: 0 | AT106: 0 | AU106: 0 | AV106: 0 | AW106: 0
A107: 2013 | B107: C8018 | C107: =Table2[[#This Row],[Year]]&Table2[[#This Row],[SNL Statutory Entity Key ]] -> 2013C8018 | D107: Molina Healthcare, Inc. | E107: FL | F107: Florida MHS Inc. | G107: 1669 | H107: 576.566 | I107: 804.562 | J107: 2130.369 | K107: 0 | L107: -2944.737 | M107: 586.372 | N107: 0 | O107: 0 | P107: - | Q107: - | R107: 1.017007593 | S107: -5.107371923 | T107: 5.090364329 | U107: 1 | V107: - | W107: 345.4559617 | X107: 1758.496705 | Y107: -1764.372079 | Z107: 351.3313361 | AA107: 2.273736754e-13 | AB107: =_xlfn.IFNA(INDEX('SOA dataset'!$A$4:$BE$674,MATCH('Pivot Data'!F2123,'SOA dataset'!$E$4:$E$674,0),52),"Missing Info") -> 0 | AC107: =_xlfn.IFNA(INDEX('NAIC Ownership'!$A$5:$E$212,MATCH('Pivot Data'!B2123,'NAIC Ownership'!$B$5:$B$212,0),5),"Missing Info") -> Stock Company | AD107: =_xlfn.IFNA(INDEX('S&P Export2'!$A$3:$E$290,MATCH('Pivot Data'!B2123,'S&P Export2'!$B$3:$B$290,0),3),"Missing Info") -> 14447 | AE107: 9 | AF107: 1 | AG107: 1 | AH107: =IF(AG107=9,INDEX('Cleanup profit status 9'!$F$5:$I$58,MATCH('Pivot Data'!B2123,'Cleanup profit status 9'!$G$5:$G$58,0),4),AG107) -> 1 | AI107: =_xlfn.IFNA(INDEX('Expansion Adoption'!$A$5:$H$56,MATCH('Pivot Data'!E2123,'Expansion Adoption'!$B$5:$B$56,0),6),"ERROR") -> 0 | AJ107: =_xlfn.IFNA(INDEX('Expansion Adoption'!$A$5:$H$56,MATCH('Pivot Data'!E2123,'Expansion Adoption'!$B$5:$B$56,0),7),"ERROR") -> 0 | AK107: =_xlfn.IFNA(INDEX('Expansion Adoption'!$A$5:$H$56,MATCH('Pivot Data'!E2123,'Expansion Adoption'!$B$5:$B$56,0),8),"ERROR") -> 0 | AL107: 1 | AM107: 0 | AN107: 0 | AO107: 0 | AP107: 0 | AQ107: 0 | AR107: 0 | AS107: 0 | AT107: 0 | AU107: 0 | AV107: 0 | AW107: 0 | BE107: 0.06078529033
A108: 2013 | B108: C8023 | C108: =Table2[[#This Row],[Year]]&Table2[[#This Row],[SNL Statutory Entity Key ]] -> 2013C8023 | D108: AmeriHealth Caritas Health Plan | E108: FL | F108: Florida True Health Inc. | G108: 44249 | H108: 10432.208 | I108: 5622.892 | J108: 7935.21 | K108: 1766.023 | L108: -13762.957 | M108: 8871.04 | N108: 3339.309 | O108: 951.603 | P108: 3.509140892 | Q108: 4 | R108: 1.019636783 | S108: -1.319275555 | T108: 1.299638773 | U108: 1 | V108: 3.509140892 | W108: 235.7614409 | X108: 306.4047097 | Y108: -311.0343059 | Z108: 240.3910371 | AA108: 0 | AB108: =_xlfn.IFNA(INDEX('SOA dataset'!$A$4:$BE$674,MATCH('Pivot Data'!F2124,'SOA dataset'!$E$4:$E$674,0),52),"Missing Info") -> NFP | AC108: =_xlfn.IFNA(INDEX('NAIC Ownership'!$A$5:$E$212,MATCH('Pivot Data'!B2124,'NAIC Ownership'!$B$5:$B$212,0),5),"Missing Info") -> Stock Company | AD108: =_xlfn.IFNA(INDEX('S&P Export2'!$A$3:$E$290,MATCH('Pivot Data'!B2124,'S&P Export2'!$B$3:$B$290,0),3),"Missing Info") -> 14378 | AE108: 0 | AF108: 1 | AG108: 0 | AH108: =IF(AG108=9,INDEX('Cleanup profit status 9'!$F$5:$I$58,MATCH('Pivot Data'!B2124,'Cleanup profit status 9'!$G$5:$G$58,0),4),AG108) -> 0 | AI108: =_xlfn.IFNA(INDEX('Expansion Adoption'!$A$5:$H$56,MATCH('Pivot Data'!E2124,'Expansion Adoption'!$B$5:$B$56,0),6),"ERROR") -> 0 | AJ108: =_xlfn.IFNA(INDEX('Expansion Adoption'!$A$5:$H$56,MATCH('Pivot Data'!E2124,'Expansion Adoption'!$B$5:$B$56,0),7),"ERROR") -> 0 | AK108: =_xlfn.IFNA(INDEX('Expansion Adoption'!$A$5:$H$56,MATCH('Pivot Data'!E2124,'Expansion Adoption'!$B$5:$B$56,0),8),"ERROR") -> 0 | AL108: 1 | AM108: 0 | AN108: 0 | AO108: 0 | AP108: 0 | AQ108: 0 | AR108: 0 | AS108: 0 | AT108: 0 | AU108: 0 | AV108: 0 | AW108: 0 | BE108: 0.002921874878
A109: 2013 | B109: C4778 | C109: =Table2[[#This Row],[Year]]&Table2[[#This Row],[SNL Statutory Entity Key ]] -> 2013C4778 | D109: AMERIGROUP Corporation | E109: FL | F109: Freedom Health Inc. | G109: 392453 | H109: 94287.812 | I109: 888.265 | J109: 7783.394 | K109: 0 | L109: 7015.883 | M109: 78600.27 | N109: 0 | O109: 0 | P109: - | Q109: - | R109: 0.8336206805 | S109: 0.07440922481 | T109: 0.09197009471 | U109: 1 | V109: - | W109: 240.2524939 | X109: 22.09604462 | Y109: 17.87700183 | Z109: 200.2794475 | AA109: 1.065814104e-14 | AB109: =_xlfn.IFNA(INDEX('SOA dataset'!$A$4:$BE$674,MATCH('Pivot Data'!F2125,'SOA dataset'!$E$4:$E$674,0),52),"Missing Info") -> Missing Info | AC109: =_xlfn.IFNA(INDEX('NAIC Ownership'!$A$5:$E$212,MATCH('Pivot Data'!B2125,'NAIC Ownership'!$B$5:$B$212,0),5),"Missing Info") -> Missing Info | AD109: =_xlfn.IFNA(INDEX('S&P Export2'!$A$3:$E$290,MATCH('Pivot Data'!B2125,'S&P Export2'!$B$3:$B$290,0),3),"Missing Info") -> 10119 | AE109: 9 | AF109: 9 | AG109: 9 | AH109: =IF(AG109=9,INDEX('Cleanup profit status 9'!$F$5:$I$58,MATCH('Pivot Data'!B2125,'Cleanup profit status 9'!$G$5:$G$58,0),4),AG109) -> 1 | AI109: =_xlfn.IFNA(INDEX('Expansion Adoption'!$A$5:$H$56,MATCH('Pivot Data'!E2125,'Expansion Adoption'!$B$5:$B$56,0),6),"ERROR") -> 0 | AJ109: =_xlfn.IFNA(INDEX('Expansion Adoption'!$A$5:$H$56,MATCH('Pivot Data'!E2125,'Expansion Adoption'!$B$5:$B$56,0),7),"ERROR") -> 0 | AK109: =_xlfn.IFNA(INDEX('Expansion Adoption'!$A$5:$H$56,MATCH('Pivot Data'!E2125,'Expansion Adoption'!$B$5:$B$56,0),8),"ERROR") -> 0 | AL109: 1 | AM109: 1 | AN109: 1 | AO109: 1 | AP109: 1 | AQ109: 1 | AR109: 1 | AS109: 0 | AT109: 1 | AU109: 1 | AV109: 4 | AW109: 0 | AX109: 392453 | AY109: 0.1 | AZ109: 240.2524939 | BA109: 0.15 | BE109: -0.01211241974
A110: 2013 | B110: C3791 | C110: =Table2[[#This Row],[Year]]&Table2[[#This Row],[SNL Statutory Entity Key ]] -> 2013C3791 | D110: Friday Health Plans, Inc. | E110: CO | F110: Friday Health Plans | G110: 17995 | H110: 2938.902 | I110: 179.811 | J110: 983.268 | K110: 0 | L110: 125.468 | M110: 1650.355 | N110: 4404.644 | O110: 1355.216 | P110: 3.250141675 | Q110: 3 | R110: 0.5615549617 | S110: 0.04269213468 | T110: 0.3957529036 | U110: 1 | V110: 3.250141675 | W110: 163.3176994 | X110: 64.63345374 | Y110: 6.972381217 | Z110: 91.71186441 | AA110: 0 | AB110: =_xlfn.IFNA(INDEX('SOA dataset'!$A$4:$BE$674,MATCH('Pivot Data'!F2126,'SOA dataset'!$E$4:$E$674,0),52),"Missing Info") -> Missing Info | AC110: =_xlfn.IFNA(INDEX('NAIC Ownership'!$A$5:$E$212,MATCH('Pivot Data'!B2126,'NAIC Ownership'!$B$5:$B$212,0),5),"Missing Info") -> Other | AD110: =_xlfn.IFNA(INDEX('S&P Export2'!$A$3:$E$290,MATCH('Pivot Data'!B2126,'S&P Export2'!$B$3:$B$290,0),3),"Missing Info") -> 95774 | AE110: 9 | AF110: 0 | AG110: 0 | AH110: =IF(AG110=9,INDEX('Cleanup profit status 9'!$F$5:$I$58,MATCH('Pivot Data'!B2126,'Cleanup profit status 9'!$G$5:$G$58,0),4),AG110) -> 0 | AI110: =_xlfn.IFNA(INDEX('Expansion Adoption'!$A$5:$H$56,MATCH('Pivot Data'!E2126,'Expansion Adoption'!$B$5:$B$56,0),6),"ERROR") -> 1 | AJ110: =_xlfn.IFNA(INDEX('Expansion Adoption'!$A$5:$H$56,MATCH('Pivot Data'!E2126,'Expansion Adoption'!$B$5:$B$56,0),7),"ERROR") -> 0 | AK110: =_xlfn.IFNA(INDEX('Expansion Adoption'!$A$5:$H$56,MATCH('Pivot Data'!E2126,'Expansion Adoption'!$B$5:$B$56,0),8),"ERROR") -> 1 | AL110: 1 | AM110: 0 | AN110: 0 | AO110: 0 | AP110: 0 | AQ110: 0 | AR110: 0 | AS110: 0 | AT110: 0 | AU110: 0 | AV110: 0 | AW110: 0 | BE110: -0.3145155581
A111: 2013 | B111: C3526 | C111: =Table2[[#This Row],[Year]]&Table2[[#This Row],[SNL Statutory Entity Key ]] -> 2013C3526 | D111: Gateway Health LLC | E111: PA | F111: Gateway Health Plan Inc. | G111: 3220655 | H111: 1336473.997 | I111: 50604.451 | J111: 149930.615 | K111: 0 | L111: -688.5 | M111: 1136627.431 | N111: 236734.6159 | O111: 57606.923 | P111: 4.109482048 | Q111: 4 | R111: 0.8504672994 | S111: -0.0005151615382 | T111: 0.1500478621 | U111: 1 | V111: 4.109482048 | W111: 414.9696248 | X111: 62.26530504 | Y111: -0.2137763902 | Z111: 352.9180962 | AA111: 3.433364704e-14 | AB111: =_xlfn.IFNA(INDEX('SOA dataset'!$A$4:$BE$674,MATCH('Pivot Data'!F2127,'SOA dataset'!$E$4:$E$674,0),52),"Missing Info") -> NFP | AC111: =_xlfn.IFNA(INDEX('NAIC Ownership'!$A$5:$E$212,MATCH('Pivot Data'!B2127,'NAIC Ownership'!$B$5:$B$212,0),5),"Missing Info") -> Other | AD111: =_xlfn.IFNA(INDEX('S&P Export2'!$A$3:$E$290,MATCH('Pivot Data'!B2127,'S&P Export2'!$B$3:$B$290,0),3),"Missing Info") -> 96938 | AE111: 0 | AF111: 0 | AG111: 0 | AH111: =IF(AG111=9,INDEX('Cleanup profit status 9'!$F$5:$I$58,MATCH('Pivot Data'!B2127,'Cleanup profit status 9'!$G$5:$G$58,0),4),AG111) -> 0 | AI111: =_xlfn.IFNA(INDEX('Expansion Adoption'!$A$5:$H$56,MATCH('Pivot Data'!E2127,'Expansion Adoption'!$B$5:$B$56,0),6),"ERROR") -> 1 | AJ111: =_xlfn.IFNA(INDEX('Expansion Adoption'!$A$5:$H$56,MATCH('Pivot Data'!E2127,'Expansion Adoption'!$B$5:$B$56,0),7),"ERROR") -> 0 | AK111: =_xlfn.IFNA(INDEX('Expansion Adoption'!$A$5:$H$56,MATCH('Pivot Data'!E2127,'Expansion Adoption'!$B$5:$B$56,0),8),"ERROR") -> 1 | AL111: 1 | AM111: 1 | AN111: 1 | AO111: 1 | AP111: 1 | AQ111: 1 | AR111: 1 | AS111: 0 | AT111: 1 | AU111: 0 | AV111: 32 | AW111: 0 | AX111: 3220655 | AY111: 0.7 | AZ111: 414.9696248 | BA111: 0.65
A112: 2013 | B112: C3373 | C112: =Table2[[#This Row],[Year]]&Table2[[#This Row],[SNL Statutory Entity Key ]] -> 2013C3373 | D112: Geisinger Health System Foundation | E112: PA | F112: Geisinger Health Plan | G112: 1151001 | H112: 426287.125 | I112: 9996.885 | J112: 53687.815 | K112: 0 | L112: -10146.603 | M112: 372749.028 | N112: 166930.089 | O112: 49570.847 | P112: 3.36750528 | Q112: 3 | R112: 0.874408365 | S112: -0.02380227411 | T112: 0.1493939091 | U112: 1 | V112: 3.36750528 | W112: 370.3620805 | X112: 55.32983898 | Y112: -8.815459761 | Z112: 323.8477013 | AA112: 1.243449788e-14 | AB112: =_xlfn.IFNA(INDEX('SOA dataset'!$A$4:$BE$674,MATCH('Pivot Data'!F2128,'SOA dataset'!$E$4:$E$674,0),52),"Missing Info") -> NFP | AC112: =_xlfn.IFNA(INDEX('NAIC Ownership'!$A$5:$E$212,MATCH('Pivot Data'!B2128,'NAIC Ownership'!$B$5:$B$212,0),5),"Missing Info") -> Other | AD112: =_xlfn.IFNA(INDEX('S&P Export2'!$A$3:$E$290,MATCH('Pivot Data'!B2128,'S&P Export2'!$B$3:$B$290,0),3),"Missing Info") -> 95923 | AE112: 0 | AF112: 0 | AG112: 0 | AH112: =IF(AG112=9,INDEX('Cleanup profit status 9'!$F$5:$I$58,MATCH('Pivot Data'!B2128,'Cleanup profit status 9'!$G$5:$G$58,0),4),AG112) -> 0 | AI112: =_xlfn.IFNA(INDEX('Expansion Adoption'!$A$5:$H$56,MATCH('Pivot Data'!E2128,'Expansion Adoption'!$B$5:$B$56,0),6),"ERROR") -> 1 | AJ112: =_xlfn.IFNA(INDEX('Expansion Adoption'!$A$5:$H$56,MATCH('Pivot Data'!E2128,'Expansion Adoption'!$B$5:$B$56,0),7),"ERROR") -> 0 | AK112: =_xlfn.IFNA(INDEX('Expansion Adoption'!$A$5:$H$56,MATCH('Pivot Data'!E2128,'Expansion Adoption'!$B$5:$B$56,0),8),"ERROR") -> 1 | AL112: 1 | AM112: 1 | AN112: 1 | AO112: 1 | AP112: 1 | AQ112: 1 | AR112: 1 | AS112: 0 | AT112: 1 | AU112: 1 | AV112: 12 | AW112: 0 | AX112: 1151001 | AY112: 0.4 | AZ112: 370.3620805 | BA112: 0.55
A113: 2013 | B113: C7979 | C113: =Table2[[#This Row],[Year]]&Table2[[#This Row],[SNL Statutory Entity Key ]] -> 2013C7979 | D113: Wellcare of Michigan Holding Company, Inc. | E113: NH | F113: Granite Care-Meridian Health | G113: 25262 | H113: 8247.6 | I113: 43 | J113: 59.22 | K113: 0 | L113: 562.354 | M113: 7583.026 | N113: 9375.746 | O113: 597.857 | P113: 15.68225512 | Q113: 16 | R113: 0.9194221349 | S113: 0.06818395654 | T113: 0.01239390853 | U113: 1 | V113: 15.68225512 | W113: 326.4824638 | X113: 4.046393793 | Y113: 22.26086612 | Z113: 300.1752039 | AA113: 2.842170943e-14 | AB113: =_xlfn.IFNA(INDEX('SOA dataset'!$A$4:$BE$674,MATCH('Pivot Data'!F2129,'SOA dataset'!$E$4:$E$674,0),52),"Missing Info") -> 0 | AC113: =_xlfn.IFNA(INDEX('NAIC Ownership'!$A$5:$E$212,MATCH('Pivot Data'!B2129,'NAIC Ownership'!$B$5:$B$212,0),5),"Missing Info") -> Missing Info | AD113: =_xlfn.IFNA(INDEX('S&P Export2'!$A$3:$E$290,MATCH('Pivot Data'!B2129,'S&P Export2'!$B$3:$B$290,0),3),"Missing Info") -> 14228 | AE113: 9 | AF113: 9 | AG113: 9 | AH113: =IF(AG113=9,INDEX('Cleanup profit status 9'!$F$5:$I$58,MATCH('Pivot Data'!B2129,'Cleanup profit status 9'!$G$5:$G$58,0),4),AG113) -> 1 | AI113: =_xlfn.IFNA(INDEX('Expansion Adoption'!$A$5:$H$56,MATCH('Pivot Data'!E2129,'Expansion Adoption'!$B$5:$B$56,0),6),"ERROR") -> 1 | AJ113: =_xlfn.IFNA(INDEX('Expansion Adoption'!$A$5:$H$56,MATCH('Pivot Data'!E2129,'Expansion Adoption'!$B$5:$B$56,0),7),"ERROR") -> 0 | AK113: =_xlfn.IFNA(INDEX('Expansion Adoption'!$A$5:$H$56,MATCH('Pivot Data'!E2129,'Expansion Adoption'!$B$5:$B$56,0),8),"ERROR") -> 1 | AL113: 1 | AM113: 0 | AN113: 0 | AO113: 0 | AP113: 0 | AQ113: 0 | AR113: 0 | AS113: 0 | AT113: 0 | AU113: 0 | AV113: 0 | AW113: 0
A114: 2013 | B114: C7913 | C114: =Table2[[#This Row],[Year]]&Table2[[#This Row],[SNL Statutory Entity Key ]] -> 2013C7913 | D114: Centene Corporation | E114: NH | F114: Granite State Health Plan Inc. | G114: 34017 | H114: 10303.04 | I114: 414.436 | J114: 1347.102 | K114: 0 | L114: -1312.685 | M114: 9854.187 | N114: 6127.032 | O114: 667.936 | P114: 9.173082451 | Q114: 9 | R114: 0.9564348969 | S114: -0.1274075419 | T114: 0.170972645 | U114: 1 | V114: 9.173082451 | W114: 302.8791487 | X114: 51.78404915 | Y114: -38.58908781 | Z114: 289.6841873 | AA114: -4.263256415e-14 | AB114: =_xlfn.IFNA(INDEX('SOA dataset'!$A$4:$BE$674,MATCH('Pivot Data'!F2130,'SOA dataset'!$E$4:$E$674,0),52),"Missing Info") -> FP | AC114: =_xlfn.IFNA(INDEX('NAIC Ownership'!$A$5:$E$212,MATCH('Pivot Data'!B2130,'NAIC Ownership'!$B$5:$B$212,0),5),"Missing Info") -> Stock Company | AD114: =_xlfn.IFNA(INDEX('S&P Export2'!$A$3:$E$290,MATCH('Pivot Data'!B2130,'S&P Export2'!$B$3:$B$290,0),3),"Missing Info") -> 14226 | AE114: 1 | AF114: 1 | AG114: 1 | AH114: =IF(AG114=9,INDEX('Cleanup profit status 9'!$F$5:$I$58,MATCH('Pivot Data'!B2130,'Cleanup profit status 9'!$G$5:$G$58,0),4),AG114) -> 1 | AI114: =_xlfn.IFNA(INDEX('Expansion Adoption'!$A$5:$H$56,MATCH('Pivot Data'!E2130,'Expansion Adoption'!$B$5:$B$56,0),6),"ERROR") -> 1 | AJ114: =_xlfn.IFNA(INDEX('Expansion Adoption'!$A$5:$H$56,MATCH('Pivot Data'!E2130,'Expansion Adoption'!$B$5:$B$56,0),7),"ERROR") -> 0 | AK114: =_xlfn.IFNA(INDEX('Expansion Adoption'!$A$5:$H$56,MATCH('Pivot Data'!E2130,'Expansion Adoption'!$B$5:$B$56,0),8),"ERROR") -> 1 | AL114: 1 | AM114: 0 | AN114: 0 | AO114: 0 | AP114: 0 | AQ114: 0 | AR114: 0 | AS114: 0 | AT114: 0 | AU114: 0 | AV114: 0 | AW114: 0 | BE114: 0.07096644751
A115: 2013 | B115: C3548 | C115: =Table2[[#This Row],[Year]]&Table2[[#This Row],[SNL Statutory Entity Key ]] -> 2013C3548 | E115: WI | F115: Group Hlth Coop of Eau Claire | G115: 398720 | H115: 111172.601 | I115: 2583.57 | J115: 9682.569 | K115: 0 | L115: 12977.684 | M115: 85928.778 | N115: 18215.406 | O115: 6056.987 | P115: 3.007337807 | Q115: 3 | R115: 0.7729312549 | S115: 0.116734554 | T115: 0.1103341911 | U115: 1 | V115: 3.007337807 | W115: 278.8237385 | X115: 30.76379163 | Y115: 32.54836477 | Z115: 215.5115821 | AA115: -4.263256415e-14 | AB115: =_xlfn.IFNA(INDEX('SOA dataset'!$A$4:$BE$674,MATCH('Pivot Data'!F2131,'SOA dataset'!$E$4:$E$674,0),52),"Missing Info") -> NFP | AC115: =_xlfn.IFNA(INDEX('NAIC Ownership'!$A$5:$E$212,MATCH('Pivot Data'!B2131,'NAIC Ownership'!$B$5:$B$212,0),5),"Missing Info") -> Other | AD115: =_xlfn.IFNA(INDEX('S&P Export2'!$A$3:$E$290,MATCH('Pivot Data'!B2131,'S&P Export2'!$B$3:$B$290,0),3),"Missing Info") -> 95192 | AE115: 0 | AF115: 0 | AG115: 0 | AH115: =IF(AG115=9,INDEX('Cleanup profit status 9'!$F$5:$I$58,MATCH('Pivot Data'!B2131,'Cleanup profit status 9'!$G$5:$G$58,0),4),AG115) -> 0 | AI115: =_xlfn.IFNA(INDEX('Expansion Adoption'!$A$5:$H$56,MATCH('Pivot Data'!E2131,'Expansion Adoption'!$B$5:$B$56,0),6),"ERROR") -> 0 | AJ115: =_xlfn.IFNA(INDEX('Expansion Adoption'!$A$5:$H$56,MATCH('Pivot Data'!E2131,'Expansion Adoption'!$B$5:$B$56,0),7),"ERROR") -> 0 | AK115: =_xlfn.IFNA(INDEX('Expansion Adoption'!$A$5:$H$56,MATCH('Pivot Data'!E2131,'Expansion Adoption'!$B$5:$B$56,0),8),"ERROR") -> 0 | AL115: 1 | AM115: 1 | AN115: 1 | AO115: 1 | AP115: 1 | AQ115: 1 | AR115: 1 | AS115: 0 | AT115: 1 | AU115: 1 | AV115: 4 | AW115: 0 | AX115: 398720 | AY115: 0.1 | AZ115: 278.8237385 | BA115: 0.25 | BE115: -0.0147659829
A116: 2013 | B116: C3534 | C116: =Table2[[#This Row],[Year]]&Table2[[#This Row],[SNL Statutory Entity Key ]] -> 2013C3534 | E116: WI | F116: Grp Hlth Coop of South Central | G116: 47540 | H116: 7799.92 | I116: 220.875 | J116: 1702.65 | K116: 0 | L116: -1489.377 | M116: 7365.772 | N116: 58050.358 | O116: 10907.923 | P116: 5.321852565 | Q116: 5 | R116: 0.9443394291 | S116: -0.1909477277 | T116: 0.2466082985 | U116: 1 | V116: 5.321852565 | W116: 164.0706773 | X116: 40.46119058 | Y116: -31.32892301 | Z116: 154.9384098 | AA116: 3.552713679e-15 | AB116: =_xlfn.IFNA(INDEX('SOA dataset'!$A$4:$BE$674,MATCH('Pivot Data'!F2132,'SOA dataset'!$E$4:$E$674,0),52),"Missing Info") -> NFP | AC116: =_xlfn.IFNA(INDEX('NAIC Ownership'!$A$5:$E$212,MATCH('Pivot Data'!B2132,'NAIC Ownership'!$B$5:$B$212,0),5),"Missing Info") -> Other | AD116: =_xlfn.IFNA(INDEX('S&P Export2'!$A$3:$E$290,MATCH('Pivot Data'!B2132,'S&P Export2'!$B$3:$B$290,0),3),"Missing Info") -> 95311 | AE116: 0 | AF116: 0 | AG116: 0 | AH116: =IF(AG116=9,INDEX('Cleanup profit status 9'!$F$5:$I$58,MATCH('Pivot Data'!B2132,'Cleanup profit status 9'!$G$5:$G$58,0),4),AG116) -> 0 | AI116: =_xlfn.IFNA(INDEX('Expansion Adoption'!$A$5:$H$56,MATCH('Pivot Data'!E2132,'Expansion Adoption'!$B$5:$B$56,0),6),"ERROR") -> 0 | AJ116: =_xlfn.IFNA(INDEX('Expansion Adoption'!$A$5:$H$56,MATCH('Pivot Data'!E2132,'Expansion Adoption'!$B$5:$B$56,0),7),"ERROR") -> 0 | AK116: =_xlfn.IFNA(INDEX('Expansion Adoption'!$A$5:$H$56,MATCH('Pivot Data'!E2132,'Expansion Adoption'!$B$5:$B$56,0),8),"ERROR") -> 0 | AL116: 1 | AM116: 0 | AN116: 0 | AO116: 0 | AP116: 0 | AQ116: 0 | AR116: 0 | AS116: 0 | AT116: 0 | AU116: 0 | AV116: 0 | AW116: 0 | BE116: 0.003773301508
A117: 2013 | B117: C3683 | C117: =Table2[[#This Row],[Year]]&Table2[[#This Row],[SNL Statutory Entity Key ]] -> 2013C3683 | D117: Health Alliance Plan of Michigan | E117: MI | F117: HAP Empowered Hlth Plan Inc. | G117: 936789 | H117: 283781.897 | I117: 3285.177 | J117: 13608.114 | K117: 0 | L117: 17249.765 | M117: 249638.841 | N117: 31400.58134 | O117: 8683.998 | P117: 3.615913009 | Q117: 4 | R117: 0.8796855742 | S117: 0.06078529033 | T117: 0.0595291355 | U117: 1 | V117: 3.615913009 | W117: 302.9304326 | X117: 18.03318677 | Y117: 18.41371429 | Z117: 266.4835315 | AA117: 3.907985047e-14 | AB117: =_xlfn.IFNA(INDEX('SOA dataset'!$A$4:$BE$674,MATCH('Pivot Data'!F2133,'SOA dataset'!$E$4:$E$674,0),52),"Missing Info") -> Missing Info | AC117: =_xlfn.IFNA(INDEX('NAIC Ownership'!$A$5:$E$212,MATCH('Pivot Data'!B2133,'NAIC Ownership'!$B$5:$B$212,0),5),"Missing Info") -> Stock Company | AD117: =_xlfn.IFNA(INDEX('S&P Export2'!$A$3:$E$290,MATCH('Pivot Data'!B2133,'S&P Export2'!$B$3:$B$290,0),3),"Missing Info") -> 95814 | AE117: 9 | AF117: 1 | AG117: 1 | AH117: =IF(AG117=9,INDEX('Cleanup profit status 9'!$F$5:$I$58,MATCH('Pivot Data'!B2133,'Cleanup profit status 9'!$G$5:$G$58,0),4),AG117) -> 1 | AI117: =_xlfn.IFNA(INDEX('Expansion Adoption'!$A$5:$H$56,MATCH('Pivot Data'!E2133,'Expansion Adoption'!$B$5:$B$56,0),6),"ERROR") -> 1 | AJ117: =_xlfn.IFNA(INDEX('Expansion Adoption'!$A$5:$H$56,MATCH('Pivot Data'!E2133,'Expansion Adoption'!$B$5:$B$56,0),7),"ERROR") -> 0 | AK117: =_xlfn.IFNA(INDEX('Expansion Adoption'!$A$5:$H$56,MATCH('Pivot Data'!E2133,'Expansion Adoption'!$B$5:$B$56,0),8),"ERROR") -> 1 | AL117: 1 | AM117: 1 | AN117: 1 | AO117: 1 | AP117: 1 | AQ117: 1 | AR117: 1 | AS117: 0 | AT117: 1 | AU117: 1 | AV117: 9 | AW117: 0 | AX117: 936789 | AY117: 0.3 | AZ117: 302.9304326 | BA117: 0.35 | BE117: 0.1570747794
A118: 2013 | B118: C3535 | C118: =Table2[[#This Row],[Year]]&Table2[[#This Row],[SNL Statutory Entity Key ]] -> 2013C3535 | D118: Harmony Health Systems, Inc. | E118: IL | F118: Harmony Health Plan Inc. | G118: 1722337 | H118: 194420.714 | I118: 5598.286 | J118: 26533.892 | K118: 0 | L118: 568.073 | M118: 161720.463 | N118: 43233.76 | O118: 9849.477 | P118: 4.389447277 | Q118: 4 | R118: 0.8318067539 | S118: 0.002921874878 | T118: 0.1652713712 | U118: 1 | V118: 4.389447277 | W118: 112.8819238 | X118: 18.65615034 | Y118: 0.3298268573 | Z118: 93.89594661 | AA118: 8.271161533e-15 | AB118: =_xlfn.IFNA(INDEX('SOA dataset'!$A$4:$BE$674,MATCH('Pivot Data'!F2134,'SOA dataset'!$E$4:$E$674,0),52),"Missing Info") -> Missing Info | AC118: =_xlfn.IFNA(INDEX('NAIC Ownership'!$A$5:$E$212,MATCH('Pivot Data'!B2134,'NAIC Ownership'!$B$5:$B$212,0),5),"Missing Info") -> Missing Info | AD118: =_xlfn.IFNA(INDEX('S&P Export2'!$A$3:$E$290,MATCH('Pivot Data'!B2134,'S&P Export2'!$B$3:$B$290,0),3),"Missing Info") -> 11229 | AE118: 9 | AF118: 9 | AG118: 9 | AH118: =IF(AG118=9,INDEX('Cleanup profit status 9'!$F$5:$I$58,MATCH('Pivot Data'!B2134,'Cleanup profit status 9'!$G$5:$G$58,0),4),AG118) -> 1 | AI118: =_xlfn.IFNA(INDEX('Expansion Adoption'!$A$5:$H$56,MATCH('Pivot Data'!E2134,'Expansion Adoption'!$B$5:$B$56,0),6),"ERROR") -> 1 | AJ118: =_xlfn.IFNA(INDEX('Expansion Adoption'!$A$5:$H$56,MATCH('Pivot Data'!E2134,'Expansion Adoption'!$B$5:$B$56,0),7),"ERROR") -> 0 | AK118: =_xlfn.IFNA(INDEX('Expansion Adoption'!$A$5:$H$56,MATCH('Pivot Data'!E2134,'Expansion Adoption'!$B$5:$B$56,0),8),"ERROR") -> 1 | AL118: 1 | AM118: 1 | AN118: 1 | AO118: 1 | AP118: 1 | AQ118: 1 | AR118: 1 | AS118: 0 | AT118: 1 | AU118: 0 | AV118: 17 | AW118: 0 | AX118: 1722337 | AY118: 0.5 | AZ118: 112.8819238 | BA118: 0.05 | BE118: 0.1260081936
A119: 2013 | B119: C3569 | C119: =Table2[[#This Row],[Year]]&Table2[[#This Row],[SNL Statutory Entity Key ]] -> 2013C3569 | E119: HI | F119: Hawaii Medical Service Assn. | G119: 1591764 | H119: 404558.305 | I119: 11629.796 | J119: 20794.485 | K119: 7685 | L119: -4900.18 | M119: 369349.204 | N119: 391467.047 | O119: 95418.009 | P119: 4.102653693 | Q119: 4 | R119: 0.9319650575 | S119: -0.01211241974 | T119: 0.0801473622 | U119: 1 | V119: 4.102653693 | W119: 254.1572149 | X119: 20.37003036 | Y119: -3.078458867 | Z119: 236.8656434 | AA119: -1.065814104e-14 | AB119: =_xlfn.IFNA(INDEX('SOA dataset'!$A$4:$BE$674,MATCH('Pivot Data'!F2135,'SOA dataset'!$E$4:$E$674,0),52),"Missing Info") -> NFP | AC119: =_xlfn.IFNA(INDEX('NAIC Ownership'!$A$5:$E$212,MATCH('Pivot Data'!B2135,'NAIC Ownership'!$B$5:$B$212,0),5),"Missing Info") -> Other | AD119: =_xlfn.IFNA(INDEX('S&P Export2'!$A$3:$E$290,MATCH('Pivot Data'!B2135,'S&P Export2'!$B$3:$B$290,0),3),"Missing Info") -> 49948 | AE119: 0 | AF119: 0 | AG119: 0 | AH119: =IF(AG119=9,INDEX('Cleanup profit status 9'!$F$5:$I$58,MATCH('Pivot Data'!B2135,'Cleanup profit status 9'!$G$5:$G$58,0),4),AG119) -> 0 | AI119: =_xlfn.IFNA(INDEX('Expansion Adoption'!$A$5:$H$56,MATCH('Pivot Data'!E2135,'Expansion Adoption'!$B$5:$B$56,0),6),"ERROR") -> 1 | AJ119: =_xlfn.IFNA(INDEX('Expansion Adoption'!$A$5:$H$56,MATCH('Pivot Data'!E2135,'Expansion Adoption'!$B$5:$B$56,0),7),"ERROR") -> 0 | AK119: =_xlfn.IFNA(INDEX('Expansion Adoption'!$A$5:$H$56,MATCH('Pivot Data'!E2135,'Expansion Adoption'!$B$5:$B$56,0),8),"ERROR") -> 1 | AL119: 1 | AM119: 1 | AN119: 1 | AO119: 1 | AP119: 1 | AQ119: 1 | AR119: 1 | AS119: 0 | AT119: 1 | AU119: 0 | AV119: 16 | AW119: 0 | AX119: 1591764 | AY119: 0.5 | AZ119: 254.1572149 | BA119: 0.25
A120: 2013 | B120: C2314 | C120: =Table2[[#This Row],[Year]]&Table2[[#This Row],[SNL Statutory Entity Key ]] -> 2013C2314 | D120: Health Care Service Corporation, a Mutual Legal Reserve Company | E120: IL | F120: HCSC Insurance Services Co. | G120: 402581 | H120: 129888.592 | I120: 14305.876 | J120: 7386.668 | K120: 35280 | L120: -40851.983 | M120: 113768.031 | N120: 205856.097 | O120: 15229.386 | P120: 13.51703194 | Q120: 14 | R120: 1.147506711 | S120: -0.3145155581 | T120: 0.1670088471 | U120: 1 | V120: 13.51703194 | W120: 322.6396477 | X120: 53.88367558 | Y120: -101.4751888 | Z120: 370.2311609 | AA120: -1.421085472e-14 | AB120: =_xlfn.IFNA(INDEX('SOA dataset'!$A$4:$BE$674,MATCH('Pivot Data'!F2136,'SOA dataset'!$E$4:$E$674,0),52),"Missing Info") -> NFP | AC120: =_xlfn.IFNA(INDEX('NAIC Ownership'!$A$5:$E$212,MATCH('Pivot Data'!B2136,'NAIC Ownership'!$B$5:$B$212,0),5),"Missing Info") -> Stock Company | AD120: =_xlfn.IFNA(INDEX('S&P Export2'!$A$3:$E$290,MATCH('Pivot Data'!B2136,'S&P Export2'!$B$3:$B$290,0),3),"Missing Info") -> 78611 | AE120: 0 | AF120: 1 | AG120: 0 | AH120: =IF(AG120=9,INDEX('Cleanup profit status 9'!$F$5:$I$58,MATCH('Pivot Data'!B2136,'Cleanup profit status 9'!$G$5:$G$58,0),4),AG120) -> 0 | AI120: =_xlfn.IFNA(INDEX('Expansion Adoption'!$A$5:$H$56,MATCH('Pivot Data'!E2136,'Expansion Adoption'!$B$5:$B$56,0),6),"ERROR") -> 1 | AJ120: =_xlfn.IFNA(INDEX('Expansion Adoption'!$A$5:$H$56,MATCH('Pivot Data'!E2136,'Expansion Adoption'!$B$5:$B$56,0),7),"ERROR") -> 0 | AK120: =_xlfn.IFNA(INDEX('Expansion Adoption'!$A$5:$H$56,MATCH('Pivot Data'!E2136,'Expansion Adoption'!$B$5:$B$56,0),8),"ERROR") -> 1 | AL120: 1 | AM120: 1 | AN120: 1 | AO120: 1 | AP120: 1 | AQ120: 1 | AR120: 1 | AS120: 0 | AT120: 1 | AU120: 1 | AV120: 4 | AW120: 0 | AX120: 402581 | AY120: 0.1 | AZ120: 322.6396477 | BA120: 0.35 | BE120: 0.002519389596
A121: 2013 | B121: C8615 | C121: =Table2[[#This Row],[Year]]&Table2[[#This Row],[SNL Statutory Entity Key ]] -> 2013C8615 | D121: CHA Holding, Inc. | E121: IL | F121: Health Alliance Connect Inc. | G121: 0 | H121: 0 | I121: 0 | J121: 0 | K121: 0 | L121: 0 | M121: 0 | N121: 0 | O121: 0 | P121: - | Q121: - | R121: - | S121: - | T121: - | U121: 0 | V121: - | W121: - | X121: - | Y121: - | Z121: - | AA121: - | AB121: =_xlfn.IFNA(INDEX('SOA dataset'!$A$4:$BE$674,MATCH('Pivot Data'!F2137,'SOA dataset'!$E$4:$E$674,0),52),"Missing Info") -> 0 | AC121: =_xlfn.IFNA(INDEX('NAIC Ownership'!$A$5:$E$212,MATCH('Pivot Data'!B2137,'NAIC Ownership'!$B$5:$B$212,0),5),"Missing Info") -> Missing Info | AD121: =_xlfn.IFNA(INDEX('S&P Export2'!$A$3:$E$290,MATCH('Pivot Data'!B2137,'S&P Export2'!$B$3:$B$290,0),3),"Missing Info") -> 15478 | AE121: 9 | AF121: 9 | AG121: 9 | AH121: =IF(AG121=9,INDEX('Cleanup profit status 9'!$F$5:$I$58,MATCH('Pivot Data'!B2137,'Cleanup profit status 9'!$G$5:$G$58,0),4),AG121) -> 0 | AI121: =_xlfn.IFNA(INDEX('Expansion Adoption'!$A$5:$H$56,MATCH('Pivot Data'!E2137,'Expansion Adoption'!$B$5:$B$56,0),6),"ERROR") -> 1 | AJ121: =_xlfn.IFNA(INDEX('Expansion Adoption'!$A$5:$H$56,MATCH('Pivot Data'!E2137,'Expansion Adoption'!$B$5:$B$56,0),7),"ERROR") -> 0 | AK121: =_xlfn.IFNA(INDEX('Expansion Adoption'!$A$5:$H$56,MATCH('Pivot Data'!E2137,'Expansion Adoption'!$B$5:$B$56,0),8),"ERROR") -> 1 | AL121: 0 | AM121: 0 | AN121: 0 | AO121: 0 | AP121: 0 | AQ121: 0 | AR121: 0 | AS121: 0 | AT121: 0 | AU121: 0 | AV121: 0 | AW121: 1 | BE121: 0.03702573028
A122: 2013 | B122: C2458 | C122: =Table2[[#This Row],[Year]]&Table2[[#This Row],[SNL Statutory Entity Key ]] -> 2013C2458 | D122: Carle Holding Company, Inc. | E122: IL | F122: Health Alliance Med Plans Inc. | G122: 11055 | H122: 11391.791 | I122: 383.58 | J122: 1274.25 | K122: 0 | L122: -2397.64 | M122: 12131.601 | N122: 200772.573 | O122: 31990.721 | P122: 6.275962739 | Q122: 6 | R122: 1.064942378 | S122: -0.2104708557 | T122: 0.1455284775 | U122: 1 | V122: 6.275962739 | W122: 1030.465038 | X122: 149.9620081 | Y122: -216.8828584 | Z122: 1097.385889 | AA122: 2.557953849e-13 | AB122: =_xlfn.IFNA(INDEX('SOA dataset'!$A$4:$BE$674,MATCH('Pivot Data'!F2138,'SOA dataset'!$E$4:$E$674,0),52),"Missing Info") -> FP | AC122: =_xlfn.IFNA(INDEX('NAIC Ownership'!$A$5:$E$212,MATCH('Pivot Data'!B2138,'NAIC Ownership'!$B$5:$B$212,0),5),"Missing Info") -> Missing Info | AD122: =_xlfn.IFNA(INDEX('S&P Export2'!$A$3:$E$290,MATCH('Pivot Data'!B2138,'S&P Export2'!$B$3:$B$290,0),3),"Missing Info") -> 77950 | AE122: 1 | AF122: 9 | AG122: 1 | AH122: =IF(AG122=9,INDEX('Cleanup profit status 9'!$F$5:$I$58,MATCH('Pivot Data'!B2138,'Cleanup profit status 9'!$G$5:$G$58,0),4),AG122) -> 1 | AI122: =_xlfn.IFNA(INDEX('Expansion Adoption'!$A$5:$H$56,MATCH('Pivot Data'!E2138,'Expansion Adoption'!$B$5:$B$56,0),6),"ERROR") -> 1 | AJ122: =_xlfn.IFNA(INDEX('Expansion Adoption'!$A$5:$H$56,MATCH('Pivot Data'!E2138,'Expansion Adoption'!$B$5:$B$56,0),7),"ERROR") -> 0 | AK122: =_xlfn.IFNA(INDEX('Expansion Adoption'!$A$5:$H$56,MATCH('Pivot Data'!E2138,'Expansion Adoption'!$B$5:$B$56,0),8),"ERROR") -> 1 | AL122: 1 | AM122: 0 | AN122: 0 | AO122: 0 | AP122: 0 | AQ122: 0 | AR122: 0 | AS122: 0 | AT122: 0 | AU122: 0 | AV122: 0 | AW122: 1 | BE122: -0.0008375307247
A123: 2013 | B123: C9273 | C123: =Table2[[#This Row],[Year]]&Table2[[#This Row],[SNL Statutory Entity Key ]] -> 2013C9273 | E123: CO | F123: Health Colorado Inc. | G123: 0 | H123: 0 | I123: 0 | J123: 0 | K123: 0 | L123: 0 | M123: 0 | N123: 0 | O123: 0 | P123: - | Q123: - | R123: - | S123: - | T123: - | U123: 0 | V123: - | W123: - | X123: - | Y123: - | Z123: - | AA123: - | AB123: =_xlfn.IFNA(INDEX('SOA dataset'!$A$4:$BE$674,MATCH('Pivot Data'!F2139,'SOA dataset'!$E$4:$E$674,0),52),"Missing Info") -> Missing Info | AC123: =_xlfn.IFNA(INDEX('NAIC Ownership'!$A$5:$E$212,MATCH('Pivot Data'!B2139,'NAIC Ownership'!$B$5:$B$212,0),5),"Missing Info") -> Stock Company | AD123: =_xlfn.IFNA(INDEX('S&P Export2'!$A$3:$E$290,MATCH('Pivot Data'!B2139,'S&P Export2'!$B$3:$B$290,0),3),"Missing Info") -> 16486 | AE123: 9 | AF123: 1 | AG123: 1 | AH123: =IF(AG123=9,INDEX('Cleanup profit status 9'!$F$5:$I$58,MATCH('Pivot Data'!B2139,'Cleanup profit status 9'!$G$5:$G$58,0),4),AG123) -> 1 | AI123: =_xlfn.IFNA(INDEX('Expansion Adoption'!$A$5:$H$56,MATCH('Pivot Data'!E2139,'Expansion Adoption'!$B$5:$B$56,0),6),"ERROR") -> 1 | AJ123: =_xlfn.IFNA(INDEX('Expansion Adoption'!$A$5:$H$56,MATCH('Pivot Data'!E2139,'Expansion Adoption'!$B$5:$B$56,0),7),"ERROR") -> 0 | AK123: =_xlfn.IFNA(INDEX('Expansion Adoption'!$A$5:$H$56,MATCH('Pivot Data'!E2139,'Expansion Adoption'!$B$5:$B$56,0),8),"ERROR") -> 1 | AL123: 0 | AM123: 0 | AN123: 0 | AO123: 0 | AP123: 0 | AQ123: 0 | AR123: 0 | AS123: 0 | AT123: 0 | AU123: 0 | AV123: 0 | AW123: 1 | BE123: 0.01255377506
A124: 2013 | B124: C6172 | C124: =Table2[[#This Row],[Year]]&Table2[[#This Row],[SNL Statutory Entity Key ]] -> 2013C6172 | D124: EmblemHealth, Inc. | E124: NY | F124: Health Ins Plan of Greater NY | G124: 2377557 | H124: 1071738.204 | I124: 54234.465 | J124: 85407.543 | K124: 0 | L124: 76057.453 | M124: 856038.743 | N124: 1435525.659 | O124: 199695.908 | P124: 7.18855821 | Q124: 7 | R124: 0.7987386657 | S124: 0.07096644751 | T124: 0.1302948868 | U124: 1 | V124: 7.18855821 | W124: 450.7728748 | X124: 58.73340071 | Y124: 31.98974956 | Z124: 360.0497246 | AA124: -3.552713679e-14 | AB124: =_xlfn.IFNA(INDEX('SOA dataset'!$A$4:$BE$674,MATCH('Pivot Data'!F2140,'SOA dataset'!$E$4:$E$674,0),52),"Missing Info") -> Missing Info | AC124: =_xlfn.IFNA(INDEX('NAIC Ownership'!$A$5:$E$212,MATCH('Pivot Data'!B2140,'NAIC Ownership'!$B$5:$B$212,0),5),"Missing Info") -> Other | AD124: =_xlfn.IFNA(INDEX('S&P Export2'!$A$3:$E$290,MATCH('Pivot Data'!B2140,'S&P Export2'!$B$3:$B$290,0),3),"Missing Info") -> 55247 | AE124: 9 | AF124: 0 | AG124: 0 | AH124: =IF(AG124=9,INDEX('Cleanup profit status 9'!$F$5:$I$58,MATCH('Pivot Data'!B2140,'Cleanup profit status 9'!$G$5:$G$58,0),4),AG124) -> 0 | AI124: =_xlfn.IFNA(INDEX('Expansion Adoption'!$A$5:$H$56,MATCH('Pivot Data'!E2140,'Expansion Adoption'!$B$5:$B$56,0),6),"ERROR") -> 1 | AJ124: =_xlfn.IFNA(INDEX('Expansion Adoption'!$A$5:$H$56,MATCH('Pivot Data'!E2140,'Expansion Adoption'!$B$5:$B$56,0),7),"ERROR") -> 0 | AK124: =_xlfn.IFNA(INDEX('Expansion Adoption'!$A$5:$H$56,MATCH('Pivot Data'!E2140,'Expansion Adoption'!$B$5:$B$56,0),8),"ERROR") -> 1 | AL124: 1 | AM124: 1 | AN124: 1 | AO124: 1 | AP124: 1 | AQ124: 1 | AR124: 1 | AS124: 0 | AT124: 1 | AU124: 0 | AV124: 24 | AW124: 0 | AX124: 2377557 | AY124: 0.6 | AZ124: 450.7728748 | BA124: 0.65 | BE124: 0.03414694894
A125: 2013 | B125: C3117 | C125: =Table2[[#This Row],[Year]]&Table2[[#This Row],[SNL Statutory Entity Key ]] -> 2013C3117 | D125: Baystate Health, Inc. | E125: MA | F125: Health New England Inc. | G125: 158047 | H125: 66389.485 | I125: 1948.698 | J125: 3704.618 | K125: 0 | L125: -980.306 | M125: 61716.475 | N125: 52620.002 | O125: 20106.351 | P125: 2.617083627 | Q125: 3 | R125: 0.9296121969 | S125: -0.0147659829 | T125: 0.08515378603 | U125: 1 | V125: 2.617083627 | W125: 420.0616589 | X125: 35.76984062 | Y125: -6.20262327 | Z125: 390.4944415 | AA125: -1.776356839e-14 | AB125: =_xlfn.IFNA(INDEX('SOA dataset'!$A$4:$BE$674,MATCH('Pivot Data'!F2141,'SOA dataset'!$E$4:$E$674,0),52),"Missing Info") -> NFP | AC125: =_xlfn.IFNA(INDEX('NAIC Ownership'!$A$5:$E$212,MATCH('Pivot Data'!B2141,'NAIC Ownership'!$B$5:$B$212,0),5),"Missing Info") -> Other | AD125: =_xlfn.IFNA(INDEX('S&P Export2'!$A$3:$E$290,MATCH('Pivot Data'!B2141,'S&P Export2'!$B$3:$B$290,0),3),"Missing Info") -> 95673 | AE125: 0 | AF125: 0 | AG125: 0 | AH125: =IF(AG125=9,INDEX('Cleanup profit status 9'!$F$5:$I$58,MATCH('Pivot Data'!B2141,'Cleanup profit status 9'!$G$5:$G$58,0),4),AG125) -> 0 | AI125: =_xlfn.IFNA(INDEX('Expansion Adoption'!$A$5:$H$56,MATCH('Pivot Data'!E2141,'Expansion Adoption'!$B$5:$B$56,0),6),"ERROR") -> 1 | AJ125: =_xlfn.IFNA(INDEX('Expansion Adoption'!$A$5:$H$56,MATCH('Pivot Data'!E2141,'Expansion Adoption'!$B$5:$B$56,0),7),"ERROR") -> 0 | AK125: =_xlfn.IFNA(INDEX('Expansion Adoption'!$A$5:$H$56,MATCH('Pivot Data'!E2141,'Expansion Adoption'!$B$5:$B$56,0),8),"ERROR") -> 1 | AL125: 1 | AM125: 1 | AN125: 1 | AO125: 1 | AP125: 1 | AQ125: 1 | AR125: 1 | AS125: 0 | AT125: 1 | AU125: 1 | AV125: 2 | AW125: 0 | AX125: 158047 | AY125: 0 | AZ125: 420.0616589 | BA125: 0.65 | BE125: -0.000841121876
A126: 2013 | B126: C3519 | C126: =Table2[[#This Row],[Year]]&Table2[[#This Row],[SNL Statutory Entity Key ]] -> 2013C3519 | E126: PA | F126: Health Partners Plans Inc. | G126: 2014212 | H126: 988144.2 | I126: 12739.22 | J126: 230368.715 | K126: 0 | L126: 3728.566 | M126: 741307.699 | N126: 89948.588 | O126: 29598.922 | P126: 3.038914323 | Q126: 3 | R126: 0.7502019432 | S126: 0.003773301508 | T126: 0.2460247553 | U126: 1 | V126: 3.038914323 | W126: 490.5859959 | X126: 120.6962996 | Y126: 1.851128878 | Z126: 368.0385674 | AA126: 4.551914401e-14 | AB126: =_xlfn.IFNA(INDEX('SOA dataset'!$A$4:$BE$674,MATCH('Pivot Data'!F2142,'SOA dataset'!$E$4:$E$674,0),52),"Missing Info") -> NFP | AC126: =_xlfn.IFNA(INDEX('NAIC Ownership'!$A$5:$E$212,MATCH('Pivot Data'!B2142,'NAIC Ownership'!$B$5:$B$212,0),5),"Missing Info") -> Other | AD126: =_xlfn.IFNA(INDEX('S&P Export2'!$A$3:$E$290,MATCH('Pivot Data'!B2142,'S&P Export2'!$B$3:$B$290,0),3),"Missing Info") -> 95066 | AE126: 0 | AF126: 0 | AG126: 0 | AH126: =IF(AG126=9,INDEX('Cleanup profit status 9'!$F$5:$I$58,MATCH('Pivot Data'!B2142,'Cleanup profit status 9'!$G$5:$G$58,0),4),AG126) -> 0 | AI126: =_xlfn.IFNA(INDEX('Expansion Adoption'!$A$5:$H$56,MATCH('Pivot Data'!E2142,'Expansion Adoption'!$B$5:$B$56,0),6),"ERROR") -> 1 | AJ126: =_xlfn.IFNA(INDEX('Expansion Adoption'!$A$5:$H$56,MATCH('Pivot Data'!E2142,'Expansion Adoption'!$B$5:$B$56,0),7),"ERROR") -> 0 | AK126: =_xlfn.IFNA(INDEX('Expansion Adoption'!$A$5:$H$56,MATCH('Pivot Data'!E2142,'Expansion Adoption'!$B$5:$B$56,0),8),"ERROR") -> 1 | AL126: 1 | AM126: 1 | AN126: 1 | AO126: 1 | AP126: 1 | AQ126: 1 | AR126: 1 | AS126: 0 | AT126: 1 | AU126: 0 | AV126: 20 | AW126: 0 | AX126: 2014212 | AY126: 0.5 | AZ126: 490.5859959 | BA126: 0.75 | BE126: 0.159455875
A127: 2013 | B127: C3287 | C127: =Table2[[#This Row],[Year]]&Table2[[#This Row],[SNL Statutory Entity Key ]] -> 2013C3287 | D127: Sierra Health Services, Inc. | E127: NV | F127: Health Plan of Nevada Inc. | G127: 1165395 | H127: 193772.19 | I127: 7457.535 | J127: 10018.456 | K127: 0 | L127: 30436.724 | M127: 145859.475 | N127: 224288.864 | O127: 38072.278 | P127: 5.891133281 | Q127: 6 | R127: 0.7527368865 | S127: 0.1570747794 | T127: 0.09018833404 | U127: 1 | V127: 5.891133281 | W127: 166.2716847 | X127: 14.99576624 | Y127: 26.1170882 | Z127: 125.1588303 | AA127: -3.552713679e-15 | AB127: =_xlfn.IFNA(INDEX('SOA dataset'!$A$4:$BE$674,MATCH('Pivot Data'!F2143,'SOA dataset'!$E$4:$E$674,0),52),"Missing Info") -> FP | AC127: =_xlfn.IFNA(INDEX('NAIC Ownership'!$A$5:$E$212,MATCH('Pivot Data'!B2143,'NAIC Ownership'!$B$5:$B$212,0),5),"Missing Info") -> Stock Company | AD127: =_xlfn.IFNA(INDEX('S&P Export2'!$A$3:$E$290,MATCH('Pivot Data'!B2143,'S&P Export2'!$B$3:$B$290,0),3),"Missing Info") -> 96342 | AE127: 1 | AF127: 1 | AG127: 1 | AH127: =IF(AG127=9,INDEX('Cleanup profit status 9'!$F$5:$I$58,MATCH('Pivot Data'!B2143,'Cleanup profit status 9'!$G$5:$G$58,0),4),AG127) -> 1 | AI127: =_xlfn.IFNA(INDEX('Expansion Adoption'!$A$5:$H$56,MATCH('Pivot Data'!E2143,'Expansion Adoption'!$B$5:$B$56,0),6),"ERROR") -> 1 | AJ127: =_xlfn.IFNA(INDEX('Expansion Adoption'!$A$5:$H$56,MATCH('Pivot Data'!E2143,'Expansion Adoption'!$B$5:$B$56,0),7),"ERROR") -> 0 | AK127: =_xlfn.IFNA(INDEX('Expansion Adoption'!$A$5:$H$56,MATCH('Pivot Data'!E2143,'Expansion Adoption'!$B$5:$B$56,0),8),"ERROR") -> 1 | AL127: 1 | AM127: 1 | AN127: 1 | AO127: 1 | AP127: 1 | AQ127: 1 | AR127: 1 | AS127: 0 | AT127: 1 | AU127: 1 | AV127: 12 | AW127: 0 | AX127: 1165395 | AY127: 0.4 | AZ127: 166.2716847 | BA127: 0.05
A128: 2013 | B128: C3399 | C128: =Table2[[#This Row],[Year]]&Table2[[#This Row],[SNL Statutory Entity Key ]] -> 2013C3399 | E128: WV | F128: Health Plan of WV Inc. | G128: 330220 | H128: 73524.941 | I128: 1396.798 | J128: 3378.005 | K128: 0 | L128: 9264.745 | M128: 59485.393 | N128: 191370.365 | O128: 22761.409 | P128: 8.407667777 | Q128: 8 | R128: 0.809050537 | S128: 0.1260081936 | T128: 0.06494126939 | U128: 1 | V128: 8.407667777 | W128: 222.6544152 | X128: 14.45946036 | Y128: 28.05628066 | Z128: 180.1386742 | AA128: -7.105427358e-15 | AB128: =_xlfn.IFNA(INDEX('SOA dataset'!$A$4:$BE$674,MATCH('Pivot Data'!F2144,'SOA dataset'!$E$4:$E$674,0),52),"Missing Info") -> Missing Info | AC128: =_xlfn.IFNA(INDEX('NAIC Ownership'!$A$5:$E$212,MATCH('Pivot Data'!B2144,'NAIC Ownership'!$B$5:$B$212,0),5),"Missing Info") -> Other | AD128: =_xlfn.IFNA(INDEX('S&P Export2'!$A$3:$E$290,MATCH('Pivot Data'!B2144,'S&P Export2'!$B$3:$B$290,0),3),"Missing Info") -> 95677 | AE128: 9 | AF128: 0 | AG128: 0 | AH128: =IF(AG128=9,INDEX('Cleanup profit status 9'!$F$5:$I$58,MATCH('Pivot Data'!B2144,'Cleanup profit status 9'!$G$5:$G$58,0),4),AG128) -> 0 | AI128: =_xlfn.IFNA(INDEX('Expansion Adoption'!$A$5:$H$56,MATCH('Pivot Data'!E2144,'Expansion Adoption'!$B$5:$B$56,0),6),"ERROR") -> 1 | AJ128: =_xlfn.IFNA(INDEX('Expansion Adoption'!$A$5:$H$56,MATCH('Pivot Data'!E2144,'Expansion Adoption'!$B$5:$B$56,0),7),"ERROR") -> 0 | AK128: =_xlfn.IFNA(INDEX('Expansion Adoption'!$A$5:$H$56,MATCH('Pivot Data'!E2144,'Expansion Adoption'!$B$5:$B$56,0),8),"ERROR") -> 1 | AL128: 1 | AM128: 1 | AN128: 1 | AO128: 1 | AP128: 1 | AQ128: 1 | AR128: 1 | AS128: 0 | AT128: 1 | AU128: 1 | AV128: 3 | AW128: 0 | AX128: 330220 | AY128: 0.1 | AZ128: 222.6544152 | BA128: 0.15 | BE128: 0.07753318229
A129: 2013 | B129: C9650 | C129: =Table2[[#This Row],[Year]]&Table2[[#This Row],[SNL Statutory Entity Key ]] -> 2013C9650 | E129: OR | F129: Health Share of Oregon | G129: 0 | H129: 0 | I129: 0 | J129: 0 | K129: 0 | L129: 0 | M129: 0 | N129: 0 | O129: 0 | P129: - | Q129: - | R129: - | S129: - | T129: - | U129: 0 | V129: - | W129: - | X129: - | Y129: - | Z129: - | AA129: - | AB129: =_xlfn.IFNA(INDEX('SOA dataset'!$A$4:$BE$674,MATCH('Pivot Data'!F2145,'SOA dataset'!$E$4:$E$674,0),52),"Missing Info") -> Missing Info | AC129: =_xlfn.IFNA(INDEX('NAIC Ownership'!$A$5:$E$212,MATCH('Pivot Data'!B2145,'NAIC Ownership'!$B$5:$B$212,0),5),"Missing Info") -> Missing Info | AD129: =_xlfn.IFNA(INDEX('S&P Export2'!$A$3:$E$290,MATCH('Pivot Data'!B2145,'S&P Export2'!$B$3:$B$290,0),3),"Missing Info") -> 16672 | AE129: 9 | AF129: 9 | AG129: 9 | AH129: =IF(AG129=9,INDEX('Cleanup profit status 9'!$F$5:$I$58,MATCH('Pivot Data'!B2145,'Cleanup profit status 9'!$G$5:$G$58,0),4),AG129) -> 0 | AI129: =_xlfn.IFNA(INDEX('Expansion Adoption'!$A$5:$H$56,MATCH('Pivot Data'!E2145,'Expansion Adoption'!$B$5:$B$56,0),6),"ERROR") -> 1 | AJ129: =_xlfn.IFNA(INDEX('Expansion Adoption'!$A$5:$H$56,MATCH('Pivot Data'!E2145,'Expansion Adoption'!$B$5:$B$56,0),7),"ERROR") -> 0 | AK129: =_xlfn.IFNA(INDEX('Expansion Adoption'!$A$5:$H$56,MATCH('Pivot Data'!E2145,'Expansion Adoption'!$B$5:$B$56,0),8),"ERROR") -> 1 | AL129: 0 | AM129: 0 | AN129: 0 | AO129: 0 | AP129: 0 | AQ129: 0 | AR129: 0 | AS129: 0 | AT129: 0 | AU129: 0 | AV129: 0 | AW129: 1 | BE129: 0.02031336982
A130: 2013 | B130: C3712 | C130: =Table2[[#This Row],[Year]]&Table2[[#This Row],[SNL Statutory Entity Key ]] -> 2013C3712 | D130: WEA Insurance Corporation | E130: WI | F130: Health Tradition Hlth Plan Inc | G130: 109203 | H130: 17868.217 | I130: 1926.694 | J130: 1229.093 | K130: 0 | L130: 45.017 | M130: 14667.413 | N130: 12509.222 | O130: 3669.947 | P130: =IFERROR((N130)/O130,"-") -> 3.408556581 | Q130: =IFERROR(ROUND(P130,0),"-") -> 3 | R130: =IFERROR((M130+K130)/H130,"-") -> 0.8208660663 | S130: =IFERROR(L130/H130,"-") -> 0.002519389596 | T130: =IFERROR((I130+J130)/H130,"-") -> 0.1766145441 | U130: =SUM(R130:T130) -> 1 | V130: =IFERROR(N130/O130,"-") -> 3.408556581 | W130: =IFERROR((H130*1000)/$G130,"-") -> 163.6238656 | X130: =IFERROR((I130*1000+J130*1000)/$G130,"-") -> 28.89835444 | Y130: =IFERROR((L130*1000)/$G130,"-") -> 0.4122322647 | Z130: =IFERROR((K130*1000+M130*1000)/$G130,"-") -> 134.3132789 | AA130: =IFERROR((W130-X130-Z130-Y130),"-") -> -8.881784197e-15 | AB130: =_xlfn.IFNA(INDEX('SOA dataset'!$A$4:$BE$674,MATCH('Pivot Data'!F2146,'SOA dataset'!$E$4:$E$674,0),52),"Missing Info") -> Missing Info | AC130: =_xlfn.IFNA(INDEX('NAIC Ownership'!$A$5:$E$212,MATCH('Pivot Data'!B2146,'NAIC Ownership'!$B$5:$B$212,0),5),"Missing Info") -> Missing Info | AD130: =_xlfn.IFNA(INDEX('S&P Export2'!$A$3:$E$290,MATCH('Pivot Data'!B2146,'S&P Export2'!$B$3:$B$290,0),3),"Missing Info") -> 96628 | AE130: =IF(AB130="FP",1,IF(AB130="NFP",0,9)) -> 9 | AF130: =IF(AC130="Stock Company",1,IF(AC130="Limited Liability Corporation",1,IF(AC130="Mutual Company",1,IF(AC130="Missing Info",9,0)))) -> 9 | AG130: =MIN(AE130,AF130) -> 9 | AH130: =IF(AG130=9,INDEX('Cleanup profit status 9'!$F$5:$I$58,MATCH('Pivot Data'!B2146,'Cleanup profit status 9'!$G$5:$G$58,0),4),AG130) -> 1 | AI130: =_xlfn.IFNA(INDEX('Expansion Adoption'!$A$5:$H$56,MATCH('Pivot Data'!E2146,'Expansion Adoption'!$B$5:$B$56,0),6),"ERROR") -> 0 | AJ130: =_xlfn.IFNA(INDEX('Expansion Adoption'!$A$5:$H$56,MATCH('Pivot Data'!E2146,'Expansion Adoption'!$B$5:$B$56,0),7),"ERROR") -> 0 | AK130: =_xlfn.IFNA(INDEX('Expansion Adoption'!$A$5:$H$56,MATCH('Pivot Data'!E2146,'Expansion Adoption'!$B$5:$B$56,0),8),"ERROR") -> 0 | AL130: =IF(G130<=0,0,1) -> 1 | AM130: =IF(G130<50000,0,1) -> 1 | AN130: =IF(W130<100,0,1)*AM130 -> 1 | AO130: =IF(S130>50%,0,1)*AN130 -> 1 | AP130: =IF(S130<-0.5,0,1)*AO130 -> 1 | AQ130: =IF(A130=2020,1,1)*AP130 -> 1 | AR130: =IF(S130=0,0,1)*AQ130 -> 1 | AS130: =IF(A130=2020,1,0)*AP130 -> 0 | AT130: =AR130 -> 1 | AU130: =AT130*IF(G130<$BC$1,1,0) -> 1 | AV130: =ROUND(G130/100000,0) -> 1 | AW130: =IF(W130<1000,0,1) -> 0 | AX130: =IF(AT130=0,"",G130) -> 109203 | AY130: =IF(AX130="","",VLOOKUP(AX130,$BC$15:$BF$24,3)) -> 0 | AZ130: =IF(AT130=0,"",W130) -> 163.6238656 | BA130: =IF(AZ130="","",VLOOKUP(AZ130,$BD$15:$BF$24,3)) -> 0.05 | BE130: -0.05304715197
A131: 2013 | B131: C3329 | C131: =Table2[[#This Row],[Year]]&Table2[[#This Row],[SNL Statutory Entity Key ]] -> 2013C3329 | D131: Aetna Health Inc. (a Pennsylvania corporation) | E131: PA | F131: HealthAmerica Pennsylvania, | G131: 1013334 | H131: 357773.551 | I131: 14858.599 | J131: 10907.034 | K131: 0 | L131: 13246.827 | M131: 318761.091 | N131: 87660.014 | O131: 26125.904 | P131: 3.355291132 | Q131: 3 | R131: 0.8909576745 | S131: 0.03702573028 | T131: 0.07201659521 | U131: 1 | V131: 3.355291132 | W131: 353.065772 | X131: 25.42659479 | Y131: 13.07251804 | Z131: 314.5666592 | AA131: -5.329070518e-15 | AB131: =_xlfn.IFNA(INDEX('SOA dataset'!$A$4:$BE$674,MATCH('Pivot Data'!F2147,'SOA dataset'!$E$4:$E$674,0),52),"Missing Info") -> Missing Info | AC131: =_xlfn.IFNA(INDEX('NAIC Ownership'!$A$5:$E$212,MATCH('Pivot Data'!B2147,'NAIC Ownership'!$B$5:$B$212,0),5),"Missing Info") -> Missing Info | AD131: =_xlfn.IFNA(INDEX('S&P Export2'!$A$3:$E$290,MATCH('Pivot Data'!B2147,'S&P Export2'!$B$3:$B$290,0),3),"Missing Info") -> 95060 | AE131: 9 | AF131: 9 | AG131: 9 | AH131: =IF(AG131=9,INDEX('Cleanup profit status 9'!$F$5:$I$58,MATCH('Pivot Data'!B2147,'Cleanup profit status 9'!$G$5:$G$58,0),4),AG131) -> 1 | AI131: =_xlfn.IFNA(INDEX('Expansion Adoption'!$A$5:$H$56,MATCH('Pivot Data'!E2147,'Expansion Adoption'!$B$5:$B$56,0),6),"ERROR") -> 1 | AJ131: =_xlfn.IFNA(INDEX('Expansion Adoption'!$A$5:$H$56,MATCH('Pivot Data'!E2147,'Expansion Adoption'!$B$5:$B$56,0),7),"ERROR") -> 0 | AK131: =_xlfn.IFNA(INDEX('Expansion Adoption'!$A$5:$H$56,MATCH('Pivot Data'!E2147,'Expansion Adoption'!$B$5:$B$56,0),8),"ERROR") -> 1 | AL131: 1 | AM131: 1 | AN131: 1 | AO131: 1 | AP131: 1 | AQ131: 1 | AR131: 1 | AS131: 0 | AT131: 1 | AU131: 1 | AV131: 10 | AW131: 0 | AX131: 1013334 | AY131: 0.3 | AZ131: 353.065772 | BA131: 0.45
A132: 2013 | B132: C6411 | C132: =Table2[[#This Row],[Year]]&Table2[[#This Row],[SNL Statutory Entity Key ]] -> 2013C6411 | D132: HF Management Services, LLC | E132: NJ | F132: Healthfirst Health Plan of NJ | G132: 485652 | H132: 179969.517 | I132: 3084.385 | J132: 21040.705 | K132: 2340.428 | L132: -150.73 | M132: 153654.729 | N132: 4599.807 | O132: 9522.02 | P132: 0.4830705039 | Q132: 0 | R132: 0.8667865514 | S132: -0.0008375307247 | T132: 0.1340509793 | U132: 1 | V132: 0.4830705039 | W132: 370.5729967 | X132: 49.67567312 | Y132: -0.3103662705 | Z132: 321.2076899 | AA132: 9.769962617e-15 | AB132: =_xlfn.IFNA(INDEX('SOA dataset'!$A$4:$BE$674,MATCH('Pivot Data'!F2148,'SOA dataset'!$E$4:$E$674,0),52),"Missing Info") -> 0 | AC132: =_xlfn.IFNA(INDEX('NAIC Ownership'!$A$5:$E$212,MATCH('Pivot Data'!B2148,'NAIC Ownership'!$B$5:$B$212,0),5),"Missing Info") -> Missing Info | AD132: =_xlfn.IFNA(INDEX('S&P Export2'!$A$3:$E$290,MATCH('Pivot Data'!B2148,'S&P Export2'!$B$3:$B$290,0),3),"Missing Info") -> 13035 | AE132: 9 | AF132: 9 | AG132: 9 | AH132: =IF(AG132=9,INDEX('Cleanup profit status 9'!$F$5:$I$58,MATCH('Pivot Data'!B2148,'Cleanup profit status 9'!$G$5:$G$58,0),4),AG132) -> 0 | AI132: =_xlfn.IFNA(INDEX('Expansion Adoption'!$A$5:$H$56,MATCH('Pivot Data'!E2148,'Expansion Adoption'!$B$5:$B$56,0),6),"ERROR") -> 1 | AJ132: =_xlfn.IFNA(INDEX('Expansion Adoption'!$A$5:$H$56,MATCH('Pivot Data'!E2148,'Expansion Adoption'!$B$5:$B$56,0),7),"ERROR") -> 0 | AK132: =_xlfn.IFNA(INDEX('Expansion Adoption'!$A$5:$H$56,MATCH('Pivot Data'!E2148,'Expansion Adoption'!$B$5:$B$56,0),8),"ERROR") -> 1 | AL132: 1 | AM132: 1 | AN132: 1 | AO132: 1 | AP132: 1 | AQ132: 1 | AR132: 1 | AS132: 0 | AT132: 1 | AU132: 1 | AV132: 5 | AW132: 0 | AX132: 485652 | AY132: 0.1 | AZ132: 370.5729967 | BA132: 0.55 | BE132: -0.07643433071
A133: 2013 | B133: C3290 | C133: =Table2[[#This Row],[Year]]&Table2[[#This Row],[SNL Statutory Entity Key ]] -> 2013C3290 | D133: Anthem Southeast, Inc. | E133: VA | F133: HealthKeepers Inc. | G133: 3027498 | H133: 888700.964 | I133: 20667.049 | J133: 32568.241 | K133: 0 | L133: 11156.552 | M133: 824309.122 | N133: 249225.86 | O133: 55869.143 | P133: 4.460885681 | Q133: 4 | R133: 0.9275438594 | S133: 0.01255377506 | T133: 0.05990236554 | U133: 1 | V133: 4.460885681 | W133: 293.5430392 | X133: 17.58392243 | Y133: 3.685073285 | Z133: 272.2740435 | AA133: 1.33226763e-14 | AB133: =_xlfn.IFNA(INDEX('SOA dataset'!$A$4:$BE$674,MATCH('Pivot Data'!F2149,'SOA dataset'!$E$4:$E$674,0),52),"Missing Info") -> FP | AC133: =_xlfn.IFNA(INDEX('NAIC Ownership'!$A$5:$E$212,MATCH('Pivot Data'!B2149,'NAIC Ownership'!$B$5:$B$212,0),5),"Missing Info") -> Stock Company | AD133: =_xlfn.IFNA(INDEX('S&P Export2'!$A$3:$E$290,MATCH('Pivot Data'!B2149,'S&P Export2'!$B$3:$B$290,0),3),"Missing Info") -> 95169 | AE133: 1 | AF133: 1 | AG133: 1 | AH133: =IF(AG133=9,INDEX('Cleanup profit status 9'!$F$5:$I$58,MATCH('Pivot Data'!B2149,'Cleanup profit status 9'!$G$5:$G$58,0),4),AG133) -> 1 | AI133: =_xlfn.IFNA(INDEX('Expansion Adoption'!$A$5:$H$56,MATCH('Pivot Data'!E2149,'Expansion Adoption'!$B$5:$B$56,0),6),"ERROR") -> 0 | AJ133: =_xlfn.IFNA(INDEX('Expansion Adoption'!$A$5:$H$56,MATCH('Pivot Data'!E2149,'Expansion Adoption'!$B$5:$B$56,0),7),"ERROR") -> 1 | AK133: =_xlfn.IFNA(INDEX('Expansion Adoption'!$A$5:$H$56,MATCH('Pivot Data'!E2149,'Expansion Adoption'!$B$5:$B$56,0),8),"ERROR") -> 1 | AL133: 1 | AM133: 1 | AN133: 1 | AO133: 1 | AP133: 1 | AQ133: 1 | AR133: 1 | AS133: 0 | AT133: 1 | AU133: 0 | AV133: 30 | AW133: 0 | AX133: 3027498 | AY133: 0.7 | AZ133: 293.5430392 | BA133: 0.35 | BE133: 0.0638529024
A134: 2013 | B134: C6531 | C134: =Table2[[#This Row],[Year]]&Table2[[#This Row],[SNL Statutory Entity Key ]] -> 2013C6531 | E134: MN | F134: HealthPartners Inc. | G134: 1009028 | H134: 562100 | I134: 11373 | J134: 29657 | K134: 0 | L134: 19194 | M134: 501876 | N134: 846369 | O134: 133884.674 | P134: 6.321627224 | Q134: 6 | R134: 0.8928589219 | S134: 0.03414694894 | T134: 0.07299412916 | U134: 1 | V134: 6.321627224 | W134: 557.0707651 | X134: 40.66289538 | Y134: 19.02226697 | Z134: 497.3856028 | AA134: 2.131628207e-14 | AB134: =_xlfn.IFNA(INDEX('SOA dataset'!$A$4:$BE$674,MATCH('Pivot Data'!F2150,'SOA dataset'!$E$4:$E$674,0),52),"Missing Info") -> Missing Info | AC134: =_xlfn.IFNA(INDEX('NAIC Ownership'!$A$5:$E$212,MATCH('Pivot Data'!B2150,'NAIC Ownership'!$B$5:$B$212,0),5),"Missing Info") -> Stock Company | AD134: =_xlfn.IFNA(INDEX('S&P Export2'!$A$3:$E$290,MATCH('Pivot Data'!B2150,'S&P Export2'!$B$3:$B$290,0),3),"Missing Info") -> 95766 | AE134: 9 | AF134: 1 | AG134: 1 | AH134: =IF(AG134=9,INDEX('Cleanup profit status 9'!$F$5:$I$58,MATCH('Pivot Data'!B2150,'Cleanup profit status 9'!$G$5:$G$58,0),4),AG134) -> 1 | AI134: =_xlfn.IFNA(INDEX('Expansion Adoption'!$A$5:$H$56,MATCH('Pivot Data'!E2150,'Expansion Adoption'!$B$5:$B$56,0),6),"ERROR") -> 1 | AJ134: =_xlfn.IFNA(INDEX('Expansion Adoption'!$A$5:$H$56,MATCH('Pivot Data'!E2150,'Expansion Adoption'!$B$5:$B$56,0),7),"ERROR") -> 0 | AK134: =_xlfn.IFNA(INDEX('Expansion Adoption'!$A$5:$H$56,MATCH('Pivot Data'!E2150,'Expansion Adoption'!$B$5:$B$56,0),8),"ERROR") -> 1 | AL134: 1 | AM134: 1 | AN134: 1 | AO134: 1 | AP134: 1 | AQ134: 1 | AR134: 1 | AS134: 0 | AT134: 1 | AU134: 1 | AV134: 10 | AW134: 0 | AX134: 1009028 | AY134: 0.3 | AZ134: 557.0707651 | BA134: 0.85
A135: 2013 | B135: C3871 | C135: =Table2[[#This Row],[Year]]&Table2[[#This Row],[SNL Statutory Entity Key ]] -> 2013C3871 | D135: Health Alliance Plan of Michigan | E135: MI | F135: HealthPlus Partners Inc. Trust | G135: 788019 | H135: 226332.242 | I135: 6069.621 | J135: 13717.576 | K135: 0 | L135: -190.373 | M135: 206735.418 | N135: 30058.719 | O135: 6475.186 | P135: 4.642139855 | Q135: 5 | R135: 0.9134156768 | S135: -0.000841121876 | T135: 0.08742544511 | U135: 1 | V135: 4.642139855 | W135: 287.2167321 | X135: 25.11005065 | Y135: -0.2415842765 | Z135: 262.3482657 | AA135: -2.872702076e-14 | AB135: =_xlfn.IFNA(INDEX('SOA dataset'!$A$4:$BE$674,MATCH('Pivot Data'!F2151,'SOA dataset'!$E$4:$E$674,0),52),"Missing Info") -> Missing Info | AC135: =_xlfn.IFNA(INDEX('NAIC Ownership'!$A$5:$E$212,MATCH('Pivot Data'!B2151,'NAIC Ownership'!$B$5:$B$212,0),5),"Missing Info") -> Missing Info | AD135: =_xlfn.IFNA(INDEX('S&P Export2'!$A$3:$E$290,MATCH('Pivot Data'!B2151,'S&P Export2'!$B$3:$B$290,0),3),"Missing Info") -> 11549 | AE135: 9 | AF135: 9 | AG135: 9 | AH135: =IF(AG135=9,INDEX('Cleanup profit status 9'!$F$5:$I$58,MATCH('Pivot Data'!B2151,'Cleanup profit status 9'!$G$5:$G$58,0),4),AG135) -> 0 | AI135: =_xlfn.IFNA(INDEX('Expansion Adoption'!$A$5:$H$56,MATCH('Pivot Data'!E2151,'Expansion Adoption'!$B$5:$B$56,0),6),"ERROR") -> 1 | AJ135: =_xlfn.IFNA(INDEX('Expansion Adoption'!$A$5:$H$56,MATCH('Pivot Data'!E2151,'Expansion Adoption'!$B$5:$B$56,0),7),"ERROR") -> 0 | AK135: =_xlfn.IFNA(INDEX('Expansion Adoption'!$A$5:$H$56,MATCH('Pivot Data'!E2151,'Expansion Adoption'!$B$5:$B$56,0),8),"ERROR") -> 1 | AL135: 1 | AM135: 1 | AN135: 1 | AO135: 1 | AP135: 1 | AQ135: 1 | AR135: 1 | AS135: 0 | AT135: 1 | AU135: 1 | AV135: 8 | AW135: 0 | AX135: 788019 | AY135: 0.3 | AZ135: 287.2167321 | BA135: 0.35 | BE135: -0.03418496796
A136: 2013 | B136: CA4187833 | C136: =Table2[[#This Row],[Year]]&Table2[[#This Row],[SNL Statutory Entity Key ]] -> 2013CA4187833 | D136: NewQuest, LLC | E136: TX | F136: HealthSpring L&H Insurance Co. | G136: 288609 | H136: 314270.277 | I136: 0 | J136: 0 | K136: 9207.609 | L136: 50112.242 | M136: 254950.426 | N136: 384734.967 | O136: 53103.177 | P136: 7.24504613 | Q136: 7 | R136: 0.840544125 | S136: 0.159455875 | T136: 0 | U136: 1 | V136: 7.24504613 | W136: 1088.913641 | X136: 0 | Y136: 173.6336774 | Z136: 915.2799635 | AA136: -2.842170943e-14 | AB136: =_xlfn.IFNA(INDEX('SOA dataset'!$A$4:$BE$674,MATCH('Pivot Data'!F2152,'SOA dataset'!$E$4:$E$674,0),52),"Missing Info") -> FP | AC136: =_xlfn.IFNA(INDEX('NAIC Ownership'!$A$5:$E$212,MATCH('Pivot Data'!B2152,'NAIC Ownership'!$B$5:$B$212,0),5),"Missing Info") -> Stock Company | AD136: =_xlfn.IFNA(INDEX('S&P Export2'!$A$3:$E$290,MATCH('Pivot Data'!B2152,'S&P Export2'!$B$3:$B$290,0),3),"Missing Info") -> 12902 | AE136: 1 | AF136: 1 | AG136: 1 | AH136: =IF(AG136=9,INDEX('Cleanup profit status 9'!$F$5:$I$58,MATCH('Pivot Data'!B2152,'Cleanup profit status 9'!$G$5:$G$58,0),4),AG136) -> 1 | AI136: =_xlfn.IFNA(INDEX('Expansion Adoption'!$A$5:$H$56,MATCH('Pivot Data'!E2152,'Expansion Adoption'!$B$5:$B$56,0),6),"ERROR") -> 0 | AJ136: =_xlfn.IFNA(INDEX('Expansion Adoption'!$A$5:$H$56,MATCH('Pivot Data'!E2152,'Expansion Adoption'!$B$5:$B$56,0),7),"ERROR") -> 0 | AK136: =_xlfn.IFNA(INDEX('Expansion Adoption'!$A$5:$H$56,MATCH('Pivot Data'!E2152,'Expansion Adoption'!$B$5:$B$56,0),8),"ERROR") -> 0 | AL136: 1 | AM136: 1 | AN136: 1 | AO136: 1 | AP136: 1 | AQ136: 1 | AR136: 1 | AS136: 0 | AT136: 1 | AU136: 1 | AV136: 3 | AW136: 1 | AX136: 288609 | AY136: 0.1 | AZ136: 1088.913641 | BA136: 0.95 | BE136: 0.003611471038
A137: 2013 | B137: C6171 | C137: =Table2[[#This Row],[Year]]&Table2[[#This Row],[SNL Statutory Entity Key ]] -> 2013C6171 | D137: HealthSpring Life and Health Insurance Company, Inc. | E137: TN | F137: HealthSpring of Tennessee Inc. | G137: 0 | H137: 0 | I137: 0 | J137: 0 | K137: 0 | L137: 0 | M137: 0 | N137: 116026.663 | O137: 38701.836 | P137: 2.997962758 | Q137: 3 | R137: - | S137: - | T137: - | U137: 0 | V137: 2.997962758 | W137: - | X137: - | Y137: - | Z137: - | AA137: - | AB137: =_xlfn.IFNA(INDEX('SOA dataset'!$A$4:$BE$674,MATCH('Pivot Data'!F2153,'SOA dataset'!$E$4:$E$674,0),52),"Missing Info") -> FP | AC137: =_xlfn.IFNA(INDEX('NAIC Ownership'!$A$5:$E$212,MATCH('Pivot Data'!B2153,'NAIC Ownership'!$B$5:$B$212,0),5),"Missing Info") -> Missing Info | AD137: =_xlfn.IFNA(INDEX('S&P Export2'!$A$3:$E$290,MATCH('Pivot Data'!B2153,'S&P Export2'!$B$3:$B$290,0),3),"Missing Info") -> 11522 | AE137: 1 | AF137: 9 | AG137: 1 | AH137: =IF(AG137=9,INDEX('Cleanup profit status 9'!$F$5:$I$58,MATCH('Pivot Data'!B2153,'Cleanup profit status 9'!$G$5:$G$58,0),4),AG137) -> 1 | AI137: =_xlfn.IFNA(INDEX('Expansion Adoption'!$A$5:$H$56,MATCH('Pivot Data'!E2153,'Expansion Adoption'!$B$5:$B$56,0),6),"ERROR") -> 0 | AJ137: =_xlfn.IFNA(INDEX('Expansion Adoption'!$A$5:$H$56,MATCH('Pivot Data'!E2153,'Expansion Adoption'!$B$5:$B$56,0),7),"ERROR") -> 0 | AK137: =_xlfn.IFNA(INDEX('Expansion Adoption'!$A$5:$H$56,MATCH('Pivot Data'!E2153,'Expansion Adoption'!$B$5:$B$56,0),8),"ERROR") -> 0 | AL137: 0 | AM137: 0 | AN137: 0 | AO137: 0 | AP137: 0 | AQ137: 0 | AR137: 0 | AS137: 0 | AT137: 0 | AU137: 0 | AV137: 0 | AW137: 1
A138: 2013 | B138: C3675 | C138: =Table2[[#This Row],[Year]]&Table2[[#This Row],[SNL Statutory Entity Key ]] -> 2013C3675 | E138: FL | F138: Healthy Palm Beaches Inc. | G138: 163130 | H138: 27547.07 | I138: 1172.906 | J138: 943.955 | K138: 0 | L138: 2135.812 | M138: 23294.397 | N138: 14326.414 | O138: 1912.795 | P138: 7.489780138 | Q138: 7 | R138: 0.8456215852 | S138: 0.07753318229 | T138: 0.07684523254 | U138: 1 | V138: 7.489780138 | W138: 168.8657512 | X138: 12.97652792 | Y138: 13.09269907 | Z138: 142.7965242 | AA138: 7.105427358e-15 | AB138: =_xlfn.IFNA(INDEX('SOA dataset'!$A$4:$BE$674,MATCH('Pivot Data'!F2154,'SOA dataset'!$E$4:$E$674,0),52),"Missing Info") -> 0 | AC138: =_xlfn.IFNA(INDEX('NAIC Ownership'!$A$5:$E$212,MATCH('Pivot Data'!B2154,'NAIC Ownership'!$B$5:$B$212,0),5),"Missing Info") -> Missing Info | AD138: =_xlfn.IFNA(INDEX('S&P Export2'!$A$3:$E$290,MATCH('Pivot Data'!B2154,'S&P Export2'!$B$3:$B$290,0),3),"Missing Info") -> 95827 | AE138: 9 | AF138: 9 | AG138: 9 | AH138: =IF(AG138=9,INDEX('Cleanup profit status 9'!$F$5:$I$58,MATCH('Pivot Data'!B2154,'Cleanup profit status 9'!$G$5:$G$58,0),4),AG138) -> 0 | AI138: =_xlfn.IFNA(INDEX('Expansion Adoption'!$A$5:$H$56,MATCH('Pivot Data'!E2154,'Expansion Adoption'!$B$5:$B$56,0),6),"ERROR") -> 0 | AJ138: =_xlfn.IFNA(INDEX('Expansion Adoption'!$A$5:$H$56,MATCH('Pivot Data'!E2154,'Expansion Adoption'!$B$5:$B$56,0),7),"ERROR") -> 0 | AK138: =_xlfn.IFNA(INDEX('Expansion Adoption'!$A$5:$H$56,MATCH('Pivot Data'!E2154,'Expansion Adoption'!$B$5:$B$56,0),8),"ERROR") -> 0 | AL138: 1 | AM138: 1 | AN138: 1 | AO138: 1 | AP138: 1 | AQ138: 1 | AR138: 1 | AS138: 0 | AT138: 1 | AU138: 1 | AV138: 2 | AW138: 0 | AX138: 163130 | AY138: 0 | AZ138: 168.8657512 | BA138: 0.05 | BE138: -0.01957665495
A139: 2013 | B139: C8014 | C139: =Table2[[#This Row],[Year]]&Table2[[#This Row],[SNL Statutory Entity Key ]] -> 2013C8014 | E139: MN | F139: Hennepin Health | G139: 80629 | H139: 81796.325 | I139: 617.453 | J139: 9602.471 | K139: 0 | L139: 1661.559 | M139: 69914.842 | N139: 28266.576 | O139: 5607.912 | P139: 5.040481377 | Q139: 5 | R139: 0.8547430707 | S139: 0.02031336982 | T139: 0.1249435595 | U139: 1 | V139: 5.040481377 | W139: 1014.477731 | X139: 126.7524588 | Y139: 20.60746134 | Z139: 867.1178112 | AA139: -7.105427358e-14 | AB139: =_xlfn.IFNA(INDEX('SOA dataset'!$A$4:$BE$674,MATCH('Pivot Data'!F2155,'SOA dataset'!$E$4:$E$674,0),52),"Missing Info") -> Missing Info | AC139: =_xlfn.IFNA(INDEX('NAIC Ownership'!$A$5:$E$212,MATCH('Pivot Data'!B2155,'NAIC Ownership'!$B$5:$B$212,0),5),"Missing Info") -> Other | AD139: =_xlfn.IFNA(INDEX('S&P Export2'!$A$3:$E$290,MATCH('Pivot Data'!B2155,'S&P Export2'!$B$3:$B$290,0),3),"Missing Info") -> 52627 | AE139: 9 | AF139: 0 | AG139: 0 | AH139: =IF(AG139=9,INDEX('Cleanup profit status 9'!$F$5:$I$58,MATCH('Pivot Data'!B2155,'Cleanup profit status 9'!$G$5:$G$58,0),4),AG139) -> 0 | AI139: =_xlfn.IFNA(INDEX('Expansion Adoption'!$A$5:$H$56,MATCH('Pivot Data'!E2155,'Expansion Adoption'!$B$5:$B$56,0),6),"ERROR") -> 1 | AJ139: =_xlfn.IFNA(INDEX('Expansion Adoption'!$A$5:$H$56,MATCH('Pivot Data'!E2155,'Expansion Adoption'!$B$5:$B$56,0),7),"ERROR") -> 0 | AK139: =_xlfn.IFNA(INDEX('Expansion Adoption'!$A$5:$H$56,MATCH('Pivot Data'!E2155,'Expansion Adoption'!$B$5:$B$56,0),8),"ERROR") -> 1 | AL139: 1 | AM139: 1 | AN139: 1 | AO139: 1 | AP139: 1 | AQ139: 1 | AR139: 1 | AS139: 0 | AT139: 1 | AU139: 1 | AV139: 1 | AW139: 1 | AX139: 80629 | AY139: 0 | AZ139: 1014.477731 | BA139: 0.95 | BE139: -0.0396681282
A140: 2013 | B140: C3691 | C140: =Table2[[#This Row],[Year]]&Table2[[#This Row],[SNL Statutory Entity Key ]] -> 2013C3691 | D140: Highmark Health | E140: NY | F140: Highmark Western & NErn NY Inc | G140: 506677 | H140: 211387.258 | I140: 2865.249 | J140: 9926.041 | K140: 0 | L140: -11213.492 | M140: 209809.46 | N140: 591700.002 | O140: 88904.417 | P140: 6.655462371 | Q140: 7 | R140: 0.9925359834 | S140: -0.05304715197 | T140: 0.06051116856 | U140: 1 | V140: 6.655462371 | W140: 417.2031847 | X140: 25.24545223 | Y140: -22.13144074 | Z140: 414.0891732 | AA140: 2.486899575e-14 | AB140: =_xlfn.IFNA(INDEX('SOA dataset'!$A$4:$BE$674,MATCH('Pivot Data'!F2156,'SOA dataset'!$E$4:$E$674,0),52),"Missing Info") -> Missing Info | AC140: =_xlfn.IFNA(INDEX('NAIC Ownership'!$A$5:$E$212,MATCH('Pivot Data'!B2156,'NAIC Ownership'!$B$5:$B$212,0),5),"Missing Info") -> Other | AD140: =_xlfn.IFNA(INDEX('S&P Export2'!$A$3:$E$290,MATCH('Pivot Data'!B2156,'S&P Export2'!$B$3:$B$290,0),3),"Missing Info") -> 55204 | AE140: 9 | AF140: 0 | AG140: 0 | AH140: =IF(AG140=9,INDEX('Cleanup profit status 9'!$F$5:$I$58,MATCH('Pivot Data'!B2156,'Cleanup profit status 9'!$G$5:$G$58,0),4),AG140) -> 0 | AI140: =_xlfn.IFNA(INDEX('Expansion Adoption'!$A$5:$H$56,MATCH('Pivot Data'!E2156,'Expansion Adoption'!$B$5:$B$56,0),6),"ERROR") -> 1 | AJ140: =_xlfn.IFNA(INDEX('Expansion Adoption'!$A$5:$H$56,MATCH('Pivot Data'!E2156,'Expansion Adoption'!$B$5:$B$56,0),7),"ERROR") -> 0 | AK140: =_xlfn.IFNA(INDEX('Expansion Adoption'!$A$5:$H$56,MATCH('Pivot Data'!E2156,'Expansion Adoption'!$B$5:$B$56,0),8),"ERROR") -> 1 | AL140: 1 | AM140: 1 | AN140: 1 | AO140: 1 | AP140: 1 | AQ140: 1 | AR140: 1 | AS140: 0 | AT140: 1 | AU140: 1 | AV140: 5 | AW140: 0 | AX140: 506677 | AY140: 0.2 | AZ140: 417.2031847 | BA140: 0.65
A141: 2013 | B141: C9710 | C141: =Table2[[#This Row],[Year]]&Table2[[#This Row],[SNL Statutory Entity Key ]] -> 2013C9710 | D141: The HSC Health Care System | E141: DC | F141: Hlth Svcs for Children | G141: 0 | H141: 0 | I141: 0 | J141: 0 | K141: 0 | L141: 0 | M141: 0 | N141: 0 | O141: 0 | P141: - | Q141: - | R141: - | S141: - | T141: - | U141: 0 | V141: - | W141: - | X141: - | Y141: - | Z141: - | AA141: - | AB141: =_xlfn.IFNA(INDEX('SOA dataset'!$A$4:$BE$674,MATCH('Pivot Data'!F2157,'SOA dataset'!$E$4:$E$674,0),52),"Missing Info") -> Missing Info | AC141: =_xlfn.IFNA(INDEX('NAIC Ownership'!$A$5:$E$212,MATCH('Pivot Data'!B2157,'NAIC Ownership'!$B$5:$B$212,0),5),"Missing Info") -> Missing Info | AD141: =_xlfn.IFNA(INDEX('S&P Export2'!$A$3:$E$290,MATCH('Pivot Data'!B2157,'S&P Export2'!$B$3:$B$290,0),3),"Missing Info") -> 16955 | AE141: 9 | AF141: 9 | AG141: 9 | AH141: =IF(AG141=9,INDEX('Cleanup profit status 9'!$F$5:$I$58,MATCH('Pivot Data'!B2157,'Cleanup profit status 9'!$G$5:$G$58,0),4),AG141) -> 0 | AI141: =_xlfn.IFNA(INDEX('Expansion Adoption'!$A$5:$H$56,MATCH('Pivot Data'!E2157,'Expansion Adoption'!$B$5:$B$56,0),6),"ERROR") -> 1 | AJ141: =_xlfn.IFNA(INDEX('Expansion Adoption'!$A$5:$H$56,MATCH('Pivot Data'!E2157,'Expansion Adoption'!$B$5:$B$56,0),7),"ERROR") -> 0 | AK141: =_xlfn.IFNA(INDEX('Expansion Adoption'!$A$5:$H$56,MATCH('Pivot Data'!E2157,'Expansion Adoption'!$B$5:$B$56,0),8),"ERROR") -> 1 | AL141: 0 | AM141: 0 | AN141: 0 | AO141: 0 | AP141: 0 | AQ141: 0 | AR141: 0 | AS141: 0 | AT141: 0 | AU141: 0 | AV141: 0 | AW141: 1 | BE141: 0.0391275417
A142: 2013 | B142: C2459 | C142: =Table2[[#This Row],[Year]]&Table2[[#This Row],[SNL Statutory Entity Key ]] -> 2013C2459 | E142: IL | F142: HlthCare Svc Corp. a Mutual | G142: 222089 | H142: 49241.538 | I142: 5755.295 | J142: 4723.179 | K142: -945 | L142: -3763.744 | M142: 43471.808 | N142: 10290382.56 | O142: 838029.254 | P142: 12.27926413 | Q142: 12 | R142: 0.863636875 | S142: -0.07643433071 | T142: 0.2127974557 | U142: 1 | V142: 12.27926413 | W142: 221.719842 | X142: 47.18141826 | Y142: -16.94700773 | Z142: 191.4854315 | AA142: -3.197442311e-14 | AB142: =_xlfn.IFNA(INDEX('SOA dataset'!$A$4:$BE$674,MATCH('Pivot Data'!F2158,'SOA dataset'!$E$4:$E$674,0),52),"Missing Info") -> NFP | AC142: =_xlfn.IFNA(INDEX('NAIC Ownership'!$A$5:$E$212,MATCH('Pivot Data'!B2158,'NAIC Ownership'!$B$5:$B$212,0),5),"Missing Info") -> Mutual Company | AD142: =_xlfn.IFNA(INDEX('S&P Export2'!$A$3:$E$290,MATCH('Pivot Data'!B2158,'S&P Export2'!$B$3:$B$290,0),3),"Missing Info") -> 70670 | AE142: 0 | AF142: 1 | AG142: 0 | AH142: =IF(AG142=9,INDEX('Cleanup profit status 9'!$F$5:$I$58,MATCH('Pivot Data'!B2158,'Cleanup profit status 9'!$G$5:$G$58,0),4),AG142) -> 0 | AI142: =_xlfn.IFNA(INDEX('Expansion Adoption'!$A$5:$H$56,MATCH('Pivot Data'!E2158,'Expansion Adoption'!$B$5:$B$56,0),6),"ERROR") -> 1 | AJ142: =_xlfn.IFNA(INDEX('Expansion Adoption'!$A$5:$H$56,MATCH('Pivot Data'!E2158,'Expansion Adoption'!$B$5:$B$56,0),7),"ERROR") -> 0 | AK142: =_xlfn.IFNA(INDEX('Expansion Adoption'!$A$5:$H$56,MATCH('Pivot Data'!E2158,'Expansion Adoption'!$B$5:$B$56,0),8),"ERROR") -> 1 | AL142: 1 | AM142: 1 | AN142: 1 | AO142: 1 | AP142: 1 | AQ142: 1 | AR142: 1 | AS142: 0 | AT142: 1 | AU142: 1 | AV142: 2 | AW142: 0 | AX142: 222089 | AY142: 0 | AZ142: 221.719842 | BA142: 0.15 | BE142: 0.0194502125
A143: 2013 | B143: C4726 | C143: =Table2[[#This Row],[Year]]&Table2[[#This Row],[SNL Statutory Entity Key ]] -> 2013C4726 | D143: Aware Integrated, Inc. | E143: MN | F143: HMO Minnesota | G143: 1424653 | H143: 605324.293 | I143: 28531.851 | J143: 30221.746 | K143: -48216 | L143: 38651.713 | M143: 556134.983 | N143: 448874.847 | O143: 38630.664 | P143: 11.61965135 | Q143: 12 | R143: 0.8390857411 | S143: 0.0638529024 | T143: 0.0970613565 | U143: 1 | V143: 11.61965135 | W143: 424.8924426 | X143: 41.24063684 | Y143: 27.13061567 | Z143: 356.5211901 | AA143: 9.592326933e-14 | AB143: =_xlfn.IFNA(INDEX('SOA dataset'!$A$4:$BE$674,MATCH('Pivot Data'!F2159,'SOA dataset'!$E$4:$E$674,0),52),"Missing Info") -> Missing Info | AC143: =_xlfn.IFNA(INDEX('NAIC Ownership'!$A$5:$E$212,MATCH('Pivot Data'!B2159,'NAIC Ownership'!$B$5:$B$212,0),5),"Missing Info") -> Stock Company | AD143: =_xlfn.IFNA(INDEX('S&P Export2'!$A$3:$E$290,MATCH('Pivot Data'!B2159,'S&P Export2'!$B$3:$B$290,0),3),"Missing Info") -> 95649 | AE143: 9 | AF143: 1 | AG143: 1 | AH143: =IF(AG143=9,INDEX('Cleanup profit status 9'!$F$5:$I$58,MATCH('Pivot Data'!B2159,'Cleanup profit status 9'!$G$5:$G$58,0),4),AG143) -> 1 | AI143: =_xlfn.IFNA(INDEX('Expansion Adoption'!$A$5:$H$56,MATCH('Pivot Data'!E2159,'Expansion Adoption'!$B$5:$B$56,0),6),"ERROR") -> 1 | AJ143: =_xlfn.IFNA(INDEX('Expansion Adoption'!$A$5:$H$56,MATCH('Pivot Data'!E2159,'Expansion Adoption'!$B$5:$B$56,0),7),"ERROR") -> 0 | AK143: =_xlfn.IFNA(INDEX('Expansion Adoption'!$A$5:$H$56,MATCH('Pivot Data'!E2159,'Expansion Adoption'!$B$5:$B$56,0),8),"ERROR") -> 1 | AL143: 1 | AM143: 1 | AN143: 1 | AO143: 1 | AP143: 1 | AQ143: 1 | AR143: 1 | AS143: 0 | AT143: 1 | AU143: 1 | AV143: 14 | AW143: 0 | AX143: 1424653 | AY143: 0.4 | AZ143: 424.8924426 | BA143: 0.65 | BE143: 0.00138063421
A144: 2013 | B144: C8078 | C144: =Table2[[#This Row],[Year]]&Table2[[#This Row],[SNL Statutory Entity Key ]] -> 2013C8078 | D144: HN1 Therapy Network, LLC | E144: NJ | F144: HN1 Therapy Network of NJ LLC | G144: 152761 | H144: 202.626 | I144: 0 | J144: 98.751 | K144: 0 | L144: -67.574 | M144: 171.449 | N144: 38.904 | O144: 840.142 | P144: 0.04630645772 | Q144: 0 | R144: 0.8461352442 | S144: -0.3334912598 | T144: 0.4873560155 | U144: 1 | V144: 0.04630645772 | W144: 1.326424938 | X144: 0.6464411728 | Y144: -0.4423511237 | Z144: 1.122334889 | AA144: 0 | AB144: =_xlfn.IFNA(INDEX('SOA dataset'!$A$4:$BE$674,MATCH('Pivot Data'!F2160,'SOA dataset'!$E$4:$E$674,0),52),"Missing Info") -> Missing Info | AC144: =_xlfn.IFNA(INDEX('NAIC Ownership'!$A$5:$E$212,MATCH('Pivot Data'!B2160,'NAIC Ownership'!$B$5:$B$212,0),5),"Missing Info") -> Limited Liability Corporation | AD144: =_xlfn.IFNA(INDEX('S&P Export2'!$A$3:$E$290,MATCH('Pivot Data'!B2160,'S&P Export2'!$B$3:$B$290,0),3),"Missing Info") -> 15014 | AE144: 9 | AF144: 1 | AG144: 1 | AH144: =IF(AG144=9,INDEX('Cleanup profit status 9'!$F$5:$I$58,MATCH('Pivot Data'!B2160,'Cleanup profit status 9'!$G$5:$G$58,0),4),AG144) -> 1 | AI144: =_xlfn.IFNA(INDEX('Expansion Adoption'!$A$5:$H$56,MATCH('Pivot Data'!E2160,'Expansion Adoption'!$B$5:$B$56,0),6),"ERROR") -> 1 | AJ144: =_xlfn.IFNA(INDEX('Expansion Adoption'!$A$5:$H$56,MATCH('Pivot Data'!E2160,'Expansion Adoption'!$B$5:$B$56,0),7),"ERROR") -> 0 | AK144: =_xlfn.IFNA(INDEX('Expansion Adoption'!$A$5:$H$56,MATCH('Pivot Data'!E2160,'Expansion Adoption'!$B$5:$B$56,0),8),"ERROR") -> 1 | AL144: 1 | AM144: 1 | AN144: 0 | AO144: 0 | AP144: 0 | AQ144: 0 | AR144: 0 | AS144: 0 | AT144: 0 | AU144: 0 | AV144: 2 | AW144: 0
